Workbook

Sheet Bagalkote
A1: Name of the District: Bagalkote | C1: 2016-17 | M1: Outlay Proposed for 2017-18 | V1: Outlay Recommended for 2017-18
A2: S.No. | B2: Activity | C2: Out Lay Approved for 2016-17 (including spill over) | E2: Expenditure as on DEC, 2016 (As per Vidyavahini Software) | G2: Anticipated Achievement till 31-3-2017 | K2: Savings | M2: Spill Over | O2: Deferred laibility of 2016-2017 | Q2: Fresh | T2: Total | V2: Spill Over | X2: Deferred laibility of 2016-2017 | Z2: Fresh | AC2: Total
C3: Phy. | D3: Fin. | E3: Phy. | F3: Fin. | G3: Phy. | H3: Fin. | I3: Phy. (%) | J3: Fin. (%) | K3: Phy. | L3: Fin. | M3: Phy. | N3: Fin. | O3: Phy. | P3: Fin. | Q3: Unit Cost | R3: Phy. | S3: Fin. | T3: Phy. | U3: Fin. | V3: Phy. | W3: Fin. | X3: Phy. | Y3: Fin. | Z3: Unit Cost | AA3: Phy. | AB3: Fin. | AC3: Phy. | AD3: Fin.
B5: SSA
A6: 1 | B6: Opening of New Schools
A7: 1.01 | B7: New Primary School | C7: 0 | D7: 0 | I7: =IFERROR(G7/C7*100,"") ->  | J7: =IFERROR(H7/D7*100,"") ->  | K7: =C7-G7 -> 0 | L7: =D7-H7 -> 0 | S7: =Q7*R7 -> 0 | T7: =+M7+O7+R7 -> 0 | U7: =+N7+P7+S7 -> 0 | AB7: =Z7*AA7 -> 0 | AC7: =+V7+X7+AA7 -> 0 | AD7: =+W7+Y7+AB7 -> 0 | AF7: =+AD7 -> 0 | AG7: =+W7+Y7+AB7=AD7 -> TRUE
A8: 1.02 | B8: Upgradation of PS to UPS | C8: 0 | D8: 0 | I8: =IFERROR(G8/C8*100,"") ->  | J8: =IFERROR(H8/D8*100,"") ->  | K8: =C8-G8 -> 0 | L8: =D8-H8 -> 0 | S8: =R8*Q8 -> 0 | T8: =+M8+O8+R8 -> 0 | U8: =+N8+P8+S8 -> 0 | AB8: =AA8*Z8 -> 0 | AC8: =+V8+X8+AA8 -> 0 | AD8: =+W8+Y8+AB8 -> 0 | AF8: =+AD8 -> 0 | AG8: =+W8+Y8+AB8=AD8 -> TRUE
A9: 1.03 | B9: Composite Schools | C9: 0 | D9: 0 | K9: 0 | L9: 0 | S9: 0 | T9: 0 | U9: 0 | AB9: 0 | AC9: 0 | AD9: 0 | AF9: 0 | AG9: TRUE
A10: 1.04 | B10: Residential schools for specific category of children | C10: 0 | D10: 0 | K10: 0 | L10: 0 | S10: 0 | T10: 0 | U10: 0 | AB10: 0 | AC10: 0 | AD10: 0 | AF10: 0 | AG10: TRUE
A11: 1.05 | B11: Residential Hostel | C11: 0 | D11: 0 | K11: 0 | L11: 0 | S11: 0 | T11: 0 | U11: 0 | AB11: 0 | AC11: 0 | AD11: 0 | AF11: 0 | AG11: TRUE
A12: 1.06 | B12: Integration of Class V with primary schools | C12: 0 | D12: 0 | K12: 0 | L12: 0 | S12: 0 | T12: 0 | U12: 0 | AB12: 0 | AC12: 0 | AD12: 0 | AF12: 0 | AG12: TRUE
A13: 1.07 | B13: Integration of Class VIII with upper primary schools | C13: 0 | D13: 0 | K13: 0 | L13: 0 | S13: 0 | T13: 0 | U13: 0 | AB13: 0 | AC13: 0 | AD13: 0 | AF13: 0 | AG13: TRUE
A14: 2 | B14: Residential Schools for specific category of children | T14: 0 | U14: 0 | AC14: 0 | AD14: 0 | AG14: TRUE
B15: 50 children | T15: 0 | U15: 0 | AC15: 0 | AD15: 0 | AG15: TRUE
B16: Non-recurring (one time grant) | T16: 0 | U16: 0 | AC16: 0 | AD16: 0 | AG16: TRUE
A17: 2.01 | B17: Furniture/ Equipment (including kitchen) | C17: 0 | D17: 0 | K17: =C17-G17 -> 0 | L17: 0 | S17: =R17*Q17 -> 0 | T17: 0 | U17: 0 | AB17: =AA17*Z17 -> 0 | AC17: 0 | AD17: 0 | AF17: 0 | AG17: TRUE
A18: 2.02 | B18: TLM and equipment including library books | C18: 0 | D18: 0 | K18: 0 | L18: 0 | S18: =R18*Q18 -> 0 | T18: 0 | U18: 0 | AB18: =AA18*Z18 -> 0 | AC18: 0 | AD18: 0 | AF18: 0 | AG18: TRUE
A19: 2.03 | B19: Bedding (new) | C19: 0 | D19: 0 | K19: 0 | L19: 0 | S19: =R19*Q19 -> 0 | T19: 0 | U19: 0 | AB19: =AA19*Z19 -> 0 | AC19: 0 | AD19: 0 | AF19: 0 | AG19: TRUE
A20: 2.04 | B20: Replacement of bedding (once in 3 years) | C20: 0 | D20: 0 | K20: 0 | L20: 0 | S20: =R20*Q20 -> 0 | T20: 0 | U20: 0 | AB20: =AA20*Z20 -> 0 | AC20: 0 | AD20: 0 | AF20: 0 | AG20: TRUE
B21: Sub Total (Non Recurring) | C21: 0 | D21: 0 | E21: =SUM(E7:E20) -> 0 | F21: =SUM(F7:F20) -> 0 | G21: 0 | H21: 0 | K21: 0 | L21: 0 | M21: =SUM(M7:M20) -> 0 | N21: =SUM(N7:N20) -> 0 | O21: =SUM(O7:O20) -> 0 | P21: =SUM(P7:P20) -> 0 | R21: =SUM(R7:R20) -> 0 | S21: =SUM(S7:S20) -> 0 | T21: 0 | U21: 0 | V21: =SUM(V7:V20) -> 0 | W21: =SUM(W7:W20) -> 0 | X21: 0 | Y21: 0 | AA21: 0 | AB21: 0 | AC21: 0 | AD21: 0 | AE21: 0 | AF21: 0 | AG21: TRUE
B22: Recurring (50 children) | T22: 0 | U22: 0 | AC22: 0 | AD22: 0 | AF22: 0 | AG22: TRUE
A23: 2.05 | B23: Maintenance per child Per month @ Rs.1500/- | C23: 0 | D23: 0 | K23: =C23-G23 -> 0 | L23: =D23-H23 -> 0 | N23: 0 | Q23: 0.18 | S23: =R23*Q23 -> 0 | T23: 0 | U23: 0 | W23: 0 | AB23: =AA23*Z23 -> 0 | AC23: 0 | AD23: 0 | AF23: 0 | AG23: TRUE
A24: 2.06 | B24: Stipend per child per month @ Rs.100/- | C24: 0 | D24: 0 | K24: 0 | L24: 0 | N24: 0 | Q24: 0.012 | S24: =R24*Q24 -> 0 | T24: 0 | U24: 0 | W24: 0 | AB24: =AA24*Z24 -> 0 | AC24: 0 | AD24: 0 | AF24: 0 | AG24: TRUE
A25: 2.07 | B25: Supplementary TLM, Stationery and other educational material @Rs.1000/- per child per annum | C25: 0 | D25: 0 | K25: 0 | L25: 0 | N25: 0 | Q25: 0.01 | S25: =R25*Q25 -> 0 | T25: 0 | U25: 0 | W25: 0 | AB25: =AA25*Z25 -> 0 | AC25: 0 | AD25: 0 | AF25: 0 | AG25: TRUE
A26: 2.08 | B26: Salaries | T26: 0 | U26: 0 | AC26: 0 | AD26: 0 | AF26: 0 | AG26: TRUE
A27: (a) | B27: 1 Warden @ Rs.25000/- per month | C27: 0 | D27: 0 | K27: 0 | L27: 0 | N27: 0 | Q27: 3 | S27: =R27*Q27 -> 0 | T27: 0 | U27: 0 | W27: 0 | AB27: =AA27*Z27 -> 0 | AC27: 0 | AD27: 0 | AF27: 0 | AG27: TRUE
A28: (b ) | B28: 4 Fulltime teachers as per RTE Norms @ Rs. 20,000/- per month per teacher | C28: 0 | D28: 0 | K28: 0 | L28: 0 | N28: 0 | Q28: 9.6 | S28: 0 | T28: 0 | U28: 0 | W28: 0 | AB28: 0 | AC28: 0 | AD28: 0 | AF28: 0 | AG28: TRUE
A29: (c) | B29: 2 Urdu Teachers (only for Blocks with muslim population above 20% and select urban areas) @ Rs.12,000/- per month per teacher. | C29: 0 | D29: 0 | K29: 0 | L29: 0 | N29: 0 | Q29: 1.44 | S29: 0 | T29: 0 | U29: 0 | W29: 0 | AB29: 0 | AC29: 0 | AD29: 0 | AF29: 0 | AG29: TRUE
A30: (d) | B30: 3 Part time teachers @ Rs.5,000/- per month per teacher | C30: 0 | D30: 0 | K30: 0 | L30: 0 | N30: 0 | Q30: 1.55 | S30: 0 | T30: 0 | U30: 0 | W30: 0 | AB30: 0 | AC30: 0 | AD30: 0 | AF30: 0 | AG30: TRUE
A31: (e ) | B31: 1 Full time Accountant @ Rs. 10,000/- per month | C31: 0 | D31: 0 | K31: 0 | L31: 0 | N31: 0 | Q31: 1.2 | S31: 0 | T31: 0 | U31: 0 | W31: 0 | AB31: 0 | AC31: 0 | AD31: 0 | AF31: 0 | AG31: TRUE
A32: (f) | B32: 2 Support staff - (Accountant/Assistant, Peon, Chowkidar) @ Rs. 5,000/- per month per staff | C32: 0 | D32: 0 | K32: 0 | L32: 0 | N32: 0 | Q32: 1.2 | S32: 0 | T32: 0 | U32: 0 | W32: 0 | AB32: 0 | AC32: 0 | AD32: 0 | AF32: 0 | AG32: TRUE
A33: (g) | B33: 1 Head Cook @ Rs. 6,000/- per month and upto 2 Asstt. Cooks @ Rs. 4,500/- per month per cook | C33: 0 | D33: 0 | K33: 0 | L33: 0 | N33: 0 | Q33: 1.8 | S33: 0 | T33: 0 | U33: 0 | W33: 0 | AB33: 0 | AC33: 0 | AD33: 0 | AF33: 0 | AG33: TRUE
A34: 2.09 | B34: Specific Skill training @ Rs.1000/- per annum per child | C34: 0 | D34: 0 | K34: 0 | L34: 0 | N34: 0 | Q34: 0.01 | S34: 0 | T34: 0 | U34: 0 | W34: 0 | AB34: 0 | AC34: 0 | AD34: 0 | AF34: 0 | AG34: TRUE
A35: 2.1 | B35: Electricity / water charges @ Rs. 1000/- per annum per child | C35: 0 | D35: 0 | K35: 0 | L35: 0 | N35: 0 | Q35: 0.01 | S35: 0 | T35: 0 | U35: 0 | W35: 0 | AB35: 0 | AC35: 0 | AD35: 0 | AF35: 0 | AG35: TRUE
A36: 2.11 | B36: Medical care/contingencies @ Rs.1250/- per annum per child | C36: 0 | D36: 0 | K36: 0 | L36: 0 | N36: 0 | Q36: 0.0125 | S36: 0 | T36: 0 | U36: 0 | W36: 0 | AB36: 0 | AC36: 0 | AD36: 0 | AF36: 0 | AG36: TRUE
A37: 2.12 | B37: Maintenance @ Rs. 750/- per child per annum | C37: 0 | D37: 0 | K37: 0 | L37: 0 | N37: 0 | Q37: 0.0075 | S37: 0 | T37: 0 | U37: 0 | W37: 0 | AB37: 0 | AC37: 0 | AD37: 0 | AF37: 0 | AG37: TRUE
A38: 2.13 | B38: Miscellaneous @ Rs. 750/- per child per annum | C38: 0 | D38: 0 | K38: 0 | L38: 0 | N38: 0 | Q38: 0.0075 | S38: 0 | T38: 0 | U38: 0 | W38: 0 | AB38: 0 | AC38: 0 | AD38: 0 | AF38: 0 | AG38: TRUE
A39: 2.14 | B39: Preparatory camps @ Rs. 300/- per child per annum | C39: 0 | D39: 0 | K39: 0 | L39: 0 | N39: 0 | Q39: 0.003 | S39: 0 | T39: 0 | U39: 0 | W39: 0 | AB39: 0 | AC39: 0 | AD39: 0 | AF39: 0 | AG39: TRUE
A40: 2.15 | B40: P.T.A / school functions @ Rs. 300/- per child per annum | C40: 0 | D40: 0 | K40: 0 | L40: 0 | N40: 0 | Q40: 0.003 | S40: 0 | T40: 0 | U40: 0 | W40: 0 | AB40: 0 | AC40: 0 | AD40: 0 | AF40: 0 | AG40: TRUE
A41: 2.16 | B41: Provision of Rent @ Rs. 10,000/- per child per annum | C41: 0 | D41: 0 | K41: 0 | L41: 0 | N41: 0 | S41: 0 | T41: 0 | U41: 0 | W41: 0 | AB41: 0 | AC41: 0 | AD41: 0 | AF41: 0 | AG41: TRUE
A42: 2.17 | B42: Capacity Building @ Rs. 500/- per child per annum | C42: 0 | D42: 0 | K42: 0 | L42: 0 | N42: 0 | Q42: 0.005 | S42: 0 | T42: 0 | U42: 0 | W42: 0 | AB42: 0 | AC42: 0 | AD42: 0 | AF42: 0 | AG42: TRUE
A43: 2.18 | B43: Physical / Self Defence Training @ Rs.200/- per child per annum | C43: 0 | D43: 0 | K43: 0 | L43: 0 | N43: 0 | Q43: 0.002 | S43: 0 | T43: 0 | U43: 0 | W43: 0 | AB43: 0 | AC43: 0 | AD43: 0 | AF43: 0 | AG43: TRUE
B44: Sub Total (Recurring) | C44: =SUM(C23:C43) -> 0 | D44: 0 | E44: 0 | F44: 0 | G44: 0 | H44: 0 | K44: 0 | L44: 0 | M44: 0 | N44: 0 | R44: =SUM(R23:R43) -> 0 | S44: =SUM(S23:S43) -> 0 | T44: 0 | U44: 0 | V44: =SUM(V23:V43) -> 0 | W44: =SUM(W23:W43) -> 0 | X44: 0 | Y44: 0 | AA44: 0 | AB44: 0 | AC44: =+V44+X44+AA44 -> 0 | AD44: =+W44+Y44+AB44 -> 0 | AG44: TRUE
B45: Total (Non Recurring + Recurring) | C45: =C44+C21 -> 0 | D45: 0 | E45: 0 | F45: 0 | G45: 0 | H45: 0 | K45: 0 | L45: 0 | M45: 0 | N45: 0 | R45: =R44+R21 -> 0 | S45: =S44+S21 -> 0 | T45: 0 | U45: 0 | V45: =+V44+V21 -> 0 | W45: =+W44+W21 -> 0 | X45: 0 | Y45: 0 | Z45: 0 | AA45: 0 | AB45: 0 | AC45: =+V45+X45+AA45 -> 0 | AD45: =+W45+Y45+AB45 -> 0 | AG45: TRUE
B46: 100 children | T46: 0 | U46: 0 | AC46: 0 | AD46: 0 | AG46: TRUE
B47: Non-recurring (one time grant) | T47: 0 | U47: 0 | AC47: 0 | AD47: 0 | AG47: TRUE
A48: 2.19 | B48: Furniture / Equipment (including kitchen equipment) | C48: 0 | D48: 0 | K48: =C48-G48 -> 0 | L48: 0 | S48: =R48*Q48 -> 0 | T48: 0 | U48: 0 | AB48: =AA48*Z48 -> 0 | AC48: 0 | AD48: 0 | AF48: 0 | AG48: TRUE
A49: 2.2 | B49: TLM and equipment including library books (New) | C49: 0 | D49: 0 | K49: 0 | L49: 0 | S49: =R49*Q49 -> 0 | T49: 0 | U49: 0 | AB49: =AA49*Z49 -> 0 | AC49: 0 | AD49: 0 | AF49: 0 | AG49: TRUE
A50: 2.21 | B50: Bedding (New) | C50: 0 | D50: 0 | K50: 0 | L50: 0 | S50: =R50*Q50 -> 0 | T50: 0 | U50: 0 | AB50: =AA50*Z50 -> 0 | AC50: 0 | AD50: 0 | AF50: 0 | AG50: TRUE
A51: 2.22 | B51: Replacement of bedding (once in 3 years) | C51: 0 | D51: 0 | E51: 0 | G51: 0 | K51: 0 | L51: 0 | S51: =R51*Q51 -> 0 | T51: 0 | U51: 0 | AB51: =AA51*Z51 -> 0 | AC51: 0 | AD51: 0 | AF51: 0 | AG51: TRUE
B52: Sub Total Non-recurring | C52: 0 | D52: 0 | E52: =SUM(E48:E51) -> 0 | F52: =SUM(F48:F51) -> 0 | G52: 0 | H52: 0 | K52: 0 | L52: 0 | M52: 0 | N52: 0 | R52: =SUM(R48:R51) -> 0 | S52: =SUM(S48:S51) -> 0 | T52: 0 | U52: 0 | V52: =SUM(V48:V51) -> 0 | W52: =SUM(W48:W51) -> 0 | X52: 0 | Y52: 0 | AA52: 0 | AB52: 0 | AC52: =+V52+X52+AA52 -> 0 | AD52: =+W52+Y52+AB52 -> 0 | AG52: TRUE
B53: Recurring | C53: 0 | D53: 0 | T53: 0 | U53: 0 | AC53: 0 | AD53: 0 | AG53: TRUE
A54: 2.23 | B54: Maintenance per child per month @ Rs. 1500/- | C54: 0 | D54: 0 | K54: =C54-G54 -> 0 | L54: =D54-H54 -> 0 | N54: 0 | Q54: 0.18 | S54: =R54*Q54 -> 0 | T54: 0 | U54: 0 | W54: 0 | Z54: 0.18 | AB54: =AA54*Z54 -> 0 | AC54: 0 | AD54: 0 | AF54: 0 | AG54: TRUE
A55: 2.24 | B55: Stipend per child per month @ Rs.100/- | C55: 0 | D55: 0 | K55: =C55-G55 -> 0 | L55: =D55-H55 -> 0 | N55: 0 | Q55: 0.012 | S55: =R55*Q55 -> 0 | T55: 0 | U55: 0 | W55: 0 | Z55: 0.012 | AB55: =AA55*Z55 -> 0 | AC55: 0 | AD55: 0 | AF55: 0 | AG55: TRUE
A56: 2.25 | B56: Supplementary TLM, Stationery and other educational material per child @1000/- per annum | C56: 0 | D56: 0 | K56: 0 | L56: 0 | N56: 0 | Q56: 0.01 | S56: =R56*Q56 -> 0 | T56: 0 | U56: 0 | W56: 0 | Z56: 0.01 | AB56: =AA56*Z56 -> 0 | AC56: 0 | AD56: 0 | AF56: 0 | AG56: TRUE
A57: =+A56+0.01 -> 2.26 | B57: Salaries | T57: 0 | U57: 0 | AC57: 0 | AD57: 0 | AF57: 0 | AG57: TRUE
A58: (a) | B58: 1 Warden @ Rs. 25,000/- per month | C58: 0 | D58: 0 | G58: 0 | K58: 0 | L58: 0 | N58: 0 | Q58: 3 | S58: =R58*Q58 -> 0 | T58: 0 | U58: 0 | W58: 0 | Z58: 3 | AB58: =AA58*Z58 -> 0 | AC58: 0 | AD58: 0 | AF58: 0 | AG58: TRUE
A59: (b) | B59: 1 head teacher @ Rs. 25,000/- per month in case the enrollment exceeds 100 | K59: 0 | L59: 0 | N59: 0 | S59: 0 | T59: 0 | U59: 0 | W59: 0 | AB59: 0 | AC59: 0 | AD59: 0 | AF59: 0 | AG59: TRUE
A60: (c) | B60: 4 - 5 Full time teachers as per RTE norms @ Rs. 20,000/- per month per teacher | C60: 0 | D60: 0 | G60: 0 | K60: 0 | L60: 0 | N60: 0 | Q60: 9.6 | S60: 0 | T60: 0 | U60: 0 | W60: 0 | Z60: 9.6 | AB60: 0 | AC60: 0 | AD60: 0 | AF60: 0 | AG60: TRUE
A61: (d) | B61: 2 Urdu Teachers (only for blocks with muslim population above 20% and select urban areas), if required @ Rs. 12,000/- per month per teacher | C61: 0 | D61: 0 | K61: 0 | L61: 0 | N61: 0 | Q61: 1.44 | S61: 0 | T61: 0 | U61: 0 | W61: 0 | AB61: 0 | AC61: 0 | AD61: 0 | AF61: 0 | AG61: TRUE
A62: (e) | B62: 3 part time teachers @ Rs. 5,000/- per month per teacher | C62: 0 | D62: 0 | G62: 0 | K62: 0 | L62: 0 | N62: 0 | Q62: 1.5 | S62: 0 | T62: 0 | U62: 0 | W62: 0 | Z62: 1.5 | AB62: 0 | AC62: 0 | AD62: 0 | AF62: 0 | AG62: TRUE
A63: (f) | B63: 1 Full time Accountant @ Rs. 10,000/- per month | C63: 0 | D63: 0 | K63: 0 | L63: 0 | N63: 0 | Q63: 1.2 | S63: 0 | T63: 0 | U63: 0 | W63: 0 | Z63: 1.2 | AB63: 0 | AC63: 0 | AD63: 0 | AF63: 0 | AG63: TRUE
A64: (g) | B64: 2 Support Staff – (Accountant/ Assistant, Peon, Chowkidar) @ Rs. 5,000/- per month per staff | C64: 0 | D64: 0 | K64: 0 | L64: 0 | N64: 0 | Q64: 1.2 | S64: 0 | T64: 0 | U64: 0 | W64: 0 | Z64: 1.2 | AB64: 0 | AC64: 0 | AD64: 0 | AF64: 0 | AG64: TRUE
A65: (h) | B65: 1 Head cook @ Rs. 6,000/- per month and upto 2 Asstt. Cooks @ Rs. 4,500/- per month per cook | C65: 0 | D65: 0 | K65: 0 | L65: 0 | N65: 0 | Q65: 1.8 | S65: 0 | T65: 0 | U65: 0 | W65: 0 | Z65: 1.8 | AB65: 0 | AC65: 0 | AD65: 0 | AF65: 0 | AG65: TRUE
A66: 2.27 | B66: Specific skill training per child @ Rs.1000/- per annum | C66: 0 | D66: 0 | K66: 0 | L66: 0 | N66: 0 | Q66: 0.01 | S66: 0 | T66: 0 | U66: 0 | W66: 0 | Z66: 0.01 | AB66: 0 | AC66: 0 | AD66: 0 | AF66: 0 | AG66: TRUE
A67: 2.28 | B67: Electricity / water charges per child @Rs.1000/- per annum | C67: 0 | D67: 0 | K67: 0 | L67: 0 | N67: 0 | Q67: 0.01 | S67: 0 | T67: 0 | U67: 0 | W67: 0 | Z67: 0.01 | AB67: 0 | AC67: 0 | AD67: 0 | AF67: 0 | AG67: TRUE
A68: 2.29 | B68: Medical care/contingencies @ Rs.1250/- per child per annum | C68: 0 | D68: 0 | K68: 0 | L68: 0 | N68: 0 | Q68: 0.0125 | S68: 0 | T68: 0 | U68: 0 | W68: 0 | Z68: 0.0125 | AB68: 0 | AC68: 0 | AD68: 0 | AF68: 0 | AG68: TRUE
A69: 2.3 | B69: Maintenance @ Rs.750/- per child per annum | C69: 0 | D69: 0 | K69: 0 | L69: 0 | N69: 0 | Q69: 0.0075 | S69: 0 | T69: 0 | U69: 0 | W69: 0 | Z69: 0.0075 | AB69: 0 | AC69: 0 | AD69: 0 | AF69: 0 | AG69: TRUE
A70: 2.31 | B70: Miscellaneous @ Rs.750/- per child per annum | C70: 0 | D70: 0 | K70: 0 | L70: 0 | N70: 0 | Q70: 0.0075 | S70: 0 | T70: 0 | U70: 0 | W70: 0 | Z70: 0.0075 | AB70: 0 | AC70: 0 | AD70: 0 | AF70: 0 | AG70: TRUE
A71: 2.32 | B71: Preparatory camps @ Rs.200/- per child per annum | C71: 0 | D71: 0 | K71: 0 | L71: 0 | N71: 0 | Q71: 0.002 | S71: 0 | T71: 0 | U71: 0 | W71: 0 | Z71: 0.002 | AB71: 0 | AC71: 0 | AD71: 0 | AF71: 0 | AG71: TRUE
A72: 2.33 | B72: P.T.A / school functions @ Rs.200/- per child per annum | C72: 0 | D72: 0 | I72: =IFERROR(G72/C72*100,"") ->  | J72: =IFERROR(H72/D72*100,"") ->  | K72: 0 | L72: 0 | N72: 0 | Q72: 0.002 | S72: 0 | T72: =+M72+O72+R72 -> 0 | U72: =+N72+P72+S72 -> 0 | W72: 0 | Z72: 0.002 | AB72: 0 | AC72: =+V72+X72+AA72 -> 0 | AD72: =+W72+Y72+AB72 -> 0 | AF72: =+AD72 -> 0 | AG72: =+W72+Y72+AB72=AD72 -> TRUE
A73: 2.34 | B73: Provision of Rent @ Rs. 6000/- per child per annum | C73: 0 | D73: 0 | L73: 0 | N73: 0 | S73: 0 | T73: 0 | U73: 0 | W73: 0 | AB73: 0 | AC73: 0 | AD73: 0 | AF73: 0 | AG73: TRUE
A74: 2.35 | B74: Capacity Building @ Rs.500/- per child per annum | C74: 0 | D74: 0 | H74: 0 | K74: 0 | L74: 0 | N74: 0 | Q74: 0.005 | S74: 0 | T74: 0 | U74: 0 | W74: 0 | Z74: 0.005 | AB74: 0 | AC74: 0 | AD74: 0 | AF74: 0 | AG74: TRUE
A75: 2.36 | B75: Physical / Self Defence training @ Rs. 200/- per child per annum. | C75: 0 | D75: 0 | K75: 0 | L75: 0 | N75: 0 | Q75: 0.002 | S75: 0 | T75: 0 | U75: 0 | W75: 0 | Z75: 0.002 | AB75: 0 | AC75: 0 | AD75: 0 | AF75: 0 | AG75: TRUE
B76: Sub Total (Recurring) | C76: 0 | D76: 0 | E76: =E75+E51 -> 0 | F76: =SUM(F54:F75) -> 0 | G76: 0 | H76: 0 | K76: 0 | L76: 0 | M76: 0 | N76: 0 | R76: =SUM(R54:R75) -> 0 | S76: =SUM(S54:S75) -> 0 | T76: 0 | U76: 0 | V76: =SUM(V54:V75) -> 0 | W76: =SUM(W54:W75) -> 0 | X76: 0 | Y76: 0 | AA76: 0 | AB76: 0 | AC76: =+V76+X76+AA76 -> 0 | AD76: 0 | AG76: TRUE
B77: Total (Recurring + Non Recurring) | C77: 0 | D77: 0 | E77: 0 | F77: 0 | G77: 0 | H77: 0 | K77: 0 | L77: 0 | M77: 0 | N77: 0 | R77: =R76+R52 -> 0 | S77: =S76+S52 -> 0 | T77: 0 | U77: 0 | V77: =+V76+V52 -> 0 | W77: =+W76+W52 -> 0 | X77: 0 | Y77: 0 | AA77: 0 | AB77: 0 | AC77: 0 | AD77: 0 | AG77: TRUE
B78: Total (50 + 100 children) | C78: =C77+C45 -> 0 | D78: 0 | E78: 0 | F78: 0 | G78: 0 | H78: 0 | K78: 0 | L78: 0 | M78: =M77+M45 -> 0 | N78: =N77+N45 -> 0 | O78: =O77+O45 -> 0 | P78: =P77+P45 -> 0 | R78: =R77+R45 -> 0 | S78: =S77+S45 -> 0 | T78: 0 | U78: 0 | V78: =+V77+V45 -> 0 | W78: =+W77+W45 -> 0 | X78: 0 | Y78: 0 | AA78: 0 | AB78: 0 | AC78: 0 | AD78: 0 | AG78: TRUE
A79: 3 | B79: Residential Hostel for specific category of children | T79: 0 | U79: 0 | AC79: 0 | AD79: 0 | AF79: 0 | AG79: TRUE
A80: (A) | B80: 50 children | T80: 0 | U80: 0 | AC80: 0 | AD80: 0 | AF80: 0 | AG80: TRUE
B81: Non-recurring (one time grant) | T81: 0 | U81: 0 | AC81: 0 | AD81: 0 | AF81: 0 | AG81: TRUE
A82: 3.01 | B82: Furniture/ Equipment (including kitchen) | C82: 0 | D82: 0 | K82: =C82-G82 -> 0 | L82: 0 | S82: =R82*Q82 -> 0 | T82: 0 | U82: 0 | AB82: =AA82*Z82 -> 0 | AC82: 0 | AD82: 0 | AF82: 0 | AG82: TRUE
A83: =+A82+0.01 -> 3.02 | B83: TLM and equipment including library books | C83: 0 | D83: 0 | K83: 0 | L83: 0 | S83: =R83*Q83 -> 0 | T83: 0 | U83: 0 | AB83: =AA83*Z83 -> 0 | AC83: 0 | AD83: 0 | AF83: 0 | AG83: TRUE
A84: =+A83+0.01 -> 3.03 | B84: Bedding (new) | C84: 0 | D84: 0 | K84: 0 | L84: 0 | S84: =R84*Q84 -> 0 | T84: 0 | U84: 0 | AB84: =AA84*Z84 -> 0 | AC84: 0 | AD84: 0 | AF84: 0 | AG84: TRUE
A85: =+A84+0.01 -> 3.04 | B85: Replacement of bedding (once in 3 years) | C85: 0 | D85: 0 | K85: 0 | L85: 0 | S85: =R85*Q85 -> 0 | T85: 0 | U85: 0 | AB85: =AA85*Z85 -> 0 | AC85: 0 | AD85: 0 | AF85: 0 | AG85: TRUE
B86: Sub Total (Non Recurring) | C86: =SUM(C82:C85) -> 0 | D86: =SUM(D82:D85) -> 0 | E86: =SUM(E82:E85) -> 0 | F86: 0 | G86: 0 | H86: 0 | K86: 0 | L86: 0 | M86: 0 | N86: 0 | R86: =SUM(R82:R85) -> 0 | S86: =SUM(S82:S85) -> 0 | T86: 0 | U86: 0 | V86: =SUM(V82:V85) -> 0 | W86: =SUM(W82:W85) -> 0 | X86: 0 | Y86: 0 | AA86: 0 | AB86: 0 | AC86: =+V86+X86+AA86 -> 0 | AD86: =+W86+Y86+AB86 -> 0 | AF86: 0 | AG86: TRUE
B87: Recurring (50 children) | C87: 0 | D87: 0 | S87: =R87*Q87 -> 0 | T87: 0 | U87: 0 | AB87: =AA87*Z87 -> 0 | AC87: 0 | AD87: 0 | AF87: 0 | AG87: TRUE
A88: 3.05 | B88: Maintenance per child Per month @ Rs.1500/- | C88: 0 | D88: 0 | K88: =C88-G88 -> 0 | L88: =D88-H88 -> 0 | N88: 0 | S88: =R88*Q88 -> 0 | T88: 0 | U88: 0 | W88: 0 | AB88: =AA88*Z88 -> 0 | AC88: 0 | AD88: 0 | AF88: 0 | AG88: TRUE
A89: =+A88+0.01 -> 3.06 | B89: Stipend per child per month @ Rs.100/- | C89: 0 | D89: 0 | K89: 0 | L89: 0 | N89: 0 | S89: =R89*Q89 -> 0 | T89: 0 | U89: 0 | W89: 0 | AB89: =AA89*Z89 -> 0 | AC89: 0 | AD89: 0 | AF89: 0 | AG89: TRUE
A90: =+A89+0.01 -> 3.07 | B90: Supplementary TLM, Stationery and other educational material @Rs.1000/- per child per annum | C90: 0 | D90: 0 | K90: 0 | L90: 0 | N90: 0 | S90: =R90*Q90 -> 0 | T90: 0 | U90: 0 | W90: 0 | AB90: =AA90*Z90 -> 0 | AC90: 0 | AD90: 0 | AF90: 0 | AG90: TRUE
A91: 3.08 | B91: Salaries | T91: 0 | U91: 0 | AC91: 0 | AD91: 0 | AF91: 0 | AG91: TRUE
A92: (a) | B92: 1 Warden @ Rs.25000/- per month | C92: 0 | D92: 0 | K92: 0 | L92: 0 | N92: 0 | S92: =R92*Q92 -> 0 | T92: 0 | U92: 0 | W92: 0 | AB92: =AA92*Z92 -> 0 | AC92: 0 | AD92: 0 | AF92: 0 | AG92: TRUE
A93: (b) | B93: 4 Fulltime teachers as per RTE Norms @ Rs. 20,000/- per month per teacher | C93: 0 | D93: 0 | K93: 0 | L93: 0 | N93: 0 | S93: 0 | T93: 0 | U93: 0 | W93: 0 | AB93: 0 | AC93: 0 | AD93: 0 | AF93: 0 | AG93: TRUE
A94: (c) | B94: 2 Urdu Teachers (only for Blocks with muslim population above 20% and select urban areas) @ Rs.12,000/- per month per teacher. | C94: 0 | D94: 0 | K94: 0 | L94: 0 | N94: 0 | S94: 0 | T94: 0 | U94: 0 | W94: 0 | AB94: 0 | AC94: 0 | AD94: 0 | AF94: 0 | AG94: TRUE
A95: (d) | B95: 3 Part time teachers @ Rs.5,000/- per month per teacher | C95: 0 | D95: 0 | K95: 0 | L95: 0 | N95: 0 | S95: 0 | T95: 0 | U95: 0 | W95: 0 | AB95: 0 | AC95: 0 | AD95: 0 | AF95: 0 | AG95: TRUE
A96: (e) | B96: 1 Full time Accountant @ Rs. 10,000/- per month | C96: 0 | D96: 0 | K96: 0 | L96: 0 | N96: 0 | S96: 0 | T96: 0 | U96: 0 | W96: 0 | AB96: 0 | AC96: 0 | AD96: 0 | AF96: 0 | AG96: TRUE
A97: (f) | B97: 2 Support staff - (Accountant/Assistant, Peon, Chowkidar) @ Rs. 5,000/- per month per staff | C97: 0 | D97: 0 | K97: 0 | L97: 0 | N97: 0 | S97: 0 | T97: 0 | U97: 0 | W97: 0 | AB97: 0 | AC97: 0 | AD97: 0 | AF97: 0 | AG97: TRUE
A98: (g) | B98: 1 Head Cook @ Rs. 6,000/- per month and upto 2 Asstt. Cooks @ Rs. 4,500/- per month per cook | C98: 0 | D98: 0 | K98: 0 | L98: 0 | N98: 0 | S98: 0 | T98: 0 | U98: 0 | W98: 0 | AB98: 0 | AC98: 0 | AD98: 0 | AF98: 0 | AG98: TRUE
A99: 3.09 | B99: Specific Skill training @ Rs.1000/- per annum per child | C99: 0 | D99: 0 | K99: 0 | L99: 0 | N99: 0 | S99: 0 | T99: 0 | U99: 0 | W99: 0 | AB99: 0 | AC99: 0 | AD99: 0 | AF99: 0 | AG99: TRUE
A100: =+A99+0.01 -> 3.1 | B100: Electricity / water charges @ Rs. 1000/- per annum per child | C100: 0 | D100: 0 | K100: 0 | L100: 0 | N100: 0 | S100: 0 | T100: 0 | U100: 0 | W100: 0 | AB100: 0 | AC100: 0 | AD100: 0 | AF100: 0 | AG100: TRUE
A101: 3.11 | B101: Medical care/contingencies @ Rs.1250/- per annum per child | C101: 0 | D101: 0 | K101: 0 | L101: 0 | N101: 0 | S101: 0 | T101: 0 | U101: 0 | W101: 0 | AB101: 0 | AC101: 0 | AD101: 0 | AF101: 0 | AG101: TRUE
A102: 3.12 | B102: Maintenance @ Rs. 750/- per child per annum | C102: 0 | D102: 0 | K102: 0 | L102: 0 | N102: 0 | S102: 0 | T102: 0 | U102: 0 | W102: 0 | AB102: 0 | AC102: 0 | AD102: 0 | AF102: 0 | AG102: TRUE
A103: 3.13 | B103: Miscellaneous @ Rs. 750/- per child per annum | C103: 0 | D103: 0 | K103: 0 | L103: 0 | N103: 0 | S103: 0 | T103: 0 | U103: 0 | W103: 0 | AB103: 0 | AC103: 0 | AD103: 0 | AF103: 0 | AG103: TRUE
A104: 3.14 | B104: Preparatory camps @ Rs. 300/- per child per annum | C104: 0 | D104: 0 | K104: 0 | L104: 0 | N104: 0 | S104: 0 | T104: 0 | U104: 0 | W104: 0 | AB104: 0 | AC104: 0 | AD104: 0 | AF104: 0 | AG104: TRUE
A105: 3.15 | B105: P.T.A / school functions @ Rs. 300/- per child per annum | C105: 0 | D105: 0 | K105: 0 | L105: 0 | N105: 0 | S105: 0 | T105: 0 | U105: 0 | W105: 0 | AB105: 0 | AC105: 0 | AD105: 0 | AF105: 0 | AG105: TRUE
A106: 3.16 | B106: Provision of Rent @ Rs. 10,000/- per child per annum | C106: 0 | D106: 0 | K106: 0 | L106: 0 | N106: 0 | S106: 0 | T106: 0 | U106: 0 | W106: 0 | AB106: 0 | AC106: 0 | AD106: 0 | AF106: 0 | AG106: TRUE
A107: 3.17 | B107: Capacity Building @ Rs. 500/- per child per annum | C107: 0 | D107: 0 | K107: 0 | L107: 0 | N107: 0 | S107: 0 | T107: 0 | U107: 0 | W107: 0 | AB107: 0 | AC107: 0 | AD107: 0 | AF107: 0 | AG107: TRUE
A108: 3.18 | B108: Physical / Self Defence Training @ Rs.200/- per child per annum | C108: 0 | D108: 0 | K108: 0 | L108: 0 | N108: 0 | S108: 0 | T108: 0 | U108: 0 | W108: 0 | AB108: 0 | AC108: 0 | AD108: 0 | AF108: 0 | AG108: TRUE
B109: Sub Total (Recurring) | C109: =C108+C85 -> 0 | D109: =SUM(D88:D108) -> 0 | E109: 0 | F109: 0 | G109: 0 | H109: 0 | K109: 0 | L109: 0 | M109: 0 | N109: 0 | R109: =SUM(R88:R108) -> 0 | S109: =SUM(S88:S108) -> 0 | T109: 0 | U109: 0 | V109: =SUM(V88:V108) -> 0 | W109: =SUM(W88:W108) -> 0 | X109: 0 | Y109: 0 | AA109: 0 | AB109: 0 | AC109: =+V109+X109+AA109 -> 0 | AD109: =+W109+Y109+AB109 -> 0 | AF109: 0 | AG109: TRUE
B110: Total (Non Recurring + Recurring) | C110: 0 | D110: 0 | E110: 0 | F110: 0 | G110: 0 | H110: 0 | K110: 0 | L110: 0 | M110: 0 | N110: 0 | R110: =R109+R86 -> 0 | S110: =S109+S86 -> 0 | T110: 0 | U110: 0 | V110: =+V109+V86 -> 0 | W110: =+W109+W86 -> 0 | X110: 0 | Y110: 0 | AA110: 0 | AB110: 0 | AC110: =+V110+X110+AA110 -> 0 | AD110: =+W110+Y110+AB110 -> 0 | AF110: 0 | AG110: TRUE
A111: (B) | B111: 100 Children | T111: 0 | U111: 0 | AC111: 0 | AD111: 0 | AF111: 0 | AG111: TRUE
B112: Non-recurring (one time grant) | T112: 0 | U112: 0 | AC112: 0 | AD112: 0 | AF112: 0 | AG112: TRUE
A113: 3.19 | B113: Furniture / Equipment (including kitchen equipment) | C113: 0 | D113: 0 | K113: =C113-G113 -> 0 | L113: 0 | M113: 0 | N113: 0 | S113: =Q113+L113 -> 0 | T113: 0 | U113: 0 | V113: 0 | W113: 0 | AB113: =Z113+U113 -> 0 | AC113: 0 | AD113: 0 | AF113: 0 | AG113: TRUE
A114: =+A113+0.01 -> 3.2 | B114: TLM and equipment including library books (New) | C114: 0 | D114: 0 | K114: 0 | L114: 0 | M114: 0 | N114: 0 | S114: =R114*Q114 -> 0 | T114: 0 | U114: 0 | V114: 0 | W114: 0 | AB114: =AA114*Z114 -> 0 | AC114: 0 | AD114: 0 | AF114: 0 | AG114: TRUE
A115: =+A114+0.01 -> 3.21 | B115: Bedding (New) | C115: 0 | D115: 0 | K115: 0 | L115: 0 | M115: 0 | N115: 0 | S115: =R115*Q115 -> 0 | T115: 0 | U115: 0 | V115: 0 | W115: 0 | AB115: =AA115*Z115 -> 0 | AC115: 0 | AD115: 0 | AF115: 0 | AG115: TRUE
A116: =+A115+0.01 -> 3.22 | B116: Replacement of bedding (once in 3 years) | C116: 0 | D116: 0 | K116: 0 | L116: 0 | M116: 0 | N116: 0 | S116: =R116*Q116 -> 0 | T116: 0 | U116: 0 | V116: 0 | W116: 0 | AB116: =AA116*Z116 -> 0 | AC116: 0 | AD116: 0 | AF116: 0 | AG116: TRUE
B117: Sub Total Non-recurring | C117: =SUM(C113:C116) -> 0 | D117: =SUM(D113:D116) -> 0 | E117: =SUM(E113:E116) -> 0 | F117: 0 | G117: 0 | H117: 0 | K117: 0 | L117: 0 | M117: 0 | N117: 0 | R117: =SUM(R113:R116) -> 0 | S117: =SUM(S113:S116) -> 0 | T117: 0 | U117: 0 | V117: =SUM(V113:V116) -> 0 | W117: =SUM(W113:W116) -> 0 | X117: 0 | Y117: 0 | AA117: 0 | AB117: 0 | AC117: =+V117+X117+AA117 -> 0 | AD117: =+W117+Y117+AB117 -> 0 | AF117: 0 | AG117: TRUE
B118: Recurring | T118: 0 | U118: 0 | AC118: 0 | AD118: 0 | AF118: 0 | AG118: TRUE
A119: 3.23 | B119: Maintenance per child per month @ Rs. 1500/- | C119: 0 | D119: 0 | K119: =C119-G119 -> 0 | L119: =D119-H119 -> 0 | N119: 0 | S119: =R119*Q119 -> 0 | T119: 0 | U119: 0 | W119: 0 | AB119: =AA119*Z119 -> 0 | AC119: 0 | AD119: 0 | AF119: 0 | AG119: TRUE
A120: =+A119+0.01 -> 3.24 | B120: Stipend per child per month @ Rs.100/- | C120: 0 | D120: 0 | K120: 0 | L120: 0 | N120: 0 | S120: =R120*Q120 -> 0 | T120: 0 | U120: 0 | W120: 0 | AB120: =AA120*Z120 -> 0 | AC120: 0 | AD120: 0 | AF120: 0 | AG120: TRUE
A121: =+A120+0.01 -> 3.25 | B121: Supplementary TLM, Stationery and other educational material per child @1000/- per annum | C121: 0 | D121: 0 | K121: 0 | L121: 0 | N121: 0 | S121: =R121*Q121 -> 0 | T121: 0 | U121: 0 | W121: 0 | AB121: =AA121*Z121 -> 0 | AC121: 0 | AD121: 0 | AF121: 0 | AG121: TRUE
A122: 3.26 | B122: Salaries | T122: 0 | U122: 0 | AC122: 0 | AD122: 0 | AF122: 0 | AG122: TRUE
A123: (a) | B123: 1 Warden @ Rs. 25,000/- per month | C123: 0 | D123: 0 | K123: 0 | L123: 0 | N123: 0 | S123: =R123*Q123 -> 0 | T123: 0 | U123: 0 | W123: 0 | AB123: =AA123*Z123 -> 0 | AC123: 0 | AD123: 0 | AF123: 0 | AG123: TRUE
A124: (b) | B124: 1 head teacher @ Rs. 25,000/- per month in case the enrollment exceeds 100 | C124: 0 | D124: 0 | K124: 0 | L124: 0 | N124: 0 | S124: 0 | T124: 0 | U124: 0 | W124: 0 | AB124: 0 | AC124: 0 | AD124: 0 | AF124: 0 | AG124: TRUE
A125: (c) | B125: 4 - 5 Full time teachers as per RTE norms @ Rs. 20,000/- per month per teacher | C125: 0 | D125: 0 | K125: 0 | L125: 0 | N125: 0 | S125: 0 | T125: 0 | U125: 0 | W125: 0 | AB125: 0 | AC125: 0 | AD125: 0 | AF125: 0 | AG125: TRUE
A126: (d) | B126: 2 Urdu Teachers (only for blocks with muslim population above 20% and select urban areas), if required @ Rs. 12,000/- per month per teacher | C126: 0 | D126: 0 | K126: 0 | L126: 0 | N126: 0 | S126: 0 | T126: 0 | U126: 0 | W126: 0 | AB126: 0 | AC126: 0 | AD126: 0 | AF126: 0 | AG126: TRUE
A127: (e) | B127: 3 part time teachers @ Rs. 5,000/- per month per teacher | C127: 0 | D127: 0 | K127: 0 | L127: 0 | N127: 0 | S127: 0 | T127: 0 | U127: 0 | W127: 0 | AB127: 0 | AC127: 0 | AD127: 0 | AF127: 0 | AG127: TRUE
A128: (f) | B128: 1 Full time Accountant @ Rs. 10,000/- per month | C128: 0 | D128: 0 | K128: 0 | L128: 0 | N128: 0 | S128: 0 | T128: 0 | U128: 0 | W128: 0 | AB128: 0 | AC128: 0 | AD128: 0 | AF128: 0 | AG128: TRUE
A129: (g) | B129: 2 Support Staff – (Accountant/ Assistant, Peon, Chowkidar) @ Rs. 5,000/- per month per staff | C129: 0 | D129: 0 | K129: 0 | L129: 0 | N129: 0 | S129: 0 | T129: 0 | U129: 0 | W129: 0 | AB129: 0 | AC129: 0 | AD129: 0 | AF129: 0 | AG129: TRUE
A130: (h) | B130: 1 Head cook @ Rs. 6,000/- per month and upto 2 Asstt. Cooks @ Rs. 4,500/- per month per cook | C130: 0 | D130: 0 | K130: 0 | L130: 0 | N130: 0 | S130: 0 | T130: 0 | U130: 0 | W130: 0 | AB130: 0 | AC130: 0 | AD130: 0 | AF130: 0 | AG130: TRUE
A131: 3.27 | B131: Specific skill training per child @ Rs.1000/- per annum | C131: 0 | D131: 0 | K131: 0 | L131: 0 | N131: 0 | S131: 0 | T131: 0 | U131: 0 | W131: 0 | AB131: 0 | AC131: 0 | AD131: 0 | AF131: 0 | AG131: TRUE
A132: =+A131+0.01 -> 3.28 | B132: Electricity / water charges per child @Rs.1000/- per annum | C132: 0 | D132: 0 | K132: 0 | L132: 0 | N132: 0 | S132: 0 | T132: 0 | U132: 0 | W132: 0 | AB132: 0 | AC132: 0 | AD132: 0 | AF132: 0 | AG132: TRUE
A133: 3.29 | B133: Medical care/contingencies @ Rs.1250/- per child per annum | C133: 0 | D133: 0 | K133: 0 | L133: 0 | N133: 0 | S133: 0 | T133: 0 | U133: 0 | W133: 0 | AB133: 0 | AC133: 0 | AD133: 0 | AF133: 0 | AG133: TRUE
A134: 3.3 | B134: Maintenance @ Rs.750/- per child per annum | C134: 0 | D134: 0 | K134: 0 | L134: 0 | N134: 0 | S134: 0 | T134: 0 | U134: 0 | W134: 0 | AB134: 0 | AC134: 0 | AD134: 0 | AF134: 0 | AG134: TRUE
A135: 3.31 | B135: Miscellaneous @ Rs.750/- per child per annum | C135: 0 | D135: 0 | K135: 0 | L135: 0 | N135: 0 | S135: 0 | T135: 0 | U135: 0 | W135: 0 | AB135: 0 | AC135: 0 | AD135: 0 | AF135: 0 | AG135: TRUE
A136: 3.32 | B136: Preparatory camps @ Rs.200/- per child per annum | C136: 0 | D136: 0 | I136: =IFERROR(G136/C136*100,"") ->  | J136: =IFERROR(H136/D136*100,"") ->  | K136: 0 | L136: 0 | N136: 0 | S136: 0 | T136: =+M136+O136+R136 -> 0 | U136: =+N136+P136+S136 -> 0 | W136: 0 | AB136: 0 | AC136: =+V136+X136+AA136 -> 0 | AD136: =+W136+Y136+AB136 -> 0 | AF136: =+AD136 -> 0 | AG136: =+W136+Y136+AB136=AD136 -> TRUE
A137: 3.33 | B137: P.T.A / school functions @ Rs.200/- per child per annum | C137: 0 | D137: 0 | K137: 0 | L137: 0 | N137: 0 | S137: 0 | T137: 0 | U137: 0 | W137: 0 | AB137: 0 | AC137: 0 | AD137: 0 | AF137: 0 | AG137: TRUE
A138: 3.34 | B138: Provision of Rent @ Rs. 6000/- per child per annum | C138: 0 | D138: 0 | K138: 0 | L138: 0 | N138: 0 | S138: 0 | T138: 0 | U138: 0 | W138: 0 | AB138: 0 | AC138: 0 | AD138: 0 | AF138: 0 | AG138: TRUE
A139: 3.35 | B139: Capacity Building @ Rs.500/- per child per annum | C139: 0 | D139: 0 | K139: 0 | L139: 0 | N139: 0 | S139: 0 | T139: 0 | U139: 0 | W139: 0 | AB139: 0 | AC139: 0 | AD139: 0 | AF139: 0 | AG139: TRUE
A140: 3.36 | B140: Physical / Self Defence training @ Rs. 200/- per child per annum. | C140: 0 | D140: 0 | K140: 0 | L140: 0 | N140: 0 | S140: 0 | T140: 0 | U140: 0 | W140: 0 | AB140: 0 | AC140: 0 | AD140: 0 | AF140: 0 | AG140: TRUE
B141: Sub Total (Recurring) | C141: 0 | D141: 0 | E141: =SUM(E119:E140) -> 0 | F141: =SUM(F119:F140) -> 0 | G141: 0 | H141: 0 | K141: 0 | L141: 0 | M141: 0 | N141: 0 | R141: =SUM(R119:R140) -> 0 | S141: =SUM(S119:S140) -> 0 | T141: 0 | U141: 0 | V141: =SUM(V119:V140) -> 0 | W141: =SUM(W119:W140) -> 0 | X141: 0 | Y141: 0 | AA141: 0 | AB141: 0 | AC141: =+V141+X141+AA141 -> 0 | AD141: 0 | AF141: 0 | AG141: TRUE
B142: Total (Recurring + Non Recurring) | C142: 0 | D142: 0 | E142: =E141+E117 -> 0 | F142: 0 | G142: 0 | H142: 0 | K142: 0 | L142: 0 | M142: 0 | N142: 0 | R142: =R141+R117 -> 0 | S142: =S141+S117 -> 0 | T142: 0 | U142: 0 | V142: =+V141+V117 -> 0 | W142: =+W141+W117 -> 0 | X142: 0 | Y142: 0 | AA142: 0 | AB142: 0 | AC142: 0 | AD142: 0 | AF142: 0 | AG142: TRUE
B143: Total (A + B) | C143: 0 | D143: 0 | E143: =E142+E110 -> 0 | F143: 0 | G143: 0 | H143: 0 | K143: 0 | L143: 0 | M143: 0 | N143: 0 | O143: 0 | P143: 0 | R143: =R142+R110 -> 0 | S143: =S142+S110 -> 0 | T143: 0 | U143: 0 | V143: =+V142+V110 -> 0 | W143: =+W142+W110 -> 0 | X143: 0 | Y143: 0 | Z143: 0 | AA143: 0 | AB143: 0 | AC143: 0 | AD143: 0 | AF143: 0 | AG143: TRUE
A144: 4 | B144: Transport/Escort Facility | T144: 0 | U144: 0 | AC144: 0 | AD144: 0 | AF144: 0 | AG144: TRUE
A145: 4.01 | B145: Children in remote habitation | C145: 0 | D145: 0 | K145: =C145-G145 -> 0 | L145: =D145-H145 -> 0 | Q145: 0.03 | R145: 96 | S145: =R145*Q145 -> 2.88 | T145: 96 | U145: 2.88 | Z145: 0.03 | AA145: 96 | AB145: =AA145*Z145 -> 2.88 | AC145: 96 | AD145: 2.88 | AF145: 2.88 | AG145: TRUE
A146: 4.02 | B146: Urban deprived children/children without adult protection | C146: 0 | D146: 0 | K146: =C146-G146 -> 0 | L146: =D146-H146 -> 0 | Q146: 0.03 | R146: 0 | S146: =R146*Q146 -> 0 | T146: 0 | U146: 0 | Z146: 0.03 | AA146: 0 | AB146: =AA146*Z146 -> 0 | AC146: 0 | AD146: 0 | AF146: 0 | AG146: TRUE
B147: Sub Total | C147: =SUM(C145:C146) -> 0 | D147: 0 | E147: 0 | F147: 0 | G147: 0 | H147: 0 | K147: 0 | L147: 0 | M147: =SUM(M145:M146) -> 0 | N147: =SUM(N145:N146) -> 0 | O147: 0 | P147: 0 | R147: 96 | S147: 2.88 | T147: =+M147+O147+R147 -> 96 | U147: =+N147+P147+S147 -> 2.88 | V147: =SUM(V145:V146) -> 0 | W147: =SUM(W145:W146) -> 0 | X147: 0 | Y147: 0 | AA147: 96 | AB147: 2.88 | AC147: =+V147+X147+AA147 -> 96 | AD147: =+W147+Y147+AB147 -> 2.88 | AG147: TRUE
A148: 5 | B148: Reimbursement of Fee against 25% admission under Section 12(1)(c) of RTE Act 2009 (Entry Level) subject to upper limit of 20% of AWP&B subject to guidelines issued by MHRD | C148: 4866 | D148: 98.42896 | E148: 4866 | F148: 98.42896 | G148: 4866 | H148: 98.42896 | I148: 100 | J148: 100 | K148: =C148-G148 -> 0 | L148: =D148-H148 -> 0 | Q148: 0.11848 | R148: 8589 | S148: =R148*Q148 -> 1017.62472 | T148: 8589 | U148: 1017.62472 | AA148: 8473 | AB148: 355.225 | AC148: =+V148+X148+AA148 -> 8473 | AD148: =+W148+Y148+AB148 -> 355.225 | AF148: 355.225 | AG148: TRUE
B149: Sub Total | C149: =SUM(C148) -> 4866 | D149: =SUM(D148) -> 98.42896 | E149: =SUM(E148) -> 4866 | F149: 98.42896 | G149: 4866 | H149: 98.42896 | I149: 100 | J149: 100 | K149: 0 | L149: 0 | M149: =+M148 -> 0 | N149: =+N148 -> 0 | O149: =+O148 -> 0 | P149: =+P148 -> 0 | R149: =+R148 -> 8589 | S149: =+S148 -> 1017.62472 | T149: =+M149+O149+R149 -> 8589 | U149: =+N149+P149+S149 -> 1017.62472 | V149: =+V148 -> 0 | W149: =+W148 -> 0 | X149: 0 | Y149: 0 | AA149: 8473 | AB149: 355.225 | AC149: =+V149+X149+AA149 -> 8473 | AD149: =+W149+Y149+AB149 -> 355.225 | AG149: TRUE
A150: 6 | B150: Special Training for mainstreaming of out of school children | C150: 0 | D150: 0 | G150: 0 | H150: 0 | K150: 0 | L150: 0 | T150: 0 | U150: 0 | AC150: 0 | AD150: 0 | AF150: 0 | AG150: TRUE
A151: 6.01 | B151: Residential (Fresh) | C151: 0 | D151: 0 | T151: 0 | U151: 0 | AC151: 0 | AD151: 0 | AF151: 0 | AG151: TRUE
B152: (a) 12 months | C152: 0 | D152: 0 | G152: 0 | K152: =C152-G152 -> 0 | L152: 0 | N152: 0 | Q152: 0.2 | S152: =R152*Q152 -> 0 | T152: 0 | U152: 0 | W152: 0 | Z152: 0.2 | AB152: =AA152*Z152 -> 0 | AC152: 0 | AD152: 0 | AF152: 0 | AG152: TRUE
B153: (b) 9 months | C153: 0 | D153: 0 | K153: 0 | L153: 0 | N153: 0 | Q153: 0.15 | S153: =R153*Q153 -> 0 | T153: 0 | U153: 0 | W153: 0 | Z153: 0.15 | AB153: =AA153*Z153 -> 0 | AC153: 0 | AD153: 0 | AF153: 0 | AG153: TRUE
B154: (c) 6 months | C154: 0 | D154: 0 | K154: 0 | L154: 0 | N154: 0 | Q154: 0.1 | S154: =R154*Q154 -> 0 | T154: 0 | U154: 0 | W154: 0 | Z154: 0.1 | AB154: =AA154*Z154 -> 0 | AC154: 0 | AD154: 0 | AF154: 0 | AG154: TRUE
B155: (d) 3 months | C155: 0 | D155: 0 | G155: 0 | K155: 0 | L155: 0 | N155: 0 | Q155: 0.05 | S155: =R155*Q155 -> 0 | T155: 0 | U155: 0 | W155: 0 | Z155: 0.05 | AB155: =AA155*Z155 -> 0 | AC155: 0 | AD155: 0 | AF155: 0 | AG155: TRUE
B156: Sub Total | C156: =SUM(C152:C155) -> 0 | D156: 0 | E156: 0 | F156: 0 | G156: 0 | H156: 0 | K156: 0 | L156: 0 | M156: =SUM(M152:M155) -> 0 | N156: =SUM(N152:N155) -> 0 | O156: =SUM(O152:O155) -> 0 | P156: =SUM(P152:P155) -> 0 | R156: =SUM(R152:R155) -> 0 | S156: =SUM(S152:S155) -> 0 | T156: =+M156+O156+R156 -> 0 | U156: =+N156+P156+S156 -> 0 | V156: =SUM(V152:V155) -> 0 | W156: =SUM(W152:W155) -> 0 | X156: 0 | Y156: 0 | AA156: 0 | AB156: 0 | AC156: =+V156+X156+AA156 -> 0 | AD156: =+W156+Y156+AB156 -> 0 | AG156: TRUE
A157: 6.02 | B157: Residential (Continuing from previous year) | T157: 0 | U157: 0 | AC157: 0 | AD157: 0 | AF157: 0 | AG157: TRUE
B158: (a) 12 months | C158: 0 | D158: 0 | K158: =C158-G158 -> 0 | L158: 0 | N158: 0 | Q158: 0.2 | R158: 0 | S158: =R158*Q158 -> 0 | T158: 0 | U158: 0 | W158: 0 | Z158: 0.2 | AA158: 0 | AB158: =AA158*Z158 -> 0 | AC158: 0 | AD158: 0 | AF158: 0 | AG158: TRUE
B159: (b) 9 months | C159: 0 | D159: 0 | K159: 0 | L159: 0 | N159: 0 | Q159: 0.15 | S159: =R159*Q159 -> 0 | T159: 0 | U159: 0 | W159: 0 | Z159: 0.15 | AB159: =AA159*Z159 -> 0 | AC159: 0 | AD159: 0 | AF159: 0 | AG159: TRUE
B160: (c) 6 months | C160: 0 | D160: 0 | K160: 0 | L160: 0 | N160: 0 | Q160: 0.1 | S160: =R160*Q160 -> 0 | T160: 0 | U160: 0 | W160: 0 | Z160: 0.1 | AB160: =AA160*Z160 -> 0 | AC160: 0 | AD160: 0 | AF160: 0 | AG160: TRUE
B161: (d) 3 months | C161: 0 | D161: 0 | K161: 0 | L161: 0 | N161: 0 | Q161: 0.05 | S161: =R161*Q161 -> 0 | T161: 0 | U161: 0 | W161: 0 | Z161: 0.05 | AB161: =AA161*Z161 -> 0 | AC161: 0 | AD161: 0 | AF161: 0 | AG161: TRUE
B162: Sub Total | C162: =SUM(C158:C161) -> 0 | D162: 0 | E162: 0 | F162: 0 | G162: 0 | H162: 0 | K162: 0 | L162: 0 | M162: =SUM(M158:M161) -> 0 | N162: =SUM(N158:N161) -> 0 | O162: =SUM(O158:O161) -> 0 | P162: =SUM(P158:P161) -> 0 | R162: =SUM(R158:R161) -> 0 | S162: =SUM(S158:S161) -> 0 | T162: =+M162+O162+R162 -> 0 | U162: =+N162+P162+S162 -> 0 | V162: =SUM(V158:V161) -> 0 | W162: =SUM(W158:W161) -> 0 | X162: 0 | Y162: 0 | AA162: 0 | AB162: 0 | AC162: =+V162+X162+AA162 -> 0 | AD162: =+W162+Y162+AB162 -> 0 | AG162: TRUE
A163: 6.03 | B163: Non-Residential (Fresh) | T163: 0 | U163: 0 | AC163: 0 | AD163: 0 | AF163: 0 | AG163: TRUE
B164: (a) 12 months | C164: 0 | D164: 0 | K164: =C164-G164 -> 0 | L164: 0 | N164: 0 | Q164: 0.06 | S164: =R164*Q164 -> 0 | T164: 0 | U164: 0 | W164: 0 | Z164: 0.06 | AB164: =AA164*Z164 -> 0 | AC164: 0 | AD164: 0 | AF164: 0 | AG164: TRUE
B165: (b) 9 months | C165: 0 | D165: 0 | K165: 0 | L165: 0 | N165: 0 | Q165: 0.045 | S165: =R165*Q165 -> 0 | T165: 0 | U165: 0 | W165: 0 | Z165: 0.045 | AB165: =AA165*Z165 -> 0 | AC165: 0 | AD165: 0 | AF165: 0 | AG165: TRUE
B166: (c) 6 months | C166: 0 | D166: 0 | K166: 0 | L166: 0 | N166: 0 | Q166: 0.03 | R166: 0 | S166: =R166*Q166 -> 0 | T166: 0 | U166: 0 | W166: 0 | Z166: 0.03 | AA166: 0 | AB166: =AA166*Z166 -> 0 | AC166: 0 | AD166: 0 | AF166: 0 | AG166: TRUE
B167: (d) 3 months | C167: 0 | D167: 0 | K167: 0 | L167: 0 | N167: 0 | Q167: 0.015 | R167: 0 | S167: =R167*Q167 -> 0 | T167: 0 | U167: 0 | W167: 0 | Z167: 0.015 | AA167: 0 | AB167: =AA167*Z167 -> 0 | AC167: 0 | AD167: 0 | AF167: 0 | AG167: TRUE
B168: Sub Total | C168: =SUM(C164:C167) -> 0 | D168: 0 | E168: 0 | F168: 0 | G168: 0 | H168: 0 | K168: 0 | L168: 0 | M168: =SUM(M164:M167) -> 0 | N168: =SUM(N164:N167) -> 0 | O168: =SUM(O164:O167) -> 0 | P168: =SUM(P164:P167) -> 0 | R168: =SUM(R164:R167) -> 0 | S168: =SUM(S164:S167) -> 0 | T168: =+M168+O168+R168 -> 0 | U168: =+N168+P168+S168 -> 0 | V168: =SUM(V164:V167) -> 0 | W168: =SUM(W164:W167) -> 0 | X168: 0 | Y168: 0 | AA168: 0 | AB168: 0 | AC168: =+V168+X168+AA168 -> 0 | AD168: =+W168+Y168+AB168 -> 0 | AG168: TRUE
A169: 6.04 | B169: Non-Residential (Continuing from previous year) | T169: 0 | U169: 0 | AC169: 0 | AD169: 0 | AF169: 0 | AG169: TRUE
B170: (a) 12 months | C170: 0 | D170: 0 | K170: =C170-G170 -> 0 | L170: 0 | N170: 0 | Q170: 0.06 | S170: =R170*Q170 -> 0 | T170: 0 | U170: 0 | W170: 0 | Z170: 0.06 | AB170: =AA170*Z170 -> 0 | AC170: 0 | AD170: 0 | AF170: 0 | AG170: TRUE
B171: (b) 9 months | C171: 0 | D171: 0 | K171: 0 | L171: 0 | N171: 0 | Q171: 0.045 | S171: =R171*Q171 -> 0 | T171: 0 | U171: 0 | W171: 0 | Z171: 0.045 | AB171: =AA171*Z171 -> 0 | AC171: 0 | AD171: 0 | AF171: 0 | AG171: TRUE
B172: (c) 6 months | C172: 0 | D172: 0 | K172: 0 | L172: 0 | N172: 0 | Q172: 0.03 | S172: =R172*Q172 -> 0 | T172: 0 | U172: 0 | W172: 0 | Z172: 0.03 | AB172: =AA172*Z172 -> 0 | AC172: 0 | AD172: 0 | AF172: 0 | AG172: TRUE
B173: (d) 3 months | C173: 0 | D173: 0 | K173: 0 | L173: 0 | N173: 0 | Q173: 0.015 | S173: =R173*Q173 -> 0 | T173: 0 | U173: 0 | W173: 0 | Z173: 0.015 | AB173: =AA173*Z173 -> 0 | AC173: 0 | AD173: 0 | AF173: 0 | AG173: TRUE
B174: Sub Total | C174: =SUM(C170:C173) -> 0 | D174: 0 | E174: 0 | F174: 0 | G174: 0 | H174: 0 | K174: 0 | L174: 0 | M174: =SUM(M170:M173) -> 0 | N174: =SUM(N170:N173) -> 0 | O174: =SUM(O170:O173) -> 0 | P174: =SUM(P170:P173) -> 0 | R174: =SUM(R170:R173) -> 0 | S174: =SUM(S170:S173) -> 0 | T174: =+M174+O174+R174 -> 0 | U174: =+N174+P174+S174 -> 0 | V174: =SUM(V170:V173) -> 0 | W174: =SUM(W170:W173) -> 0 | X174: 0 | Y174: 0 | AA174: 0 | AB174: 0 | AC174: =+V174+X174+AA174 -> 0 | AD174: =+W174+Y174+AB174 -> 0 | AG174: TRUE
A175: 6.05 | B175: Madarasa/Maktab | T175: 0 | U175: 0 | AC175: 0 | AD175: 0 | AF175: 0 | AG175: TRUE
B176: (a) 12 months | C176: 0 | D176: 0 | K176: =C176-G176 -> 0 | L176: 0 | N176: 0 | Q176: 0.2 | S176: =R176*Q176 -> 0 | T176: 0 | U176: 0 | W176: 0 | Z176: 0.06 | AB176: =AA176*Z176 -> 0 | AC176: 0 | AD176: 0 | AF176: 0 | AG176: TRUE
B177: (b) 9 months | C177: 0 | D177: 0 | G177: 0 | K177: 0 | L177: 0 | N177: 0 | Q177: 0.045 | R177: 0 | S177: =R177*Q177 -> 0 | T177: 0 | U177: 0 | W177: 0 | Z177: 0.045 | AA177: 0 | AB177: =AA177*Z177 -> 0 | AC177: 0 | AD177: 0 | AF177: 0 | AG177: TRUE
B178: (c) 6 months | C178: 0 | D178: 0 | K178: 0 | L178: 0 | N178: 0 | Q178: 0.1 | S178: =R178*Q178 -> 0 | T178: 0 | U178: 0 | W178: 0 | Z178: 0.03 | AB178: =AA178*Z178 -> 0 | AC178: 0 | AD178: 0 | AF178: 0 | AG178: TRUE
B179: (d) 3 months | C179: 0 | D179: 0 | K179: 0 | L179: 0 | Q179: 0.05 | S179: =R179*Q179 -> 0 | T179: 0 | U179: 0 | Z179: 0.015 | AB179: =AA179*Z179 -> 0 | AC179: 0 | AD179: 0 | AF179: 0 | AG179: TRUE
B180: Sub Total | C180: =SUM(C176:C179) -> 0 | D180: 0 | E180: 0 | F180: 0 | G180: 0 | H180: 0 | K180: 0 | L180: 0 | M180: =SUM(M176:M179) -> 0 | N180: =SUM(N176:N179) -> 0 | O180: =SUM(O176:O179) -> 0 | P180: =SUM(P176:P179) -> 0 | R180: =SUM(R176:R179) -> 0 | S180: =SUM(S176:S179) -> 0 | T180: =+M180+O180+R180 -> 0 | U180: =+N180+P180+S180 -> 0 | V180: =SUM(V176:V179) -> 0 | W180: =SUM(W176:W179) -> 0 | X180: 0 | Y180: 0 | AA180: 0 | AB180: 0 | AC180: =+V180+X180+AA180 -> 0 | AD180: =+W180+Y180+AB180 -> 0 | AG180: TRUE
A181: 6.06 | B181: Seasonal Hostel (Residential) | T181: 0 | U181: 0 | AC181: 0 | AD181: 0 | AF181: 0 | AG181: TRUE
B182: (a) 12 months | C182: 0 | D182: 0 | K182: =C182-G182 -> 0 | L182: 0 | N182: 0 | S182: =R182*Q182 -> 0 | T182: 0 | U182: 0 | W182: 0 | AB182: =AA182*Z182 -> 0 | AC182: 0 | AD182: 0 | AF182: 0 | AG182: TRUE
B183: (b) 9 months | C183: 0 | D183: 0 | K183: 0 | L183: 0 | N183: 0 | S183: =R183*Q183 -> 0 | T183: 0 | U183: 0 | W183: 0 | AB183: =AA183*Z183 -> 0 | AC183: 0 | AD183: 0 | AF183: 0 | AG183: TRUE
B184: (c) 6 months | C184: 100 | D184: 10 | E184: 0 | F184: 0 | G184: 0 | H184: 0 | I184: 0 | J184: 0 | K184: 100 | L184: 10 | N184: 0 | Q184: 0.1 | S184: =R184*Q184 -> 0 | T184: 0 | U184: 0 | W184: 0 | Z184: 0.1 | AB184: =AA184*Z184 -> 0 | AC184: 0 | AD184: 0 | AF184: 0 | AG184: TRUE
B185: (d) 3 months | C185: 0 | D185: 0 | K185: 0 | L185: 0 | N185: 0 | S185: =R185*Q185 -> 0 | T185: 0 | U185: 0 | W185: 0 | AB185: =AA185*Z185 -> 0 | AC185: 0 | AD185: 0 | AF185: 0 | AG185: TRUE
B186: Sub Total | C186: =SUM(C183:C185) -> 100 | D186: =SUM(D183:D185) -> 10 | E186: =SUM(E183:E185) -> 0 | F186: 0 | G186: 0 | H186: 0 | I186: 0 | J186: 0 | K186: 100 | L186: 10 | M186: =SUM(M182:M185) -> 0 | N186: =SUM(N182:N185) -> 0 | O186: =SUM(O182:O185) -> 0 | P186: =SUM(P182:P185) -> 0 | R186: =SUM(R182:R185) -> 0 | S186: =SUM(S182:S185) -> 0 | T186: =+M186+O186+R186 -> 0 | U186: =+N186+P186+S186 -> 0 | V186: =SUM(V182:V185) -> 0 | W186: =SUM(W182:W185) -> 0 | X186: 0 | Y186: 0 | AA186: 0 | AB186: 0 | AC186: =+V186+X186+AA186 -> 0 | AD186: =+W186+Y186+AB186 -> 0 | AG186: TRUE
A187: 6.07 | B187: Seasonal Hostel (Non Residential) | C187: 0 | D187: 0 | T187: 0 | U187: 0 | AC187: 0 | AD187: 0 | AF187: 0 | AG187: TRUE
B188: (a) 12 months | C188: 0 | D188: 0 | K188: =C188-G188 -> 0 | L188: 0 | N188: 0 | S188: =R188*Q188 -> 0 | T188: 0 | U188: 0 | W188: 0 | AB188: =AA188*Z188 -> 0 | AC188: 0 | AD188: 0 | AF188: 0 | AG188: TRUE
B189: (b) 9 months | C189: 0 | D189: 0 | K189: 0 | L189: 0 | N189: 0 | S189: =R189*Q189 -> 0 | T189: 0 | U189: 0 | W189: 0 | AB189: =AA189*Z189 -> 0 | AC189: 0 | AD189: 0 | AF189: 0 | AG189: TRUE
B190: (c) 6 months | C190: 0 | D190: 0 | K190: 0 | L190: 0 | N190: 0 | T190: 0 | U190: 0 | W190: 0 | AC190: 0 | AD190: 0 | AF190: 0 | AG190: TRUE
B191: (d) 3 months | C191: 0 | D191: 0 | K191: 0 | L191: 0 | N191: 0 | S191: =R191*Q191 -> 0 | T191: 0 | U191: 0 | W191: 0 | AB191: =AA191*Z191 -> 0 | AC191: 0 | AD191: 0 | AF191: 0 | AG191: TRUE
B192: Sub Total | C192: =SUM(C188:C191) -> 0 | D192: 0 | E192: 0 | F192: 0 | G192: 0 | H192: 0 | K192: 0 | L192: 0 | M192: =SUM(M188:M191) -> 0 | N192: =SUM(N188:N191) -> 0 | O192: =SUM(O188:O191) -> 0 | P192: =SUM(P188:P191) -> 0 | Q192: =SUM(Q188:Q191) -> 0 | R192: =SUM(R188:R191) -> 0 | S192: =SUM(S188:S191) -> 0 | T192: =+M192+O192+R192 -> 0 | U192: =+N192+P192+S192 -> 0 | V192: =SUM(V188:V191) -> 0 | W192: =SUM(W188:W191) -> 0 | X192: 0 | Y192: 0 | Z192: 0 | AA192: 0 | AB192: 0 | AC192: =+V192+X192+AA192 -> 0 | AD192: =+W192+Y192+AB192 -> 0 | AF192: 0 | AG192: TRUE
B193: Total | C193: =C192+C186+C180+C174+C168+C162+C156 -> 100 | D193: 10 | E193: 0 | F193: 0 | G193: 0 | H193: 0 | I193: 0 | J193: 0 | K193: 100 | L193: 10 | M193: =+M192+M186+M180+M174+M168+M162+M156 -> 0 | N193: =+N192+N186+N180+N174+N168+N162+N156 -> 0 | O193: =+O192+O186+O180+O174+O168+O162+O156 -> 0 | P193: =+P192+P186+P180+P174+P168+P162+P156 -> 0 | Q193: =+Q192+Q186+Q180+Q174+Q168+Q162+Q156 -> 0 | R193: =+R192+R186+R180+R174+R168+R162+R156 -> 0 | S193: =+S192+S186+S180+S174+S168+S162+S156 -> 0 | T193: =+M193+O193+R193 -> 0 | U193: =+N193+P193+S193 -> 0 | V193: =+V192+V186+V180+V174+V168+V162+V156 -> 0 | W193: =+W192+W186+W180+W174+W168+W162+W156 -> 0 | X193: 0 | Y193: 0 | Z193: 0 | AA193: 0 | AB193: 0 | AC193: =+V193+X193+AA193 -> 0 | AD193: =+W193+Y193+AB193 -> 0 | AG193: TRUE
A194: II | B194: RETENTION | T194: 0 | U194: 0 | AC194: 0 | AD194: 0 | AF194: 0 | AG194: TRUE
A195: 7 | B195: Free Text Books | T195: 0 | U195: 0 | AC195: 0 | AD195: 0 | AF195: 0 | AG195: TRUE
A196: 7.01 | B196: Free Text Books (P) | C196: 0 | D196: 0 | T196: 0 | U196: 0 | AC196: 0 | AD196: 0 | AF196: 0 | AG196: TRUE
B197: (a) Class I & II | C197: 9829 | D197: 8.94439 | E197: =C197 -> 9829 | F197: =D197 -> 8.94439 | G197: =C197 -> 9829 | H197: =D197 -> 8.94439 | I197: 100 | J197: 100 | K197: =C197-G197 -> 0 | L197: =D197-H197 -> 0 | N197: 0 | Q197: 0.0015 | R197: 8922 | S197: =R197*Q197 -> 13.383 | T197: 8922 | U197: 13.383 | W197: 0 | Z197: 0.0015 | AA197: 8922 | AB197: =AA197*Z197 -> 13.383 | AC197: 8922 | AD197: 13.383 | AF197: 13.383 | AG197: TRUE
B198: (b) Braille Books Class I & II | C198: 54 | D198: 0.081 | E198: =C198 -> 54 | G198: =C198 -> 54 | I198: 100 | J198: 0 | K198: 0 | L198: 0.081 | N198: 0 | Q198: 0.0015 | R198: 28 | S198: =+Q198*R198 -> 0.042 | T198: 28 | U198: 0.042 | W198: 0 | Z198: 0.0015 | AA198: 28 | AB198: =+Z198*AA198 -> 0.042 | AC198: 28 | AD198: 0.042 | AF198: 0.042 | AG198: TRUE
B199: (c) Large Print Books Class I & II | C199: 52 | D199: 0.078 | E199: 52 | G199: 52 | I199: 100 | J199: 0 | K199: 0 | L199: 0.078 | N199: 0 | Q199: 0.0015 | R199: 39 | S199: =+Q199*R199 -> 0.0585 | T199: =+R199 -> 39 | U199: =+S199 -> 0.0585 | W199: 0 | Z199: 0.0015 | AA199: 39 | AB199: =+Z199*AA199 -> 0.0585 | AC199: =+AA199 -> 39 | AD199: =+AB199 -> 0.0585 | AF199: 0.0585 | AG199: TRUE
B200: (d) Class III to V | C200: 15309 | D200: 15.61518 | E200: 15309 | F200: =D200 -> 15.61518 | G200: 15309 | H200: =D200 -> 15.61518 | I200: =IFERROR(G200/C200*100,"") -> 100 | J200: =IFERROR(H200/D200*100,"") -> 100 | K200: 0 | L200: 0 | N200: 0 | Q200: 0.0015 | R200: 14382 | S200: 21.573 | T200: =+M200+O200+R200 -> 14382 | U200: =+N200+P200+S200 -> 21.573 | W200: 0 | Z200: 0.0015 | AA200: 14382 | AB200: 21.573 | AC200: =+V200+X200+AA200 -> 14382 | AD200: =+W200+Y200+AB200 -> 21.573 | AF200: =+AD200 -> 21.573 | AG200: =+W200+Y200+AB200=AD200 -> TRUE
B201: (e) Braille Books Class III to V | C201: 71 | D201: 0.1065 | E201: 71 | G201: 71 | I201: 100 | J201: 0 | K201: 0 | L201: 0.1065 | N201: 0 | Q201: 0.0015 | R201: 88 | S201: =+Q201*R201 -> 0.132 | T201: =+R201 -> 88 | U201: =+S201 -> 0.132 | W201: 0 | Z201: 0.0015 | AA201: 88 | AB201: =+Z201*AA201 -> 0.132 | AC201: =+AA201 -> 88 | AD201: =+AB201 -> 0.132 | AF201: 0.132 | AG201: TRUE
... 315 more rows

Sheet BengaluruRural
A1: Name of the District: Bengaluru Rural | C1: 2016-17 | M1: Outlay Proposed for 2017-18 | V1: Outlay Recommended for 2017-18
A2: S.No. | B2: Activity | C2: Out Lay Approved for 2016-17 (including spill over) | E2: Expenditure as on DEC, 2016 (As per Vidyavahini Software) | G2: Anticipated Achievement till 31-3-2017 | K2: Savings | M2: Spill Over | O2: Deferred laibility of 2016-2017 | Q2: Fresh | T2: Total | V2: Spill Over | X2: Deferred laibility of 2016-2017 | Z2: Fresh | AC2: Total
C3: Phy. | D3: Fin. | E3: Phy. | F3: Fin. | G3: Phy. | H3: Fin. | I3: Phy. (%) | J3: Fin. (%) | K3: Phy. | L3: Fin. | M3: Phy. | N3: Fin. | O3: Phy. | P3: Fin. | Q3: Unit Cost | R3: Phy. | S3: Fin. | T3: Phy. | U3: Fin. | V3: Phy. | W3: Fin. | X3: Phy. | Y3: Fin. | Z3: Unit Cost | AA3: Phy. | AB3: Fin. | AC3: Phy. | AD3: Fin.
B5: SSA
A6: 1 | B6: Opening of New Schools | C6: 0 | D6: 0
A7: 1.01 | B7: New Primary School | C7: 0 | D7: 0 | I7: =IFERROR(G7/C7*100,"") ->  | J7: =IFERROR(H7/D7*100,"") ->  | K7: =C7-G7 -> 0 | L7: =D7-H7 -> 0 | S7: =Q7*R7 -> 0 | T7: =+M7+O7+R7 -> 0 | U7: =+N7+P7+S7 -> 0 | AB7: =Z7*AA7 -> 0 | AC7: =+V7+X7+AA7 -> 0 | AD7: =+W7+Y7+AB7 -> 0 | AF7: =+AD7 -> 0 | AG7: =+W7+Y7+AB7=AD7 -> TRUE
A8: 1.02 | B8: Upgradation of PS to UPS | C8: 0 | D8: 0 | I8: =IFERROR(G8/C8*100,"") ->  | J8: =IFERROR(H8/D8*100,"") ->  | K8: =C8-G8 -> 0 | L8: 0 | S8: =R8*Q8 -> 0 | T8: =+M8+O8+R8 -> 0 | U8: =+N8+P8+S8 -> 0 | AB8: =AA8*Z8 -> 0 | AC8: =+V8+X8+AA8 -> 0 | AD8: =+W8+Y8+AB8 -> 0 | AF8: =+AD8 -> 0 | AG8: =+W8+Y8+AB8=AD8 -> TRUE
A9: 1.03 | B9: Composite Schools | C9: 0 | D9: 0 | K9: 0 | L9: 0 | S9: 0 | T9: 0 | U9: 0 | AB9: 0 | AC9: 0 | AD9: 0 | AF9: 0 | AG9: TRUE
A10: 1.04 | B10: Residential schools for specific category of children | C10: 0 | D10: 0 | K10: 0 | L10: 0 | S10: 0 | T10: 0 | U10: 0 | AB10: 0 | AC10: 0 | AD10: 0 | AF10: 0 | AG10: TRUE
A11: 1.05 | B11: Residential Hostel | C11: 0 | D11: 0 | K11: 0 | L11: 0 | S11: 0 | T11: 0 | U11: 0 | AB11: 0 | AC11: 0 | AD11: 0 | AF11: 0 | AG11: TRUE
A12: 1.06 | B12: Integration of Class V with primary schools | C12: 0 | D12: 0 | K12: 0 | L12: 0 | S12: 0 | T12: 0 | U12: 0 | AB12: 0 | AC12: 0 | AD12: 0 | AF12: 0 | AG12: TRUE
A13: 1.07 | B13: Integration of Class VIII with upper primary schools | C13: 0 | D13: 0 | K13: 0 | L13: 0 | S13: 0 | T13: 0 | U13: 0 | AB13: 0 | AC13: 0 | AD13: 0 | AF13: 0 | AG13: TRUE
A14: 2 | B14: Residential Schools for specific category of children | T14: 0 | U14: 0 | AC14: 0 | AD14: 0 | AG14: TRUE
B15: 50 children | T15: 0 | U15: 0 | AC15: 0 | AD15: 0 | AG15: TRUE
B16: Non-recurring (one time grant) | T16: 0 | U16: 0 | AC16: 0 | AD16: 0 | AG16: TRUE
A17: 2.01 | B17: Furniture/ Equipment (including kitchen) | C17: 0 | D17: 0 | K17: =C17-G17 -> 0 | L17: 0 | S17: =R17*Q17 -> 0 | T17: 0 | U17: 0 | AB17: =AA17*Z17 -> 0 | AC17: 0 | AD17: 0 | AF17: 0 | AG17: TRUE
A18: 2.02 | B18: TLM and equipment including library books | C18: 0 | D18: 0 | K18: 0 | L18: 0 | S18: =R18*Q18 -> 0 | T18: 0 | U18: 0 | AB18: =AA18*Z18 -> 0 | AC18: 0 | AD18: 0 | AF18: 0 | AG18: TRUE
A19: 2.03 | B19: Bedding (new) | C19: 0 | D19: 0 | K19: 0 | L19: 0 | S19: =R19*Q19 -> 0 | T19: 0 | U19: 0 | AB19: =AA19*Z19 -> 0 | AC19: 0 | AD19: 0 | AF19: 0 | AG19: TRUE
A20: 2.04 | B20: Replacement of bedding (once in 3 years) | C20: 0 | D20: 0 | K20: 0 | L20: 0 | S20: =R20*Q20 -> 0 | T20: 0 | U20: 0 | AB20: =AA20*Z20 -> 0 | AC20: 0 | AD20: 0 | AF20: 0 | AG20: TRUE
B21: Sub Total (Non Recurring) | C21: 0 | D21: 0 | E21: =SUM(E7:E20) -> 0 | F21: =SUM(F7:F20) -> 0 | G21: 0 | H21: 0 | K21: 0 | L21: 0 | M21: 0 | N21: 0 | O21: 0 | P21: 0 | R21: =SUM(R7:R20) -> 0 | S21: =SUM(S7:S20) -> 0 | T21: 0 | U21: 0 | V21: =SUM(V7:V20) -> 0 | W21: =SUM(W7:W20) -> 0 | X21: 0 | Y21: 0 | AA21: 0 | AB21: 0 | AC21: 0 | AD21: 0 | AE21: 0 | AF21: 0 | AG21: TRUE
B22: Recurring (50 children) | T22: 0 | U22: 0 | AC22: 0 | AD22: 0 | AF22: 0 | AG22: TRUE
A23: 2.05 | B23: Maintenance per child Per month @ Rs.1500/- | C23: 0 | D23: 0 | K23: =C23-G23 -> 0 | L23: 0 | N23: 0 | Q23: 0.18 | S23: =R23*Q23 -> 0 | T23: 0 | U23: 0 | W23: 0 | AB23: =AA23*Z23 -> 0 | AC23: 0 | AD23: 0 | AF23: 0 | AG23: TRUE
A24: 2.06 | B24: Stipend per child per month @ Rs.100/- | C24: 0 | D24: 0 | K24: 0 | L24: 0 | N24: 0 | Q24: 0.012 | S24: =R24*Q24 -> 0 | T24: 0 | U24: 0 | W24: 0 | AB24: =AA24*Z24 -> 0 | AC24: 0 | AD24: 0 | AF24: 0 | AG24: TRUE
A25: 2.07 | B25: Supplementary TLM, Stationery and other educational material @Rs.1000/- per child per annum | C25: 0 | D25: 0 | K25: 0 | L25: 0 | N25: 0 | Q25: 0.01 | S25: =R25*Q25 -> 0 | T25: 0 | U25: 0 | W25: 0 | AB25: =AA25*Z25 -> 0 | AC25: 0 | AD25: 0 | AF25: 0 | AG25: TRUE
A26: 2.08 | B26: Salaries | T26: 0 | U26: 0 | AC26: 0 | AD26: 0 | AF26: 0 | AG26: TRUE
A27: (a) | B27: 1 Warden @ Rs.25000/- per month | C27: 0 | D27: 0 | K27: 0 | L27: 0 | N27: 0 | Q27: 3 | S27: =R27*Q27 -> 0 | T27: 0 | U27: 0 | W27: 0 | AB27: =AA27*Z27 -> 0 | AC27: 0 | AD27: 0 | AF27: 0 | AG27: TRUE
A28: (b ) | B28: 4 Fulltime teachers as per RTE Norms @ Rs. 20,000/- per month per teacher | C28: 0 | D28: 0 | K28: 0 | L28: 0 | N28: 0 | Q28: 9.6 | S28: 0 | T28: 0 | U28: 0 | W28: 0 | AB28: 0 | AC28: 0 | AD28: 0 | AF28: 0 | AG28: TRUE
A29: (c) | B29: 2 Urdu Teachers (only for Blocks with muslim population above 20% and select urban areas) @ Rs.12,000/- per month per teacher. | C29: 0 | D29: 0 | K29: 0 | L29: 0 | N29: 0 | Q29: 1.44 | S29: 0 | T29: 0 | U29: 0 | W29: 0 | AB29: 0 | AC29: 0 | AD29: 0 | AF29: 0 | AG29: TRUE
A30: (d) | B30: 3 Part time teachers @ Rs.5,000/- per month per teacher | C30: 0 | D30: 0 | K30: 0 | L30: 0 | N30: 0 | Q30: 1.55 | S30: 0 | T30: 0 | U30: 0 | W30: 0 | AB30: 0 | AC30: 0 | AD30: 0 | AF30: 0 | AG30: TRUE
A31: (e ) | B31: 1 Full time Accountant @ Rs. 10,000/- per month | C31: 0 | D31: 0 | K31: 0 | L31: 0 | N31: 0 | Q31: 1.2 | S31: 0 | T31: 0 | U31: 0 | W31: 0 | AB31: 0 | AC31: 0 | AD31: 0 | AF31: 0 | AG31: TRUE
A32: (f) | B32: 2 Support staff - (Accountant/Assistant, Peon, Chowkidar) @ Rs. 5,000/- per month per staff | C32: 0 | D32: 0 | K32: 0 | L32: 0 | N32: 0 | Q32: 1.2 | S32: 0 | T32: 0 | U32: 0 | W32: 0 | AB32: 0 | AC32: 0 | AD32: 0 | AF32: 0 | AG32: TRUE
A33: (g) | B33: 1 Head Cook @ Rs. 6,000/- per month and upto 2 Asstt. Cooks @ Rs. 4,500/- per month per cook | C33: 0 | D33: 0 | K33: 0 | L33: 0 | N33: 0 | Q33: 1.8 | S33: 0 | T33: 0 | U33: 0 | W33: 0 | AB33: 0 | AC33: 0 | AD33: 0 | AF33: 0 | AG33: TRUE
A34: 2.09 | B34: Specific Skill training @ Rs.1000/- per annum per child | C34: 0 | D34: 0 | K34: 0 | L34: 0 | N34: 0 | Q34: 0.01 | S34: 0 | T34: 0 | U34: 0 | W34: 0 | AB34: 0 | AC34: 0 | AD34: 0 | AF34: 0 | AG34: TRUE
A35: 2.1 | B35: Electricity / water charges @ Rs. 1000/- per annum per child | C35: 0 | D35: 0 | K35: 0 | L35: 0 | N35: 0 | Q35: 0.01 | S35: 0 | T35: 0 | U35: 0 | W35: 0 | AB35: 0 | AC35: 0 | AD35: 0 | AF35: 0 | AG35: TRUE
A36: 2.11 | B36: Medical care/contingencies @ Rs.1250/- per annum per child | C36: 0 | D36: 0 | K36: 0 | L36: 0 | N36: 0 | Q36: 0.0125 | S36: 0 | T36: 0 | U36: 0 | W36: 0 | AB36: 0 | AC36: 0 | AD36: 0 | AF36: 0 | AG36: TRUE
A37: 2.12 | B37: Maintenance @ Rs. 750/- per child per annum | C37: 0 | D37: 0 | K37: 0 | L37: 0 | N37: 0 | Q37: 0.0075 | S37: 0 | T37: 0 | U37: 0 | W37: 0 | AB37: 0 | AC37: 0 | AD37: 0 | AF37: 0 | AG37: TRUE
A38: 2.13 | B38: Miscellaneous @ Rs. 750/- per child per annum | C38: 0 | D38: 0 | K38: 0 | L38: 0 | N38: 0 | Q38: 0.0075 | S38: 0 | T38: 0 | U38: 0 | W38: 0 | AB38: 0 | AC38: 0 | AD38: 0 | AF38: 0 | AG38: TRUE
A39: 2.14 | B39: Preparatory camps @ Rs. 300/- per child per annum | C39: 0 | D39: 0 | K39: 0 | L39: 0 | N39: 0 | Q39: 0.003 | S39: 0 | T39: 0 | U39: 0 | W39: 0 | AB39: 0 | AC39: 0 | AD39: 0 | AF39: 0 | AG39: TRUE
A40: 2.15 | B40: P.T.A / school functions @ Rs. 300/- per child per annum | C40: 0 | D40: 0 | K40: 0 | L40: 0 | N40: 0 | Q40: 0.003 | S40: 0 | T40: 0 | U40: 0 | W40: 0 | AB40: 0 | AC40: 0 | AD40: 0 | AF40: 0 | AG40: TRUE
A41: 2.16 | B41: Provision of Rent @ Rs. 10,000/- per child per annum | C41: 0 | D41: 0 | K41: 0 | L41: 0 | N41: 0 | S41: 0 | T41: 0 | U41: 0 | W41: 0 | AB41: 0 | AC41: 0 | AD41: 0 | AF41: 0 | AG41: TRUE
A42: 2.17 | B42: Capacity Building @ Rs. 500/- per child per annum | C42: 0 | D42: 0 | K42: 0 | L42: 0 | N42: 0 | Q42: 0.005 | S42: 0 | T42: 0 | U42: 0 | W42: 0 | AB42: 0 | AC42: 0 | AD42: 0 | AF42: 0 | AG42: TRUE
A43: 2.18 | B43: Physical / Self Defence Training @ Rs.200/- per child per annum | C43: 0 | D43: 0 | K43: 0 | L43: 0 | N43: 0 | Q43: 0.002 | S43: 0 | T43: 0 | U43: 0 | W43: 0 | AB43: 0 | AC43: 0 | AD43: 0 | AF43: 0 | AG43: TRUE
B44: Sub Total (Recurring) | C44: =SUM(C23:C43) -> 0 | D44: 0 | E44: 0 | F44: 0 | G44: 0 | H44: 0 | K44: 0 | L44: 0 | M44: 0 | N44: 0 | R44: =SUM(R23:R43) -> 0 | S44: =SUM(S23:S43) -> 0 | T44: 0 | U44: 0 | V44: =SUM(V23:V43) -> 0 | W44: =SUM(W23:W43) -> 0 | X44: 0 | Y44: 0 | AA44: 0 | AB44: 0 | AC44: =+V44+X44+AA44 -> 0 | AD44: =+W44+Y44+AB44 -> 0 | AG44: TRUE
B45: Total (Non Recurring + Recurring) | C45: =C44+C21 -> 0 | D45: 0 | E45: 0 | F45: 0 | G45: 0 | H45: 0 | K45: 0 | L45: 0 | M45: 0 | N45: 0 | R45: =R44+R21 -> 0 | S45: =S44+S21 -> 0 | T45: 0 | U45: 0 | V45: =+V44+V21 -> 0 | W45: =+W44+W21 -> 0 | X45: 0 | Y45: 0 | Z45: 0 | AA45: 0 | AB45: 0 | AC45: =+V45+X45+AA45 -> 0 | AD45: =+W45+Y45+AB45 -> 0 | AG45: TRUE
B46: 100 children | T46: 0 | U46: 0 | AC46: 0 | AD46: 0 | AG46: TRUE
B47: Non-recurring (one time grant) | T47: 0 | U47: 0 | AC47: 0 | AD47: 0 | AG47: TRUE
A48: 2.19 | B48: Furniture / Equipment (including kitchen equipment) | C48: 0 | D48: 0 | K48: =C48-G48 -> 0 | L48: 0 | S48: =R48*Q48 -> 0 | T48: 0 | U48: 0 | AB48: =AA48*Z48 -> 0 | AC48: 0 | AD48: 0 | AF48: 0 | AG48: TRUE
A49: 2.2 | B49: TLM and equipment including library books (New) | C49: 0 | D49: 0 | K49: 0 | L49: 0 | S49: =R49*Q49 -> 0 | T49: 0 | U49: 0 | AB49: =AA49*Z49 -> 0 | AC49: 0 | AD49: 0 | AF49: 0 | AG49: TRUE
A50: 2.21 | B50: Bedding (New) | C50: 0 | D50: 0 | K50: 0 | L50: 0 | S50: =R50*Q50 -> 0 | T50: 0 | U50: 0 | AB50: =AA50*Z50 -> 0 | AC50: 0 | AD50: 0 | AF50: 0 | AG50: TRUE
A51: 2.22 | B51: Replacement of bedding (once in 3 years) | C51: 0 | D51: 0 | E51: 0 | G51: 0 | K51: 0 | L51: 0 | S51: =R51*Q51 -> 0 | T51: 0 | U51: 0 | AB51: =AA51*Z51 -> 0 | AC51: 0 | AD51: 0 | AF51: 0 | AG51: TRUE
B52: Sub Total Non-recurring | C52: 0 | D52: 0 | E52: =SUM(E48:E51) -> 0 | F52: =SUM(F48:F51) -> 0 | G52: 0 | H52: 0 | K52: 0 | L52: 0 | M52: 0 | N52: 0 | R52: =SUM(R48:R51) -> 0 | S52: =SUM(S48:S51) -> 0 | T52: 0 | U52: 0 | V52: =SUM(V48:V51) -> 0 | W52: =SUM(W48:W51) -> 0 | X52: 0 | Y52: 0 | AA52: 0 | AB52: 0 | AC52: =+V52+X52+AA52 -> 0 | AD52: =+W52+Y52+AB52 -> 0 | AG52: TRUE
B53: Recurring | C53: 0 | D53: 0 | T53: 0 | U53: 0 | AC53: 0 | AD53: 0 | AG53: TRUE
A54: 2.23 | B54: Maintenance per child per month @ Rs. 1500/- | C54: 0 | D54: 0 | K54: =C54-G54 -> 0 | L54: 0 | N54: 0 | Q54: 0.18 | S54: =R54*Q54 -> 0 | T54: 0 | U54: 0 | W54: 0 | Z54: 0.18 | AB54: =AA54*Z54 -> 0 | AC54: 0 | AD54: 0 | AF54: 0 | AG54: TRUE
A55: 2.24 | B55: Stipend per child per month @ Rs.100/- | C55: 0 | D55: 0 | K55: 0 | L55: 0 | N55: 0 | Q55: 0.012 | S55: =R55*Q55 -> 0 | T55: 0 | U55: 0 | W55: 0 | Z55: 0.012 | AB55: =AA55*Z55 -> 0 | AC55: 0 | AD55: 0 | AF55: 0 | AG55: TRUE
A56: 2.25 | B56: Supplementary TLM, Stationery and other educational material per child @1000/- per annum | C56: 0 | D56: 0 | K56: 0 | L56: 0 | N56: 0 | Q56: 0.01 | S56: =R56*Q56 -> 0 | T56: 0 | U56: 0 | W56: 0 | Z56: 0.01 | AB56: =AA56*Z56 -> 0 | AC56: 0 | AD56: 0 | AF56: 0 | AG56: TRUE
A57: =+A56+0.01 -> 2.26 | B57: Salaries | T57: 0 | U57: 0 | AC57: 0 | AD57: 0 | AF57: 0 | AG57: TRUE
A58: (a) | B58: 1 Warden @ Rs. 25,000/- per month | C58: 0 | D58: 0 | G58: 0 | K58: 0 | L58: 0 | N58: 0 | Q58: 3 | S58: =R58*Q58 -> 0 | T58: 0 | U58: 0 | W58: 0 | Z58: 3 | AB58: =AA58*Z58 -> 0 | AC58: 0 | AD58: 0 | AF58: 0 | AG58: TRUE
A59: (b) | B59: 1 head teacher @ Rs. 25,000/- per month in case the enrollment exceeds 100 | K59: 0 | L59: 0 | N59: 0 | S59: 0 | T59: 0 | U59: 0 | W59: 0 | AB59: 0 | AC59: 0 | AD59: 0 | AF59: 0 | AG59: TRUE
A60: (c) | B60: 4 - 5 Full time teachers as per RTE norms @ Rs. 20,000/- per month per teacher | C60: 0 | D60: 0 | G60: 0 | K60: 0 | L60: 0 | N60: 0 | Q60: 9.6 | S60: 0 | T60: 0 | U60: 0 | W60: 0 | Z60: 9.6 | AB60: 0 | AC60: 0 | AD60: 0 | AF60: 0 | AG60: TRUE
A61: (d) | B61: 2 Urdu Teachers (only for blocks with muslim population above 20% and select urban areas), if required @ Rs. 12,000/- per month per teacher | C61: 0 | D61: 0 | K61: 0 | L61: 0 | N61: 0 | Q61: 1.44 | S61: 0 | T61: 0 | U61: 0 | W61: 0 | AB61: 0 | AC61: 0 | AD61: 0 | AF61: 0 | AG61: TRUE
A62: (e) | B62: 3 part time teachers @ Rs. 5,000/- per month per teacher | C62: 0 | D62: 0 | G62: 0 | K62: 0 | L62: 0 | N62: 0 | Q62: 1.5 | S62: 0 | T62: 0 | U62: 0 | W62: 0 | Z62: 1.5 | AB62: 0 | AC62: 0 | AD62: 0 | AF62: 0 | AG62: TRUE
A63: (f) | B63: 1 Full time Accountant @ Rs. 10,000/- per month | C63: 0 | D63: 0 | K63: 0 | L63: 0 | N63: 0 | Q63: 1.2 | S63: 0 | T63: 0 | U63: 0 | W63: 0 | Z63: 1.2 | AB63: 0 | AC63: 0 | AD63: 0 | AF63: 0 | AG63: TRUE
A64: (g) | B64: 2 Support Staff – (Accountant/ Assistant, Peon, Chowkidar) @ Rs. 5,000/- per month per staff | C64: 0 | D64: 0 | K64: 0 | L64: 0 | N64: 0 | Q64: 1.2 | S64: 0 | T64: 0 | U64: 0 | W64: 0 | Z64: 1.2 | AB64: 0 | AC64: 0 | AD64: 0 | AF64: 0 | AG64: TRUE
A65: (h) | B65: 1 Head cook @ Rs. 6,000/- per month and upto 2 Asstt. Cooks @ Rs. 4,500/- per month per cook | C65: 0 | D65: 0 | K65: 0 | L65: 0 | N65: 0 | Q65: 1.8 | S65: 0 | T65: 0 | U65: 0 | W65: 0 | Z65: 1.8 | AB65: 0 | AC65: 0 | AD65: 0 | AF65: 0 | AG65: TRUE
A66: 2.27 | B66: Specific skill training per child @ Rs.1000/- per annum | C66: 0 | D66: 0 | K66: 0 | L66: 0 | N66: 0 | Q66: 0.01 | S66: 0 | T66: 0 | U66: 0 | W66: 0 | Z66: 0.01 | AB66: 0 | AC66: 0 | AD66: 0 | AF66: 0 | AG66: TRUE
A67: 2.28 | B67: Electricity / water charges per child @Rs.1000/- per annum | C67: 0 | D67: 0 | K67: 0 | L67: 0 | N67: 0 | Q67: 0.01 | S67: 0 | T67: 0 | U67: 0 | W67: 0 | Z67: 0.01 | AB67: 0 | AC67: 0 | AD67: 0 | AF67: 0 | AG67: TRUE
A68: 2.29 | B68: Medical care/contingencies @ Rs.1250/- per child per annum | C68: 0 | D68: 0 | K68: 0 | L68: 0 | N68: 0 | Q68: 0.0125 | S68: 0 | T68: 0 | U68: 0 | W68: 0 | Z68: 0.0125 | AB68: 0 | AC68: 0 | AD68: 0 | AF68: 0 | AG68: TRUE
A69: 2.3 | B69: Maintenance @ Rs.750/- per child per annum | C69: 0 | D69: 0 | K69: 0 | L69: 0 | N69: 0 | Q69: 0.0075 | S69: 0 | T69: 0 | U69: 0 | W69: 0 | Z69: 0.0075 | AB69: 0 | AC69: 0 | AD69: 0 | AF69: 0 | AG69: TRUE
A70: 2.31 | B70: Miscellaneous @ Rs.750/- per child per annum | C70: 0 | D70: 0 | K70: =C70-G70 -> 0 | L70: 0 | N70: 0 | Q70: 0.0075 | S70: 0 | T70: 0 | U70: 0 | W70: 0 | Z70: 0.0075 | AB70: 0 | AC70: 0 | AD70: 0 | AF70: 0 | AG70: TRUE
A71: 2.32 | B71: Preparatory camps @ Rs.200/- per child per annum | C71: 0 | D71: 0 | K71: 0 | L71: 0 | N71: 0 | Q71: 0.002 | S71: 0 | T71: 0 | U71: 0 | W71: 0 | Z71: 0.002 | AB71: 0 | AC71: 0 | AD71: 0 | AF71: 0 | AG71: TRUE
A72: 2.33 | B72: P.T.A / school functions @ Rs.200/- per child per annum | C72: 0 | D72: 0 | I72: =IFERROR(G72/C72*100,"") ->  | J72: =IFERROR(H72/D72*100,"") ->  | K72: 0 | L72: 0 | N72: 0 | Q72: 0.002 | S72: 0 | T72: =+M72+O72+R72 -> 0 | U72: =+N72+P72+S72 -> 0 | W72: 0 | Z72: 0.002 | AB72: 0 | AC72: =+V72+X72+AA72 -> 0 | AD72: =+W72+Y72+AB72 -> 0 | AF72: =+AD72 -> 0 | AG72: =+W72+Y72+AB72=AD72 -> TRUE
A73: 2.34 | B73: Provision of Rent @ Rs. 6000/- per child per annum | C73: 0 | D73: 0 | L73: 0 | N73: 0 | S73: 0 | T73: 0 | U73: 0 | W73: 0 | AB73: 0 | AC73: 0 | AD73: 0 | AF73: 0 | AG73: TRUE
A74: 2.35 | B74: Capacity Building @ Rs.500/- per child per annum | C74: 0 | D74: 0 | H74: 0 | K74: 0 | L74: 0 | N74: 0 | Q74: 0.005 | S74: 0 | T74: 0 | U74: 0 | W74: 0 | Z74: 0.005 | AB74: 0 | AC74: 0 | AD74: 0 | AF74: 0 | AG74: TRUE
A75: 2.36 | B75: Physical / Self Defence training @ Rs. 200/- per child per annum. | C75: 0 | D75: 0 | K75: 0 | L75: 0 | N75: 0 | Q75: 0.002 | S75: 0 | T75: 0 | U75: 0 | W75: 0 | Z75: 0.002 | AB75: 0 | AC75: 0 | AD75: 0 | AF75: 0 | AG75: TRUE
B76: Sub Total (Recurring) | C76: 0 | D76: 0 | E76: =E75+E51 -> 0 | F76: =SUM(F54:F75) -> 0 | G76: 0 | H76: 0 | K76: 0 | L76: 0 | M76: 0 | N76: 0 | R76: =SUM(R54:R75) -> 0 | S76: =SUM(S54:S75) -> 0 | T76: 0 | U76: 0 | V76: =SUM(V54:V75) -> 0 | W76: =SUM(W54:W75) -> 0 | X76: 0 | Y76: 0 | AA76: 0 | AB76: 0 | AC76: =+V76+X76+AA76 -> 0 | AD76: 0 | AG76: TRUE
B77: Total (Recurring + Non Recurring) | C77: 0 | D77: 0 | E77: 0 | F77: 0 | G77: 0 | H77: 0 | K77: 0 | L77: 0 | M77: 0 | N77: 0 | R77: =R76+R52 -> 0 | S77: =S76+S52 -> 0 | T77: 0 | U77: 0 | V77: =+V76+V52 -> 0 | W77: =+W76+W52 -> 0 | X77: 0 | Y77: 0 | AA77: 0 | AB77: 0 | AC77: 0 | AD77: 0 | AG77: TRUE
B78: Total (50 + 100 children) | C78: =C77+C45 -> 0 | D78: 0 | E78: 0 | F78: 0 | G78: 0 | H78: 0 | K78: 0 | L78: 0 | M78: =M77+M45 -> 0 | N78: =N77+N45 -> 0 | O78: =O77+O45 -> 0 | P78: =P77+P45 -> 0 | R78: =R77+R45 -> 0 | S78: =S77+S45 -> 0 | T78: 0 | U78: 0 | V78: =+V77+V45 -> 0 | W78: =+W77+W45 -> 0 | X78: 0 | Y78: 0 | AA78: 0 | AB78: 0 | AC78: 0 | AD78: 0 | AG78: TRUE
A79: 3 | B79: Residential Hostel for specific category of children | T79: 0 | U79: 0 | AC79: 0 | AD79: 0 | AF79: 0 | AG79: TRUE
A80: (A) | B80: 50 children | T80: 0 | U80: 0 | AC80: 0 | AD80: 0 | AF80: 0 | AG80: TRUE
B81: Non-recurring (one time grant) | T81: 0 | U81: 0 | AC81: 0 | AD81: 0 | AF81: 0 | AG81: TRUE
A82: 3.01 | B82: Furniture/ Equipment (including kitchen) | C82: 0 | D82: 0 | K82: =C82-G82 -> 0 | L82: 0 | S82: =R82*Q82 -> 0 | T82: 0 | U82: 0 | AB82: =AA82*Z82 -> 0 | AC82: 0 | AD82: 0 | AF82: 0 | AG82: TRUE
A83: =+A82+0.01 -> 3.02 | B83: TLM and equipment including library books | C83: 0 | D83: 0 | K83: 0 | L83: 0 | S83: =R83*Q83 -> 0 | T83: 0 | U83: 0 | AB83: =AA83*Z83 -> 0 | AC83: 0 | AD83: 0 | AF83: 0 | AG83: TRUE
A84: =+A83+0.01 -> 3.03 | B84: Bedding (new) | C84: 0 | D84: 0 | K84: 0 | L84: 0 | S84: =R84*Q84 -> 0 | T84: 0 | U84: 0 | AB84: =AA84*Z84 -> 0 | AC84: 0 | AD84: 0 | AF84: 0 | AG84: TRUE
A85: =+A84+0.01 -> 3.04 | B85: Replacement of bedding (once in 3 years) | C85: 0 | D85: 0 | K85: 0 | L85: 0 | S85: =R85*Q85 -> 0 | T85: 0 | U85: 0 | AB85: =AA85*Z85 -> 0 | AC85: 0 | AD85: 0 | AF85: 0 | AG85: TRUE
B86: Sub Total (Non Recurring) | C86: =SUM(C82:C85) -> 0 | D86: =SUM(D82:D85) -> 0 | E86: =SUM(E82:E85) -> 0 | F86: 0 | G86: 0 | H86: 0 | K86: 0 | L86: 0 | M86: 0 | N86: 0 | R86: =SUM(R82:R85) -> 0 | S86: =SUM(S82:S85) -> 0 | T86: 0 | U86: 0 | V86: =SUM(V82:V85) -> 0 | W86: =SUM(W82:W85) -> 0 | X86: 0 | Y86: 0 | AA86: 0 | AB86: 0 | AC86: =+V86+X86+AA86 -> 0 | AD86: =+W86+Y86+AB86 -> 0 | AF86: 0 | AG86: TRUE
B87: Recurring (50 children) | C87: 0 | D87: 0 | S87: =R87*Q87 -> 0 | T87: 0 | U87: 0 | AB87: =AA87*Z87 -> 0 | AC87: 0 | AD87: 0 | AF87: 0 | AG87: TRUE
A88: 3.05 | B88: Maintenance per child Per month @ Rs.1500/- | C88: 0 | D88: 0 | K88: =C88-G88 -> 0 | L88: 0 | N88: 0 | S88: =R88*Q88 -> 0 | T88: 0 | U88: 0 | W88: 0 | AB88: =AA88*Z88 -> 0 | AC88: 0 | AD88: 0 | AF88: 0 | AG88: TRUE
A89: =+A88+0.01 -> 3.06 | B89: Stipend per child per month @ Rs.100/- | C89: 0 | D89: 0 | K89: 0 | L89: 0 | N89: 0 | S89: =R89*Q89 -> 0 | T89: 0 | U89: 0 | W89: 0 | AB89: =AA89*Z89 -> 0 | AC89: 0 | AD89: 0 | AF89: 0 | AG89: TRUE
A90: =+A89+0.01 -> 3.07 | B90: Supplementary TLM, Stationery and other educational material @Rs.1000/- per child per annum | C90: 0 | D90: 0 | K90: 0 | L90: 0 | N90: 0 | S90: =R90*Q90 -> 0 | T90: 0 | U90: 0 | W90: 0 | AB90: =AA90*Z90 -> 0 | AC90: 0 | AD90: 0 | AF90: 0 | AG90: TRUE
A91: 3.08 | B91: Salaries | T91: 0 | U91: 0 | AC91: 0 | AD91: 0 | AF91: 0 | AG91: TRUE
A92: (a) | B92: 1 Warden @ Rs.25000/- per month | C92: 0 | D92: 0 | K92: 0 | L92: 0 | N92: 0 | S92: =R92*Q92 -> 0 | T92: 0 | U92: 0 | W92: 0 | AB92: =AA92*Z92 -> 0 | AC92: 0 | AD92: 0 | AF92: 0 | AG92: TRUE
A93: (b) | B93: 4 Fulltime teachers as per RTE Norms @ Rs. 20,000/- per month per teacher | C93: 0 | D93: 0 | K93: 0 | L93: 0 | N93: 0 | S93: 0 | T93: 0 | U93: 0 | W93: 0 | AB93: 0 | AC93: 0 | AD93: 0 | AF93: 0 | AG93: TRUE
A94: (c) | B94: 2 Urdu Teachers (only for Blocks with muslim population above 20% and select urban areas) @ Rs.12,000/- per month per teacher. | C94: 0 | D94: 0 | K94: 0 | L94: 0 | N94: 0 | S94: 0 | T94: 0 | U94: 0 | W94: 0 | AB94: 0 | AC94: 0 | AD94: 0 | AF94: 0 | AG94: TRUE
A95: (d) | B95: 3 Part time teachers @ Rs.5,000/- per month per teacher | C95: 0 | D95: 0 | K95: 0 | L95: 0 | N95: 0 | S95: 0 | T95: 0 | U95: 0 | W95: 0 | AB95: 0 | AC95: 0 | AD95: 0 | AF95: 0 | AG95: TRUE
A96: (e) | B96: 1 Full time Accountant @ Rs. 10,000/- per month | C96: 0 | D96: 0 | K96: 0 | L96: 0 | N96: 0 | S96: 0 | T96: 0 | U96: 0 | W96: 0 | AB96: 0 | AC96: 0 | AD96: 0 | AF96: 0 | AG96: TRUE
A97: (f) | B97: 2 Support staff - (Accountant/Assistant, Peon, Chowkidar) @ Rs. 5,000/- per month per staff | C97: 0 | D97: 0 | K97: 0 | L97: 0 | N97: 0 | S97: 0 | T97: 0 | U97: 0 | W97: 0 | AB97: 0 | AC97: 0 | AD97: 0 | AF97: 0 | AG97: TRUE
A98: (g) | B98: 1 Head Cook @ Rs. 6,000/- per month and upto 2 Asstt. Cooks @ Rs. 4,500/- per month per cook | C98: 0 | D98: 0 | K98: 0 | L98: 0 | N98: 0 | S98: 0 | T98: 0 | U98: 0 | W98: 0 | AB98: 0 | AC98: 0 | AD98: 0 | AF98: 0 | AG98: TRUE
A99: 3.09 | B99: Specific Skill training @ Rs.1000/- per annum per child | C99: 0 | D99: 0 | K99: 0 | L99: 0 | N99: 0 | S99: 0 | T99: 0 | U99: 0 | W99: 0 | AB99: 0 | AC99: 0 | AD99: 0 | AF99: 0 | AG99: TRUE
A100: =+A99+0.01 -> 3.1 | B100: Electricity / water charges @ Rs. 1000/- per annum per child | C100: 0 | D100: 0 | K100: 0 | L100: 0 | N100: 0 | S100: 0 | T100: 0 | U100: 0 | W100: 0 | AB100: 0 | AC100: 0 | AD100: 0 | AF100: 0 | AG100: TRUE
A101: 3.11 | B101: Medical care/contingencies @ Rs.1250/- per annum per child | C101: 0 | D101: 0 | K101: 0 | L101: 0 | N101: 0 | S101: 0 | T101: 0 | U101: 0 | W101: 0 | AB101: 0 | AC101: 0 | AD101: 0 | AF101: 0 | AG101: TRUE
A102: 3.12 | B102: Maintenance @ Rs. 750/- per child per annum | C102: 0 | D102: 0 | K102: 0 | L102: 0 | N102: 0 | S102: 0 | T102: 0 | U102: 0 | W102: 0 | AB102: 0 | AC102: 0 | AD102: 0 | AF102: 0 | AG102: TRUE
A103: 3.13 | B103: Miscellaneous @ Rs. 750/- per child per annum | C103: 0 | D103: 0 | K103: 0 | L103: 0 | N103: 0 | S103: 0 | T103: 0 | U103: 0 | W103: 0 | AB103: 0 | AC103: 0 | AD103: 0 | AF103: 0 | AG103: TRUE
A104: 3.14 | B104: Preparatory camps @ Rs. 300/- per child per annum | C104: 0 | D104: 0 | K104: 0 | L104: 0 | N104: 0 | S104: 0 | T104: 0 | U104: 0 | W104: 0 | AB104: 0 | AC104: 0 | AD104: 0 | AF104: 0 | AG104: TRUE
A105: 3.15 | B105: P.T.A / school functions @ Rs. 300/- per child per annum | C105: 0 | D105: 0 | K105: 0 | L105: 0 | N105: 0 | S105: 0 | T105: 0 | U105: 0 | W105: 0 | AB105: 0 | AC105: 0 | AD105: 0 | AF105: 0 | AG105: TRUE
A106: 3.16 | B106: Provision of Rent @ Rs. 10,000/- per child per annum | C106: 0 | D106: 0 | K106: 0 | L106: 0 | N106: 0 | S106: 0 | T106: 0 | U106: 0 | W106: 0 | AB106: 0 | AC106: 0 | AD106: 0 | AF106: 0 | AG106: TRUE
A107: 3.17 | B107: Capacity Building @ Rs. 500/- per child per annum | C107: 0 | D107: 0 | K107: 0 | L107: 0 | N107: 0 | S107: 0 | T107: 0 | U107: 0 | W107: 0 | AB107: 0 | AC107: 0 | AD107: 0 | AF107: 0 | AG107: TRUE
A108: 3.18 | B108: Physical / Self Defence Training @ Rs.200/- per child per annum | C108: 0 | D108: 0 | K108: 0 | L108: 0 | N108: 0 | S108: 0 | T108: 0 | U108: 0 | W108: 0 | AB108: 0 | AC108: 0 | AD108: 0 | AF108: 0 | AG108: TRUE
B109: Sub Total (Recurring) | C109: =C108+C85 -> 0 | D109: =SUM(D88:D108) -> 0 | E109: 0 | F109: 0 | G109: 0 | H109: 0 | K109: 0 | L109: 0 | M109: 0 | N109: 0 | R109: =SUM(R88:R108) -> 0 | S109: =SUM(S88:S108) -> 0 | T109: 0 | U109: 0 | V109: =SUM(V88:V108) -> 0 | W109: =SUM(W88:W108) -> 0 | X109: 0 | Y109: 0 | AA109: 0 | AB109: 0 | AC109: =+V109+X109+AA109 -> 0 | AD109: =+W109+Y109+AB109 -> 0 | AF109: 0 | AG109: TRUE
B110: Total (Non Recurring + Recurring) | C110: 0 | D110: 0 | E110: 0 | F110: 0 | G110: 0 | H110: 0 | K110: 0 | L110: 0 | M110: 0 | N110: 0 | R110: =R109+R86 -> 0 | S110: =S109+S86 -> 0 | T110: 0 | U110: 0 | V110: =+V109+V86 -> 0 | W110: =+W109+W86 -> 0 | X110: 0 | Y110: 0 | AA110: 0 | AB110: 0 | AC110: =+V110+X110+AA110 -> 0 | AD110: =+W110+Y110+AB110 -> 0 | AF110: 0 | AG110: TRUE
A111: (B) | B111: 100 Children | T111: 0 | U111: 0 | AC111: 0 | AD111: 0 | AF111: 0 | AG111: TRUE
B112: Non-recurring (one time grant) | T112: 0 | U112: 0 | AC112: 0 | AD112: 0 | AF112: 0 | AG112: TRUE
A113: 3.19 | B113: Furniture / Equipment (including kitchen equipment) | C113: 0 | D113: 0 | K113: =C113-G113 -> 0 | L113: 0 | M113: 0 | N113: 0 | S113: =Q113+L113 -> 0 | T113: 0 | U113: 0 | V113: 0 | W113: 0 | AB113: =Z113+U113 -> 0 | AC113: 0 | AD113: 0 | AF113: 0 | AG113: TRUE
A114: =+A113+0.01 -> 3.2 | B114: TLM and equipment including library books (New) | C114: 0 | D114: 0 | K114: 0 | L114: 0 | M114: 0 | N114: 0 | S114: =R114*Q114 -> 0 | T114: 0 | U114: 0 | V114: 0 | W114: 0 | AB114: =AA114*Z114 -> 0 | AC114: 0 | AD114: 0 | AF114: 0 | AG114: TRUE
A115: =+A114+0.01 -> 3.21 | B115: Bedding (New) | C115: 0 | D115: 0 | K115: 0 | L115: 0 | M115: 0 | N115: 0 | S115: =R115*Q115 -> 0 | T115: 0 | U115: 0 | V115: 0 | W115: 0 | AB115: =AA115*Z115 -> 0 | AC115: 0 | AD115: 0 | AF115: 0 | AG115: TRUE
A116: =+A115+0.01 -> 3.22 | B116: Replacement of bedding (once in 3 years) | C116: 0 | D116: 0 | K116: 0 | L116: 0 | M116: 0 | N116: 0 | S116: =R116*Q116 -> 0 | T116: 0 | U116: 0 | V116: 0 | W116: 0 | AB116: =AA116*Z116 -> 0 | AC116: 0 | AD116: 0 | AF116: 0 | AG116: TRUE
B117: Sub Total Non-recurring | C117: =SUM(C113:C116) -> 0 | D117: =SUM(D113:D116) -> 0 | E117: =SUM(E113:E116) -> 0 | F117: 0 | G117: 0 | H117: 0 | K117: 0 | L117: 0 | M117: 0 | N117: 0 | R117: =SUM(R113:R116) -> 0 | S117: =SUM(S113:S116) -> 0 | T117: 0 | U117: 0 | V117: =SUM(V113:V116) -> 0 | W117: =SUM(W113:W116) -> 0 | X117: 0 | Y117: 0 | AA117: 0 | AB117: 0 | AC117: =+V117+X117+AA117 -> 0 | AD117: =+W117+Y117+AB117 -> 0 | AF117: 0 | AG117: TRUE
B118: Recurring | T118: 0 | U118: 0 | AC118: 0 | AD118: 0 | AF118: 0 | AG118: TRUE
A119: 3.23 | B119: Maintenance per child per month @ Rs. 1500/- | C119: 0 | D119: 0 | K119: =C119-G119 -> 0 | L119: 0 | N119: 0 | S119: =R119*Q119 -> 0 | T119: 0 | U119: 0 | W119: 0 | AB119: =AA119*Z119 -> 0 | AC119: 0 | AD119: 0 | AF119: 0 | AG119: TRUE
A120: =+A119+0.01 -> 3.24 | B120: Stipend per child per month @ Rs.100/- | C120: 0 | D120: 0 | K120: 0 | L120: 0 | N120: 0 | S120: =R120*Q120 -> 0 | T120: 0 | U120: 0 | W120: 0 | AB120: =AA120*Z120 -> 0 | AC120: 0 | AD120: 0 | AF120: 0 | AG120: TRUE
A121: =+A120+0.01 -> 3.25 | B121: Supplementary TLM, Stationery and other educational material per child @1000/- per annum | C121: 0 | D121: 0 | K121: 0 | L121: 0 | N121: 0 | S121: =R121*Q121 -> 0 | T121: 0 | U121: 0 | W121: 0 | AB121: =AA121*Z121 -> 0 | AC121: 0 | AD121: 0 | AF121: 0 | AG121: TRUE
A122: 3.26 | B122: Salaries | T122: 0 | U122: 0 | AC122: 0 | AD122: 0 | AF122: 0 | AG122: TRUE
A123: (a) | B123: 1 Warden @ Rs. 25,000/- per month | C123: 0 | D123: 0 | K123: 0 | L123: 0 | N123: 0 | S123: =R123*Q123 -> 0 | T123: 0 | U123: 0 | W123: 0 | AB123: =AA123*Z123 -> 0 | AC123: 0 | AD123: 0 | AF123: 0 | AG123: TRUE
A124: (b) | B124: 1 head teacher @ Rs. 25,000/- per month in case the enrollment exceeds 100 | C124: 0 | D124: 0 | K124: 0 | L124: 0 | N124: 0 | S124: 0 | T124: 0 | U124: 0 | W124: 0 | AB124: 0 | AC124: 0 | AD124: 0 | AF124: 0 | AG124: TRUE
A125: (c) | B125: 4 - 5 Full time teachers as per RTE norms @ Rs. 20,000/- per month per teacher | C125: 0 | D125: 0 | K125: 0 | L125: 0 | N125: 0 | S125: 0 | T125: 0 | U125: 0 | W125: 0 | AB125: 0 | AC125: 0 | AD125: 0 | AF125: 0 | AG125: TRUE
A126: (d) | B126: 2 Urdu Teachers (only for blocks with muslim population above 20% and select urban areas), if required @ Rs. 12,000/- per month per teacher | C126: 0 | D126: 0 | K126: 0 | L126: 0 | N126: 0 | S126: 0 | T126: 0 | U126: 0 | W126: 0 | AB126: 0 | AC126: 0 | AD126: 0 | AF126: 0 | AG126: TRUE
A127: (e) | B127: 3 part time teachers @ Rs. 5,000/- per month per teacher | C127: 0 | D127: 0 | K127: 0 | L127: 0 | N127: 0 | S127: 0 | T127: 0 | U127: 0 | W127: 0 | AB127: 0 | AC127: 0 | AD127: 0 | AF127: 0 | AG127: TRUE
A128: (f) | B128: 1 Full time Accountant @ Rs. 10,000/- per month | C128: 0 | D128: 0 | K128: 0 | L128: 0 | N128: 0 | S128: 0 | T128: 0 | U128: 0 | W128: 0 | AB128: 0 | AC128: 0 | AD128: 0 | AF128: 0 | AG128: TRUE
A129: (g) | B129: 2 Support Staff – (Accountant/ Assistant, Peon, Chowkidar) @ Rs. 5,000/- per month per staff | C129: 0 | D129: 0 | K129: 0 | L129: 0 | N129: 0 | S129: 0 | T129: 0 | U129: 0 | W129: 0 | AB129: 0 | AC129: 0 | AD129: 0 | AF129: 0 | AG129: TRUE
A130: (h) | B130: 1 Head cook @ Rs. 6,000/- per month and upto 2 Asstt. Cooks @ Rs. 4,500/- per month per cook | C130: 0 | D130: 0 | K130: 0 | L130: 0 | N130: 0 | S130: 0 | T130: 0 | U130: 0 | W130: 0 | AB130: 0 | AC130: 0 | AD130: 0 | AF130: 0 | AG130: TRUE
A131: 3.27 | B131: Specific skill training per child @ Rs.1000/- per annum | C131: 0 | D131: 0 | K131: 0 | L131: 0 | N131: 0 | S131: 0 | T131: 0 | U131: 0 | W131: 0 | AB131: 0 | AC131: 0 | AD131: 0 | AF131: 0 | AG131: TRUE
A132: =+A131+0.01 -> 3.28 | B132: Electricity / water charges per child @Rs.1000/- per annum | C132: 0 | D132: 0 | K132: 0 | L132: 0 | N132: 0 | S132: 0 | T132: 0 | U132: 0 | W132: 0 | AB132: 0 | AC132: 0 | AD132: 0 | AF132: 0 | AG132: TRUE
A133: 3.29 | B133: Medical care/contingencies @ Rs.1250/- per child per annum | C133: 0 | D133: 0 | K133: 0 | L133: 0 | N133: 0 | S133: 0 | T133: 0 | U133: 0 | W133: 0 | AB133: 0 | AC133: 0 | AD133: 0 | AF133: 0 | AG133: TRUE
A134: 3.3 | B134: Maintenance @ Rs.750/- per child per annum | C134: 0 | D134: 0 | K134: 0 | L134: 0 | N134: 0 | S134: 0 | T134: 0 | U134: 0 | W134: 0 | AB134: 0 | AC134: 0 | AD134: 0 | AF134: 0 | AG134: TRUE
A135: 3.31 | B135: Miscellaneous @ Rs.750/- per child per annum | C135: 0 | D135: 0 | K135: 0 | L135: 0 | N135: 0 | S135: 0 | T135: 0 | U135: 0 | W135: 0 | AB135: 0 | AC135: 0 | AD135: 0 | AF135: 0 | AG135: TRUE
A136: 3.32 | B136: Preparatory camps @ Rs.200/- per child per annum | C136: 0 | D136: 0 | I136: =IFERROR(G136/C136*100,"") ->  | J136: =IFERROR(H136/D136*100,"") ->  | K136: 0 | L136: 0 | N136: 0 | S136: 0 | T136: =+M136+O136+R136 -> 0 | U136: =+N136+P136+S136 -> 0 | W136: 0 | AB136: 0 | AC136: =+V136+X136+AA136 -> 0 | AD136: =+W136+Y136+AB136 -> 0 | AF136: =+AD136 -> 0 | AG136: =+W136+Y136+AB136=AD136 -> TRUE
A137: 3.33 | B137: P.T.A / school functions @ Rs.200/- per child per annum | C137: 0 | D137: 0 | K137: 0 | L137: 0 | N137: 0 | S137: 0 | T137: 0 | U137: 0 | W137: 0 | AB137: 0 | AC137: 0 | AD137: 0 | AF137: 0 | AG137: TRUE
A138: 3.34 | B138: Provision of Rent @ Rs. 6000/- per child per annum | C138: 0 | D138: 0 | K138: 0 | L138: 0 | N138: 0 | S138: 0 | T138: 0 | U138: 0 | W138: 0 | AB138: 0 | AC138: 0 | AD138: 0 | AF138: 0 | AG138: TRUE
A139: 3.35 | B139: Capacity Building @ Rs.500/- per child per annum | C139: 0 | D139: 0 | K139: 0 | L139: 0 | N139: 0 | S139: 0 | T139: 0 | U139: 0 | W139: 0 | AB139: 0 | AC139: 0 | AD139: 0 | AF139: 0 | AG139: TRUE
A140: 3.36 | B140: Physical / Self Defence training @ Rs. 200/- per child per annum. | C140: 0 | D140: 0 | K140: 0 | L140: 0 | N140: 0 | S140: 0 | T140: 0 | U140: 0 | W140: 0 | AB140: 0 | AC140: 0 | AD140: 0 | AF140: 0 | AG140: TRUE
B141: Sub Total (Recurring) | C141: 0 | D141: 0 | E141: =SUM(E119:E140) -> 0 | F141: =SUM(F119:F140) -> 0 | G141: 0 | H141: 0 | K141: 0 | L141: 0 | M141: 0 | N141: 0 | R141: =SUM(R119:R140) -> 0 | S141: =SUM(S119:S140) -> 0 | T141: 0 | U141: 0 | V141: =SUM(V119:V140) -> 0 | W141: =SUM(W119:W140) -> 0 | X141: 0 | Y141: 0 | AA141: 0 | AB141: 0 | AC141: =+V141+X141+AA141 -> 0 | AD141: 0 | AF141: 0 | AG141: TRUE
B142: Total (Recurring + Non Recurring) | C142: 0 | D142: 0 | E142: =E141+E117 -> 0 | F142: 0 | G142: 0 | H142: 0 | K142: 0 | L142: 0 | M142: 0 | N142: 0 | R142: =R141+R117 -> 0 | S142: =S141+S117 -> 0 | T142: 0 | U142: 0 | V142: =+V141+V117 -> 0 | W142: =+W141+W117 -> 0 | X142: 0 | Y142: 0 | AA142: 0 | AB142: 0 | AC142: 0 | AD142: 0 | AF142: 0 | AG142: TRUE
B143: Total (A + B) | C143: 0 | D143: 0 | E143: =E142+E110 -> 0 | F143: 0 | G143: 0 | H143: 0 | K143: 0 | L143: 0 | M143: =M142+M110 -> 0 | N143: 0 | O143: 0 | P143: 0 | R143: =R142+R110 -> 0 | S143: =S142+S110 -> 0 | T143: 0 | U143: 0 | V143: =+V142+V110 -> 0 | W143: =+W142+W110 -> 0 | X143: 0 | Y143: 0 | Z143: 0 | AA143: 0 | AB143: 0 | AC143: 0 | AD143: 0 | AF143: 0 | AG143: TRUE
A144: 4 | B144: Transport/Escort Facility | T144: 0 | U144: 0 | AC144: 0 | AD144: 0 | AF144: 0 | AG144: TRUE
A145: 4.01 | B145: Children in remote habitation | C145: 0 | D145: 0 | K145: =C145-G145 -> 0 | L145: =D145-H145 -> 0 | Q145: 0.03 | R145: 78 | S145: =R145*Q145 -> 2.34 | T145: 78 | U145: 2.34 | Z145: 0.03 | AA145: 78 | AB145: =AA145*Z145 -> 2.34 | AC145: 78 | AD145: 2.34 | AF145: 2.34 | AG145: TRUE
A146: 4.02 | B146: Urban deprived children/children without adult protection | C146: 0 | D146: 0 | K146: =C146-G146 -> 0 | L146: =D146-H146 -> 0 | Q146: 0.03 | R146: 0 | S146: =R146*Q146 -> 0 | T146: 0 | U146: 0 | Z146: 0.03 | AA146: 0 | AB146: =AA146*Z146 -> 0 | AC146: 0 | AD146: 0 | AF146: 0 | AG146: TRUE
B147: Sub Total | C147: =SUM(C145:C146) -> 0 | D147: 0 | E147: 0 | F147: 0 | G147: 0 | H147: 0 | K147: 0 | L147: 0 | M147: =SUM(M145:M146) -> 0 | N147: =SUM(N145:N146) -> 0 | O147: 0 | P147: 0 | R147: 78 | S147: 2.34 | T147: =+M147+O147+R147 -> 78 | U147: =+N147+P147+S147 -> 2.34 | V147: =SUM(V145:V146) -> 0 | W147: =SUM(W145:W146) -> 0 | X147: 0 | Y147: 0 | AA147: 78 | AB147: 2.34 | AC147: =+V147+X147+AA147 -> 78 | AD147: =+W147+Y147+AB147 -> 2.34 | AG147: TRUE
A148: 5 | B148: Reimbursement of Fee against 25% admission under Section 12(1)(c) of RTE Act 2009 (Entry Level) subject to upper limit of 20% of AWP&B subject to guidelines issued by MHRD | C148: 4696 | D148: 498.57744 | E148: 4696 | F148: 498.57744 | G148: 4696 | H148: 498.57744 | I148: 100 | J148: 100 | K148: =C148-G148 -> 0 | L148: =D148-H148 -> 0 | Q148: 0.11848 | R148: 6722 | S148: =R148*Q148 -> 796.42256 | T148: 6722 | U148: 796.42256 | AA148: 7314 | AB148: 413.522 | AC148: =+V148+X148+AA148 -> 7314 | AD148: =+W148+Y148+AB148 -> 413.522 | AF148: 413.522 | AG148: TRUE
B149: Sub Total | C149: =SUM(C148) -> 4696 | D149: =SUM(D148) -> 498.57744 | E149: =SUM(E148) -> 4696 | F149: 498.57744 | G149: 4696 | H149: 498.57744 | I149: 100 | J149: 100 | K149: 0 | L149: 0 | M149: =+M148 -> 0 | N149: =+N148 -> 0 | O149: =+O148 -> 0 | P149: =+P148 -> 0 | R149: =+R148 -> 6722 | S149: =+S148 -> 796.42256 | T149: =+M149+O149+R149 -> 6722 | U149: =+N149+P149+S149 -> 796.42256 | V149: =+V148 -> 0 | W149: =+W148 -> 0 | X149: 0 | Y149: 0 | AA149: 7314 | AB149: 413.522 | AC149: =+V149+X149+AA149 -> 7314 | AD149: =+W149+Y149+AB149 -> 413.522 | AG149: TRUE
A150: 6 | B150: Special Training for mainstreaming of out of school children | C150: 0 | D150: 0 | G150: 0 | H150: 0 | K150: 0 | L150: 0 | T150: 0 | U150: 0 | AC150: 0 | AD150: 0 | AF150: 0 | AG150: TRUE
A151: 6.01 | B151: Residential (Fresh) | C151: 0 | D151: 0 | T151: 0 | U151: 0 | AC151: 0 | AD151: 0 | AF151: 0 | AG151: TRUE
B152: (a) 12 months | C152: 0 | D152: 0 | G152: 0 | K152: =C152-G152 -> 0 | L152: 0 | N152: 0 | Q152: 0.2 | S152: =R152*Q152 -> 0 | T152: 0 | U152: 0 | W152: 0 | Z152: 0.2 | AB152: =AA152*Z152 -> 0 | AC152: 0 | AD152: 0 | AF152: 0 | AG152: TRUE
B153: (b) 9 months | C153: 0 | D153: 0 | K153: 0 | L153: 0 | N153: 0 | Q153: 0.15 | S153: =R153*Q153 -> 0 | T153: 0 | U153: 0 | W153: 0 | Z153: 0.15 | AB153: =AA153*Z153 -> 0 | AC153: 0 | AD153: 0 | AF153: 0 | AG153: TRUE
B154: (c) 6 months | C154: 0 | D154: 0 | K154: 0 | L154: 0 | N154: 0 | Q154: 0.1 | S154: =R154*Q154 -> 0 | T154: 0 | U154: 0 | W154: 0 | Z154: 0.1 | AB154: =AA154*Z154 -> 0 | AC154: 0 | AD154: 0 | AF154: 0 | AG154: TRUE
B155: (d) 3 months | C155: 0 | D155: 0 | G155: 0 | K155: 0 | L155: 0 | N155: 0 | Q155: 0.05 | S155: =R155*Q155 -> 0 | T155: 0 | U155: 0 | W155: 0 | Z155: 0.05 | AB155: =AA155*Z155 -> 0 | AC155: 0 | AD155: 0 | AF155: 0 | AG155: TRUE
B156: Sub Total | C156: =SUM(C152:C155) -> 0 | D156: 0 | E156: 0 | F156: 0 | G156: 0 | H156: 0 | K156: 0 | L156: 0 | M156: =SUM(M152:M155) -> 0 | N156: =SUM(N152:N155) -> 0 | O156: =SUM(O152:O155) -> 0 | P156: =SUM(P152:P155) -> 0 | R156: =SUM(R152:R155) -> 0 | S156: =SUM(S152:S155) -> 0 | T156: =+M156+O156+R156 -> 0 | U156: =+N156+P156+S156 -> 0 | V156: =SUM(V152:V155) -> 0 | W156: =SUM(W152:W155) -> 0 | X156: 0 | Y156: 0 | AA156: 0 | AB156: 0 | AC156: =+V156+X156+AA156 -> 0 | AD156: =+W156+Y156+AB156 -> 0 | AG156: TRUE
A157: 6.02 | B157: Residential (Continuing from previous year) | T157: 0 | U157: 0 | AC157: 0 | AD157: 0 | AF157: 0 | AG157: TRUE
B158: (a) 12 months | C158: 0 | D158: 0 | K158: =C158-G158 -> 0 | L158: 0 | N158: 0 | Q158: 0.2 | R158: 0 | S158: =R158*Q158 -> 0 | T158: 0 | U158: 0 | W158: 0 | Z158: 0.2 | AA158: 0 | AB158: =AA158*Z158 -> 0 | AC158: 0 | AD158: 0 | AF158: 0 | AG158: TRUE
B159: (b) 9 months | C159: 0 | D159: 0 | K159: 0 | L159: 0 | N159: 0 | Q159: 0.15 | S159: =R159*Q159 -> 0 | T159: 0 | U159: 0 | W159: 0 | Z159: 0.15 | AB159: =AA159*Z159 -> 0 | AC159: 0 | AD159: 0 | AF159: 0 | AG159: TRUE
B160: (c) 6 months | C160: 0 | D160: 0 | K160: 0 | L160: 0 | N160: 0 | Q160: 0.1 | S160: =R160*Q160 -> 0 | T160: 0 | U160: 0 | W160: 0 | Z160: 0.1 | AB160: =AA160*Z160 -> 0 | AC160: 0 | AD160: 0 | AF160: 0 | AG160: TRUE
B161: (d) 3 months | C161: 0 | D161: 0 | K161: 0 | L161: 0 | N161: 0 | Q161: 0.05 | S161: =R161*Q161 -> 0 | T161: 0 | U161: 0 | W161: 0 | Z161: 0.05 | AB161: =AA161*Z161 -> 0 | AC161: 0 | AD161: 0 | AF161: 0 | AG161: TRUE
B162: Sub Total | C162: =SUM(C158:C161) -> 0 | D162: 0 | E162: 0 | F162: 0 | G162: 0 | H162: 0 | K162: 0 | L162: 0 | M162: =SUM(M158:M161) -> 0 | N162: =SUM(N158:N161) -> 0 | O162: =SUM(O158:O161) -> 0 | P162: =SUM(P158:P161) -> 0 | R162: =SUM(R158:R161) -> 0 | S162: =SUM(S158:S161) -> 0 | T162: =+M162+O162+R162 -> 0 | U162: =+N162+P162+S162 -> 0 | V162: =SUM(V158:V161) -> 0 | W162: =SUM(W158:W161) -> 0 | X162: 0 | Y162: 0 | AA162: 0 | AB162: 0 | AC162: =+V162+X162+AA162 -> 0 | AD162: =+W162+Y162+AB162 -> 0 | AG162: TRUE
A163: 6.03 | B163: Non-Residential (Fresh) | T163: 0 | U163: 0 | AC163: 0 | AD163: 0 | AF163: 0 | AG163: TRUE
B164: (a) 12 months | C164: 0 | D164: 0 | K164: =C164-G164 -> 0 | L164: 0 | N164: 0 | Q164: 0.06 | S164: =R164*Q164 -> 0 | T164: 0 | U164: 0 | W164: 0 | Z164: 0.06 | AB164: =AA164*Z164 -> 0 | AC164: 0 | AD164: 0 | AF164: 0 | AG164: TRUE
B165: (b) 9 months | C165: 0 | D165: 0 | K165: 0 | L165: 0 | N165: 0 | Q165: 0.045 | S165: =R165*Q165 -> 0 | T165: 0 | U165: 0 | W165: 0 | Z165: 0.045 | AB165: =AA165*Z165 -> 0 | AC165: 0 | AD165: 0 | AF165: 0 | AG165: TRUE
B166: (c) 6 months | C166: 0 | D166: 0 | K166: 0 | L166: 0 | N166: 0 | Q166: 0.03 | R166: 0 | S166: =R166*Q166 -> 0 | T166: 0 | U166: 0 | W166: 0 | Z166: 0.03 | AA166: 0 | AB166: =AA166*Z166 -> 0 | AC166: 0 | AD166: 0 | AF166: 0 | AG166: TRUE
B167: (d) 3 months | C167: 0 | D167: 0 | K167: 0 | L167: 0 | N167: 0 | Q167: 0.015 | R167: 0 | S167: =R167*Q167 -> 0 | T167: 0 | U167: 0 | W167: 0 | Z167: 0.015 | AA167: 0 | AB167: =AA167*Z167 -> 0 | AC167: 0 | AD167: 0 | AF167: 0 | AG167: TRUE
B168: Sub Total | C168: =SUM(C164:C167) -> 0 | D168: 0 | E168: 0 | F168: 0 | G168: 0 | H168: 0 | K168: 0 | L168: 0 | M168: =SUM(M164:M167) -> 0 | N168: =SUM(N164:N167) -> 0 | O168: =SUM(O164:O167) -> 0 | P168: =SUM(P164:P167) -> 0 | R168: =SUM(R164:R167) -> 0 | S168: =SUM(S164:S167) -> 0 | T168: =+M168+O168+R168 -> 0 | U168: =+N168+P168+S168 -> 0 | V168: =SUM(V164:V167) -> 0 | W168: =SUM(W164:W167) -> 0 | X168: 0 | Y168: 0 | AA168: 0 | AB168: 0 | AC168: =+V168+X168+AA168 -> 0 | AD168: =+W168+Y168+AB168 -> 0 | AG168: TRUE
A169: 6.04 | B169: Non-Residential (Continuing from previous year) | T169: 0 | U169: 0 | AC169: 0 | AD169: 0 | AF169: 0 | AG169: TRUE
B170: (a) 12 months | C170: 0 | D170: 0 | K170: =C170-G170 -> 0 | L170: 0 | N170: 0 | Q170: 0.06 | S170: =R170*Q170 -> 0 | T170: 0 | U170: 0 | W170: 0 | Z170: 0.06 | AB170: =AA170*Z170 -> 0 | AC170: 0 | AD170: 0 | AF170: 0 | AG170: TRUE
B171: (b) 9 months | C171: 0 | D171: 0 | K171: 0 | L171: 0 | N171: 0 | Q171: 0.045 | S171: =R171*Q171 -> 0 | T171: 0 | U171: 0 | W171: 0 | Z171: 0.045 | AB171: =AA171*Z171 -> 0 | AC171: 0 | AD171: 0 | AF171: 0 | AG171: TRUE
B172: (c) 6 months | C172: 0 | D172: 0 | K172: 0 | L172: 0 | N172: 0 | Q172: 0.03 | S172: =R172*Q172 -> 0 | T172: 0 | U172: 0 | W172: 0 | Z172: 0.03 | AB172: =AA172*Z172 -> 0 | AC172: 0 | AD172: 0 | AF172: 0 | AG172: TRUE
B173: (d) 3 months | C173: 0 | D173: 0 | K173: 0 | L173: 0 | N173: 0 | Q173: 0.015 | S173: =R173*Q173 -> 0 | T173: 0 | U173: 0 | W173: 0 | Z173: 0.015 | AB173: =AA173*Z173 -> 0 | AC173: 0 | AD173: 0 | AF173: 0 | AG173: TRUE
B174: Sub Total | C174: =SUM(C170:C173) -> 0 | D174: 0 | E174: 0 | F174: 0 | G174: 0 | H174: 0 | K174: 0 | L174: 0 | M174: =SUM(M170:M173) -> 0 | N174: =SUM(N170:N173) -> 0 | O174: =SUM(O170:O173) -> 0 | P174: =SUM(P170:P173) -> 0 | R174: =SUM(R170:R173) -> 0 | S174: =SUM(S170:S173) -> 0 | T174: =+M174+O174+R174 -> 0 | U174: =+N174+P174+S174 -> 0 | V174: =SUM(V170:V173) -> 0 | W174: =SUM(W170:W173) -> 0 | X174: 0 | Y174: 0 | AA174: 0 | AB174: 0 | AC174: =+V174+X174+AA174 -> 0 | AD174: =+W174+Y174+AB174 -> 0 | AG174: TRUE
A175: 6.05 | B175: Madarasa/Maktab | T175: 0 | U175: 0 | AC175: 0 | AD175: 0 | AF175: 0 | AG175: TRUE
B176: (a) 12 months | C176: 0 | D176: 0 | K176: =C176-G176 -> 0 | L176: 0 | N176: 0 | Q176: 0.2 | S176: =R176*Q176 -> 0 | T176: 0 | U176: 0 | W176: 0 | Z176: 0.06 | AB176: =AA176*Z176 -> 0 | AC176: 0 | AD176: 0 | AF176: 0 | AG176: TRUE
B177: (b) 9 months | C177: 0 | D177: 0 | G177: 0 | K177: 0 | L177: 0 | N177: 0 | Q177: 0.045 | R177: 0 | S177: =R177*Q177 -> 0 | T177: 0 | U177: 0 | W177: 0 | Z177: 0.045 | AA177: 0 | AB177: =AA177*Z177 -> 0 | AC177: 0 | AD177: 0 | AF177: 0 | AG177: TRUE
B178: (c) 6 months | C178: 0 | D178: 0 | K178: 0 | L178: 0 | N178: 0 | Q178: 0.1 | S178: =R178*Q178 -> 0 | T178: 0 | U178: 0 | W178: 0 | Z178: 0.03 | AB178: =AA178*Z178 -> 0 | AC178: 0 | AD178: 0 | AF178: 0 | AG178: TRUE
B179: (d) 3 months | C179: 0 | D179: 0 | K179: 0 | L179: 0 | Q179: 0.05 | S179: =R179*Q179 -> 0 | T179: 0 | U179: 0 | Z179: 0.015 | AB179: =AA179*Z179 -> 0 | AC179: 0 | AD179: 0 | AF179: 0 | AG179: TRUE
B180: Sub Total | C180: =SUM(C176:C179) -> 0 | D180: 0 | E180: 0 | F180: 0 | G180: 0 | H180: 0 | K180: 0 | L180: 0 | M180: =SUM(M176:M179) -> 0 | N180: =SUM(N176:N179) -> 0 | O180: =SUM(O176:O179) -> 0 | P180: =SUM(P176:P179) -> 0 | R180: =SUM(R176:R179) -> 0 | S180: =SUM(S176:S179) -> 0 | T180: =+M180+O180+R180 -> 0 | U180: =+N180+P180+S180 -> 0 | V180: =SUM(V176:V179) -> 0 | W180: =SUM(W176:W179) -> 0 | X180: 0 | Y180: 0 | AA180: 0 | AB180: 0 | AC180: =+V180+X180+AA180 -> 0 | AD180: =+W180+Y180+AB180 -> 0 | AG180: TRUE
A181: 6.06 | B181: Seasonal Hostel (Residential) | T181: 0 | U181: 0 | AC181: 0 | AD181: 0 | AF181: 0 | AG181: TRUE
B182: (a) 12 months | C182: 0 | D182: 0 | K182: =C182-G182 -> 0 | L182: 0 | N182: 0 | S182: =R182*Q182 -> 0 | T182: 0 | U182: 0 | W182: 0 | AB182: =AA182*Z182 -> 0 | AC182: 0 | AD182: 0 | AF182: 0 | AG182: TRUE
B183: (b) 9 months | C183: 0 | D183: 0 | K183: 0 | L183: 0 | N183: 0 | R183: 0 | S183: =R183*Q183 -> 0 | T183: 0 | U183: 0 | W183: 0 | AA183: 0 | AB183: =AA183*Z183 -> 0 | AC183: 0 | AD183: 0 | AF183: 0 | AG183: TRUE
B184: (c) 6 months | C184: 0 | D184: 0 | K184: 0 | L184: 0 | N184: 0 | Q184: 0.1 | S184: =R184*Q184 -> 0 | T184: 0 | U184: 0 | W184: 0 | Z184: 0.1 | AB184: =AA184*Z184 -> 0 | AC184: 0 | AD184: 0 | AF184: 0 | AG184: TRUE
B185: (d) 3 months | C185: 0 | D185: 0 | K185: 0 | L185: 0 | N185: 0 | S185: =R185*Q185 -> 0 | T185: 0 | U185: 0 | W185: 0 | AB185: =AA185*Z185 -> 0 | AC185: 0 | AD185: 0 | AF185: 0 | AG185: TRUE
B186: Sub Total | C186: =SUM(C183:C185) -> 0 | D186: =SUM(D183:D185) -> 0 | E186: =SUM(E183:E185) -> 0 | F186: 0 | G186: 0 | H186: 0 | K186: 0 | L186: 0 | M186: =SUM(M182:M185) -> 0 | N186: =SUM(N182:N185) -> 0 | O186: =SUM(O182:O185) -> 0 | P186: =SUM(P182:P185) -> 0 | R186: =SUM(R182:R185) -> 0 | S186: =SUM(S182:S185) -> 0 | T186: =+M186+O186+R186 -> 0 | U186: =+N186+P186+S186 -> 0 | V186: =SUM(V182:V185) -> 0 | W186: =SUM(W182:W185) -> 0 | X186: 0 | Y186: 0 | AA186: 0 | AB186: 0 | AC186: =+V186+X186+AA186 -> 0 | AD186: =+W186+Y186+AB186 -> 0 | AG186: TRUE
A187: 6.07 | B187: Seasonal Hostel (Non Residential) | C187: 0 | D187: 0 | T187: 0 | U187: 0 | AC187: 0 | AD187: 0 | AF187: 0 | AG187: TRUE
B188: (a) 12 months | C188: 0 | D188: 0 | K188: =C188-G188 -> 0 | L188: 0 | N188: 0 | S188: =R188*Q188 -> 0 | T188: 0 | U188: 0 | W188: 0 | AB188: =AA188*Z188 -> 0 | AC188: 0 | AD188: 0 | AF188: 0 | AG188: TRUE
B189: (b) 9 months | C189: 0 | D189: 0 | K189: 0 | L189: 0 | N189: 0 | S189: =R189*Q189 -> 0 | T189: 0 | U189: 0 | W189: 0 | AB189: =AA189*Z189 -> 0 | AC189: 0 | AD189: 0 | AF189: 0 | AG189: TRUE
B190: (c) 6 months | C190: 0 | D190: 0 | K190: 0 | L190: 0 | N190: 0 | T190: 0 | U190: 0 | W190: 0 | AC190: 0 | AD190: 0 | AF190: 0 | AG190: TRUE
B191: (d) 3 months | C191: 0 | D191: 0 | K191: 0 | L191: 0 | N191: 0 | S191: =R191*Q191 -> 0 | T191: 0 | U191: 0 | W191: 0 | AB191: =AA191*Z191 -> 0 | AC191: 0 | AD191: 0 | AF191: 0 | AG191: TRUE
B192: Sub Total | C192: =SUM(C188:C191) -> 0 | D192: 0 | E192: 0 | F192: 0 | G192: 0 | H192: 0 | K192: 0 | L192: 0 | M192: =SUM(M188:M191) -> 0 | N192: =SUM(N188:N191) -> 0 | O192: =SUM(O188:O191) -> 0 | P192: =SUM(P188:P191) -> 0 | Q192: =SUM(Q188:Q191) -> 0 | R192: =SUM(R188:R191) -> 0 | S192: =SUM(S188:S191) -> 0 | T192: =+M192+O192+R192 -> 0 | U192: =+N192+P192+S192 -> 0 | V192: =SUM(V188:V191) -> 0 | W192: =SUM(W188:W191) -> 0 | X192: 0 | Y192: 0 | Z192: 0 | AA192: 0 | AB192: 0 | AC192: =+V192+X192+AA192 -> 0 | AD192: =+W192+Y192+AB192 -> 0 | AF192: 0 | AG192: TRUE
B193: Total | C193: =C192+C186+C180+C174+C168+C162+C156 -> 0 | D193: 0 | E193: 0 | F193: 0 | G193: 0 | H193: 0 | K193: 0 | L193: 0 | M193: =+M192+M186+M180+M174+M168+M162+M156 -> 0 | N193: =+N192+N186+N180+N174+N168+N162+N156 -> 0 | O193: =+O192+O186+O180+O174+O168+O162+O156 -> 0 | P193: =+P192+P186+P180+P174+P168+P162+P156 -> 0 | Q193: =+Q192+Q186+Q180+Q174+Q168+Q162+Q156 -> 0 | R193: =+R192+R186+R180+R174+R168+R162+R156 -> 0 | S193: =+S192+S186+S180+S174+S168+S162+S156 -> 0 | T193: =+M193+O193+R193 -> 0 | U193: =+N193+P193+S193 -> 0 | V193: =+V192+V186+V180+V174+V168+V162+V156 -> 0 | W193: =+W192+W186+W180+W174+W168+W162+W156 -> 0 | X193: 0 | Y193: 0 | Z193: 0 | AA193: 0 | AB193: 0 | AC193: =+V193+X193+AA193 -> 0 | AD193: =+W193+Y193+AB193 -> 0 | AG193: TRUE
A194: II | B194: RETENTION | T194: 0 | U194: 0 | AC194: 0 | AD194: 0 | AF194: 0 | AG194: TRUE
A195: 7 | B195: Free Text Books | T195: 0 | U195: 0 | AC195: 0 | AD195: 0 | AF195: 0 | AG195: TRUE
A196: 7.01 | B196: Free Text Books (P) | C196: 0 | D196: 0 | T196: 0 | U196: 0 | AC196: 0 | AD196: 0 | AF196: 0 | AG196: TRUE
B197: (a) Class I & II | C197: 958 | D197: 0.87178 | E197: =C197 -> 958 | F197: =D197 -> 0.87178 | G197: =C197 -> 958 | H197: =D197 -> 0.87178 | I197: 100 | J197: 100 | K197: =C197-G197 -> 0 | L197: 0 | N197: 0 | Q197: 0.0015 | R197: 832 | S197: =R197*Q197 -> 1.248 | T197: 832 | U197: 1.248 | W197: 0 | Z197: 0.0015 | AA197: 832 | AB197: =AA197*Z197 -> 1.248 | AC197: 832 | AD197: 1.248 | AF197: 1.248 | AG197: TRUE
B198: (b) Braille Books Class I & II | C198: 4 | D198: 0.006 | E198: =C198 -> 4 | G198: =C198 -> 4 | I198: 100 | J198: 0 | K198: 0 | L198: 0.006 | N198: 0 | Q198: 0.0015 | R198: 5 | S198: =+Q198*R198 -> 0.0075 | T198: 5 | U198: 0.0075 | W198: 0 | Z198: 0.0015 | AA198: 5 | AB198: =+Z198*AA198 -> 0.0075 | AC198: 5 | AD198: 0.0075 | AF198: 0.0075 | AG198: TRUE
B199: (c) Large Print Books Class I & II | C199: 25 | D199: 0.0375 | E199: 25 | G199: 25 | I199: 100 | J199: 0 | K199: 0 | L199: 0.0375 | N199: 0 | Q199: 0.0015 | R199: 14 | S199: =+Q199*R199 -> 0.021 | T199: =+R199 -> 14 | U199: =+S199 -> 0.021 | W199: 0 | Z199: 0.0015 | AA199: 14 | AB199: =+Z199*AA199 -> 0.021 | AC199: =+AA199 -> 14 | AD199: =+AB199 -> 0.021 | AF199: 0.021 | AG199: TRUE
B200: (d) Class III to V | C200: 1473 | D200: 1.50246 | E200: 1473 | F200: =D200 -> 1.50246 | G200: 1473 | H200: =D200 -> 1.50246 | I200: =IFERROR(G200/C200*100,"") -> 100 | J200: =IFERROR(H200/D200*100,"") -> 100 | K200: 0 | L200: 0 | N200: 0 | Q200: 0.0015 | R200: 1587 | S200: 2.3805 | T200: =+M200+O200+R200 -> 1587 | U200: =+N200+P200+S200 -> 2.3805 | W200: 0 | Z200: 0.0015 | AA200: 1587 | AB200: 2.3805 | AC200: =+V200+X200+AA200 -> 1587 | AD200: =+W200+Y200+AB200 -> 2.3805 | AF200: =+AD200 -> 2.3805 | AG200: =+W200+Y200+AB200=AD200 -> TRUE
B201: (e) Braille Books Class III to V | C201: 16 | D201: 0.024 | E201: 16 | G201: 16 | I201: 100 | J201: 0 | K201: 0 | L201: 0.024 | N201: 0 | Q201: 0.0015 | R201: 11 | S201: =+Q201*R201 -> 0.0165 | T201: =+R201 -> 11 | U201: =+S201 -> 0.0165 | W201: 0 | Z201: 0.0015 | AA201: 11 | AB201: =+Z201*AA201 -> 0.0165 | AC201: =+AA201 -> 11 | AD201: =+AB201 -> 0.0165 | AF201: 0.0165 | AG201: TRUE
... 315 more rows

Sheet BengaluruUrban
A1: Name of the District: Bengaluru Urban | C1: 2016-17 | M1: Outlay Proposed for 2017-18 | V1: Outlay Recommended for 2017-18
A2: S.No. | B2: Activity | C2: Out Lay Approved for 2016-17 (including spill over) | E2: Expenditure as on DEC, 2016 (As per Vidyavahini Software) | G2: Anticipated Achievement till 31-3-2017 | K2: Savings | M2: Spill Over | O2: Deferred laibility of 2016-2017 | Q2: Fresh | T2: Total | V2: Spill Over | X2: Deferred laibility of 2016-2017 | Z2: Fresh | AC2: Total
C3: Phy. | D3: Fin. | E3: Phy. | F3: Fin. | G3: Phy. | H3: Fin. | I3: Phy. (%) | J3: Fin. (%) | K3: Phy. | L3: Fin. | M3: Phy. | N3: Fin. | O3: Phy. | P3: Fin. | Q3: Unit Cost | R3: Phy. | S3: Fin. | T3: Phy. | U3: Fin. | V3: Phy. | W3: Fin. | X3: Phy. | Y3: Fin. | Z3: Unit Cost | AA3: Phy. | AB3: Fin. | AC3: Phy. | AD3: Fin.
B5: SSA
A6: 1 | B6: Opening of New Schools | C6: 0 | D6: 0
A7: 1.01 | B7: New Primary School | C7: 0 | D7: 0 | I7: =IFERROR(G7/C7*100,"") ->  | J7: =IFERROR(H7/D7*100,"") ->  | K7: =C7-G7 -> 0 | L7: =D7-H7 -> 0 | S7: =Q7*R7 -> 0 | T7: =+M7+O7+R7 -> 0 | U7: =+N7+P7+S7 -> 0 | AB7: =Z7*AA7 -> 0 | AC7: =+V7+X7+AA7 -> 0 | AD7: =+W7+Y7+AB7 -> 0 | AF7: =+AD7 -> 0 | AG7: =+W7+Y7+AB7=AD7 -> TRUE
A8: 1.02 | B8: Upgradation of PS to UPS | C8: 0 | D8: 0 | I8: =IFERROR(G8/C8*100,"") ->  | J8: =IFERROR(H8/D8*100,"") ->  | K8: =C8-G8 -> 0 | L8: 0 | S8: =R8*Q8 -> 0 | T8: =+M8+O8+R8 -> 0 | U8: =+N8+P8+S8 -> 0 | AB8: =AA8*Z8 -> 0 | AC8: =+V8+X8+AA8 -> 0 | AD8: =+W8+Y8+AB8 -> 0 | AF8: =+AD8 -> 0 | AG8: =+W8+Y8+AB8=AD8 -> TRUE
A9: 1.03 | B9: Composite Schools | C9: 0 | D9: 0 | K9: 0 | L9: 0 | S9: 0 | T9: 0 | U9: 0 | AB9: 0 | AC9: 0 | AD9: 0 | AF9: 0 | AG9: TRUE
A10: 1.04 | B10: Residential schools for specific category of children | C10: 0 | D10: 0 | K10: 0 | L10: 0 | S10: 0 | T10: 0 | U10: 0 | AB10: 0 | AC10: 0 | AD10: 0 | AF10: 0 | AG10: TRUE
A11: 1.05 | B11: Residential Hostel | C11: 0 | D11: 0 | K11: 0 | L11: 0 | S11: 0 | T11: 0 | U11: 0 | AB11: 0 | AC11: 0 | AD11: 0 | AF11: 0 | AG11: TRUE
A12: 1.06 | B12: Integration of Class V with primary schools | C12: 0 | D12: 0 | K12: 0 | L12: 0 | S12: 0 | T12: 0 | U12: 0 | AB12: 0 | AC12: 0 | AD12: 0 | AF12: 0 | AG12: TRUE
A13: 1.07 | B13: Integration of Class VIII with upper primary schools | C13: 0 | D13: 0 | K13: 0 | L13: 0 | S13: 0 | T13: 0 | U13: 0 | AB13: 0 | AC13: 0 | AD13: 0 | AF13: 0 | AG13: TRUE
A14: 2 | B14: Residential Schools for specific category of children | T14: 0 | U14: 0 | AC14: 0 | AD14: 0 | AG14: TRUE
B15: 50 children | T15: 0 | U15: 0 | AC15: 0 | AD15: 0 | AG15: TRUE
B16: Non-recurring (one time grant) | T16: 0 | U16: 0 | AC16: 0 | AD16: 0 | AG16: TRUE
A17: 2.01 | B17: Furniture/ Equipment (including kitchen) | C17: 0 | D17: 0 | K17: =C17-G17 -> 0 | L17: 0 | S17: =R17*Q17 -> 0 | T17: 0 | U17: 0 | AB17: =AA17*Z17 -> 0 | AC17: 0 | AD17: 0 | AF17: 0 | AG17: TRUE
A18: 2.02 | B18: TLM and equipment including library books | C18: 0 | D18: 0 | K18: 0 | L18: 0 | S18: =R18*Q18 -> 0 | T18: 0 | U18: 0 | AB18: =AA18*Z18 -> 0 | AC18: 0 | AD18: 0 | AF18: 0 | AG18: TRUE
A19: 2.03 | B19: Bedding (new) | C19: 0 | D19: 0 | K19: 0 | L19: 0 | S19: =R19*Q19 -> 0 | T19: 0 | U19: 0 | AB19: =AA19*Z19 -> 0 | AC19: 0 | AD19: 0 | AF19: 0 | AG19: TRUE
A20: 2.04 | B20: Replacement of bedding (once in 3 years) | C20: 0 | D20: 0 | K20: 0 | L20: 0 | S20: =R20*Q20 -> 0 | T20: 0 | U20: 0 | AB20: =AA20*Z20 -> 0 | AC20: 0 | AD20: 0 | AF20: 0 | AG20: TRUE
B21: Sub Total (Non Recurring) | C21: 0 | D21: 0 | E21: =SUM(E7:E20) -> 0 | F21: =SUM(F7:F20) -> 0 | G21: 0 | H21: 0 | K21: 0 | L21: 0 | M21: 0 | N21: 0 | O21: 0 | P21: 0 | R21: =SUM(R7:R20) -> 0 | S21: =SUM(S7:S20) -> 0 | T21: 0 | U21: 0 | V21: =SUM(V7:V20) -> 0 | W21: =SUM(W7:W20) -> 0 | X21: 0 | Y21: 0 | AA21: 0 | AB21: 0 | AC21: 0 | AD21: 0 | AE21: 0 | AF21: 0 | AG21: TRUE
B22: Recurring (50 children) | T22: 0 | U22: 0 | AC22: 0 | AD22: 0 | AF22: 0 | AG22: TRUE
A23: 2.05 | B23: Maintenance per child Per month @ Rs.1500/- | C23: 0 | D23: 0 | K23: =C23-G23 -> 0 | L23: 0 | N23: 0 | Q23: 0.18 | S23: =R23*Q23 -> 0 | T23: 0 | U23: 0 | W23: 0 | AB23: =AA23*Z23 -> 0 | AC23: 0 | AD23: 0 | AF23: 0 | AG23: TRUE
A24: 2.06 | B24: Stipend per child per month @ Rs.100/- | C24: 0 | D24: 0 | K24: 0 | L24: 0 | N24: 0 | Q24: 0.012 | S24: =R24*Q24 -> 0 | T24: 0 | U24: 0 | W24: 0 | AB24: =AA24*Z24 -> 0 | AC24: 0 | AD24: 0 | AF24: 0 | AG24: TRUE
A25: 2.07 | B25: Supplementary TLM, Stationery and other educational material @Rs.1000/- per child per annum | C25: 0 | D25: 0 | K25: 0 | L25: 0 | N25: 0 | Q25: 0.01 | S25: =R25*Q25 -> 0 | T25: 0 | U25: 0 | W25: 0 | AB25: =AA25*Z25 -> 0 | AC25: 0 | AD25: 0 | AF25: 0 | AG25: TRUE
A26: 2.08 | B26: Salaries | T26: 0 | U26: 0 | AC26: 0 | AD26: 0 | AF26: 0 | AG26: TRUE
A27: (a) | B27: 1 Warden @ Rs.25000/- per month | C27: 0 | D27: 0 | K27: 0 | L27: 0 | N27: 0 | Q27: 3 | S27: =R27*Q27 -> 0 | T27: 0 | U27: 0 | W27: 0 | AB27: =AA27*Z27 -> 0 | AC27: 0 | AD27: 0 | AF27: 0 | AG27: TRUE
A28: (b ) | B28: 4 Fulltime teachers as per RTE Norms @ Rs. 20,000/- per month per teacher | C28: 0 | D28: 0 | K28: 0 | L28: 0 | N28: 0 | Q28: 9.6 | S28: 0 | T28: 0 | U28: 0 | W28: 0 | AB28: 0 | AC28: 0 | AD28: 0 | AF28: 0 | AG28: TRUE
A29: (c) | B29: 2 Urdu Teachers (only for Blocks with muslim population above 20% and select urban areas) @ Rs.12,000/- per month per teacher. | C29: 0 | D29: 0 | K29: 0 | L29: 0 | N29: 0 | Q29: 1.44 | S29: 0 | T29: 0 | U29: 0 | W29: 0 | AB29: 0 | AC29: 0 | AD29: 0 | AF29: 0 | AG29: TRUE
A30: (d) | B30: 3 Part time teachers @ Rs.5,000/- per month per teacher | C30: 0 | D30: 0 | K30: 0 | L30: 0 | N30: 0 | Q30: 1.55 | S30: 0 | T30: 0 | U30: 0 | W30: 0 | AB30: 0 | AC30: 0 | AD30: 0 | AF30: 0 | AG30: TRUE
A31: (e ) | B31: 1 Full time Accountant @ Rs. 10,000/- per month | C31: 0 | D31: 0 | K31: 0 | L31: 0 | N31: 0 | Q31: 1.2 | S31: 0 | T31: 0 | U31: 0 | W31: 0 | AB31: 0 | AC31: 0 | AD31: 0 | AF31: 0 | AG31: TRUE
A32: (f) | B32: 2 Support staff - (Accountant/Assistant, Peon, Chowkidar) @ Rs. 5,000/- per month per staff | C32: 0 | D32: 0 | K32: 0 | L32: 0 | N32: 0 | Q32: 1.2 | S32: 0 | T32: 0 | U32: 0 | W32: 0 | AB32: 0 | AC32: 0 | AD32: 0 | AF32: 0 | AG32: TRUE
A33: (g) | B33: 1 Head Cook @ Rs. 6,000/- per month and upto 2 Asstt. Cooks @ Rs. 4,500/- per month per cook | C33: 0 | D33: 0 | K33: 0 | L33: 0 | N33: 0 | Q33: 1.8 | S33: 0 | T33: 0 | U33: 0 | W33: 0 | AB33: 0 | AC33: 0 | AD33: 0 | AF33: 0 | AG33: TRUE
A34: 2.09 | B34: Specific Skill training @ Rs.1000/- per annum per child | C34: 0 | D34: 0 | K34: 0 | L34: 0 | N34: 0 | Q34: 0.01 | S34: 0 | T34: 0 | U34: 0 | W34: 0 | AB34: 0 | AC34: 0 | AD34: 0 | AF34: 0 | AG34: TRUE
A35: 2.1 | B35: Electricity / water charges @ Rs. 1000/- per annum per child | C35: 0 | D35: 0 | K35: 0 | L35: 0 | N35: 0 | Q35: 0.01 | S35: 0 | T35: 0 | U35: 0 | W35: 0 | AB35: 0 | AC35: 0 | AD35: 0 | AF35: 0 | AG35: TRUE
A36: 2.11 | B36: Medical care/contingencies @ Rs.1250/- per annum per child | C36: 0 | D36: 0 | K36: 0 | L36: 0 | N36: 0 | Q36: 0.0125 | S36: 0 | T36: 0 | U36: 0 | W36: 0 | AB36: 0 | AC36: 0 | AD36: 0 | AF36: 0 | AG36: TRUE
A37: 2.12 | B37: Maintenance @ Rs. 750/- per child per annum | C37: 0 | D37: 0 | K37: 0 | L37: 0 | N37: 0 | Q37: 0.0075 | S37: 0 | T37: 0 | U37: 0 | W37: 0 | AB37: 0 | AC37: 0 | AD37: 0 | AF37: 0 | AG37: TRUE
A38: 2.13 | B38: Miscellaneous @ Rs. 750/- per child per annum | C38: 0 | D38: 0 | K38: 0 | L38: 0 | N38: 0 | Q38: 0.0075 | S38: 0 | T38: 0 | U38: 0 | W38: 0 | AB38: 0 | AC38: 0 | AD38: 0 | AF38: 0 | AG38: TRUE
A39: 2.14 | B39: Preparatory camps @ Rs. 300/- per child per annum | C39: 0 | D39: 0 | K39: 0 | L39: 0 | N39: 0 | Q39: 0.003 | S39: 0 | T39: 0 | U39: 0 | W39: 0 | AB39: 0 | AC39: 0 | AD39: 0 | AF39: 0 | AG39: TRUE
A40: 2.15 | B40: P.T.A / school functions @ Rs. 300/- per child per annum | C40: 0 | D40: 0 | K40: 0 | L40: 0 | N40: 0 | Q40: 0.003 | S40: 0 | T40: 0 | U40: 0 | W40: 0 | AB40: 0 | AC40: 0 | AD40: 0 | AF40: 0 | AG40: TRUE
A41: 2.16 | B41: Provision of Rent @ Rs. 10,000/- per child per annum | C41: 0 | D41: 0 | K41: 0 | L41: 0 | N41: 0 | S41: 0 | T41: 0 | U41: 0 | W41: 0 | AB41: 0 | AC41: 0 | AD41: 0 | AF41: 0 | AG41: TRUE
A42: 2.17 | B42: Capacity Building @ Rs. 500/- per child per annum | C42: 0 | D42: 0 | K42: 0 | L42: 0 | N42: 0 | Q42: 0.005 | S42: 0 | T42: 0 | U42: 0 | W42: 0 | AB42: 0 | AC42: 0 | AD42: 0 | AF42: 0 | AG42: TRUE
A43: 2.18 | B43: Physical / Self Defence Training @ Rs.200/- per child per annum | C43: 0 | D43: 0 | K43: 0 | L43: 0 | N43: 0 | Q43: 0.002 | S43: 0 | T43: 0 | U43: 0 | W43: 0 | AB43: 0 | AC43: 0 | AD43: 0 | AF43: 0 | AG43: TRUE
B44: Sub Total (Recurring) | C44: =SUM(C23:C43) -> 0 | D44: 0 | E44: 0 | F44: 0 | G44: 0 | H44: 0 | K44: 0 | L44: 0 | M44: 0 | N44: 0 | R44: =SUM(R23:R43) -> 0 | S44: =SUM(S23:S43) -> 0 | T44: 0 | U44: 0 | V44: =SUM(V23:V43) -> 0 | W44: =SUM(W23:W43) -> 0 | X44: 0 | Y44: 0 | AA44: 0 | AB44: 0 | AC44: =+V44+X44+AA44 -> 0 | AD44: =+W44+Y44+AB44 -> 0 | AG44: TRUE
B45: Total (Non Recurring + Recurring) | C45: =C44+C21 -> 0 | D45: 0 | E45: 0 | F45: 0 | G45: 0 | H45: 0 | K45: 0 | L45: 0 | M45: 0 | N45: 0 | R45: =R44+R21 -> 0 | S45: =S44+S21 -> 0 | T45: 0 | U45: 0 | V45: =+V44+V21 -> 0 | W45: =+W44+W21 -> 0 | X45: 0 | Y45: 0 | Z45: 0 | AA45: 0 | AB45: 0 | AC45: =+V45+X45+AA45 -> 0 | AD45: =+W45+Y45+AB45 -> 0 | AG45: TRUE
B46: 100 children | T46: 0 | U46: 0 | AC46: 0 | AD46: 0 | AG46: TRUE
B47: Non-recurring (one time grant) | T47: 0 | U47: 0 | AC47: 0 | AD47: 0 | AG47: TRUE
A48: 2.19 | B48: Furniture / Equipment (including kitchen equipment) | C48: 0 | D48: 0 | K48: =C48-G48 -> 0 | L48: 0 | S48: =R48*Q48 -> 0 | T48: 0 | U48: 0 | AB48: =AA48*Z48 -> 0 | AC48: 0 | AD48: 0 | AF48: 0 | AG48: TRUE
A49: 2.2 | B49: TLM and equipment including library books (New) | C49: 0 | D49: 0 | K49: 0 | L49: 0 | S49: =R49*Q49 -> 0 | T49: 0 | U49: 0 | AB49: =AA49*Z49 -> 0 | AC49: 0 | AD49: 0 | AF49: 0 | AG49: TRUE
A50: 2.21 | B50: Bedding (New) | C50: 0 | D50: 0 | K50: 0 | L50: 0 | S50: =R50*Q50 -> 0 | T50: 0 | U50: 0 | AB50: =AA50*Z50 -> 0 | AC50: 0 | AD50: 0 | AF50: 0 | AG50: TRUE
A51: 2.22 | B51: Replacement of bedding (once in 3 years) | C51: 100 | D51: 0.75 | E51: 100 | F51: 0.75 | G51: 100 | H51: 0.75 | I51: 100 | J51: 100 | K51: 0 | L51: 0 | R51: 0 | S51: =R51*Q51 -> 0 | T51: 0 | U51: 0 | AA51: 0 | AB51: =AA51*Z51 -> 0 | AC51: 0 | AD51: 0 | AF51: 0 | AG51: TRUE
B52: Sub Total Non-recurring | C52: =SUM(C48:C51) -> 100 | D52: 0.75 | E52: 100 | F52: 0.75 | G52: 100 | H52: 0.75 | I52: 100 | J52: 100 | K52: =SUM(K48:K51) -> 0 | L52: =SUM(L48:L51) -> 0 | M52: 0 | N52: 0 | R52: =SUM(R48:R51) -> 0 | S52: =SUM(S48:S51) -> 0 | T52: 0 | U52: 0 | V52: =SUM(V48:V51) -> 0 | W52: =SUM(W48:W51) -> 0 | X52: 0 | Y52: 0 | AA52: 0 | AB52: 0 | AC52: =+V52+X52+AA52 -> 0 | AD52: =+W52+Y52+AB52 -> 0 | AG52: TRUE
B53: Recurring | T53: 0 | U53: 0 | AC53: 0 | AD53: 0 | AG53: TRUE
A54: 2.23 | B54: Maintenance per child per month @ Rs. 1500/- | C54: 100 | D54: 18 | E54: 100 | F54: 18 | G54: 100 | H54: 18 | I54: 100 | J54: 100 | K54: =C54-G54 -> 0 | L54: 0 | N54: 0 | Q54: 0.18 | R54: 100 | S54: =R54*Q54 -> 18 | T54: 100 | U54: 18 | W54: 0 | Z54: 0.18 | AA54: 100 | AB54: =AA54*Z54 -> 18 | AC54: 100 | AD54: 18 | AF54: 18 | AG54: TRUE
A55: 2.24 | B55: Stipend per child per month @ Rs.100/- | C55: 100 | D55: 1.2 | E55: 100 | F55: 1.2 | G55: 100 | H55: 1.2 | I55: 100 | J55: 100 | K55: 0 | L55: 0 | N55: 0 | Q55: 0.012 | R55: 100 | S55: =R55*Q55 -> 1.2 | T55: 100 | U55: 1.2 | W55: 0 | Z55: 0.012 | AA55: 100 | AB55: =AA55*Z55 -> 1.2 | AC55: 100 | AD55: 1.2 | AF55: 1.2 | AG55: TRUE
A56: 2.25 | B56: Supplementary TLM, Stationery and other educational material per child @1000/- per annum | C56: 100 | D56: 1 | E56: 100 | F56: 1 | G56: 100 | H56: 1 | I56: 100 | J56: 100 | K56: 0 | L56: 0 | N56: 0 | Q56: 0.01 | R56: 100 | S56: =R56*Q56 -> 1 | T56: 100 | U56: 1 | W56: 0 | Z56: 0.01 | AA56: 100 | AB56: =AA56*Z56 -> 1 | AC56: 100 | AD56: 1 | AF56: 1 | AG56: TRUE
A57: =+A56+0.01 -> 2.26 | B57: Salaries | T57: 0 | U57: 0 | AC57: 0 | AD57: 0 | AF57: 0 | AG57: TRUE
A58: (a) | B58: 1 Warden @ Rs. 25,000/- per month | C58: 1 | D58: 3 | E58: 1 | F58: 3 | G58: 1 | I58: 100 | J58: 0 | K58: 0 | L58: 3 | N58: 0 | Q58: 3 | R58: 1 | S58: =R58*Q58 -> 3 | T58: 1 | U58: 3 | W58: 0 | Z58: 3 | AA58: 1 | AB58: =AA58*Z58 -> 3 | AC58: 1 | AD58: 3 | AF58: 3 | AG58: TRUE
A59: (b) | B59: 1 head teacher @ Rs. 25,000/- per month in case the enrollment exceeds 100 | K59: 0 | L59: 0 | N59: 0 | R59: 1 | S59: 0 | T59: 1 | U59: 0 | W59: 0 | AA59: 1 | AB59: 0 | AC59: 1 | AD59: 0 | AF59: 0 | AG59: TRUE
A60: (c) | B60: 4 - 5 Full time teachers as per RTE norms @ Rs. 20,000/- per month per teacher | C60: 1 | D60: 9.6 | E60: 1 | F60: 9.6 | G60: 1 | H60: 9.6 | I60: 100 | J60: 100 | K60: 0 | L60: 0 | N60: 0 | Q60: 9.6 | R60: 1 | S60: 9.6 | T60: 1 | U60: 9.6 | W60: 0 | Z60: 9.6 | AA60: 1 | AB60: 9.6 | AC60: 1 | AD60: 9.6 | AF60: 9.6 | AG60: TRUE
A61: (d) | B61: 2 Urdu Teachers (only for blocks with muslim population above 20% and select urban areas), if required @ Rs. 12,000/- per month per teacher | C61: 0 | D61: 0 | E61: 0 | G61: 0 | H61: 0 | K61: 0 | L61: 0 | N61: 0 | Q61: 1.44 | R61: 0 | S61: 0 | T61: 0 | U61: 0 | W61: 0 | AA61: 0 | AB61: 0 | AC61: 0 | AD61: 0 | AF61: 0 | AG61: TRUE
A62: (e) | B62: 3 part time teachers @ Rs. 5,000/- per month per teacher | C62: 1 | D62: 1.5 | E62: 1 | F62: 1.5 | G62: 1 | H62: 1.5 | I62: 100 | J62: 100 | K62: 0 | L62: 0 | N62: 0 | Q62: 1.5 | R62: 1 | S62: 1.5 | T62: 1 | U62: 1.5 | W62: 0 | Z62: 1.5 | AA62: 1 | AB62: 1.5 | AC62: 1 | AD62: 1.5 | AF62: 1.5 | AG62: TRUE
A63: (f) | B63: 1 Full time Accountant @ Rs. 10,000/- per month | C63: 1 | D63: 1.2 | E63: 1 | F63: 1.2 | G63: 1 | H63: 1.2 | I63: 100 | J63: 100 | K63: 0 | L63: 0 | N63: 0 | Q63: 1.2 | R63: 1 | S63: 1.2 | T63: 1 | U63: 1.2 | W63: 0 | Z63: 1.2 | AA63: 1 | AB63: 1.2 | AC63: 1 | AD63: 1.2 | AF63: 1.2 | AG63: TRUE
A64: (g) | B64: 2 Support Staff – (Accountant/ Assistant, Peon, Chowkidar) @ Rs. 5,000/- per month per staff | C64: 1 | D64: 1.2 | E64: 1 | F64: 1.2 | G64: 1 | H64: 1.2 | I64: 100 | J64: 100 | K64: 0 | L64: 0 | N64: 0 | Q64: 1.2 | R64: 1 | S64: 1.2 | T64: 1 | U64: 1.2 | W64: 0 | Z64: 1.2 | AA64: 1 | AB64: 1.2 | AC64: 1 | AD64: 1.2 | AF64: 1.2 | AG64: TRUE
A65: (h) | B65: 1 Head cook @ Rs. 6,000/- per month and upto 2 Asstt. Cooks @ Rs. 4,500/- per month per cook | C65: 1 | D65: 1.8 | E65: 1 | F65: 1.8 | G65: 1 | H65: 1.8 | I65: 100 | J65: 100 | K65: 0 | L65: 0 | N65: 0 | Q65: 1.8 | R65: 1 | S65: 1.8 | T65: 1 | U65: 1.8 | W65: 0 | Z65: 1.8 | AA65: 1 | AB65: 1.8 | AC65: 1 | AD65: 1.8 | AF65: 1.8 | AG65: TRUE
A66: 2.27 | B66: Specific skill training per child @ Rs.1000/- per annum | C66: 100 | D66: 1 | E66: 100 | F66: 1 | G66: 100 | H66: 1 | I66: 100 | J66: 100 | K66: 0 | L66: 0 | N66: 0 | Q66: 0.01 | R66: 100 | S66: 1 | T66: 100 | U66: 1 | W66: 0 | Z66: 0.01 | AA66: 100 | AB66: 1 | AC66: 100 | AD66: 1 | AF66: 1 | AG66: TRUE
A67: 2.28 | B67: Electricity / water charges per child @Rs.1000/- per annum | C67: 100 | D67: 1 | E67: 100 | F67: 1 | G67: 100 | H67: 1 | I67: 100 | J67: 100 | K67: 0 | L67: 0 | N67: 0 | Q67: 0.01 | R67: 100 | S67: 1 | T67: 100 | U67: 1 | W67: 0 | Z67: 0.01 | AA67: 100 | AB67: 1 | AC67: 100 | AD67: 1 | AF67: 1 | AG67: TRUE
A68: 2.29 | B68: Medical care/contingencies @ Rs.1250/- per child per annum | C68: 100 | D68: 1.25 | E68: 100 | F68: 1.25 | G68: 100 | H68: 1.25 | I68: 100 | J68: 100 | K68: 0 | L68: 0 | N68: 0 | Q68: 0.0125 | R68: 100 | S68: 1.25 | T68: 100 | U68: 1.25 | W68: 0 | Z68: 0.0125 | AA68: 100 | AB68: 1.25 | AC68: 100 | AD68: 1.25 | AF68: 1.25 | AG68: TRUE
A69: 2.3 | B69: Maintenance @ Rs.750/- per child per annum | C69: 100 | D69: 0.75 | E69: 100 | F69: 0.75 | G69: 100 | H69: 0.75 | I69: 100 | J69: 100 | K69: 0 | L69: 0 | N69: 0 | Q69: 0.0075 | R69: 100 | S69: 0.75 | T69: 100 | U69: 0.75 | W69: 0 | Z69: 0.0075 | AA69: 100 | AB69: 0.75 | AC69: 100 | AD69: 0.75 | AF69: 0.75 | AG69: TRUE
A70: 2.31 | B70: Miscellaneous @ Rs.750/- per child per annum | C70: 100 | D70: 0.75 | E70: 100 | F70: 0.75 | G70: 100 | H70: 0.75 | I70: 100 | J70: 100 | K70: =C70-G70 -> 0 | L70: 0 | N70: 0 | Q70: 0.0075 | R70: 100 | S70: 0.75 | T70: 100 | U70: 0.75 | W70: 0 | Z70: 0.0075 | AA70: 100 | AB70: 0.75 | AC70: 100 | AD70: 0.75 | AF70: 0.75 | AG70: TRUE
A71: 2.32 | B71: Preparatory camps @ Rs.200/- per child per annum | C71: 0 | D71: 0 | E71: 0 | F71: 0 | G71: 0 | H71: 0 | K71: 0 | L71: 0 | N71: 0 | Q71: 0.002 | R71: 100 | S71: 0.2 | T71: 100 | U71: 0.2 | W71: 0 | Z71: 0.002 | AA71: 100 | AB71: 0.2 | AC71: 100 | AD71: 0.2 | AF71: 0.2 | AG71: TRUE
A72: 2.33 | B72: P.T.A / school functions @ Rs.200/- per child per annum | C72: 100 | D72: 0.2 | E72: 100 | F72: 0.2 | G72: 100 | H72: 0.2 | I72: =IFERROR(G72/C72*100,"") -> 100 | J72: =IFERROR(H72/D72*100,"") -> 100 | K72: 0 | L72: 0 | N72: 0 | Q72: 0.002 | R72: 100 | S72: 0.2 | T72: =+M72+O72+R72 -> 100 | U72: =+N72+P72+S72 -> 0.2 | W72: 0 | Z72: 0.002 | AA72: 100 | AB72: 0.2 | AC72: =+V72+X72+AA72 -> 100 | AD72: =+W72+Y72+AB72 -> 0.2 | AF72: =+AD72 -> 0.2 | AG72: =+W72+Y72+AB72=AD72 -> TRUE
A73: 2.34 | B73: Provision of Rent @ Rs. 6000/- per child per annum | C73: 0 | D73: 0 | E73: 0 | F73: 0 | H73: 0 | L73: 0 | N73: 0 | R73: 0 | S73: 0 | T73: 0 | U73: 0 | W73: 0 | AA73: 0 | AB73: 0 | AC73: 0 | AD73: 0 | AF73: 0 | AG73: TRUE
A74: 2.35 | B74: Capacity Building @ Rs.500/- per child per annum | C74: 100 | D74: 0.5 | E74: 100 | F74: 0.5 | G74: 100 | H74: 0.5 | I74: 100 | J74: 100 | K74: 0 | L74: 0 | N74: 0 | Q74: 0.005 | R74: 100 | S74: 0.5 | T74: 100 | U74: 0.5 | W74: 0 | Z74: 0.005 | AA74: 100 | AB74: 0.5 | AC74: 100 | AD74: 0.5 | AF74: 0.5 | AG74: TRUE
A75: 2.36 | B75: Physical / Self Defence training @ Rs. 200/- per child per annum. | C75: 0 | D75: 0 | E75: 0 | F75: 0 | G75: 0 | H75: 0 | K75: 0 | L75: 0 | N75: 0 | Q75: 0.002 | R75: 100 | S75: =R75*Q75 -> 0.2 | T75: 100 | U75: 0.2 | W75: 0 | Z75: 0.002 | AA75: 100 | AB75: =AA75*Z75 -> 0.2 | AC75: 100 | AD75: 0.2 | AF75: 0.2 | AG75: TRUE
B76: Sub Total (Recurring) | C76: 1007 | D76: 46.95 | E76: =E75+E51 -> 100 | F76: =SUM(F54:F75) -> 43.95 | G76: 1006 | H76: 40.95 | I76: 99.90069513 | J76: 87.22044728 | K76: 0 | L76: 3 | M76: 0 | N76: 0 | R76: =SUM(R54:R75) -> 1207 | S76: =SUM(S54:S75) -> 44.35 | T76: 1207 | U76: 44.35 | V76: =SUM(V54:V75) -> 0 | W76: =SUM(W54:W75) -> 0 | X76: 0 | Y76: 0 | AA76: 1207 | AB76: 44.35 | AC76: =+V76+X76+AA76 -> 1207 | AD76: 44.35 | AG76: TRUE
B77: Total (Recurring + Non Recurring) | C77: 1007 | D77: 47.7 | E77: 200 | F77: 44.7 | G77: 1106 | H77: 41.7 | I77: 109.8311817 | J77: 87.42138365 | K77: 0 | L77: 3 | M77: 0 | N77: 0 | R77: =R76+R52 -> 1207 | S77: =S76+S52 -> 44.35 | T77: 1207 | U77: 44.35 | V77: =+V76+V52 -> 0 | W77: =+W76+W52 -> 0 | X77: 0 | Y77: 0 | AA77: 1207 | AB77: 44.35 | AC77: 1207 | AD77: 44.35 | AG77: TRUE
B78: Total (50 + 100 children) | C78: =C77+C45 -> 1007 | D78: 47.7 | E78: 200 | F78: 44.7 | G78: 1106 | H78: 41.7 | I78: 109.8311817 | J78: 87.42138365 | K78: 0 | L78: 3 | M78: =M77+M45 -> 0 | N78: =N77+N45 -> 0 | O78: =O77+O45 -> 0 | P78: =P77+P45 -> 0 | R78: =R77+R45 -> 1207 | S78: =S77+S45 -> 44.35 | T78: 1207 | U78: 44.35 | V78: =+V77+V45 -> 0 | W78: =+W77+W45 -> 0 | X78: 0 | Y78: 0 | AA78: 1207 | AB78: 44.35 | AC78: 1207 | AD78: 44.35 | AG78: TRUE
A79: 3 | B79: Residential Hostel for specific category of children | T79: 0 | U79: 0 | AC79: 0 | AD79: 0 | AF79: 0 | AG79: TRUE
A80: (A) | B80: 50 children | T80: 0 | U80: 0 | AC80: 0 | AD80: 0 | AF80: 0 | AG80: TRUE
B81: Non-recurring (one time grant) | T81: 0 | U81: 0 | AC81: 0 | AD81: 0 | AF81: 0 | AG81: TRUE
A82: 3.01 | B82: Furniture/ Equipment (including kitchen) | C82: 0 | D82: 0 | K82: =C82-G82 -> 0 | L82: 0 | S82: =R82*Q82 -> 0 | T82: 0 | U82: 0 | AB82: =AA82*Z82 -> 0 | AC82: 0 | AD82: 0 | AF82: 0 | AG82: TRUE
A83: =+A82+0.01 -> 3.02 | B83: TLM and equipment including library books | C83: 0 | D83: 0 | K83: 0 | L83: 0 | S83: =R83*Q83 -> 0 | T83: 0 | U83: 0 | AB83: =AA83*Z83 -> 0 | AC83: 0 | AD83: 0 | AF83: 0 | AG83: TRUE
A84: =+A83+0.01 -> 3.03 | B84: Bedding (new) | C84: 0 | D84: 0 | K84: 0 | L84: 0 | S84: =R84*Q84 -> 0 | T84: 0 | U84: 0 | AB84: =AA84*Z84 -> 0 | AC84: 0 | AD84: 0 | AF84: 0 | AG84: TRUE
A85: =+A84+0.01 -> 3.04 | B85: Replacement of bedding (once in 3 years) | C85: 0 | D85: 0 | K85: 0 | L85: 0 | S85: =R85*Q85 -> 0 | T85: 0 | U85: 0 | AB85: =AA85*Z85 -> 0 | AC85: 0 | AD85: 0 | AF85: 0 | AG85: TRUE
B86: Sub Total (Non Recurring) | C86: =SUM(C82:C85) -> 0 | D86: =SUM(D82:D85) -> 0 | E86: =SUM(E82:E85) -> 0 | F86: 0 | G86: 0 | H86: 0 | K86: 0 | L86: 0 | M86: 0 | N86: 0 | R86: =SUM(R82:R85) -> 0 | S86: =SUM(S82:S85) -> 0 | T86: 0 | U86: 0 | V86: =SUM(V82:V85) -> 0 | W86: =SUM(W82:W85) -> 0 | X86: 0 | Y86: 0 | AA86: 0 | AB86: 0 | AC86: =+V86+X86+AA86 -> 0 | AD86: =+W86+Y86+AB86 -> 0 | AF86: 0 | AG86: TRUE
B87: Recurring (50 children) | C87: 0 | D87: 0 | S87: =R87*Q87 -> 0 | T87: 0 | U87: 0 | AB87: =AA87*Z87 -> 0 | AC87: 0 | AD87: 0 | AF87: 0 | AG87: TRUE
A88: 3.05 | B88: Maintenance per child Per month @ Rs.1500/- | C88: 0 | D88: 0 | K88: =C88-G88 -> 0 | L88: 0 | N88: 0 | S88: =R88*Q88 -> 0 | T88: 0 | U88: 0 | W88: 0 | AB88: =AA88*Z88 -> 0 | AC88: 0 | AD88: 0 | AF88: 0 | AG88: TRUE
A89: =+A88+0.01 -> 3.06 | B89: Stipend per child per month @ Rs.100/- | C89: 0 | D89: 0 | K89: 0 | L89: 0 | N89: 0 | S89: =R89*Q89 -> 0 | T89: 0 | U89: 0 | W89: 0 | AB89: =AA89*Z89 -> 0 | AC89: 0 | AD89: 0 | AF89: 0 | AG89: TRUE
A90: =+A89+0.01 -> 3.07 | B90: Supplementary TLM, Stationery and other educational material @Rs.1000/- per child per annum | C90: 0 | D90: 0 | K90: 0 | L90: 0 | N90: 0 | S90: =R90*Q90 -> 0 | T90: 0 | U90: 0 | W90: 0 | AB90: =AA90*Z90 -> 0 | AC90: 0 | AD90: 0 | AF90: 0 | AG90: TRUE
A91: 3.08 | B91: Salaries | T91: 0 | U91: 0 | AC91: 0 | AD91: 0 | AF91: 0 | AG91: TRUE
A92: (a) | B92: 1 Warden @ Rs.25000/- per month | C92: 0 | D92: 0 | K92: 0 | L92: 0 | N92: 0 | S92: =R92*Q92 -> 0 | T92: 0 | U92: 0 | W92: 0 | AB92: =AA92*Z92 -> 0 | AC92: 0 | AD92: 0 | AF92: 0 | AG92: TRUE
A93: (b) | B93: 4 Fulltime teachers as per RTE Norms @ Rs. 20,000/- per month per teacher | C93: 0 | D93: 0 | K93: 0 | L93: 0 | N93: 0 | S93: 0 | T93: 0 | U93: 0 | W93: 0 | AB93: 0 | AC93: 0 | AD93: 0 | AF93: 0 | AG93: TRUE
A94: (c) | B94: 2 Urdu Teachers (only for Blocks with muslim population above 20% and select urban areas) @ Rs.12,000/- per month per teacher. | C94: 0 | D94: 0 | K94: 0 | L94: 0 | N94: 0 | S94: 0 | T94: 0 | U94: 0 | W94: 0 | AB94: 0 | AC94: 0 | AD94: 0 | AF94: 0 | AG94: TRUE
A95: (d) | B95: 3 Part time teachers @ Rs.5,000/- per month per teacher | C95: 0 | D95: 0 | K95: 0 | L95: 0 | N95: 0 | S95: 0 | T95: 0 | U95: 0 | W95: 0 | AB95: 0 | AC95: 0 | AD95: 0 | AF95: 0 | AG95: TRUE
A96: (e) | B96: 1 Full time Accountant @ Rs. 10,000/- per month | C96: 0 | D96: 0 | K96: 0 | L96: 0 | N96: 0 | S96: 0 | T96: 0 | U96: 0 | W96: 0 | AB96: 0 | AC96: 0 | AD96: 0 | AF96: 0 | AG96: TRUE
A97: (f) | B97: 2 Support staff - (Accountant/Assistant, Peon, Chowkidar) @ Rs. 5,000/- per month per staff | C97: 0 | D97: 0 | K97: 0 | L97: 0 | N97: 0 | S97: 0 | T97: 0 | U97: 0 | W97: 0 | AB97: 0 | AC97: 0 | AD97: 0 | AF97: 0 | AG97: TRUE
A98: (g) | B98: 1 Head Cook @ Rs. 6,000/- per month and upto 2 Asstt. Cooks @ Rs. 4,500/- per month per cook | C98: 0 | D98: 0 | K98: 0 | L98: 0 | N98: 0 | S98: 0 | T98: 0 | U98: 0 | W98: 0 | AB98: 0 | AC98: 0 | AD98: 0 | AF98: 0 | AG98: TRUE
A99: 3.09 | B99: Specific Skill training @ Rs.1000/- per annum per child | C99: 0 | D99: 0 | K99: 0 | L99: 0 | N99: 0 | S99: 0 | T99: 0 | U99: 0 | W99: 0 | AB99: 0 | AC99: 0 | AD99: 0 | AF99: 0 | AG99: TRUE
A100: =+A99+0.01 -> 3.1 | B100: Electricity / water charges @ Rs. 1000/- per annum per child | C100: 0 | D100: 0 | K100: 0 | L100: 0 | N100: 0 | S100: 0 | T100: 0 | U100: 0 | W100: 0 | AB100: 0 | AC100: 0 | AD100: 0 | AF100: 0 | AG100: TRUE
A101: 3.11 | B101: Medical care/contingencies @ Rs.1250/- per annum per child | C101: 0 | D101: 0 | K101: 0 | L101: 0 | N101: 0 | S101: 0 | T101: 0 | U101: 0 | W101: 0 | AB101: 0 | AC101: 0 | AD101: 0 | AF101: 0 | AG101: TRUE
A102: 3.12 | B102: Maintenance @ Rs. 750/- per child per annum | C102: 0 | D102: 0 | K102: 0 | L102: 0 | N102: 0 | S102: 0 | T102: 0 | U102: 0 | W102: 0 | AB102: 0 | AC102: 0 | AD102: 0 | AF102: 0 | AG102: TRUE
A103: 3.13 | B103: Miscellaneous @ Rs. 750/- per child per annum | C103: 0 | D103: 0 | K103: 0 | L103: 0 | N103: 0 | S103: 0 | T103: 0 | U103: 0 | W103: 0 | AB103: 0 | AC103: 0 | AD103: 0 | AF103: 0 | AG103: TRUE
A104: 3.14 | B104: Preparatory camps @ Rs. 300/- per child per annum | C104: 0 | D104: 0 | K104: 0 | L104: 0 | N104: 0 | S104: 0 | T104: 0 | U104: 0 | W104: 0 | AB104: 0 | AC104: 0 | AD104: 0 | AF104: 0 | AG104: TRUE
A105: 3.15 | B105: P.T.A / school functions @ Rs. 300/- per child per annum | C105: 0 | D105: 0 | K105: 0 | L105: 0 | N105: 0 | S105: 0 | T105: 0 | U105: 0 | W105: 0 | AB105: 0 | AC105: 0 | AD105: 0 | AF105: 0 | AG105: TRUE
A106: 3.16 | B106: Provision of Rent @ Rs. 10,000/- per child per annum | C106: 0 | D106: 0 | K106: 0 | L106: 0 | N106: 0 | S106: 0 | T106: 0 | U106: 0 | W106: 0 | AB106: 0 | AC106: 0 | AD106: 0 | AF106: 0 | AG106: TRUE
A107: 3.17 | B107: Capacity Building @ Rs. 500/- per child per annum | C107: 0 | D107: 0 | K107: 0 | L107: 0 | N107: 0 | S107: 0 | T107: 0 | U107: 0 | W107: 0 | AB107: 0 | AC107: 0 | AD107: 0 | AF107: 0 | AG107: TRUE
A108: 3.18 | B108: Physical / Self Defence Training @ Rs.200/- per child per annum | C108: 0 | D108: 0 | K108: 0 | L108: 0 | N108: 0 | S108: 0 | T108: 0 | U108: 0 | W108: 0 | AB108: 0 | AC108: 0 | AD108: 0 | AF108: 0 | AG108: TRUE
B109: Sub Total (Recurring) | C109: =C108+C85 -> 0 | D109: =SUM(D88:D108) -> 0 | E109: 0 | F109: 0 | G109: 0 | H109: 0 | K109: 0 | L109: 0 | M109: 0 | N109: 0 | R109: =SUM(R88:R108) -> 0 | S109: =SUM(S88:S108) -> 0 | T109: 0 | U109: 0 | V109: =SUM(V88:V108) -> 0 | W109: =SUM(W88:W108) -> 0 | X109: 0 | Y109: 0 | AA109: 0 | AB109: 0 | AC109: =+V109+X109+AA109 -> 0 | AD109: =+W109+Y109+AB109 -> 0 | AF109: 0 | AG109: TRUE
B110: Total (Non Recurring + Recurring) | C110: 0 | D110: 0 | E110: 0 | F110: 0 | G110: 0 | H110: 0 | K110: 0 | L110: 0 | M110: 0 | N110: 0 | R110: =R109+R86 -> 0 | S110: =S109+S86 -> 0 | T110: 0 | U110: 0 | V110: =+V109+V86 -> 0 | W110: =+W109+W86 -> 0 | X110: 0 | Y110: 0 | AA110: 0 | AB110: 0 | AC110: =+V110+X110+AA110 -> 0 | AD110: =+W110+Y110+AB110 -> 0 | AF110: 0 | AG110: TRUE
A111: (B) | B111: 100 Children | T111: 0 | U111: 0 | AC111: 0 | AD111: 0 | AF111: 0 | AG111: TRUE
B112: Non-recurring (one time grant) | T112: 0 | U112: 0 | AC112: 0 | AD112: 0 | AF112: 0 | AG112: TRUE
A113: 3.19 | B113: Furniture / Equipment (including kitchen equipment) | C113: 0 | D113: 0 | K113: =C113-G113 -> 0 | L113: 0 | M113: 0 | N113: 0 | S113: =Q113+L113 -> 0 | T113: 0 | U113: 0 | V113: 0 | W113: 0 | AB113: =Z113+U113 -> 0 | AC113: 0 | AD113: 0 | AF113: 0 | AG113: TRUE
A114: =+A113+0.01 -> 3.2 | B114: TLM and equipment including library books (New) | C114: 0 | D114: 0 | K114: 0 | L114: 0 | M114: 0 | N114: 0 | S114: =R114*Q114 -> 0 | T114: 0 | U114: 0 | V114: 0 | W114: 0 | AB114: =AA114*Z114 -> 0 | AC114: 0 | AD114: 0 | AF114: 0 | AG114: TRUE
A115: =+A114+0.01 -> 3.21 | B115: Bedding (New) | C115: 0 | D115: 0 | K115: 0 | L115: 0 | M115: 0 | N115: 0 | S115: =R115*Q115 -> 0 | T115: 0 | U115: 0 | V115: 0 | W115: 0 | AB115: =AA115*Z115 -> 0 | AC115: 0 | AD115: 0 | AF115: 0 | AG115: TRUE
A116: =+A115+0.01 -> 3.22 | B116: Replacement of bedding (once in 3 years) | C116: 0 | D116: 0 | K116: 0 | L116: 0 | M116: 0 | N116: 0 | S116: =R116*Q116 -> 0 | T116: 0 | U116: 0 | V116: 0 | W116: 0 | AB116: =AA116*Z116 -> 0 | AC116: 0 | AD116: 0 | AF116: 0 | AG116: TRUE
B117: Sub Total Non-recurring | C117: =SUM(C113:C116) -> 0 | D117: =SUM(D113:D116) -> 0 | E117: =SUM(E113:E116) -> 0 | F117: 0 | G117: 0 | H117: 0 | K117: 0 | L117: 0 | M117: 0 | N117: 0 | R117: =SUM(R113:R116) -> 0 | S117: =SUM(S113:S116) -> 0 | T117: 0 | U117: 0 | V117: =SUM(V113:V116) -> 0 | W117: =SUM(W113:W116) -> 0 | X117: 0 | Y117: 0 | AA117: 0 | AB117: 0 | AC117: =+V117+X117+AA117 -> 0 | AD117: =+W117+Y117+AB117 -> 0 | AF117: 0 | AG117: TRUE
B118: Recurring | T118: 0 | U118: 0 | AC118: 0 | AD118: 0 | AF118: 0 | AG118: TRUE
A119: 3.23 | B119: Maintenance per child per month @ Rs. 1500/- | C119: 0 | D119: 0 | K119: =C119-G119 -> 0 | L119: 0 | N119: 0 | S119: =R119*Q119 -> 0 | T119: 0 | U119: 0 | W119: 0 | AB119: =AA119*Z119 -> 0 | AC119: 0 | AD119: 0 | AF119: 0 | AG119: TRUE
A120: =+A119+0.01 -> 3.24 | B120: Stipend per child per month @ Rs.100/- | C120: 0 | D120: 0 | K120: 0 | L120: 0 | N120: 0 | S120: =R120*Q120 -> 0 | T120: 0 | U120: 0 | W120: 0 | AB120: =AA120*Z120 -> 0 | AC120: 0 | AD120: 0 | AF120: 0 | AG120: TRUE
A121: =+A120+0.01 -> 3.25 | B121: Supplementary TLM, Stationery and other educational material per child @1000/- per annum | C121: 0 | D121: 0 | K121: 0 | L121: 0 | N121: 0 | S121: =R121*Q121 -> 0 | T121: 0 | U121: 0 | W121: 0 | AB121: =AA121*Z121 -> 0 | AC121: 0 | AD121: 0 | AF121: 0 | AG121: TRUE
A122: 3.26 | B122: Salaries | T122: 0 | U122: 0 | AC122: 0 | AD122: 0 | AF122: 0 | AG122: TRUE
A123: (a) | B123: 1 Warden @ Rs. 25,000/- per month | C123: 0 | D123: 0 | K123: 0 | L123: 0 | N123: 0 | S123: =R123*Q123 -> 0 | T123: 0 | U123: 0 | W123: 0 | AB123: =AA123*Z123 -> 0 | AC123: 0 | AD123: 0 | AF123: 0 | AG123: TRUE
A124: (b) | B124: 1 head teacher @ Rs. 25,000/- per month in case the enrollment exceeds 100 | C124: 0 | D124: 0 | K124: 0 | L124: 0 | N124: 0 | S124: 0 | T124: 0 | U124: 0 | W124: 0 | AB124: 0 | AC124: 0 | AD124: 0 | AF124: 0 | AG124: TRUE
A125: (c) | B125: 4 - 5 Full time teachers as per RTE norms @ Rs. 20,000/- per month per teacher | C125: 0 | D125: 0 | K125: 0 | L125: 0 | N125: 0 | S125: 0 | T125: 0 | U125: 0 | W125: 0 | AB125: 0 | AC125: 0 | AD125: 0 | AF125: 0 | AG125: TRUE
A126: (d) | B126: 2 Urdu Teachers (only for blocks with muslim population above 20% and select urban areas), if required @ Rs. 12,000/- per month per teacher | C126: 0 | D126: 0 | K126: 0 | L126: 0 | N126: 0 | S126: 0 | T126: 0 | U126: 0 | W126: 0 | AB126: 0 | AC126: 0 | AD126: 0 | AF126: 0 | AG126: TRUE
A127: (e) | B127: 3 part time teachers @ Rs. 5,000/- per month per teacher | C127: 0 | D127: 0 | K127: 0 | L127: 0 | N127: 0 | S127: 0 | T127: 0 | U127: 0 | W127: 0 | AB127: 0 | AC127: 0 | AD127: 0 | AF127: 0 | AG127: TRUE
A128: (f) | B128: 1 Full time Accountant @ Rs. 10,000/- per month | C128: 0 | D128: 0 | K128: 0 | L128: 0 | N128: 0 | S128: 0 | T128: 0 | U128: 0 | W128: 0 | AB128: 0 | AC128: 0 | AD128: 0 | AF128: 0 | AG128: TRUE
A129: (g) | B129: 2 Support Staff – (Accountant/ Assistant, Peon, Chowkidar) @ Rs. 5,000/- per month per staff | C129: 0 | D129: 0 | K129: 0 | L129: 0 | N129: 0 | S129: 0 | T129: 0 | U129: 0 | W129: 0 | AB129: 0 | AC129: 0 | AD129: 0 | AF129: 0 | AG129: TRUE
A130: (h) | B130: 1 Head cook @ Rs. 6,000/- per month and upto 2 Asstt. Cooks @ Rs. 4,500/- per month per cook | C130: 0 | D130: 0 | K130: 0 | L130: 0 | N130: 0 | S130: 0 | T130: 0 | U130: 0 | W130: 0 | AB130: 0 | AC130: 0 | AD130: 0 | AF130: 0 | AG130: TRUE
A131: 3.27 | B131: Specific skill training per child @ Rs.1000/- per annum | C131: 0 | D131: 0 | K131: 0 | L131: 0 | N131: 0 | S131: 0 | T131: 0 | U131: 0 | W131: 0 | AB131: 0 | AC131: 0 | AD131: 0 | AF131: 0 | AG131: TRUE
A132: =+A131+0.01 -> 3.28 | B132: Electricity / water charges per child @Rs.1000/- per annum | C132: 0 | D132: 0 | K132: 0 | L132: 0 | N132: 0 | S132: 0 | T132: 0 | U132: 0 | W132: 0 | AB132: 0 | AC132: 0 | AD132: 0 | AF132: 0 | AG132: TRUE
A133: 3.29 | B133: Medical care/contingencies @ Rs.1250/- per child per annum | C133: 0 | D133: 0 | K133: 0 | L133: 0 | N133: 0 | S133: 0 | T133: 0 | U133: 0 | W133: 0 | AB133: 0 | AC133: 0 | AD133: 0 | AF133: 0 | AG133: TRUE
A134: 3.3 | B134: Maintenance @ Rs.750/- per child per annum | C134: 0 | D134: 0 | K134: 0 | L134: 0 | N134: 0 | S134: 0 | T134: 0 | U134: 0 | W134: 0 | AB134: 0 | AC134: 0 | AD134: 0 | AF134: 0 | AG134: TRUE
A135: 3.31 | B135: Miscellaneous @ Rs.750/- per child per annum | C135: 0 | D135: 0 | K135: 0 | L135: 0 | N135: 0 | S135: 0 | T135: 0 | U135: 0 | W135: 0 | AB135: 0 | AC135: 0 | AD135: 0 | AF135: 0 | AG135: TRUE
A136: 3.32 | B136: Preparatory camps @ Rs.200/- per child per annum | C136: 0 | D136: 0 | I136: =IFERROR(G136/C136*100,"") ->  | J136: =IFERROR(H136/D136*100,"") ->  | K136: 0 | L136: 0 | N136: 0 | S136: 0 | T136: =+M136+O136+R136 -> 0 | U136: =+N136+P136+S136 -> 0 | W136: 0 | AB136: 0 | AC136: =+V136+X136+AA136 -> 0 | AD136: =+W136+Y136+AB136 -> 0 | AF136: =+AD136 -> 0 | AG136: =+W136+Y136+AB136=AD136 -> TRUE
A137: 3.33 | B137: P.T.A / school functions @ Rs.200/- per child per annum | C137: 0 | D137: 0 | K137: 0 | L137: 0 | N137: 0 | S137: 0 | T137: 0 | U137: 0 | W137: 0 | AB137: 0 | AC137: 0 | AD137: 0 | AF137: 0 | AG137: TRUE
A138: 3.34 | B138: Provision of Rent @ Rs. 6000/- per child per annum | C138: 0 | D138: 0 | K138: 0 | L138: 0 | N138: 0 | S138: 0 | T138: 0 | U138: 0 | W138: 0 | AB138: 0 | AC138: 0 | AD138: 0 | AF138: 0 | AG138: TRUE
A139: 3.35 | B139: Capacity Building @ Rs.500/- per child per annum | C139: 0 | D139: 0 | K139: 0 | L139: 0 | N139: 0 | S139: 0 | T139: 0 | U139: 0 | W139: 0 | AB139: 0 | AC139: 0 | AD139: 0 | AF139: 0 | AG139: TRUE
A140: 3.36 | B140: Physical / Self Defence training @ Rs. 200/- per child per annum. | C140: 0 | D140: 0 | K140: 0 | L140: 0 | N140: 0 | S140: 0 | T140: 0 | U140: 0 | W140: 0 | AB140: 0 | AC140: 0 | AD140: 0 | AF140: 0 | AG140: TRUE
B141: Sub Total (Recurring) | C141: 0 | D141: 0 | E141: =SUM(E119:E140) -> 0 | F141: =SUM(F119:F140) -> 0 | G141: 0 | H141: 0 | K141: 0 | L141: 0 | M141: 0 | N141: 0 | R141: =SUM(R119:R140) -> 0 | S141: =SUM(S119:S140) -> 0 | T141: 0 | U141: 0 | V141: =SUM(V119:V140) -> 0 | W141: =SUM(W119:W140) -> 0 | X141: 0 | Y141: 0 | AA141: 0 | AB141: 0 | AC141: =+V141+X141+AA141 -> 0 | AD141: 0 | AF141: 0 | AG141: TRUE
B142: Total (Recurring + Non Recurring) | C142: 0 | D142: 0 | E142: =E141+E117 -> 0 | F142: 0 | G142: 0 | H142: 0 | K142: 0 | L142: 0 | M142: 0 | N142: 0 | R142: =R141+R117 -> 0 | S142: =S141+S117 -> 0 | T142: 0 | U142: 0 | V142: =+V141+V117 -> 0 | W142: =+W141+W117 -> 0 | X142: 0 | Y142: 0 | AA142: 0 | AB142: 0 | AC142: 0 | AD142: 0 | AF142: 0 | AG142: TRUE
B143: Total (A + B) | C143: 0 | D143: 0 | E143: =E142+E110 -> 0 | F143: 0 | G143: 0 | H143: 0 | K143: 0 | L143: 0 | M143: =M142+M110 -> 0 | N143: 0 | O143: 0 | P143: 0 | R143: =R142+R110 -> 0 | S143: =S142+S110 -> 0 | T143: 0 | U143: 0 | V143: =+V142+V110 -> 0 | W143: =+W142+W110 -> 0 | X143: 0 | Y143: 0 | Z143: 0 | AA143: 0 | AB143: 0 | AC143: 0 | AD143: 0 | AF143: 0 | AG143: TRUE
A144: 4 | B144: Transport/Escort Facility | T144: 0 | U144: 0 | AC144: 0 | AD144: 0 | AF144: 0 | AG144: TRUE
A145: 4.01 | B145: Children in remote habitation | C145: 0 | D145: 0 | K145: =C145-G145 -> 0 | L145: =D145-H145 -> 0 | Q145: 0.03 | R145: 0 | S145: =R145*Q145 -> 0 | T145: 0 | U145: 0 | Z145: 0.03 | AA145: 0 | AB145: =AA145*Z145 -> 0 | AC145: 0 | AD145: 0 | AF145: 0 | AG145: TRUE
A146: 4.02 | B146: Urban deprived children/children without adult protection | C146: 0 | D146: 0 | K146: =C146-G146 -> 0 | L146: =D146-H146 -> 0 | Q146: 0.03 | R146: 0 | S146: =R146*Q146 -> 0 | T146: 0 | U146: 0 | Z146: 0.03 | AA146: 0 | AB146: =AA146*Z146 -> 0 | AC146: 0 | AD146: 0 | AF146: 0 | AG146: TRUE
B147: Sub Total | C147: =SUM(C145:C146) -> 0 | D147: 0 | E147: 0 | F147: 0 | G147: 0 | H147: 0 | K147: 0 | L147: 0 | M147: =SUM(M145:M146) -> 0 | N147: =SUM(N145:N146) -> 0 | O147: 0 | P147: 0 | R147: 0 | S147: 0 | T147: =+M147+O147+R147 -> 0 | U147: =+N147+P147+S147 -> 0 | V147: =SUM(V145:V146) -> 0 | W147: =SUM(W145:W146) -> 0 | X147: 0 | Y147: 0 | AA147: 0 | AB147: 0 | AC147: =+V147+X147+AA147 -> 0 | AD147: =+W147+Y147+AB147 -> 0 | AG147: TRUE
A148: 5 | B148: Reimbursement of Fee against 25% admission under Section 12(1)(c) of RTE Act 2009 (Entry Level) subject to upper limit of 20% of AWP&B subject to guidelines issued by MHRD | C148: 46389 | D148: 5337.06599 | E148: 46389 | F148: 5337.06599 | G148: 46389 | H148: 5337.06599 | I148: 100 | J148: 100 | K148: =C148-G148 -> 0 | L148: =D148-H148 -> 0 | Q148: 0.11848 | R148: 25494 | S148: =R148*Q148 -> 3020.52912 | T148: 25494 | U148: 3020.52912 | AA148: 69008 | AB148: 5765.589 | AC148: =+V148+X148+AA148 -> 69008 | AD148: =+W148+Y148+AB148 -> 5765.589 | AF148: 5765.589 | AG148: TRUE
B149: Sub Total | C149: =SUM(C148) -> 46389 | D149: =SUM(D148) -> 5337.06599 | E149: =SUM(E148) -> 46389 | F149: 5337.06599 | G149: 46389 | H149: 5337.06599 | I149: 100 | J149: 100 | K149: 0 | L149: 0 | M149: =+M148 -> 0 | N149: =+N148 -> 0 | O149: =+O148 -> 0 | P149: =+P148 -> 0 | R149: =+R148 -> 25494 | S149: =+S148 -> 3020.52912 | T149: =+M149+O149+R149 -> 25494 | U149: =+N149+P149+S149 -> 3020.52912 | V149: =+V148 -> 0 | W149: =+W148 -> 0 | X149: 0 | Y149: 0 | AA149: 69008 | AB149: 5765.589 | AC149: =+V149+X149+AA149 -> 69008 | AD149: =+W149+Y149+AB149 -> 5765.589 | AG149: TRUE
A150: 6 | B150: Special Training for mainstreaming of out of school children | C150: 0 | D150: 0 | G150: 0 | H150: 0 | K150: 0 | L150: 0 | T150: 0 | U150: 0 | AC150: 0 | AD150: 0 | AF150: 0 | AG150: TRUE
A151: 6.01 | B151: Residential (Fresh) | C151: 0 | D151: 0 | T151: 0 | U151: 0 | AC151: 0 | AD151: 0 | AF151: 0 | AG151: TRUE
B152: (a) 12 months | C152: 0 | D152: 0 | G152: 0 | K152: =C152-G152 -> 0 | L152: 0 | N152: 0 | Q152: 0.2 | R152: 256 | S152: =R152*Q152 -> 51.2 | T152: 256 | U152: 51.2 | W152: 0 | Z152: 0.2 | AA152: 256 | AB152: =AA152*Z152 -> 51.2 | AC152: 256 | AD152: 51.2 | AF152: 51.2 | AG152: TRUE
B153: (b) 9 months | C153: 235 | D153: 47 | I153: 0 | J153: 0 | K153: 235 | L153: 47 | N153: 0 | Q153: 0.15 | S153: =R153*Q153 -> 0 | T153: 0 | U153: 0 | W153: 0 | Z153: 0.15 | AB153: =AA153*Z153 -> 0 | AC153: 0 | AD153: 0 | AF153: 0 | AG153: TRUE
B154: (c) 6 months | C154: 0 | D154: 0 | K154: 0 | L154: 0 | N154: 0 | Q154: 0.1 | S154: =R154*Q154 -> 0 | T154: 0 | U154: 0 | W154: 0 | Z154: 0.1 | AB154: =AA154*Z154 -> 0 | AC154: 0 | AD154: 0 | AF154: 0 | AG154: TRUE
B155: (d) 3 months | C155: 0 | D155: 0 | G155: 0 | K155: 0 | L155: 0 | N155: 0 | Q155: 0.05 | S155: =R155*Q155 -> 0 | T155: 0 | U155: 0 | W155: 0 | Z155: 0.05 | AB155: =AA155*Z155 -> 0 | AC155: 0 | AD155: 0 | AF155: 0 | AG155: TRUE
B156: Sub Total | C156: =SUM(C152:C155) -> 235 | D156: 47 | E156: 0 | F156: 0 | G156: 0 | H156: 0 | I156: 0 | J156: 0 | K156: 235 | L156: 47 | M156: =SUM(M152:M155) -> 0 | N156: =SUM(N152:N155) -> 0 | O156: =SUM(O152:O155) -> 0 | P156: =SUM(P152:P155) -> 0 | R156: =SUM(R152:R155) -> 256 | S156: =SUM(S152:S155) -> 51.2 | T156: =+M156+O156+R156 -> 256 | U156: =+N156+P156+S156 -> 51.2 | V156: =SUM(V152:V155) -> 0 | W156: =SUM(W152:W155) -> 0 | X156: 0 | Y156: 0 | AA156: 256 | AB156: 51.2 | AC156: =+V156+X156+AA156 -> 256 | AD156: =+W156+Y156+AB156 -> 51.2 | AG156: TRUE
A157: 6.02 | B157: Residential (Continuing from previous year) | T157: 0 | U157: 0 | AC157: 0 | AD157: 0 | AF157: 0 | AG157: TRUE
B158: (a) 12 months | C158: 0 | D158: 0 | K158: =C158-G158 -> 0 | L158: 0 | N158: 0 | Q158: 0.2 | R158: 0 | S158: =R158*Q158 -> 0 | T158: 0 | U158: 0 | W158: 0 | Z158: 0.2 | AA158: 0 | AB158: =AA158*Z158 -> 0 | AC158: 0 | AD158: 0 | AF158: 0 | AG158: TRUE
B159: (b) 9 months | C159: 0 | D159: 0 | K159: 0 | L159: 0 | N159: 0 | Q159: 0.15 | S159: =R159*Q159 -> 0 | T159: 0 | U159: 0 | W159: 0 | Z159: 0.15 | AB159: =AA159*Z159 -> 0 | AC159: 0 | AD159: 0 | AF159: 0 | AG159: TRUE
B160: (c) 6 months | C160: 0 | D160: 0 | K160: 0 | L160: 0 | N160: 0 | Q160: 0.1 | S160: =R160*Q160 -> 0 | T160: 0 | U160: 0 | W160: 0 | Z160: 0.1 | AB160: =AA160*Z160 -> 0 | AC160: 0 | AD160: 0 | AF160: 0 | AG160: TRUE
B161: (d) 3 months | C161: 0 | D161: 0 | K161: 0 | L161: 0 | N161: 0 | Q161: 0.05 | S161: =R161*Q161 -> 0 | T161: 0 | U161: 0 | W161: 0 | Z161: 0.05 | AB161: =AA161*Z161 -> 0 | AC161: 0 | AD161: 0 | AF161: 0 | AG161: TRUE
B162: Sub Total | C162: =SUM(C158:C161) -> 0 | D162: 0 | E162: 0 | F162: 0 | G162: 0 | H162: 0 | K162: 0 | L162: 0 | M162: =SUM(M158:M161) -> 0 | N162: =SUM(N158:N161) -> 0 | O162: =SUM(O158:O161) -> 0 | P162: =SUM(P158:P161) -> 0 | R162: =SUM(R158:R161) -> 0 | S162: =SUM(S158:S161) -> 0 | T162: =+M162+O162+R162 -> 0 | U162: =+N162+P162+S162 -> 0 | V162: =SUM(V158:V161) -> 0 | W162: =SUM(W158:W161) -> 0 | X162: 0 | Y162: 0 | AA162: 0 | AB162: 0 | AC162: =+V162+X162+AA162 -> 0 | AD162: =+W162+Y162+AB162 -> 0 | AG162: TRUE
A163: 6.03 | B163: Non-Residential (Fresh) | T163: 0 | U163: 0 | AC163: 0 | AD163: 0 | AF163: 0 | AG163: TRUE
B164: (a) 12 months | C164: 0 | D164: 0 | K164: =C164-G164 -> 0 | L164: 0 | N164: 0 | Q164: 0.06 | S164: =R164*Q164 -> 0 | T164: 0 | U164: 0 | W164: 0 | Z164: 0.06 | AB164: =AA164*Z164 -> 0 | AC164: 0 | AD164: 0 | AF164: 0 | AG164: TRUE
B165: (b) 9 months | C165: 0 | D165: 0 | K165: 0 | L165: 0 | N165: 0 | Q165: 0.045 | S165: =R165*Q165 -> 0 | T165: 0 | U165: 0 | W165: 0 | Z165: 0.045 | AB165: =AA165*Z165 -> 0 | AC165: 0 | AD165: 0 | AF165: 0 | AG165: TRUE
B166: (c) 6 months | C166: 0 | D166: 0 | K166: 0 | L166: 0 | N166: 0 | Q166: 0.03 | R166: 313 | S166: =R166*Q166 -> 9.39 | T166: 313 | U166: 9.39 | W166: 0 | Z166: 0.03 | AA166: 313 | AB166: =AA166*Z166 -> 9.39 | AC166: 313 | AD166: 9.39 | AF166: 9.39 | AG166: TRUE
B167: (d) 3 months | C167: 302 | D167: 4.53 | I167: 0 | J167: 0 | K167: 302 | L167: 4.53 | N167: 0 | Q167: 0.015 | R167: 339 | S167: =R167*Q167 -> 5.085 | T167: 339 | U167: 5.085 | W167: 0 | Z167: 0.015 | AA167: 339 | AB167: =AA167*Z167 -> 5.085 | AC167: 339 | AD167: 5.085 | AF167: 5.085 | AG167: TRUE
B168: Sub Total | C168: =SUM(C164:C167) -> 302 | D168: 4.53 | E168: 0 | F168: 0 | G168: 0 | H168: 0 | I168: 0 | J168: 0 | K168: 302 | L168: 4.53 | M168: =SUM(M164:M167) -> 0 | N168: =SUM(N164:N167) -> 0 | O168: =SUM(O164:O167) -> 0 | P168: =SUM(P164:P167) -> 0 | R168: =SUM(R164:R167) -> 652 | S168: =SUM(S164:S167) -> 14.475 | T168: =+M168+O168+R168 -> 652 | U168: =+N168+P168+S168 -> 14.475 | V168: =SUM(V164:V167) -> 0 | W168: =SUM(W164:W167) -> 0 | X168: 0 | Y168: 0 | AA168: 652 | AB168: 14.475 | AC168: =+V168+X168+AA168 -> 652 | AD168: =+W168+Y168+AB168 -> 14.475 | AG168: TRUE
A169: 6.04 | B169: Non-Residential (Continuing from previous year) | T169: 0 | U169: 0 | AC169: 0 | AD169: 0 | AF169: 0 | AG169: TRUE
B170: (a) 12 months | C170: 0 | D170: 0 | K170: =C170-G170 -> 0 | L170: 0 | N170: 0 | Q170: 0.06 | S170: =R170*Q170 -> 0 | T170: 0 | U170: 0 | W170: 0 | Z170: 0.06 | AB170: =AA170*Z170 -> 0 | AC170: 0 | AD170: 0 | AF170: 0 | AG170: TRUE
B171: (b) 9 months | C171: 0 | D171: 0 | K171: 0 | L171: 0 | N171: 0 | Q171: 0.045 | S171: =R171*Q171 -> 0 | T171: 0 | U171: 0 | W171: 0 | Z171: 0.045 | AB171: =AA171*Z171 -> 0 | AC171: 0 | AD171: 0 | AF171: 0 | AG171: TRUE
B172: (c) 6 months | C172: 1500 | D172: 45 | I172: 0 | J172: 0 | K172: 1500 | L172: 45 | N172: 0 | Q172: 0.03 | R172: 1250 | S172: =R172*Q172 -> 37.5 | T172: 1250 | U172: 37.5 | W172: 0 | Z172: 0.03 | AA172: 1250 | AB172: =AA172*Z172 -> 37.5 | AC172: 1250 | AD172: 37.5 | AF172: 37.5 | AG172: TRUE
B173: (d) 3 months | C173: 0 | D173: 0 | K173: 0 | L173: 0 | N173: 0 | Q173: 0.015 | S173: =R173*Q173 -> 0 | T173: 0 | U173: 0 | W173: 0 | Z173: 0.015 | AB173: =AA173*Z173 -> 0 | AC173: 0 | AD173: 0 | AF173: 0 | AG173: TRUE
B174: Sub Total | C174: =SUM(C170:C173) -> 1500 | D174: 45 | E174: 0 | F174: 0 | G174: 0 | H174: 0 | I174: 0 | J174: 0 | K174: 1500 | L174: 45 | M174: =SUM(M170:M173) -> 0 | N174: =SUM(N170:N173) -> 0 | O174: =SUM(O170:O173) -> 0 | P174: =SUM(P170:P173) -> 0 | R174: =SUM(R170:R173) -> 1250 | S174: =SUM(S170:S173) -> 37.5 | T174: =+M174+O174+R174 -> 1250 | U174: =+N174+P174+S174 -> 37.5 | V174: =SUM(V170:V173) -> 0 | W174: =SUM(W170:W173) -> 0 | X174: 0 | Y174: 0 | AA174: 1250 | AB174: 37.5 | AC174: =+V174+X174+AA174 -> 1250 | AD174: =+W174+Y174+AB174 -> 37.5 | AG174: TRUE
A175: 6.05 | B175: Madarasa/Maktab | T175: 0 | U175: 0 | AC175: 0 | AD175: 0 | AF175: 0 | AG175: TRUE
B176: (a) 12 months | C176: 0 | D176: 0 | K176: =C176-G176 -> 0 | L176: 0 | N176: 0 | Q176: 0.2 | S176: =R176*Q176 -> 0 | T176: 0 | U176: 0 | W176: 0 | Z176: 0.06 | AB176: =AA176*Z176 -> 0 | AC176: 0 | AD176: 0 | AF176: 0 | AG176: TRUE
B177: (b) 9 months | C177: 0 | D177: 0 | G177: 0 | K177: 0 | L177: 0 | N177: 0 | Q177: 0.045 | R177: 0 | S177: =R177*Q177 -> 0 | T177: 0 | U177: 0 | W177: 0 | Z177: 0.045 | AA177: 0 | AB177: =AA177*Z177 -> 0 | AC177: 0 | AD177: 0 | AF177: 0 | AG177: TRUE
B178: (c) 6 months | C178: 0 | D178: 0 | K178: 0 | L178: 0 | N178: 0 | Q178: 0.1 | S178: =R178*Q178 -> 0 | T178: 0 | U178: 0 | W178: 0 | Z178: 0.03 | AB178: =AA178*Z178 -> 0 | AC178: 0 | AD178: 0 | AF178: 0 | AG178: TRUE
B179: (d) 3 months | C179: 0 | D179: 0 | K179: 0 | L179: 0 | Q179: 0.05 | S179: =R179*Q179 -> 0 | T179: 0 | U179: 0 | Z179: 0.015 | AB179: =AA179*Z179 -> 0 | AC179: 0 | AD179: 0 | AF179: 0 | AG179: TRUE
B180: Sub Total | C180: =SUM(C176:C179) -> 0 | D180: 0 | E180: 0 | F180: 0 | G180: 0 | H180: 0 | K180: 0 | L180: 0 | M180: =SUM(M176:M179) -> 0 | N180: =SUM(N176:N179) -> 0 | O180: =SUM(O176:O179) -> 0 | P180: =SUM(P176:P179) -> 0 | R180: =SUM(R176:R179) -> 0 | S180: =SUM(S176:S179) -> 0 | T180: =+M180+O180+R180 -> 0 | U180: =+N180+P180+S180 -> 0 | V180: =SUM(V176:V179) -> 0 | W180: =SUM(W176:W179) -> 0 | X180: 0 | Y180: 0 | AA180: 0 | AB180: 0 | AC180: =+V180+X180+AA180 -> 0 | AD180: =+W180+Y180+AB180 -> 0 | AG180: TRUE
A181: 6.06 | B181: Seasonal Hostel (Residential) | T181: 0 | U181: 0 | AC181: 0 | AD181: 0 | AF181: 0 | AG181: TRUE
B182: (a) 12 months | C182: 0 | D182: 0 | K182: =C182-G182 -> 0 | L182: 0 | N182: 0 | S182: =R182*Q182 -> 0 | T182: 0 | U182: 0 | W182: 0 | AB182: =AA182*Z182 -> 0 | AC182: 0 | AD182: 0 | AF182: 0 | AG182: TRUE
B183: (b) 9 months | C183: 0 | D183: 0 | K183: 0 | L183: 0 | N183: 0 | S183: =R183*Q183 -> 0 | T183: 0 | U183: 0 | W183: 0 | AB183: =AA183*Z183 -> 0 | AC183: 0 | AD183: 0 | AF183: 0 | AG183: TRUE
B184: (c) 6 months | C184: 0 | D184: 0 | K184: 0 | L184: 0 | N184: 0 | Q184: 0 | R184: 0 | S184: =R184*Q184 -> 0 | T184: 0 | U184: 0 | W184: 0 | Z184: 0 | AA184: 0 | AB184: =AA184*Z184 -> 0 | AC184: 0 | AD184: 0 | AF184: 0 | AG184: TRUE
B185: (d) 3 months | C185: 0 | D185: 0 | K185: 0 | L185: 0 | N185: 0 | S185: =R185*Q185 -> 0 | T185: 0 | U185: 0 | W185: 0 | AB185: =AA185*Z185 -> 0 | AC185: 0 | AD185: 0 | AF185: 0 | AG185: TRUE
B186: Sub Total | C186: =SUM(C183:C185) -> 0 | D186: =SUM(D183:D185) -> 0 | E186: =SUM(E183:E185) -> 0 | F186: 0 | G186: 0 | H186: 0 | K186: 0 | L186: 0 | M186: =SUM(M182:M185) -> 0 | N186: =SUM(N182:N185) -> 0 | O186: =SUM(O182:O185) -> 0 | P186: =SUM(P182:P185) -> 0 | R186: =SUM(R182:R185) -> 0 | S186: =SUM(S182:S185) -> 0 | T186: =+M186+O186+R186 -> 0 | U186: =+N186+P186+S186 -> 0 | V186: =SUM(V182:V185) -> 0 | W186: =SUM(W182:W185) -> 0 | X186: 0 | Y186: 0 | AA186: 0 | AB186: 0 | AC186: =+V186+X186+AA186 -> 0 | AD186: =+W186+Y186+AB186 -> 0 | AG186: TRUE
A187: 6.07 | B187: Seasonal Hostel (Non Residential) | C187: 0 | D187: 0 | T187: 0 | U187: 0 | AC187: 0 | AD187: 0 | AF187: 0 | AG187: TRUE
B188: (a) 12 months | C188: 0 | D188: 0 | K188: =C188-G188 -> 0 | L188: 0 | N188: 0 | S188: =R188*Q188 -> 0 | T188: 0 | U188: 0 | W188: 0 | AB188: =AA188*Z188 -> 0 | AC188: 0 | AD188: 0 | AF188: 0 | AG188: TRUE
B189: (b) 9 months | C189: 0 | D189: 0 | K189: 0 | L189: 0 | N189: 0 | S189: =R189*Q189 -> 0 | T189: 0 | U189: 0 | W189: 0 | AB189: =AA189*Z189 -> 0 | AC189: 0 | AD189: 0 | AF189: 0 | AG189: TRUE
B190: (c) 6 months | C190: 495 | D190: 14.85 | I190: 0 | J190: 0 | K190: 495 | L190: 14.85 | N190: 0 | T190: 0 | U190: 0 | W190: 0 | AC190: 0 | AD190: 0 | AF190: 0 | AG190: TRUE
B191: (d) 3 months | C191: 0 | D191: 0 | K191: 0 | L191: 0 | N191: 0 | S191: =R191*Q191 -> 0 | T191: 0 | U191: 0 | W191: 0 | AB191: =AA191*Z191 -> 0 | AC191: 0 | AD191: 0 | AF191: 0 | AG191: TRUE
B192: Sub Total | C192: =SUM(C188:C191) -> 495 | D192: 14.85 | E192: 0 | F192: 0 | G192: 0 | H192: 0 | I192: 0 | J192: 0 | K192: 495 | L192: 14.85 | M192: =SUM(M188:M191) -> 0 | N192: =SUM(N188:N191) -> 0 | O192: =SUM(O188:O191) -> 0 | P192: =SUM(P188:P191) -> 0 | Q192: =SUM(Q188:Q191) -> 0 | R192: =SUM(R188:R191) -> 0 | S192: =SUM(S188:S191) -> 0 | T192: =+M192+O192+R192 -> 0 | U192: =+N192+P192+S192 -> 0 | V192: =SUM(V188:V191) -> 0 | W192: =SUM(W188:W191) -> 0 | X192: 0 | Y192: 0 | Z192: 0 | AA192: 0 | AB192: 0 | AC192: =+V192+X192+AA192 -> 0 | AD192: =+W192+Y192+AB192 -> 0 | AF192: 0 | AG192: TRUE
B193: Total | C193: =C192+C186+C180+C174+C168+C162+C156 -> 2532 | D193: 111.38 | E193: 0 | F193: 0 | G193: 0 | H193: 0 | I193: 0 | J193: 0 | K193: 2532 | L193: 111.38 | M193: =+M192+M186+M180+M174+M168+M162+M156 -> 0 | N193: =+N192+N186+N180+N174+N168+N162+N156 -> 0 | O193: =+O192+O186+O180+O174+O168+O162+O156 -> 0 | P193: =+P192+P186+P180+P174+P168+P162+P156 -> 0 | Q193: =+Q192+Q186+Q180+Q174+Q168+Q162+Q156 -> 0 | R193: =+R192+R186+R180+R174+R168+R162+R156 -> 2158 | S193: =+S192+S186+S180+S174+S168+S162+S156 -> 103.175 | T193: =+M193+O193+R193 -> 2158 | U193: =+N193+P193+S193 -> 103.175 | V193: =+V192+V186+V180+V174+V168+V162+V156 -> 0 | W193: =+W192+W186+W180+W174+W168+W162+W156 -> 0 | X193: 0 | Y193: 0 | Z193: 0 | AA193: 2158 | AB193: 103.175 | AC193: =+V193+X193+AA193 -> 2158 | AD193: =+W193+Y193+AB193 -> 103.175 | AG193: TRUE
A194: II | B194: RETENTION | T194: 0 | U194: 0 | AC194: 0 | AD194: 0 | AF194: 0 | AG194: TRUE
A195: 7 | B195: Free Text Books | T195: 0 | U195: 0 | AC195: 0 | AD195: 0 | AF195: 0 | AG195: TRUE
A196: 7.01 | B196: Free Text Books (P) | C196: 0 | D196: 0 | T196: 0 | U196: 0 | AC196: 0 | AD196: 0 | AF196: 0 | AG196: TRUE
B197: (a) Class I & II | C197: 20879 | D197: 18.99989 | E197: =C197 -> 20879 | F197: =D197 -> 18.99989 | G197: =C197 -> 20879 | H197: =D197 -> 18.99989 | I197: 100 | J197: 100 | K197: =C197-G197 -> 0 | L197: 0 | N197: 0 | Q197: 0.0015 | R197: 18618 | S197: =R197*Q197 -> 27.927 | T197: 18618 | U197: 27.927 | W197: 0 | Z197: 0.0015 | AA197: 18618 | AB197: =AA197*Z197 -> 27.927 | AC197: 18618 | AD197: 27.927 | AF197: 27.927 | AG197: TRUE
B198: (b) Braille Books Class I & II | C198: 4 | D198: 0.006 | E198: =C198 -> 4 | G198: =C198 -> 4 | I198: 100 | J198: 0 | K198: 0 | L198: 0.006 | N198: 0 | Q198: 0.0015 | R198: 14 | S198: =+Q198*R198 -> 0.021 | T198: 14 | U198: 0.021 | W198: 0 | Z198: 0.0015 | AA198: 14 | AB198: =+Z198*AA198 -> 0.021 | AC198: 14 | AD198: 0.021 | AF198: 0.021 | AG198: TRUE
B199: (c) Large Print Books Class I & II | C199: 77 | D199: 0.1155 | E199: 77 | G199: 77 | I199: 100 | J199: 0 | K199: 0 | L199: 0.1155 | N199: 0 | Q199: 0.0015 | R199: 32 | S199: =+Q199*R199 -> 0.048 | T199: =+R199 -> 32 | U199: =+S199 -> 0.048 | W199: 0 | Z199: 0.0015 | AA199: 32 | AB199: =+Z199*AA199 -> 0.048 | AC199: =+AA199 -> 32 | AD199: =+AB199 -> 0.048 | AF199: 0.048 | AG199: TRUE
B200: (d) Class III to V | C200: 35962 | D200: 36.68124 | E200: 35962 | F200: =D200 -> 36.68124 | G200: 35962 | H200: =D200 -> 36.68124 | I200: =IFERROR(G200/C200*100,"") -> 100 | J200: =IFERROR(H200/D200*100,"") -> 100 | K200: 0 | L200: 0 | N200: 0 | Q200: 0.0015 | R200: 33933 | S200: 50.8995 | T200: =+M200+O200+R200 -> 33933 | U200: =+N200+P200+S200 -> 50.8995 | W200: 0 | Z200: 0.0015 | AA200: 33933 | AB200: 50.8995 | AC200: =+V200+X200+AA200 -> 33933 | AD200: =+W200+Y200+AB200 -> 50.8995 | AF200: =+AD200 -> 50.8995 | AG200: =+W200+Y200+AB200=AD200 -> TRUE
B201: (e) Braille Books Class III to V | C201: 9 | D201: 0.0135 | E201: 9 | G201: 9 | I201: 100 | J201: 0 | K201: 0 | L201: 0.0135 | N201: 0 | Q201: 0.0015 | R201: 315 | S201: =+Q201*R201 -> 0.4725 | T201: =+R201 -> 315 | U201: =+S201 -> 0.4725 | W201: 0 | Z201: 0.0015 | AA201: 315 | AB201: =+Z201*AA201 -> 0.4725 | AC201: =+AA201 -> 315 | AD201: =+AB201 -> 0.4725 | AF201: 0.4725 | AG201: TRUE
... 315 more rows

Sheet Belagavi
A1: Name of the District: Belagavi | C1: 2016-17 | M1: Outlay Proposed for 2017-18 | V1: Outlay Recommended for 2017-18
A2: S.No. | B2: Activity | C2: Out Lay Approved for 2016-17 (including spill over) | E2: Expenditure as on DEC, 2016 (As per Vidyavahini Software) | G2: Anticipated Achievement till 31-3-2017 | K2: Savings | M2: Spill Over | O2: Deferred laibility of 2016-2017 | Q2: Fresh | T2: Total | V2: Spill Over | X2: Deferred laibility of 2016-2017 | Z2: Fresh | AC2: Total
C3: Phy. | D3: Fin. | E3: Phy. | F3: Fin. | G3: Phy. | H3: Fin. | I3: Phy. (%) | J3: Fin. (%) | K3: Phy. | L3: Fin. | M3: Phy. | N3: Fin. | O3: Phy. | P3: Fin. | Q3: Unit Cost | R3: Phy. | S3: Fin. | T3: Phy. | U3: Fin. | V3: Phy. | W3: Fin. | X3: Phy. | Y3: Fin. | Z3: Unit Cost | AA3: Phy. | AB3: Fin. | AC3: Phy. | AD3: Fin.
B5: SSA
A6: 1 | B6: Opening of New Schools | C6: 0 | D6: 0
A7: 1.01 | B7: New Primary School | C7: 0 | D7: 0 | I7: =IFERROR(G7/C7*100,"") ->  | J7: =IFERROR(H7/D7*100,"") ->  | K7: =C7-G7 -> 0 | L7: =D7-H7 -> 0 | S7: =Q7*R7 -> 0 | T7: =+M7+O7+R7 -> 0 | U7: =+N7+P7+S7 -> 0 | AB7: =Z7*AA7 -> 0 | AC7: =+V7+X7+AA7 -> 0 | AD7: =+W7+Y7+AB7 -> 0 | AF7: =+AD7 -> 0 | AG7: =+W7+Y7+AB7=AD7 -> TRUE
A8: 1.02 | B8: Upgradation of PS to UPS | C8: 0 | D8: 0 | I8: =IFERROR(G8/C8*100,"") ->  | J8: =IFERROR(H8/D8*100,"") ->  | K8: =C8-G8 -> 0 | L8: 0 | S8: =R8*Q8 -> 0 | T8: =+M8+O8+R8 -> 0 | U8: =+N8+P8+S8 -> 0 | AB8: =AA8*Z8 -> 0 | AC8: =+V8+X8+AA8 -> 0 | AD8: =+W8+Y8+AB8 -> 0 | AF8: =+AD8 -> 0 | AG8: =+W8+Y8+AB8=AD8 -> TRUE
A9: 1.03 | B9: Composite Schools | C9: 0 | D9: 0 | K9: 0 | L9: 0 | S9: 0 | T9: 0 | U9: 0 | AB9: 0 | AC9: 0 | AD9: 0 | AF9: 0 | AG9: TRUE
A10: 1.04 | B10: Residential schools for specific category of children | C10: 0 | D10: 0 | K10: 0 | L10: 0 | S10: 0 | T10: 0 | U10: 0 | AB10: 0 | AC10: 0 | AD10: 0 | AF10: 0 | AG10: TRUE
A11: 1.05 | B11: Residential Hostel | C11: 0 | D11: 0 | K11: 0 | L11: 0 | S11: 0 | T11: 0 | U11: 0 | AB11: 0 | AC11: 0 | AD11: 0 | AF11: 0 | AG11: TRUE
A12: 1.06 | B12: Integration of Class V with primary schools | C12: 0 | D12: 0 | K12: 0 | L12: 0 | S12: 0 | T12: 0 | U12: 0 | AB12: 0 | AC12: 0 | AD12: 0 | AF12: 0 | AG12: TRUE
A13: 1.07 | B13: Integration of Class VIII with upper primary schools | C13: 0 | D13: 0 | K13: 0 | L13: 0 | S13: 0 | T13: 0 | U13: 0 | AB13: 0 | AC13: 0 | AD13: 0 | AF13: 0 | AG13: TRUE
A14: 2 | B14: Residential Schools for specific category of children | T14: 0 | U14: 0 | AC14: 0 | AD14: 0 | AG14: TRUE
B15: 50 children | T15: 0 | U15: 0 | AC15: 0 | AD15: 0 | AG15: TRUE
B16: Non-recurring (one time grant) | T16: 0 | U16: 0 | AC16: 0 | AD16: 0 | AG16: TRUE
A17: 2.01 | B17: Furniture/ Equipment (including kitchen) | C17: 0 | D17: 0 | K17: =C17-G17 -> 0 | L17: 0 | S17: =R17*Q17 -> 0 | T17: 0 | U17: 0 | AB17: =AA17*Z17 -> 0 | AC17: 0 | AD17: 0 | AF17: 0 | AG17: TRUE
A18: 2.02 | B18: TLM and equipment including library books | C18: 0 | D18: 0 | K18: 0 | L18: 0 | S18: =R18*Q18 -> 0 | T18: 0 | U18: 0 | AB18: =AA18*Z18 -> 0 | AC18: 0 | AD18: 0 | AF18: 0 | AG18: TRUE
A19: 2.03 | B19: Bedding (new) | C19: 0 | D19: 0 | K19: 0 | L19: 0 | S19: =R19*Q19 -> 0 | T19: 0 | U19: 0 | AB19: =AA19*Z19 -> 0 | AC19: 0 | AD19: 0 | AF19: 0 | AG19: TRUE
A20: 2.04 | B20: Replacement of bedding (once in 3 years) | C20: 0 | D20: 0 | K20: 0 | L20: 0 | S20: =R20*Q20 -> 0 | T20: 0 | U20: 0 | AB20: =AA20*Z20 -> 0 | AC20: 0 | AD20: 0 | AF20: 0 | AG20: TRUE
B21: Sub Total (Non Recurring) | C21: 0 | D21: 0 | E21: =SUM(E7:E20) -> 0 | F21: =SUM(F7:F20) -> 0 | G21: 0 | H21: 0 | K21: 0 | L21: 0 | M21: 0 | N21: 0 | O21: 0 | P21: 0 | R21: =SUM(R7:R20) -> 0 | S21: =SUM(S7:S20) -> 0 | T21: 0 | U21: 0 | V21: =SUM(V7:V20) -> 0 | W21: =SUM(W7:W20) -> 0 | X21: 0 | Y21: 0 | AA21: 0 | AB21: 0 | AC21: 0 | AD21: 0 | AE21: 0 | AF21: 0 | AG21: TRUE
B22: Recurring (50 children) | T22: 0 | U22: 0 | AC22: 0 | AD22: 0 | AF22: 0 | AG22: TRUE
A23: 2.05 | B23: Maintenance per child Per month @ Rs.1500/- | C23: 0 | D23: 0 | K23: =C23-G23 -> 0 | L23: 0 | N23: 0 | Q23: 0.18 | S23: =R23*Q23 -> 0 | T23: 0 | U23: 0 | W23: 0 | AB23: =AA23*Z23 -> 0 | AC23: 0 | AD23: 0 | AF23: 0 | AG23: TRUE
A24: 2.06 | B24: Stipend per child per month @ Rs.100/- | C24: 0 | D24: 0 | K24: 0 | L24: 0 | N24: 0 | Q24: 0.012 | S24: =R24*Q24 -> 0 | T24: 0 | U24: 0 | W24: 0 | AB24: =AA24*Z24 -> 0 | AC24: 0 | AD24: 0 | AF24: 0 | AG24: TRUE
A25: 2.07 | B25: Supplementary TLM, Stationery and other educational material @Rs.1000/- per child per annum | C25: 0 | D25: 0 | K25: 0 | L25: 0 | N25: 0 | Q25: 0.01 | S25: =R25*Q25 -> 0 | T25: 0 | U25: 0 | W25: 0 | AB25: =AA25*Z25 -> 0 | AC25: 0 | AD25: 0 | AF25: 0 | AG25: TRUE
A26: 2.08 | B26: Salaries | T26: 0 | U26: 0 | AC26: 0 | AD26: 0 | AF26: 0 | AG26: TRUE
A27: (a) | B27: 1 Warden @ Rs.25000/- per month | C27: 0 | D27: 0 | K27: 0 | L27: 0 | N27: 0 | Q27: 3 | S27: =R27*Q27 -> 0 | T27: 0 | U27: 0 | W27: 0 | AB27: =AA27*Z27 -> 0 | AC27: 0 | AD27: 0 | AF27: 0 | AG27: TRUE
A28: (b ) | B28: 4 Fulltime teachers as per RTE Norms @ Rs. 20,000/- per month per teacher | C28: 0 | D28: 0 | K28: 0 | L28: 0 | N28: 0 | Q28: 9.6 | S28: 0 | T28: 0 | U28: 0 | W28: 0 | AB28: 0 | AC28: 0 | AD28: 0 | AF28: 0 | AG28: TRUE
A29: (c) | B29: 2 Urdu Teachers (only for Blocks with muslim population above 20% and select urban areas) @ Rs.12,000/- per month per teacher. | C29: 0 | D29: 0 | K29: 0 | L29: 0 | N29: 0 | Q29: 1.44 | S29: 0 | T29: 0 | U29: 0 | W29: 0 | AB29: 0 | AC29: 0 | AD29: 0 | AF29: 0 | AG29: TRUE
A30: (d) | B30: 3 Part time teachers @ Rs.5,000/- per month per teacher | C30: 0 | D30: 0 | K30: 0 | L30: 0 | N30: 0 | Q30: 1.55 | S30: 0 | T30: 0 | U30: 0 | W30: 0 | AB30: 0 | AC30: 0 | AD30: 0 | AF30: 0 | AG30: TRUE
A31: (e ) | B31: 1 Full time Accountant @ Rs. 10,000/- per month | C31: 0 | D31: 0 | K31: 0 | L31: 0 | N31: 0 | Q31: 1.2 | S31: 0 | T31: 0 | U31: 0 | W31: 0 | AB31: 0 | AC31: 0 | AD31: 0 | AF31: 0 | AG31: TRUE
A32: (f) | B32: 2 Support staff - (Accountant/Assistant, Peon, Chowkidar) @ Rs. 5,000/- per month per staff | C32: 0 | D32: 0 | K32: 0 | L32: 0 | N32: 0 | Q32: 1.2 | S32: 0 | T32: 0 | U32: 0 | W32: 0 | AB32: 0 | AC32: 0 | AD32: 0 | AF32: 0 | AG32: TRUE
A33: (g) | B33: 1 Head Cook @ Rs. 6,000/- per month and upto 2 Asstt. Cooks @ Rs. 4,500/- per month per cook | C33: 0 | D33: 0 | K33: 0 | L33: 0 | N33: 0 | Q33: 1.8 | S33: 0 | T33: 0 | U33: 0 | W33: 0 | AB33: 0 | AC33: 0 | AD33: 0 | AF33: 0 | AG33: TRUE
A34: 2.09 | B34: Specific Skill training @ Rs.1000/- per annum per child | C34: 0 | D34: 0 | K34: 0 | L34: 0 | N34: 0 | Q34: 0.01 | S34: 0 | T34: 0 | U34: 0 | W34: 0 | AB34: 0 | AC34: 0 | AD34: 0 | AF34: 0 | AG34: TRUE
A35: 2.1 | B35: Electricity / water charges @ Rs. 1000/- per annum per child | C35: 0 | D35: 0 | K35: 0 | L35: 0 | N35: 0 | Q35: 0.01 | S35: 0 | T35: 0 | U35: 0 | W35: 0 | AB35: 0 | AC35: 0 | AD35: 0 | AF35: 0 | AG35: TRUE
A36: 2.11 | B36: Medical care/contingencies @ Rs.1250/- per annum per child | C36: 0 | D36: 0 | K36: 0 | L36: 0 | N36: 0 | Q36: 0.0125 | S36: 0 | T36: 0 | U36: 0 | W36: 0 | AB36: 0 | AC36: 0 | AD36: 0 | AF36: 0 | AG36: TRUE
A37: 2.12 | B37: Maintenance @ Rs. 750/- per child per annum | C37: 0 | D37: 0 | K37: 0 | L37: 0 | N37: 0 | Q37: 0.0075 | S37: 0 | T37: 0 | U37: 0 | W37: 0 | AB37: 0 | AC37: 0 | AD37: 0 | AF37: 0 | AG37: TRUE
A38: 2.13 | B38: Miscellaneous @ Rs. 750/- per child per annum | C38: 0 | D38: 0 | K38: 0 | L38: 0 | N38: 0 | Q38: 0.0075 | S38: 0 | T38: 0 | U38: 0 | W38: 0 | AB38: 0 | AC38: 0 | AD38: 0 | AF38: 0 | AG38: TRUE
A39: 2.14 | B39: Preparatory camps @ Rs. 300/- per child per annum | C39: 0 | D39: 0 | K39: 0 | L39: 0 | N39: 0 | Q39: 0.003 | S39: 0 | T39: 0 | U39: 0 | W39: 0 | AB39: 0 | AC39: 0 | AD39: 0 | AF39: 0 | AG39: TRUE
A40: 2.15 | B40: P.T.A / school functions @ Rs. 300/- per child per annum | C40: 0 | D40: 0 | K40: 0 | L40: 0 | N40: 0 | Q40: 0.003 | S40: 0 | T40: 0 | U40: 0 | W40: 0 | AB40: 0 | AC40: 0 | AD40: 0 | AF40: 0 | AG40: TRUE
A41: 2.16 | B41: Provision of Rent @ Rs. 10,000/- per child per annum | C41: 0 | D41: 0 | K41: 0 | L41: 0 | N41: 0 | S41: 0 | T41: 0 | U41: 0 | W41: 0 | AB41: 0 | AC41: 0 | AD41: 0 | AF41: 0 | AG41: TRUE
A42: 2.17 | B42: Capacity Building @ Rs. 500/- per child per annum | C42: 0 | D42: 0 | K42: 0 | L42: 0 | N42: 0 | Q42: 0.005 | S42: 0 | T42: 0 | U42: 0 | W42: 0 | AB42: 0 | AC42: 0 | AD42: 0 | AF42: 0 | AG42: TRUE
A43: 2.18 | B43: Physical / Self Defence Training @ Rs.200/- per child per annum | C43: 0 | D43: 0 | K43: 0 | L43: 0 | N43: 0 | Q43: 0.002 | S43: 0 | T43: 0 | U43: 0 | W43: 0 | AB43: 0 | AC43: 0 | AD43: 0 | AF43: 0 | AG43: TRUE
B44: Sub Total (Recurring) | C44: =SUM(C23:C43) -> 0 | D44: 0 | E44: 0 | F44: 0 | G44: 0 | H44: 0 | K44: 0 | L44: 0 | M44: 0 | N44: 0 | R44: =SUM(R23:R43) -> 0 | S44: =SUM(S23:S43) -> 0 | T44: 0 | U44: 0 | V44: =SUM(V23:V43) -> 0 | W44: =SUM(W23:W43) -> 0 | X44: 0 | Y44: 0 | AA44: 0 | AB44: 0 | AC44: =+V44+X44+AA44 -> 0 | AD44: =+W44+Y44+AB44 -> 0 | AG44: TRUE
B45: Total (Non Recurring + Recurring) | C45: =C44+C21 -> 0 | D45: 0 | E45: 0 | F45: 0 | G45: 0 | H45: 0 | K45: 0 | L45: 0 | M45: 0 | N45: 0 | R45: =R44+R21 -> 0 | S45: =S44+S21 -> 0 | T45: 0 | U45: 0 | V45: =+V44+V21 -> 0 | W45: =+W44+W21 -> 0 | X45: 0 | Y45: 0 | Z45: 0 | AA45: 0 | AB45: 0 | AC45: =+V45+X45+AA45 -> 0 | AD45: =+W45+Y45+AB45 -> 0 | AG45: TRUE
B46: 100 children | T46: 0 | U46: 0 | AC46: 0 | AD46: 0 | AG46: TRUE
B47: Non-recurring (one time grant) | T47: 0 | U47: 0 | AC47: 0 | AD47: 0 | AG47: TRUE
A48: 2.19 | B48: Furniture / Equipment (including kitchen equipment) | C48: 0 | D48: 0 | K48: =C48-G48 -> 0 | L48: 0 | S48: =R48*Q48 -> 0 | T48: 0 | U48: 0 | AB48: =AA48*Z48 -> 0 | AC48: 0 | AD48: 0 | AF48: 0 | AG48: TRUE
A49: 2.2 | B49: TLM and equipment including library books (New) | C49: 0 | D49: 0 | K49: 0 | L49: 0 | S49: =R49*Q49 -> 0 | T49: 0 | U49: 0 | AB49: =AA49*Z49 -> 0 | AC49: 0 | AD49: 0 | AF49: 0 | AG49: TRUE
A50: 2.21 | B50: Bedding (New) | C50: 0 | D50: 0 | K50: 0 | L50: 0 | S50: =R50*Q50 -> 0 | T50: 0 | U50: 0 | AB50: =AA50*Z50 -> 0 | AC50: 0 | AD50: 0 | AF50: 0 | AG50: TRUE
A51: 2.22 | B51: Replacement of bedding (once in 3 years) | C51: 0 | D51: 0 | E51: 0 | G51: 0 | K51: 0 | L51: 0 | S51: =R51*Q51 -> 0 | T51: 0 | U51: 0 | AB51: =AA51*Z51 -> 0 | AC51: 0 | AD51: 0 | AF51: 0 | AG51: TRUE
B52: Sub Total Non-recurring | C52: 0 | D52: 0 | E52: =SUM(E48:E51) -> 0 | F52: =SUM(F48:F51) -> 0 | G52: 0 | H52: 0 | K52: 0 | L52: 0 | M52: 0 | N52: 0 | R52: =SUM(R48:R51) -> 0 | S52: =SUM(S48:S51) -> 0 | T52: 0 | U52: 0 | V52: =SUM(V48:V51) -> 0 | W52: =SUM(W48:W51) -> 0 | X52: 0 | Y52: 0 | AA52: 0 | AB52: 0 | AC52: =+V52+X52+AA52 -> 0 | AD52: =+W52+Y52+AB52 -> 0 | AG52: TRUE
B53: Recurring | C53: 0 | D53: 0 | T53: 0 | U53: 0 | AC53: 0 | AD53: 0 | AG53: TRUE
A54: 2.23 | B54: Maintenance per child per month @ Rs. 1500/- | C54: 0 | D54: 0 | K54: =C54-G54 -> 0 | L54: 0 | N54: 0 | Q54: 0.18 | S54: =R54*Q54 -> 0 | T54: 0 | U54: 0 | W54: 0 | Z54: 0.18 | AB54: =AA54*Z54 -> 0 | AC54: 0 | AD54: 0 | AF54: 0 | AG54: TRUE
A55: 2.24 | B55: Stipend per child per month @ Rs.100/- | C55: 0 | D55: 0 | K55: 0 | L55: 0 | N55: 0 | Q55: 0.012 | S55: =R55*Q55 -> 0 | T55: 0 | U55: 0 | W55: 0 | Z55: 0.012 | AB55: =AA55*Z55 -> 0 | AC55: 0 | AD55: 0 | AF55: 0 | AG55: TRUE
A56: 2.25 | B56: Supplementary TLM, Stationery and other educational material per child @1000/- per annum | C56: 0 | D56: 0 | K56: 0 | L56: 0 | N56: 0 | Q56: 0.01 | S56: =R56*Q56 -> 0 | T56: 0 | U56: 0 | W56: 0 | Z56: 0.01 | AB56: =AA56*Z56 -> 0 | AC56: 0 | AD56: 0 | AF56: 0 | AG56: TRUE
A57: =+A56+0.01 -> 2.26 | B57: Salaries | T57: 0 | U57: 0 | AC57: 0 | AD57: 0 | AF57: 0 | AG57: TRUE
A58: (a) | B58: 1 Warden @ Rs. 25,000/- per month | C58: 0 | D58: 0 | G58: 0 | K58: 0 | L58: 0 | N58: 0 | Q58: 3 | S58: =R58*Q58 -> 0 | T58: 0 | U58: 0 | W58: 0 | Z58: 3 | AB58: =AA58*Z58 -> 0 | AC58: 0 | AD58: 0 | AF58: 0 | AG58: TRUE
A59: (b) | B59: 1 head teacher @ Rs. 25,000/- per month in case the enrollment exceeds 100 | K59: 0 | L59: 0 | N59: 0 | S59: 0 | T59: 0 | U59: 0 | W59: 0 | AB59: 0 | AC59: 0 | AD59: 0 | AF59: 0 | AG59: TRUE
A60: (c) | B60: 4 - 5 Full time teachers as per RTE norms @ Rs. 20,000/- per month per teacher | C60: 0 | D60: 0 | G60: 0 | K60: 0 | L60: 0 | N60: 0 | Q60: 9.6 | S60: 0 | T60: 0 | U60: 0 | W60: 0 | Z60: 9.6 | AB60: 0 | AC60: 0 | AD60: 0 | AF60: 0 | AG60: TRUE
A61: (d) | B61: 2 Urdu Teachers (only for blocks with muslim population above 20% and select urban areas), if required @ Rs. 12,000/- per month per teacher | C61: 0 | D61: 0 | K61: 0 | L61: 0 | N61: 0 | Q61: 1.44 | S61: 0 | T61: 0 | U61: 0 | W61: 0 | AB61: 0 | AC61: 0 | AD61: 0 | AF61: 0 | AG61: TRUE
A62: (e) | B62: 3 part time teachers @ Rs. 5,000/- per month per teacher | C62: 0 | D62: 0 | G62: 0 | K62: 0 | L62: 0 | N62: 0 | Q62: 1.5 | S62: 0 | T62: 0 | U62: 0 | W62: 0 | Z62: 1.5 | AB62: 0 | AC62: 0 | AD62: 0 | AF62: 0 | AG62: TRUE
A63: (f) | B63: 1 Full time Accountant @ Rs. 10,000/- per month | C63: 0 | D63: 0 | K63: 0 | L63: 0 | N63: 0 | Q63: 1.2 | S63: 0 | T63: 0 | U63: 0 | W63: 0 | Z63: 1.2 | AB63: 0 | AC63: 0 | AD63: 0 | AF63: 0 | AG63: TRUE
A64: (g) | B64: 2 Support Staff – (Accountant/ Assistant, Peon, Chowkidar) @ Rs. 5,000/- per month per staff | C64: 0 | D64: 0 | K64: 0 | L64: 0 | N64: 0 | Q64: 1.2 | S64: 0 | T64: 0 | U64: 0 | W64: 0 | Z64: 1.2 | AB64: 0 | AC64: 0 | AD64: 0 | AF64: 0 | AG64: TRUE
A65: (h) | B65: 1 Head cook @ Rs. 6,000/- per month and upto 2 Asstt. Cooks @ Rs. 4,500/- per month per cook | C65: 0 | D65: 0 | K65: 0 | L65: 0 | N65: 0 | Q65: 1.8 | S65: 0 | T65: 0 | U65: 0 | W65: 0 | Z65: 1.8 | AB65: 0 | AC65: 0 | AD65: 0 | AF65: 0 | AG65: TRUE
A66: 2.27 | B66: Specific skill training per child @ Rs.1000/- per annum | C66: 0 | D66: 0 | K66: 0 | L66: 0 | N66: 0 | Q66: 0.01 | S66: 0 | T66: 0 | U66: 0 | W66: 0 | Z66: 0.01 | AB66: 0 | AC66: 0 | AD66: 0 | AF66: 0 | AG66: TRUE
A67: 2.28 | B67: Electricity / water charges per child @Rs.1000/- per annum | C67: 0 | D67: 0 | K67: 0 | L67: 0 | N67: 0 | Q67: 0.01 | S67: 0 | T67: 0 | U67: 0 | W67: 0 | Z67: 0.01 | AB67: 0 | AC67: 0 | AD67: 0 | AF67: 0 | AG67: TRUE
A68: 2.29 | B68: Medical care/contingencies @ Rs.1250/- per child per annum | C68: 0 | D68: 0 | K68: 0 | L68: 0 | N68: 0 | Q68: 0.0125 | S68: 0 | T68: 0 | U68: 0 | W68: 0 | Z68: 0.0125 | AB68: 0 | AC68: 0 | AD68: 0 | AF68: 0 | AG68: TRUE
A69: 2.3 | B69: Maintenance @ Rs.750/- per child per annum | C69: 0 | D69: 0 | K69: 0 | L69: 0 | N69: 0 | Q69: 0.0075 | S69: 0 | T69: 0 | U69: 0 | W69: 0 | Z69: 0.0075 | AB69: 0 | AC69: 0 | AD69: 0 | AF69: 0 | AG69: TRUE
A70: 2.31 | B70: Miscellaneous @ Rs.750/- per child per annum | C70: 0 | D70: 0 | K70: =C70-G70 -> 0 | L70: 0 | N70: 0 | Q70: 0.0075 | S70: 0 | T70: 0 | U70: 0 | W70: 0 | Z70: 0.0075 | AB70: 0 | AC70: 0 | AD70: 0 | AF70: 0 | AG70: TRUE
A71: 2.32 | B71: Preparatory camps @ Rs.200/- per child per annum | C71: 0 | D71: 0 | K71: 0 | L71: 0 | N71: 0 | Q71: 0.002 | S71: 0 | T71: 0 | U71: 0 | W71: 0 | Z71: 0.002 | AB71: 0 | AC71: 0 | AD71: 0 | AF71: 0 | AG71: TRUE
A72: 2.33 | B72: P.T.A / school functions @ Rs.200/- per child per annum | C72: 0 | D72: 0 | I72: =IFERROR(G72/C72*100,"") ->  | J72: =IFERROR(H72/D72*100,"") ->  | K72: 0 | L72: 0 | N72: 0 | Q72: 0.002 | S72: 0 | T72: =+M72+O72+R72 -> 0 | U72: =+N72+P72+S72 -> 0 | W72: 0 | Z72: 0.002 | AB72: 0 | AC72: =+V72+X72+AA72 -> 0 | AD72: =+W72+Y72+AB72 -> 0 | AF72: =+AD72 -> 0 | AG72: =+W72+Y72+AB72=AD72 -> TRUE
A73: 2.34 | B73: Provision of Rent @ Rs. 6000/- per child per annum | C73: 0 | D73: 0 | L73: 0 | N73: 0 | S73: 0 | T73: 0 | U73: 0 | W73: 0 | AB73: 0 | AC73: 0 | AD73: 0 | AF73: 0 | AG73: TRUE
A74: 2.35 | B74: Capacity Building @ Rs.500/- per child per annum | C74: 0 | D74: 0 | H74: 0 | K74: 0 | L74: 0 | N74: 0 | Q74: 0.005 | S74: 0 | T74: 0 | U74: 0 | W74: 0 | Z74: 0.005 | AB74: 0 | AC74: 0 | AD74: 0 | AF74: 0 | AG74: TRUE
A75: 2.36 | B75: Physical / Self Defence training @ Rs. 200/- per child per annum. | C75: 0 | D75: 0 | K75: 0 | L75: 0 | N75: 0 | Q75: 0.002 | S75: 0 | T75: 0 | U75: 0 | W75: 0 | Z75: 0.002 | AB75: 0 | AC75: 0 | AD75: 0 | AF75: 0 | AG75: TRUE
B76: Sub Total (Recurring) | C76: 0 | D76: 0 | E76: =E75+E51 -> 0 | F76: =SUM(F54:F75) -> 0 | G76: 0 | H76: 0 | K76: 0 | L76: 0 | M76: 0 | N76: 0 | R76: =SUM(R54:R75) -> 0 | S76: =SUM(S54:S75) -> 0 | T76: 0 | U76: 0 | V76: =SUM(V54:V75) -> 0 | W76: =SUM(W54:W75) -> 0 | X76: 0 | Y76: 0 | AA76: 0 | AB76: 0 | AC76: =+V76+X76+AA76 -> 0 | AD76: 0 | AG76: TRUE
B77: Total (Recurring + Non Recurring) | C77: 0 | D77: 0 | E77: 0 | F77: 0 | G77: 0 | H77: 0 | K77: 0 | L77: 0 | M77: 0 | N77: 0 | R77: =R76+R52 -> 0 | S77: =S76+S52 -> 0 | T77: 0 | U77: 0 | V77: =+V76+V52 -> 0 | W77: =+W76+W52 -> 0 | X77: 0 | Y77: 0 | AA77: 0 | AB77: 0 | AC77: 0 | AD77: 0 | AG77: TRUE
B78: Total (50 + 100 children) | C78: =C77+C45 -> 0 | D78: 0 | E78: 0 | F78: 0 | G78: 0 | H78: 0 | K78: 0 | L78: 0 | M78: =M77+M45 -> 0 | N78: =N77+N45 -> 0 | O78: =O77+O45 -> 0 | P78: =P77+P45 -> 0 | R78: =R77+R45 -> 0 | S78: =S77+S45 -> 0 | T78: 0 | U78: 0 | V78: =+V77+V45 -> 0 | W78: =+W77+W45 -> 0 | X78: 0 | Y78: 0 | AA78: 0 | AB78: 0 | AC78: 0 | AD78: 0 | AG78: TRUE
A79: 3 | B79: Residential Hostel for specific category of children | T79: 0 | U79: 0 | AC79: 0 | AD79: 0 | AF79: 0 | AG79: TRUE
A80: (A) | B80: 50 children | T80: 0 | U80: 0 | AC80: 0 | AD80: 0 | AF80: 0 | AG80: TRUE
B81: Non-recurring (one time grant) | T81: 0 | U81: 0 | AC81: 0 | AD81: 0 | AF81: 0 | AG81: TRUE
A82: 3.01 | B82: Furniture/ Equipment (including kitchen) | C82: 0 | D82: 0 | K82: =C82-G82 -> 0 | L82: 0 | S82: =R82*Q82 -> 0 | T82: 0 | U82: 0 | AB82: =AA82*Z82 -> 0 | AC82: 0 | AD82: 0 | AF82: 0 | AG82: TRUE
A83: =+A82+0.01 -> 3.02 | B83: TLM and equipment including library books | C83: 0 | D83: 0 | K83: 0 | L83: 0 | S83: =R83*Q83 -> 0 | T83: 0 | U83: 0 | AB83: =AA83*Z83 -> 0 | AC83: 0 | AD83: 0 | AF83: 0 | AG83: TRUE
A84: =+A83+0.01 -> 3.03 | B84: Bedding (new) | C84: 0 | D84: 0 | K84: 0 | L84: 0 | S84: =R84*Q84 -> 0 | T84: 0 | U84: 0 | AB84: =AA84*Z84 -> 0 | AC84: 0 | AD84: 0 | AF84: 0 | AG84: TRUE
A85: =+A84+0.01 -> 3.04 | B85: Replacement of bedding (once in 3 years) | C85: 0 | D85: 0 | K85: 0 | L85: 0 | S85: =R85*Q85 -> 0 | T85: 0 | U85: 0 | AB85: =AA85*Z85 -> 0 | AC85: 0 | AD85: 0 | AF85: 0 | AG85: TRUE
B86: Sub Total (Non Recurring) | C86: =SUM(C82:C85) -> 0 | D86: =SUM(D82:D85) -> 0 | E86: =SUM(E82:E85) -> 0 | F86: 0 | G86: 0 | H86: 0 | K86: 0 | L86: 0 | M86: 0 | N86: 0 | R86: =SUM(R82:R85) -> 0 | S86: =SUM(S82:S85) -> 0 | T86: 0 | U86: 0 | V86: =SUM(V82:V85) -> 0 | W86: =SUM(W82:W85) -> 0 | X86: 0 | Y86: 0 | AA86: 0 | AB86: 0 | AC86: =+V86+X86+AA86 -> 0 | AD86: =+W86+Y86+AB86 -> 0 | AF86: 0 | AG86: TRUE
B87: Recurring (50 children) | C87: 0 | D87: 0 | S87: =R87*Q87 -> 0 | T87: 0 | U87: 0 | AB87: =AA87*Z87 -> 0 | AC87: 0 | AD87: 0 | AF87: 0 | AG87: TRUE
A88: 3.05 | B88: Maintenance per child Per month @ Rs.1500/- | C88: 0 | D88: 0 | K88: =C88-G88 -> 0 | L88: 0 | N88: 0 | S88: =R88*Q88 -> 0 | T88: 0 | U88: 0 | W88: 0 | AB88: =AA88*Z88 -> 0 | AC88: 0 | AD88: 0 | AF88: 0 | AG88: TRUE
A89: =+A88+0.01 -> 3.06 | B89: Stipend per child per month @ Rs.100/- | C89: 0 | D89: 0 | K89: 0 | L89: 0 | N89: 0 | S89: =R89*Q89 -> 0 | T89: 0 | U89: 0 | W89: 0 | AB89: =AA89*Z89 -> 0 | AC89: 0 | AD89: 0 | AF89: 0 | AG89: TRUE
A90: =+A89+0.01 -> 3.07 | B90: Supplementary TLM, Stationery and other educational material @Rs.1000/- per child per annum | C90: 0 | D90: 0 | K90: 0 | L90: 0 | N90: 0 | S90: =R90*Q90 -> 0 | T90: 0 | U90: 0 | W90: 0 | AB90: =AA90*Z90 -> 0 | AC90: 0 | AD90: 0 | AF90: 0 | AG90: TRUE
A91: 3.08 | B91: Salaries | T91: 0 | U91: 0 | AC91: 0 | AD91: 0 | AF91: 0 | AG91: TRUE
A92: (a) | B92: 1 Warden @ Rs.25000/- per month | C92: 0 | D92: 0 | K92: 0 | L92: 0 | N92: 0 | S92: =R92*Q92 -> 0 | T92: 0 | U92: 0 | W92: 0 | AB92: =AA92*Z92 -> 0 | AC92: 0 | AD92: 0 | AF92: 0 | AG92: TRUE
A93: (b) | B93: 4 Fulltime teachers as per RTE Norms @ Rs. 20,000/- per month per teacher | C93: 0 | D93: 0 | K93: 0 | L93: 0 | N93: 0 | S93: 0 | T93: 0 | U93: 0 | W93: 0 | AB93: 0 | AC93: 0 | AD93: 0 | AF93: 0 | AG93: TRUE
A94: (c) | B94: 2 Urdu Teachers (only for Blocks with muslim population above 20% and select urban areas) @ Rs.12,000/- per month per teacher. | C94: 0 | D94: 0 | K94: 0 | L94: 0 | N94: 0 | S94: 0 | T94: 0 | U94: 0 | W94: 0 | AB94: 0 | AC94: 0 | AD94: 0 | AF94: 0 | AG94: TRUE
A95: (d) | B95: 3 Part time teachers @ Rs.5,000/- per month per teacher | C95: 0 | D95: 0 | K95: 0 | L95: 0 | N95: 0 | S95: 0 | T95: 0 | U95: 0 | W95: 0 | AB95: 0 | AC95: 0 | AD95: 0 | AF95: 0 | AG95: TRUE
A96: (e) | B96: 1 Full time Accountant @ Rs. 10,000/- per month | C96: 0 | D96: 0 | K96: 0 | L96: 0 | N96: 0 | S96: 0 | T96: 0 | U96: 0 | W96: 0 | AB96: 0 | AC96: 0 | AD96: 0 | AF96: 0 | AG96: TRUE
A97: (f) | B97: 2 Support staff - (Accountant/Assistant, Peon, Chowkidar) @ Rs. 5,000/- per month per staff | C97: 0 | D97: 0 | K97: 0 | L97: 0 | N97: 0 | S97: 0 | T97: 0 | U97: 0 | W97: 0 | AB97: 0 | AC97: 0 | AD97: 0 | AF97: 0 | AG97: TRUE
A98: (g) | B98: 1 Head Cook @ Rs. 6,000/- per month and upto 2 Asstt. Cooks @ Rs. 4,500/- per month per cook | C98: 0 | D98: 0 | K98: 0 | L98: 0 | N98: 0 | S98: 0 | T98: 0 | U98: 0 | W98: 0 | AB98: 0 | AC98: 0 | AD98: 0 | AF98: 0 | AG98: TRUE
A99: 3.09 | B99: Specific Skill training @ Rs.1000/- per annum per child | C99: 0 | D99: 0 | K99: 0 | L99: 0 | N99: 0 | S99: 0 | T99: 0 | U99: 0 | W99: 0 | AB99: 0 | AC99: 0 | AD99: 0 | AF99: 0 | AG99: TRUE
A100: =+A99+0.01 -> 3.1 | B100: Electricity / water charges @ Rs. 1000/- per annum per child | C100: 0 | D100: 0 | K100: 0 | L100: 0 | N100: 0 | S100: 0 | T100: 0 | U100: 0 | W100: 0 | AB100: 0 | AC100: 0 | AD100: 0 | AF100: 0 | AG100: TRUE
A101: 3.11 | B101: Medical care/contingencies @ Rs.1250/- per annum per child | C101: 0 | D101: 0 | K101: 0 | L101: 0 | N101: 0 | S101: 0 | T101: 0 | U101: 0 | W101: 0 | AB101: 0 | AC101: 0 | AD101: 0 | AF101: 0 | AG101: TRUE
A102: 3.12 | B102: Maintenance @ Rs. 750/- per child per annum | C102: 0 | D102: 0 | K102: 0 | L102: 0 | N102: 0 | S102: 0 | T102: 0 | U102: 0 | W102: 0 | AB102: 0 | AC102: 0 | AD102: 0 | AF102: 0 | AG102: TRUE
A103: 3.13 | B103: Miscellaneous @ Rs. 750/- per child per annum | C103: 0 | D103: 0 | K103: 0 | L103: 0 | N103: 0 | S103: 0 | T103: 0 | U103: 0 | W103: 0 | AB103: 0 | AC103: 0 | AD103: 0 | AF103: 0 | AG103: TRUE
A104: 3.14 | B104: Preparatory camps @ Rs. 300/- per child per annum | C104: 0 | D104: 0 | K104: 0 | L104: 0 | N104: 0 | S104: 0 | T104: 0 | U104: 0 | W104: 0 | AB104: 0 | AC104: 0 | AD104: 0 | AF104: 0 | AG104: TRUE
A105: 3.15 | B105: P.T.A / school functions @ Rs. 300/- per child per annum | C105: 0 | D105: 0 | K105: 0 | L105: 0 | N105: 0 | S105: 0 | T105: 0 | U105: 0 | W105: 0 | AB105: 0 | AC105: 0 | AD105: 0 | AF105: 0 | AG105: TRUE
A106: 3.16 | B106: Provision of Rent @ Rs. 10,000/- per child per annum | C106: 0 | D106: 0 | K106: 0 | L106: 0 | N106: 0 | S106: 0 | T106: 0 | U106: 0 | W106: 0 | AB106: 0 | AC106: 0 | AD106: 0 | AF106: 0 | AG106: TRUE
A107: 3.17 | B107: Capacity Building @ Rs. 500/- per child per annum | C107: 0 | D107: 0 | K107: 0 | L107: 0 | N107: 0 | S107: 0 | T107: 0 | U107: 0 | W107: 0 | AB107: 0 | AC107: 0 | AD107: 0 | AF107: 0 | AG107: TRUE
A108: 3.18 | B108: Physical / Self Defence Training @ Rs.200/- per child per annum | C108: 0 | D108: 0 | K108: 0 | L108: 0 | N108: 0 | S108: 0 | T108: 0 | U108: 0 | W108: 0 | AB108: 0 | AC108: 0 | AD108: 0 | AF108: 0 | AG108: TRUE
B109: Sub Total (Recurring) | C109: =C108+C85 -> 0 | D109: =SUM(D88:D108) -> 0 | E109: 0 | F109: 0 | G109: 0 | H109: 0 | K109: 0 | L109: 0 | M109: 0 | N109: 0 | R109: =SUM(R88:R108) -> 0 | S109: =SUM(S88:S108) -> 0 | T109: 0 | U109: 0 | V109: =SUM(V88:V108) -> 0 | W109: =SUM(W88:W108) -> 0 | X109: 0 | Y109: 0 | AA109: 0 | AB109: 0 | AC109: =+V109+X109+AA109 -> 0 | AD109: =+W109+Y109+AB109 -> 0 | AF109: 0 | AG109: TRUE
B110: Total (Non Recurring + Recurring) | C110: 0 | D110: 0 | E110: 0 | F110: 0 | G110: 0 | H110: 0 | K110: 0 | L110: 0 | M110: 0 | N110: 0 | R110: =R109+R86 -> 0 | S110: =S109+S86 -> 0 | T110: 0 | U110: 0 | V110: =+V109+V86 -> 0 | W110: =+W109+W86 -> 0 | X110: 0 | Y110: 0 | AA110: 0 | AB110: 0 | AC110: =+V110+X110+AA110 -> 0 | AD110: =+W110+Y110+AB110 -> 0 | AF110: 0 | AG110: TRUE
A111: (B) | B111: 100 Children | T111: 0 | U111: 0 | AC111: 0 | AD111: 0 | AF111: 0 | AG111: TRUE
B112: Non-recurring (one time grant) | T112: 0 | U112: 0 | AC112: 0 | AD112: 0 | AF112: 0 | AG112: TRUE
A113: 3.19 | B113: Furniture / Equipment (including kitchen equipment) | C113: 0 | D113: 0 | K113: =C113-G113 -> 0 | L113: 0 | M113: 0 | N113: 0 | S113: =Q113+L113 -> 0 | T113: 0 | U113: 0 | V113: 0 | W113: 0 | AB113: =Z113+U113 -> 0 | AC113: 0 | AD113: 0 | AF113: 0 | AG113: TRUE
A114: =+A113+0.01 -> 3.2 | B114: TLM and equipment including library books (New) | C114: 0 | D114: 0 | K114: 0 | L114: 0 | M114: 0 | N114: 0 | S114: =R114*Q114 -> 0 | T114: 0 | U114: 0 | V114: 0 | W114: 0 | AB114: =AA114*Z114 -> 0 | AC114: 0 | AD114: 0 | AF114: 0 | AG114: TRUE
A115: =+A114+0.01 -> 3.21 | B115: Bedding (New) | C115: 0 | D115: 0 | K115: 0 | L115: 0 | M115: 0 | N115: 0 | S115: =R115*Q115 -> 0 | T115: 0 | U115: 0 | V115: 0 | W115: 0 | AB115: =AA115*Z115 -> 0 | AC115: 0 | AD115: 0 | AF115: 0 | AG115: TRUE
A116: =+A115+0.01 -> 3.22 | B116: Replacement of bedding (once in 3 years) | C116: 0 | D116: 0 | K116: 0 | L116: 0 | M116: 0 | N116: 0 | S116: =R116*Q116 -> 0 | T116: 0 | U116: 0 | V116: 0 | W116: 0 | AB116: =AA116*Z116 -> 0 | AC116: 0 | AD116: 0 | AF116: 0 | AG116: TRUE
B117: Sub Total Non-recurring | C117: =SUM(C113:C116) -> 0 | D117: =SUM(D113:D116) -> 0 | E117: =SUM(E113:E116) -> 0 | F117: 0 | G117: 0 | H117: 0 | K117: 0 | L117: 0 | M117: 0 | N117: 0 | R117: =SUM(R113:R116) -> 0 | S117: =SUM(S113:S116) -> 0 | T117: 0 | U117: 0 | V117: =SUM(V113:V116) -> 0 | W117: =SUM(W113:W116) -> 0 | X117: 0 | Y117: 0 | AA117: 0 | AB117: 0 | AC117: =+V117+X117+AA117 -> 0 | AD117: =+W117+Y117+AB117 -> 0 | AF117: 0 | AG117: TRUE
B118: Recurring | T118: 0 | U118: 0 | AC118: 0 | AD118: 0 | AF118: 0 | AG118: TRUE
A119: 3.23 | B119: Maintenance per child per month @ Rs. 1500/- | C119: 0 | D119: 0 | K119: =C119-G119 -> 0 | L119: 0 | N119: 0 | S119: =R119*Q119 -> 0 | T119: 0 | U119: 0 | W119: 0 | AB119: =AA119*Z119 -> 0 | AC119: 0 | AD119: 0 | AF119: 0 | AG119: TRUE
A120: =+A119+0.01 -> 3.24 | B120: Stipend per child per month @ Rs.100/- | C120: 0 | D120: 0 | K120: 0 | L120: 0 | N120: 0 | S120: =R120*Q120 -> 0 | T120: 0 | U120: 0 | W120: 0 | AB120: =AA120*Z120 -> 0 | AC120: 0 | AD120: 0 | AF120: 0 | AG120: TRUE
A121: =+A120+0.01 -> 3.25 | B121: Supplementary TLM, Stationery and other educational material per child @1000/- per annum | C121: 0 | D121: 0 | K121: 0 | L121: 0 | N121: 0 | S121: =R121*Q121 -> 0 | T121: 0 | U121: 0 | W121: 0 | AB121: =AA121*Z121 -> 0 | AC121: 0 | AD121: 0 | AF121: 0 | AG121: TRUE
A122: 3.26 | B122: Salaries | T122: 0 | U122: 0 | AC122: 0 | AD122: 0 | AF122: 0 | AG122: TRUE
A123: (a) | B123: 1 Warden @ Rs. 25,000/- per month | C123: 0 | D123: 0 | K123: 0 | L123: 0 | N123: 0 | S123: =R123*Q123 -> 0 | T123: 0 | U123: 0 | W123: 0 | AB123: =AA123*Z123 -> 0 | AC123: 0 | AD123: 0 | AF123: 0 | AG123: TRUE
A124: (b) | B124: 1 head teacher @ Rs. 25,000/- per month in case the enrollment exceeds 100 | C124: 0 | D124: 0 | K124: 0 | L124: 0 | N124: 0 | S124: 0 | T124: 0 | U124: 0 | W124: 0 | AB124: 0 | AC124: 0 | AD124: 0 | AF124: 0 | AG124: TRUE
A125: (c) | B125: 4 - 5 Full time teachers as per RTE norms @ Rs. 20,000/- per month per teacher | C125: 0 | D125: 0 | K125: 0 | L125: 0 | N125: 0 | S125: 0 | T125: 0 | U125: 0 | W125: 0 | AB125: 0 | AC125: 0 | AD125: 0 | AF125: 0 | AG125: TRUE
A126: (d) | B126: 2 Urdu Teachers (only for blocks with muslim population above 20% and select urban areas), if required @ Rs. 12,000/- per month per teacher | C126: 0 | D126: 0 | K126: 0 | L126: 0 | N126: 0 | S126: 0 | T126: 0 | U126: 0 | W126: 0 | AB126: 0 | AC126: 0 | AD126: 0 | AF126: 0 | AG126: TRUE
A127: (e) | B127: 3 part time teachers @ Rs. 5,000/- per month per teacher | C127: 0 | D127: 0 | K127: 0 | L127: 0 | N127: 0 | S127: 0 | T127: 0 | U127: 0 | W127: 0 | AB127: 0 | AC127: 0 | AD127: 0 | AF127: 0 | AG127: TRUE
A128: (f) | B128: 1 Full time Accountant @ Rs. 10,000/- per month | C128: 0 | D128: 0 | K128: 0 | L128: 0 | N128: 0 | S128: 0 | T128: 0 | U128: 0 | W128: 0 | AB128: 0 | AC128: 0 | AD128: 0 | AF128: 0 | AG128: TRUE
A129: (g) | B129: 2 Support Staff – (Accountant/ Assistant, Peon, Chowkidar) @ Rs. 5,000/- per month per staff | C129: 0 | D129: 0 | K129: 0 | L129: 0 | N129: 0 | S129: 0 | T129: 0 | U129: 0 | W129: 0 | AB129: 0 | AC129: 0 | AD129: 0 | AF129: 0 | AG129: TRUE
A130: (h) | B130: 1 Head cook @ Rs. 6,000/- per month and upto 2 Asstt. Cooks @ Rs. 4,500/- per month per cook | C130: 0 | D130: 0 | K130: 0 | L130: 0 | N130: 0 | S130: 0 | T130: 0 | U130: 0 | W130: 0 | AB130: 0 | AC130: 0 | AD130: 0 | AF130: 0 | AG130: TRUE
A131: 3.27 | B131: Specific skill training per child @ Rs.1000/- per annum | C131: 0 | D131: 0 | K131: 0 | L131: 0 | N131: 0 | S131: 0 | T131: 0 | U131: 0 | W131: 0 | AB131: 0 | AC131: 0 | AD131: 0 | AF131: 0 | AG131: TRUE
A132: =+A131+0.01 -> 3.28 | B132: Electricity / water charges per child @Rs.1000/- per annum | C132: 0 | D132: 0 | K132: 0 | L132: 0 | N132: 0 | S132: 0 | T132: 0 | U132: 0 | W132: 0 | AB132: 0 | AC132: 0 | AD132: 0 | AF132: 0 | AG132: TRUE
A133: 3.29 | B133: Medical care/contingencies @ Rs.1250/- per child per annum | C133: 0 | D133: 0 | K133: 0 | L133: 0 | N133: 0 | S133: 0 | T133: 0 | U133: 0 | W133: 0 | AB133: 0 | AC133: 0 | AD133: 0 | AF133: 0 | AG133: TRUE
A134: 3.3 | B134: Maintenance @ Rs.750/- per child per annum | C134: 0 | D134: 0 | K134: 0 | L134: 0 | N134: 0 | S134: 0 | T134: 0 | U134: 0 | W134: 0 | AB134: 0 | AC134: 0 | AD134: 0 | AF134: 0 | AG134: TRUE
A135: 3.31 | B135: Miscellaneous @ Rs.750/- per child per annum | C135: 0 | D135: 0 | K135: 0 | L135: 0 | N135: 0 | S135: 0 | T135: 0 | U135: 0 | W135: 0 | AB135: 0 | AC135: 0 | AD135: 0 | AF135: 0 | AG135: TRUE
A136: 3.32 | B136: Preparatory camps @ Rs.200/- per child per annum | C136: 0 | D136: 0 | I136: =IFERROR(G136/C136*100,"") ->  | J136: =IFERROR(H136/D136*100,"") ->  | K136: 0 | L136: 0 | N136: 0 | S136: 0 | T136: =+M136+O136+R136 -> 0 | U136: =+N136+P136+S136 -> 0 | W136: 0 | AB136: 0 | AC136: =+V136+X136+AA136 -> 0 | AD136: =+W136+Y136+AB136 -> 0 | AF136: =+AD136 -> 0 | AG136: =+W136+Y136+AB136=AD136 -> TRUE
A137: 3.33 | B137: P.T.A / school functions @ Rs.200/- per child per annum | C137: 0 | D137: 0 | K137: 0 | L137: 0 | N137: 0 | S137: 0 | T137: 0 | U137: 0 | W137: 0 | AB137: 0 | AC137: 0 | AD137: 0 | AF137: 0 | AG137: TRUE
A138: 3.34 | B138: Provision of Rent @ Rs. 6000/- per child per annum | C138: 0 | D138: 0 | K138: 0 | L138: 0 | N138: 0 | S138: 0 | T138: 0 | U138: 0 | W138: 0 | AB138: 0 | AC138: 0 | AD138: 0 | AF138: 0 | AG138: TRUE
A139: 3.35 | B139: Capacity Building @ Rs.500/- per child per annum | C139: 0 | D139: 0 | K139: 0 | L139: 0 | N139: 0 | S139: 0 | T139: 0 | U139: 0 | W139: 0 | AB139: 0 | AC139: 0 | AD139: 0 | AF139: 0 | AG139: TRUE
A140: 3.36 | B140: Physical / Self Defence training @ Rs. 200/- per child per annum. | C140: 0 | D140: 0 | K140: 0 | L140: 0 | N140: 0 | S140: 0 | T140: 0 | U140: 0 | W140: 0 | AB140: 0 | AC140: 0 | AD140: 0 | AF140: 0 | AG140: TRUE
B141: Sub Total (Recurring) | C141: 0 | D141: 0 | E141: =SUM(E119:E140) -> 0 | F141: =SUM(F119:F140) -> 0 | G141: 0 | H141: 0 | K141: 0 | L141: 0 | M141: 0 | N141: 0 | R141: =SUM(R119:R140) -> 0 | S141: =SUM(S119:S140) -> 0 | T141: 0 | U141: 0 | V141: =SUM(V119:V140) -> 0 | W141: =SUM(W119:W140) -> 0 | X141: 0 | Y141: 0 | AA141: 0 | AB141: 0 | AC141: =+V141+X141+AA141 -> 0 | AD141: 0 | AF141: 0 | AG141: TRUE
B142: Total (Recurring + Non Recurring) | C142: 0 | D142: 0 | E142: =E141+E117 -> 0 | F142: 0 | G142: 0 | H142: 0 | K142: 0 | L142: 0 | M142: 0 | N142: 0 | R142: =R141+R117 -> 0 | S142: =S141+S117 -> 0 | T142: 0 | U142: 0 | V142: =+V141+V117 -> 0 | W142: =+W141+W117 -> 0 | X142: 0 | Y142: 0 | AA142: 0 | AB142: 0 | AC142: 0 | AD142: 0 | AF142: 0 | AG142: TRUE
B143: Total (A + B) | C143: 0 | D143: 0 | E143: =E142+E110 -> 0 | F143: 0 | G143: 0 | H143: 0 | K143: 0 | L143: 0 | M143: =M142+M110 -> 0 | N143: 0 | O143: 0 | P143: 0 | R143: =R142+R110 -> 0 | S143: =S142+S110 -> 0 | T143: 0 | U143: 0 | V143: =+V142+V110 -> 0 | W143: =+W142+W110 -> 0 | X143: 0 | Y143: 0 | Z143: 0 | AA143: 0 | AB143: 0 | AC143: 0 | AD143: 0 | AF143: 0 | AG143: TRUE
A144: 4 | B144: Transport/Escort Facility | T144: 0 | U144: 0 | AC144: 0 | AD144: 0 | AF144: 0 | AG144: TRUE
A145: 4.01 | B145: Children in remote habitation | C145: 0 | D145: 0 | K145: =C145-G145 -> 0 | L145: =D145-H145 -> 0 | Q145: 0.03 | R145: 6 | S145: =R145*Q145 -> 0.18 | T145: 6 | U145: 0.18 | Z145: 0.03 | AA145: 6 | AB145: =AA145*Z145 -> 0.18 | AC145: 6 | AD145: 0.18 | AF145: 0.18 | AG145: TRUE
A146: 4.02 | B146: Urban deprived children/children without adult protection | C146: 0 | D146: 0 | K146: =C146-G146 -> 0 | L146: =D146-H146 -> 0 | Q146: 0.03 | R146: 0 | S146: =R146*Q146 -> 0 | T146: 0 | U146: 0 | Z146: 0.03 | AA146: 0 | AB146: =AA146*Z146 -> 0 | AC146: 0 | AD146: 0 | AF146: 0 | AG146: TRUE
B147: Sub Total | C147: =SUM(C145:C146) -> 0 | D147: 0 | E147: 0 | F147: 0 | G147: 0 | H147: 0 | K147: 0 | L147: 0 | M147: =SUM(M145:M146) -> 0 | N147: =SUM(N145:N146) -> 0 | O147: 0 | P147: 0 | R147: 6 | S147: 0.18 | T147: =+M147+O147+R147 -> 6 | U147: =+N147+P147+S147 -> 0.18 | V147: =SUM(V145:V146) -> 0 | W147: =SUM(W145:W146) -> 0 | X147: 0 | Y147: 0 | AA147: 6 | AB147: 0.18 | AC147: =+V147+X147+AA147 -> 6 | AD147: =+W147+Y147+AB147 -> 0.18 | AG147: TRUE
A148: 5 | B148: Reimbursement of Fee against 25% admission under Section 12(1)(c) of RTE Act 2009 (Entry Level) subject to upper limit of 20% of AWP&B subject to guidelines issued by MHRD | C148: 10765 | D148: 544.30231 | E148: 10765 | F148: 544.30231 | G148: 10765 | H148: 544.30231 | I148: 100 | J148: 100 | K148: =C148-G148 -> 0 | L148: =D148-H148 -> 0 | Q148: 0.11848 | R148: 13790 | S148: =R148*Q148 -> 1633.8392 | T148: 13790 | U148: 1633.8392 | AA148: 13790 | AB148: 553.995 | AC148: =+V148+X148+AA148 -> 13790 | AD148: =+W148+Y148+AB148 -> 553.995 | AF148: 553.995 | AG148: TRUE
B149: Sub Total | C149: =SUM(C148) -> 10765 | D149: =SUM(D148) -> 544.30231 | E149: =SUM(E148) -> 10765 | F149: 544.30231 | G149: 10765 | H149: 544.30231 | I149: 100 | J149: 100 | K149: 0 | L149: 0 | M149: =+M148 -> 0 | N149: =+N148 -> 0 | O149: =+O148 -> 0 | P149: =+P148 -> 0 | R149: =+R148 -> 13790 | S149: =+S148 -> 1633.8392 | T149: =+M149+O149+R149 -> 13790 | U149: =+N149+P149+S149 -> 1633.8392 | V149: =+V148 -> 0 | W149: =+W148 -> 0 | X149: 0 | Y149: 0 | AA149: 13790 | AB149: 553.995 | AC149: =+V149+X149+AA149 -> 13790 | AD149: =+W149+Y149+AB149 -> 553.995 | AG149: TRUE
A150: 6 | B150: Special Training for mainstreaming of out of school children | C150: 0 | D150: 0 | G150: 0 | H150: 0 | K150: 0 | L150: 0 | T150: 0 | U150: 0 | AC150: 0 | AD150: 0 | AF150: 0 | AG150: TRUE
A151: 6.01 | B151: Residential (Fresh) | C151: 0 | D151: 0 | T151: 0 | U151: 0 | AC151: 0 | AD151: 0 | AF151: 0 | AG151: TRUE
B152: (a) 12 months | C152: 0 | D152: 0 | G152: 0 | K152: =C152-G152 -> 0 | L152: 0 | N152: 0 | Q152: 0.2 | S152: =R152*Q152 -> 0 | T152: 0 | U152: 0 | W152: 0 | Z152: 0.2 | AB152: =AA152*Z152 -> 0 | AC152: 0 | AD152: 0 | AF152: 0 | AG152: TRUE
B153: (b) 9 months | C153: 0 | D153: 0 | K153: 0 | L153: 0 | N153: 0 | Q153: 0.15 | S153: =R153*Q153 -> 0 | T153: 0 | U153: 0 | W153: 0 | Z153: 0.15 | AB153: =AA153*Z153 -> 0 | AC153: 0 | AD153: 0 | AF153: 0 | AG153: TRUE
B154: (c) 6 months | C154: 0 | D154: 0 | K154: 0 | L154: 0 | N154: 0 | Q154: 0.1 | S154: =R154*Q154 -> 0 | T154: 0 | U154: 0 | W154: 0 | Z154: 0.1 | AB154: =AA154*Z154 -> 0 | AC154: 0 | AD154: 0 | AF154: 0 | AG154: TRUE
B155: (d) 3 months | C155: 0 | D155: 0 | G155: 0 | K155: 0 | L155: 0 | N155: 0 | Q155: 0.05 | S155: =R155*Q155 -> 0 | T155: 0 | U155: 0 | W155: 0 | Z155: 0.05 | AB155: =AA155*Z155 -> 0 | AC155: 0 | AD155: 0 | AF155: 0 | AG155: TRUE
B156: Sub Total | C156: =SUM(C152:C155) -> 0 | D156: 0 | E156: 0 | F156: 0 | G156: 0 | H156: 0 | K156: 0 | L156: 0 | M156: =SUM(M152:M155) -> 0 | N156: =SUM(N152:N155) -> 0 | O156: =SUM(O152:O155) -> 0 | P156: =SUM(P152:P155) -> 0 | R156: =SUM(R152:R155) -> 0 | S156: =SUM(S152:S155) -> 0 | T156: =+M156+O156+R156 -> 0 | U156: =+N156+P156+S156 -> 0 | V156: =SUM(V152:V155) -> 0 | W156: =SUM(W152:W155) -> 0 | X156: 0 | Y156: 0 | AA156: 0 | AB156: 0 | AC156: =+V156+X156+AA156 -> 0 | AD156: =+W156+Y156+AB156 -> 0 | AG156: TRUE
A157: 6.02 | B157: Residential (Continuing from previous year) | T157: 0 | U157: 0 | AC157: 0 | AD157: 0 | AF157: 0 | AG157: TRUE
B158: (a) 12 months | C158: 0 | D158: 0 | K158: =C158-G158 -> 0 | L158: 0 | N158: 0 | Q158: 0.2 | R158: 0 | S158: =R158*Q158 -> 0 | T158: 0 | U158: 0 | W158: 0 | Z158: 0.2 | AA158: 0 | AB158: =AA158*Z158 -> 0 | AC158: 0 | AD158: 0 | AF158: 0 | AG158: TRUE
B159: (b) 9 months | C159: 0 | D159: 0 | K159: 0 | L159: 0 | N159: 0 | Q159: 0.15 | S159: =R159*Q159 -> 0 | T159: 0 | U159: 0 | W159: 0 | Z159: 0.15 | AB159: =AA159*Z159 -> 0 | AC159: 0 | AD159: 0 | AF159: 0 | AG159: TRUE
B160: (c) 6 months | C160: 0 | D160: 0 | K160: 0 | L160: 0 | N160: 0 | Q160: 0.1 | S160: =R160*Q160 -> 0 | T160: 0 | U160: 0 | W160: 0 | Z160: 0.1 | AB160: =AA160*Z160 -> 0 | AC160: 0 | AD160: 0 | AF160: 0 | AG160: TRUE
B161: (d) 3 months | C161: 0 | D161: 0 | K161: 0 | L161: 0 | N161: 0 | Q161: 0.05 | S161: =R161*Q161 -> 0 | T161: 0 | U161: 0 | W161: 0 | Z161: 0.05 | AB161: =AA161*Z161 -> 0 | AC161: 0 | AD161: 0 | AF161: 0 | AG161: TRUE
B162: Sub Total | C162: =SUM(C158:C161) -> 0 | D162: 0 | E162: 0 | F162: 0 | G162: 0 | H162: 0 | K162: 0 | L162: 0 | M162: =SUM(M158:M161) -> 0 | N162: =SUM(N158:N161) -> 0 | O162: =SUM(O158:O161) -> 0 | P162: =SUM(P158:P161) -> 0 | R162: =SUM(R158:R161) -> 0 | S162: =SUM(S158:S161) -> 0 | T162: =+M162+O162+R162 -> 0 | U162: =+N162+P162+S162 -> 0 | V162: =SUM(V158:V161) -> 0 | W162: =SUM(W158:W161) -> 0 | X162: 0 | Y162: 0 | AA162: 0 | AB162: 0 | AC162: =+V162+X162+AA162 -> 0 | AD162: =+W162+Y162+AB162 -> 0 | AG162: TRUE
A163: 6.03 | B163: Non-Residential (Fresh) | T163: 0 | U163: 0 | AC163: 0 | AD163: 0 | AF163: 0 | AG163: TRUE
B164: (a) 12 months | C164: 0 | D164: 0 | K164: =C164-G164 -> 0 | L164: 0 | N164: 0 | Q164: 0.06 | S164: =R164*Q164 -> 0 | T164: 0 | U164: 0 | W164: 0 | Z164: 0.06 | AB164: =AA164*Z164 -> 0 | AC164: 0 | AD164: 0 | AF164: 0 | AG164: TRUE
B165: (b) 9 months | C165: 0 | D165: 0 | K165: 0 | L165: 0 | N165: 0 | Q165: 0.045 | S165: =R165*Q165 -> 0 | T165: 0 | U165: 0 | W165: 0 | Z165: 0.045 | AB165: =AA165*Z165 -> 0 | AC165: 0 | AD165: 0 | AF165: 0 | AG165: TRUE
B166: (c) 6 months | C166: 0 | D166: 0 | K166: 0 | L166: 0 | N166: 0 | Q166: 0.03 | R166: 0 | S166: =R166*Q166 -> 0 | T166: 0 | U166: 0 | W166: 0 | Z166: 0.03 | AA166: 0 | AB166: =AA166*Z166 -> 0 | AC166: 0 | AD166: 0 | AF166: 0 | AG166: TRUE
B167: (d) 3 months | C167: 0 | D167: 0 | K167: 0 | L167: 0 | N167: 0 | Q167: 0.015 | R167: 0 | S167: =R167*Q167 -> 0 | T167: 0 | U167: 0 | W167: 0 | Z167: 0.015 | AA167: 0 | AB167: =AA167*Z167 -> 0 | AC167: 0 | AD167: 0 | AF167: 0 | AG167: TRUE
B168: Sub Total | C168: =SUM(C164:C167) -> 0 | D168: 0 | E168: 0 | F168: 0 | G168: 0 | H168: 0 | K168: 0 | L168: 0 | M168: =SUM(M164:M167) -> 0 | N168: =SUM(N164:N167) -> 0 | O168: =SUM(O164:O167) -> 0 | P168: =SUM(P164:P167) -> 0 | R168: =SUM(R164:R167) -> 0 | S168: =SUM(S164:S167) -> 0 | T168: =+M168+O168+R168 -> 0 | U168: =+N168+P168+S168 -> 0 | V168: =SUM(V164:V167) -> 0 | W168: =SUM(W164:W167) -> 0 | X168: 0 | Y168: 0 | AA168: 0 | AB168: 0 | AC168: =+V168+X168+AA168 -> 0 | AD168: =+W168+Y168+AB168 -> 0 | AG168: TRUE
A169: 6.04 | B169: Non-Residential (Continuing from previous year) | T169: 0 | U169: 0 | AC169: 0 | AD169: 0 | AF169: 0 | AG169: TRUE
B170: (a) 12 months | C170: 0 | D170: 0 | K170: =C170-G170 -> 0 | L170: 0 | N170: 0 | Q170: 0.06 | S170: =R170*Q170 -> 0 | T170: 0 | U170: 0 | W170: 0 | Z170: 0.06 | AB170: =AA170*Z170 -> 0 | AC170: 0 | AD170: 0 | AF170: 0 | AG170: TRUE
B171: (b) 9 months | C171: 0 | D171: 0 | K171: 0 | L171: 0 | N171: 0 | Q171: 0.045 | S171: =R171*Q171 -> 0 | T171: 0 | U171: 0 | W171: 0 | Z171: 0.045 | AB171: =AA171*Z171 -> 0 | AC171: 0 | AD171: 0 | AF171: 0 | AG171: TRUE
B172: (c) 6 months | C172: 0 | D172: 0 | K172: 0 | L172: 0 | N172: 0 | Q172: 0.03 | R172: 300 | S172: =R172*Q172 -> 9 | T172: 300 | U172: 9 | W172: 0 | Z172: 0.03 | AA172: 300 | AB172: =AA172*Z172 -> 9 | AC172: 300 | AD172: 9 | AF172: 9 | AG172: TRUE
B173: (d) 3 months | C173: 0 | D173: 0 | K173: 0 | L173: 0 | N173: 0 | Q173: 0.015 | S173: =R173*Q173 -> 0 | T173: 0 | U173: 0 | W173: 0 | Z173: 0.015 | AB173: =AA173*Z173 -> 0 | AC173: 0 | AD173: 0 | AF173: 0 | AG173: TRUE
B174: Sub Total | C174: =SUM(C170:C173) -> 0 | D174: 0 | E174: 0 | F174: 0 | G174: 0 | H174: 0 | K174: 0 | L174: 0 | M174: =SUM(M170:M173) -> 0 | N174: =SUM(N170:N173) -> 0 | O174: =SUM(O170:O173) -> 0 | P174: =SUM(P170:P173) -> 0 | R174: =SUM(R170:R173) -> 300 | S174: =SUM(S170:S173) -> 9 | T174: =+M174+O174+R174 -> 300 | U174: =+N174+P174+S174 -> 9 | V174: =SUM(V170:V173) -> 0 | W174: =SUM(W170:W173) -> 0 | X174: 0 | Y174: 0 | AA174: 300 | AB174: 9 | AC174: =+V174+X174+AA174 -> 300 | AD174: =+W174+Y174+AB174 -> 9 | AG174: TRUE
A175: 6.05 | B175: Madarasa/Maktab | T175: 0 | U175: 0 | AC175: 0 | AD175: 0 | AF175: 0 | AG175: TRUE
B176: (a) 12 months | C176: 0 | D176: 0 | K176: =C176-G176 -> 0 | L176: 0 | N176: 0 | Q176: 0.2 | S176: =R176*Q176 -> 0 | T176: 0 | U176: 0 | W176: 0 | Z176: 0.06 | AB176: =AA176*Z176 -> 0 | AC176: 0 | AD176: 0 | AF176: 0 | AG176: TRUE
B177: (b) 9 months | C177: 0 | D177: 0 | G177: 0 | K177: 0 | L177: 0 | N177: 0 | Q177: 0.045 | R177: 0 | S177: =R177*Q177 -> 0 | T177: 0 | U177: 0 | W177: 0 | Z177: 0.045 | AA177: 0 | AB177: =AA177*Z177 -> 0 | AC177: 0 | AD177: 0 | AF177: 0 | AG177: TRUE
B178: (c) 6 months | C178: 0 | D178: 0 | K178: 0 | L178: 0 | N178: 0 | Q178: 0.1 | S178: =R178*Q178 -> 0 | T178: 0 | U178: 0 | W178: 0 | Z178: 0.03 | AB178: =AA178*Z178 -> 0 | AC178: 0 | AD178: 0 | AF178: 0 | AG178: TRUE
B179: (d) 3 months | C179: 0 | D179: 0 | K179: 0 | L179: 0 | Q179: 0.05 | S179: =R179*Q179 -> 0 | T179: 0 | U179: 0 | Z179: 0.015 | AB179: =AA179*Z179 -> 0 | AC179: 0 | AD179: 0 | AF179: 0 | AG179: TRUE
B180: Sub Total | C180: =SUM(C176:C179) -> 0 | D180: 0 | E180: 0 | F180: 0 | G180: 0 | H180: 0 | K180: 0 | L180: 0 | M180: =SUM(M176:M179) -> 0 | N180: =SUM(N176:N179) -> 0 | O180: =SUM(O176:O179) -> 0 | P180: =SUM(P176:P179) -> 0 | R180: =SUM(R176:R179) -> 0 | S180: =SUM(S176:S179) -> 0 | T180: =+M180+O180+R180 -> 0 | U180: =+N180+P180+S180 -> 0 | V180: =SUM(V176:V179) -> 0 | W180: =SUM(W176:W179) -> 0 | X180: 0 | Y180: 0 | AA180: 0 | AB180: 0 | AC180: =+V180+X180+AA180 -> 0 | AD180: =+W180+Y180+AB180 -> 0 | AG180: TRUE
A181: 6.06 | B181: Seasonal Hostel (Residential) | T181: 0 | U181: 0 | AC181: 0 | AD181: 0 | AF181: 0 | AG181: TRUE
B182: (a) 12 months | C182: 0 | D182: 0 | K182: =C182-G182 -> 0 | L182: 0 | N182: 0 | S182: =R182*Q182 -> 0 | T182: 0 | U182: 0 | W182: 0 | AB182: =AA182*Z182 -> 0 | AC182: 0 | AD182: 0 | AF182: 0 | AG182: TRUE
B183: (b) 9 months | C183: 0 | D183: 0 | K183: 0 | L183: 0 | N183: 0 | S183: =R183*Q183 -> 0 | T183: 0 | U183: 0 | W183: 0 | AB183: =AA183*Z183 -> 0 | AC183: 0 | AD183: 0 | AF183: 0 | AG183: TRUE
B184: (c) 6 months | C184: 0 | D184: 0 | K184: 0 | L184: 0 | N184: 0 | Q184: 0.1 | S184: =R184*Q184 -> 0 | T184: 0 | U184: 0 | W184: 0 | Z184: 0.1 | AB184: =AA184*Z184 -> 0 | AC184: 0 | AD184: 0 | AF184: 0 | AG184: TRUE
B185: (d) 3 months | C185: 0 | D185: 0 | K185: 0 | L185: 0 | N185: 0 | S185: =R185*Q185 -> 0 | T185: 0 | U185: 0 | W185: 0 | AB185: =AA185*Z185 -> 0 | AC185: 0 | AD185: 0 | AF185: 0 | AG185: TRUE
B186: Sub Total | C186: =SUM(C183:C185) -> 0 | D186: =SUM(D183:D185) -> 0 | E186: =SUM(E183:E185) -> 0 | F186: 0 | G186: 0 | H186: 0 | K186: 0 | L186: 0 | M186: =SUM(M182:M185) -> 0 | N186: =SUM(N182:N185) -> 0 | O186: =SUM(O182:O185) -> 0 | P186: =SUM(P182:P185) -> 0 | R186: =SUM(R182:R185) -> 0 | S186: =SUM(S182:S185) -> 0 | T186: =+M186+O186+R186 -> 0 | U186: =+N186+P186+S186 -> 0 | V186: =SUM(V182:V185) -> 0 | W186: =SUM(W182:W185) -> 0 | X186: 0 | Y186: 0 | AA186: 0 | AB186: 0 | AC186: =+V186+X186+AA186 -> 0 | AD186: =+W186+Y186+AB186 -> 0 | AG186: TRUE
A187: 6.07 | B187: Seasonal Hostel (Non Residential) | C187: 0 | D187: 0 | T187: 0 | U187: 0 | AC187: 0 | AD187: 0 | AF187: 0 | AG187: TRUE
B188: (a) 12 months | C188: 0 | D188: 0 | K188: =C188-G188 -> 0 | L188: 0 | N188: 0 | S188: =R188*Q188 -> 0 | T188: 0 | U188: 0 | W188: 0 | AB188: =AA188*Z188 -> 0 | AC188: 0 | AD188: 0 | AF188: 0 | AG188: TRUE
B189: (b) 9 months | C189: 0 | D189: 0 | K189: 0 | L189: 0 | N189: 0 | S189: =R189*Q189 -> 0 | T189: 0 | U189: 0 | W189: 0 | AB189: =AA189*Z189 -> 0 | AC189: 0 | AD189: 0 | AF189: 0 | AG189: TRUE
B190: (c) 6 months | C190: 0 | D190: 0 | K190: 0 | L190: 0 | N190: 0 | T190: 0 | U190: 0 | W190: 0 | AC190: 0 | AD190: 0 | AF190: 0 | AG190: TRUE
B191: (d) 3 months | C191: 0 | D191: 0 | K191: 0 | L191: 0 | N191: 0 | S191: =R191*Q191 -> 0 | T191: 0 | U191: 0 | W191: 0 | AB191: =AA191*Z191 -> 0 | AC191: 0 | AD191: 0 | AF191: 0 | AG191: TRUE
B192: Sub Total | C192: =SUM(C188:C191) -> 0 | D192: 0 | E192: 0 | F192: 0 | G192: 0 | H192: 0 | K192: 0 | L192: 0 | M192: =SUM(M188:M191) -> 0 | N192: =SUM(N188:N191) -> 0 | O192: =SUM(O188:O191) -> 0 | P192: =SUM(P188:P191) -> 0 | Q192: =SUM(Q188:Q191) -> 0 | R192: =SUM(R188:R191) -> 0 | S192: =SUM(S188:S191) -> 0 | T192: =+M192+O192+R192 -> 0 | U192: =+N192+P192+S192 -> 0 | V192: =SUM(V188:V191) -> 0 | W192: =SUM(W188:W191) -> 0 | X192: 0 | Y192: 0 | Z192: 0 | AA192: 0 | AB192: 0 | AC192: =+V192+X192+AA192 -> 0 | AD192: =+W192+Y192+AB192 -> 0 | AF192: 0 | AG192: TRUE
B193: Total | C193: =C192+C186+C180+C174+C168+C162+C156 -> 0 | D193: 0 | E193: 0 | F193: 0 | G193: 0 | H193: 0 | K193: 0 | L193: 0 | M193: =+M192+M186+M180+M174+M168+M162+M156 -> 0 | N193: =+N192+N186+N180+N174+N168+N162+N156 -> 0 | O193: =+O192+O186+O180+O174+O168+O162+O156 -> 0 | P193: =+P192+P186+P180+P174+P168+P162+P156 -> 0 | Q193: =+Q192+Q186+Q180+Q174+Q168+Q162+Q156 -> 0 | R193: =+R192+R186+R180+R174+R168+R162+R156 -> 300 | S193: =+S192+S186+S180+S174+S168+S162+S156 -> 9 | T193: =+M193+O193+R193 -> 300 | U193: =+N193+P193+S193 -> 9 | V193: =+V192+V186+V180+V174+V168+V162+V156 -> 0 | W193: =+W192+W186+W180+W174+W168+W162+W156 -> 0 | X193: 0 | Y193: 0 | Z193: 0 | AA193: 300 | AB193: 9 | AC193: =+V193+X193+AA193 -> 300 | AD193: =+W193+Y193+AB193 -> 9 | AG193: TRUE
A194: II | B194: RETENTION | T194: 0 | U194: 0 | AC194: 0 | AD194: 0 | AF194: 0 | AG194: TRUE
A195: 7 | B195: Free Text Books | T195: 0 | U195: 0 | AC195: 0 | AD195: 0 | AF195: 0 | AG195: TRUE
A196: 7.01 | B196: Free Text Books (P) | C196: 0 | D196: 0 | T196: 0 | U196: 0 | AC196: 0 | AD196: 0 | AF196: 0 | AG196: TRUE
B197: (a) Class I & II | C197: 20717 | D197: 18.85247 | E197: =C197 -> 20717 | F197: =D197 -> 18.85247 | G197: =C197 -> 20717 | H197: =D197 -> 18.85247 | I197: 100 | J197: 100 | K197: =C197-G197 -> 0 | L197: 0 | N197: 0 | Q197: 0.0015 | R197: 19566 | S197: =R197*Q197 -> 29.349 | T197: 19566 | U197: 29.349 | W197: 0 | Z197: 0.0015 | AA197: 19566 | AB197: =AA197*Z197 -> 29.349 | AC197: 19566 | AD197: 29.349 | AF197: 29.349 | AG197: TRUE
B198: (b) Braille Books Class I & II | C198: 26 | D198: 0.039 | E198: =C198 -> 26 | G198: =C198 -> 26 | I198: 100 | J198: 0 | K198: 0 | L198: 0.039 | N198: 0 | Q198: 0.0015 | R198: 33 | S198: =+Q198*R198 -> 0.0495 | T198: 33 | U198: 0.0495 | W198: 0 | Z198: 0.0015 | AA198: 33 | AB198: =+Z198*AA198 -> 0.0495 | AC198: 33 | AD198: 0.0495 | AF198: 0.0495 | AG198: TRUE
B199: (c) Large Print Books Class I & II | C199: 197 | D199: 0.2955 | E199: 197 | G199: 197 | I199: 100 | J199: 0 | K199: 0 | L199: 0.2955 | N199: 0 | Q199: 0.0015 | R199: 134 | S199: =+Q199*R199 -> 0.201 | T199: =+R199 -> 134 | U199: =+S199 -> 0.201 | W199: 0 | Z199: 0.0015 | AA199: 134 | AB199: =+Z199*AA199 -> 0.201 | AC199: =+AA199 -> 134 | AD199: =+AB199 -> 0.201 | AF199: 0.201 | AG199: TRUE
B200: (d) Class III to V | C200: 31417 | D200: 32.04534 | E200: 31417 | F200: =D200 -> 32.04534 | G200: 31417 | H200: =D200 -> 32.04534 | I200: =IFERROR(G200/C200*100,"") -> 100 | J200: =IFERROR(H200/D200*100,"") -> 100 | K200: 0 | L200: 0 | N200: 0 | Q200: 0.0015 | R200: 30251 | S200: 45.3765 | T200: =+M200+O200+R200 -> 30251 | U200: =+N200+P200+S200 -> 45.3765 | W200: 0 | Z200: 0.0015 | AA200: 30251 | AB200: 45.3765 | AC200: =+V200+X200+AA200 -> 30251 | AD200: =+W200+Y200+AB200 -> 45.3765 | AF200: =+AD200 -> 45.3765 | AG200: =+W200+Y200+AB200=AD200 -> TRUE
B201: (e) Braille Books Class III to V | C201: 64 | D201: 0.096 | E201: 64 | G201: 64 | I201: 100 | J201: 0 | K201: 0 | L201: 0.096 | N201: 0 | Q201: 0.0015 | R201: 61 | S201: =+Q201*R201 -> 0.0915 | T201: =+R201 -> 61 | U201: =+S201 -> 0.0915 | W201: 0 | Z201: 0.0015 | AA201: 61 | AB201: =+Z201*AA201 -> 0.0915 | AC201: =+AA201 -> 61 | AD201: =+AB201 -> 0.0915 | AF201: 0.0915 | AG201: TRUE
... 315 more rows

Sheet Ballari
A1: Name of the District: Ballari | C1: 2016-17 | M1: Outlay Proposed for 2017-18 | V1: Outlay Recommended for 2017-18
A2: S.No. | B2: Activity | C2: Out Lay Approved for 2016-17 (including spill over) | E2: Expenditure as on DEC, 2016 (As per Vidyavahini Software) | G2: Anticipated Achievement till 31-3-2017 | K2: Savings | M2: Spill Over | O2: Deferred laibility of 2016-2017 | Q2: Fresh | T2: Total | V2: Spill Over | X2: Deferred laibility of 2016-2017 | Z2: Fresh | AC2: Total
C3: Phy. | D3: Fin. | E3: Phy. | F3: Fin. | G3: Phy. | H3: Fin. | I3: Phy. (%) | J3: Fin. (%) | K3: Phy. | L3: Fin. | M3: Phy. | N3: Fin. | O3: Phy. | P3: Fin. | Q3: Unit Cost | R3: Phy. | S3: Fin. | T3: Phy. | U3: Fin. | V3: Phy. | W3: Fin. | X3: Phy. | Y3: Fin. | Z3: Unit Cost | AA3: Phy. | AB3: Fin. | AC3: Phy. | AD3: Fin.
B5: SSA
A6: 1 | B6: Opening of New Schools | C6: 0 | D6: 0
A7: 1.01 | B7: New Primary School | C7: 0 | D7: 0 | I7: =IFERROR(G7/C7*100,"") ->  | J7: =IFERROR(H7/D7*100,"") ->  | K7: =C7-G7 -> 0 | L7: =D7-H7 -> 0 | S7: =Q7*R7 -> 0 | T7: =+M7+O7+R7 -> 0 | U7: =+N7+P7+S7 -> 0 | AB7: =Z7*AA7 -> 0 | AC7: =+V7+X7+AA7 -> 0 | AD7: =+W7+Y7+AB7 -> 0 | AF7: =+AD7 -> 0 | AG7: =+W7+Y7+AB7=AD7 -> TRUE
A8: 1.02 | B8: Upgradation of PS to UPS | C8: 0 | D8: 0 | I8: =IFERROR(G8/C8*100,"") ->  | J8: =IFERROR(H8/D8*100,"") ->  | K8: =C8-G8 -> 0 | L8: 0 | S8: =R8*Q8 -> 0 | T8: =+M8+O8+R8 -> 0 | U8: =+N8+P8+S8 -> 0 | AB8: =AA8*Z8 -> 0 | AC8: =+V8+X8+AA8 -> 0 | AD8: =+W8+Y8+AB8 -> 0 | AF8: =+AD8 -> 0 | AG8: =+W8+Y8+AB8=AD8 -> TRUE
A9: 1.03 | B9: Composite Schools | C9: 0 | D9: 0 | K9: 0 | L9: 0 | S9: 0 | T9: 0 | U9: 0 | AB9: 0 | AC9: 0 | AD9: 0 | AF9: 0 | AG9: TRUE
A10: 1.04 | B10: Residential schools for specific category of children | C10: 0 | D10: 0 | K10: 0 | L10: 0 | S10: 0 | T10: 0 | U10: 0 | AB10: 0 | AC10: 0 | AD10: 0 | AF10: 0 | AG10: TRUE
A11: 1.05 | B11: Residential Hostel | C11: 0 | D11: 0 | K11: 0 | L11: 0 | S11: 0 | T11: 0 | U11: 0 | AB11: 0 | AC11: 0 | AD11: 0 | AF11: 0 | AG11: TRUE
A12: 1.06 | B12: Integration of Class V with primary schools | C12: 0 | D12: 0 | K12: 0 | L12: 0 | S12: 0 | T12: 0 | U12: 0 | AB12: 0 | AC12: 0 | AD12: 0 | AF12: 0 | AG12: TRUE
A13: 1.07 | B13: Integration of Class VIII with upper primary schools | C13: 0 | D13: 0 | K13: 0 | L13: 0 | S13: 0 | T13: 0 | U13: 0 | AB13: 0 | AC13: 0 | AD13: 0 | AF13: 0 | AG13: TRUE
A14: 2 | B14: Residential Schools for specific category of children | T14: 0 | U14: 0 | AC14: 0 | AD14: 0 | AG14: TRUE
B15: 50 children | T15: 0 | U15: 0 | AC15: 0 | AD15: 0 | AG15: TRUE
B16: Non-recurring (one time grant) | T16: 0 | U16: 0 | AC16: 0 | AD16: 0 | AG16: TRUE
A17: 2.01 | B17: Furniture/ Equipment (including kitchen) | C17: 0 | D17: 0 | K17: =C17-G17 -> 0 | L17: 0 | S17: =R17*Q17 -> 0 | T17: 0 | U17: 0 | AB17: =AA17*Z17 -> 0 | AC17: 0 | AD17: 0 | AF17: 0 | AG17: TRUE
A18: 2.02 | B18: TLM and equipment including library books | C18: 0 | D18: 0 | K18: 0 | L18: 0 | S18: =R18*Q18 -> 0 | T18: 0 | U18: 0 | AB18: =AA18*Z18 -> 0 | AC18: 0 | AD18: 0 | AF18: 0 | AG18: TRUE
A19: 2.03 | B19: Bedding (new) | C19: 0 | D19: 0 | K19: 0 | L19: 0 | S19: =R19*Q19 -> 0 | T19: 0 | U19: 0 | AB19: =AA19*Z19 -> 0 | AC19: 0 | AD19: 0 | AF19: 0 | AG19: TRUE
A20: 2.04 | B20: Replacement of bedding (once in 3 years) | C20: 0 | D20: 0 | K20: 0 | L20: 0 | S20: =R20*Q20 -> 0 | T20: 0 | U20: 0 | AB20: =AA20*Z20 -> 0 | AC20: 0 | AD20: 0 | AF20: 0 | AG20: TRUE
B21: Sub Total (Non Recurring) | C21: 0 | D21: 0 | E21: =SUM(E7:E20) -> 0 | F21: =SUM(F7:F20) -> 0 | G21: 0 | H21: 0 | K21: 0 | L21: 0 | M21: 0 | N21: 0 | O21: 0 | P21: 0 | R21: =SUM(R7:R20) -> 0 | S21: =SUM(S7:S20) -> 0 | T21: 0 | U21: 0 | V21: =SUM(V7:V20) -> 0 | W21: =SUM(W7:W20) -> 0 | X21: 0 | Y21: 0 | AA21: 0 | AB21: 0 | AC21: 0 | AD21: 0 | AE21: 0 | AF21: 0 | AG21: TRUE
B22: Recurring (50 children) | T22: 0 | U22: 0 | AC22: 0 | AD22: 0 | AF22: 0 | AG22: TRUE
A23: 2.05 | B23: Maintenance per child Per month @ Rs.1500/- | C23: 0 | D23: 0 | K23: =C23-G23 -> 0 | L23: 0 | N23: 0 | Q23: 0.18 | S23: =R23*Q23 -> 0 | T23: 0 | U23: 0 | W23: 0 | AB23: =AA23*Z23 -> 0 | AC23: 0 | AD23: 0 | AF23: 0 | AG23: TRUE
A24: 2.06 | B24: Stipend per child per month @ Rs.100/- | C24: 0 | D24: 0 | K24: 0 | L24: 0 | N24: 0 | Q24: 0.012 | S24: =R24*Q24 -> 0 | T24: 0 | U24: 0 | W24: 0 | AB24: =AA24*Z24 -> 0 | AC24: 0 | AD24: 0 | AF24: 0 | AG24: TRUE
A25: 2.07 | B25: Supplementary TLM, Stationery and other educational material @Rs.1000/- per child per annum | C25: 0 | D25: 0 | K25: 0 | L25: 0 | N25: 0 | Q25: 0.01 | S25: =R25*Q25 -> 0 | T25: 0 | U25: 0 | W25: 0 | AB25: =AA25*Z25 -> 0 | AC25: 0 | AD25: 0 | AF25: 0 | AG25: TRUE
A26: 2.08 | B26: Salaries | T26: 0 | U26: 0 | AC26: 0 | AD26: 0 | AF26: 0 | AG26: TRUE
A27: (a) | B27: 1 Warden @ Rs.25000/- per month | C27: 0 | D27: 0 | K27: 0 | L27: 0 | N27: 0 | Q27: 3 | S27: =R27*Q27 -> 0 | T27: 0 | U27: 0 | W27: 0 | AB27: =AA27*Z27 -> 0 | AC27: 0 | AD27: 0 | AF27: 0 | AG27: TRUE
A28: (b ) | B28: 4 Fulltime teachers as per RTE Norms @ Rs. 20,000/- per month per teacher | C28: 0 | D28: 0 | K28: 0 | L28: 0 | N28: 0 | Q28: 9.6 | S28: 0 | T28: 0 | U28: 0 | W28: 0 | AB28: 0 | AC28: 0 | AD28: 0 | AF28: 0 | AG28: TRUE
A29: (c) | B29: 2 Urdu Teachers (only for Blocks with muslim population above 20% and select urban areas) @ Rs.12,000/- per month per teacher. | C29: 0 | D29: 0 | K29: 0 | L29: 0 | N29: 0 | Q29: 1.44 | S29: 0 | T29: 0 | U29: 0 | W29: 0 | AB29: 0 | AC29: 0 | AD29: 0 | AF29: 0 | AG29: TRUE
A30: (d) | B30: 3 Part time teachers @ Rs.5,000/- per month per teacher | C30: 0 | D30: 0 | K30: 0 | L30: 0 | N30: 0 | Q30: 1.55 | S30: 0 | T30: 0 | U30: 0 | W30: 0 | AB30: 0 | AC30: 0 | AD30: 0 | AF30: 0 | AG30: TRUE
A31: (e ) | B31: 1 Full time Accountant @ Rs. 10,000/- per month | C31: 0 | D31: 0 | K31: 0 | L31: 0 | N31: 0 | Q31: 1.2 | S31: 0 | T31: 0 | U31: 0 | W31: 0 | AB31: 0 | AC31: 0 | AD31: 0 | AF31: 0 | AG31: TRUE
A32: (f) | B32: 2 Support staff - (Accountant/Assistant, Peon, Chowkidar) @ Rs. 5,000/- per month per staff | C32: 0 | D32: 0 | K32: 0 | L32: 0 | N32: 0 | Q32: 1.2 | S32: 0 | T32: 0 | U32: 0 | W32: 0 | AB32: 0 | AC32: 0 | AD32: 0 | AF32: 0 | AG32: TRUE
A33: (g) | B33: 1 Head Cook @ Rs. 6,000/- per month and upto 2 Asstt. Cooks @ Rs. 4,500/- per month per cook | C33: 0 | D33: 0 | K33: 0 | L33: 0 | N33: 0 | Q33: 1.8 | S33: 0 | T33: 0 | U33: 0 | W33: 0 | AB33: 0 | AC33: 0 | AD33: 0 | AF33: 0 | AG33: TRUE
A34: 2.09 | B34: Specific Skill training @ Rs.1000/- per annum per child | C34: 0 | D34: 0 | K34: 0 | L34: 0 | N34: 0 | Q34: 0.01 | S34: 0 | T34: 0 | U34: 0 | W34: 0 | AB34: 0 | AC34: 0 | AD34: 0 | AF34: 0 | AG34: TRUE
A35: 2.1 | B35: Electricity / water charges @ Rs. 1000/- per annum per child | C35: 0 | D35: 0 | K35: 0 | L35: 0 | N35: 0 | Q35: 0.01 | S35: 0 | T35: 0 | U35: 0 | W35: 0 | AB35: 0 | AC35: 0 | AD35: 0 | AF35: 0 | AG35: TRUE
A36: 2.11 | B36: Medical care/contingencies @ Rs.1250/- per annum per child | C36: 0 | D36: 0 | K36: 0 | L36: 0 | N36: 0 | Q36: 0.0125 | S36: 0 | T36: 0 | U36: 0 | W36: 0 | AB36: 0 | AC36: 0 | AD36: 0 | AF36: 0 | AG36: TRUE
A37: 2.12 | B37: Maintenance @ Rs. 750/- per child per annum | C37: 0 | D37: 0 | K37: 0 | L37: 0 | N37: 0 | Q37: 0.0075 | S37: 0 | T37: 0 | U37: 0 | W37: 0 | AB37: 0 | AC37: 0 | AD37: 0 | AF37: 0 | AG37: TRUE
A38: 2.13 | B38: Miscellaneous @ Rs. 750/- per child per annum | C38: 0 | D38: 0 | K38: 0 | L38: 0 | N38: 0 | Q38: 0.0075 | S38: 0 | T38: 0 | U38: 0 | W38: 0 | AB38: 0 | AC38: 0 | AD38: 0 | AF38: 0 | AG38: TRUE
A39: 2.14 | B39: Preparatory camps @ Rs. 300/- per child per annum | C39: 0 | D39: 0 | K39: 0 | L39: 0 | N39: 0 | Q39: 0.003 | S39: 0 | T39: 0 | U39: 0 | W39: 0 | AB39: 0 | AC39: 0 | AD39: 0 | AF39: 0 | AG39: TRUE
A40: 2.15 | B40: P.T.A / school functions @ Rs. 300/- per child per annum | C40: 0 | D40: 0 | K40: 0 | L40: 0 | N40: 0 | Q40: 0.003 | S40: 0 | T40: 0 | U40: 0 | W40: 0 | AB40: 0 | AC40: 0 | AD40: 0 | AF40: 0 | AG40: TRUE
A41: 2.16 | B41: Provision of Rent @ Rs. 10,000/- per child per annum | C41: 0 | D41: 0 | K41: 0 | L41: 0 | N41: 0 | S41: 0 | T41: 0 | U41: 0 | W41: 0 | AB41: 0 | AC41: 0 | AD41: 0 | AF41: 0 | AG41: TRUE
A42: 2.17 | B42: Capacity Building @ Rs. 500/- per child per annum | C42: 0 | D42: 0 | K42: 0 | L42: 0 | N42: 0 | Q42: 0.005 | S42: 0 | T42: 0 | U42: 0 | W42: 0 | AB42: 0 | AC42: 0 | AD42: 0 | AF42: 0 | AG42: TRUE
A43: 2.18 | B43: Physical / Self Defence Training @ Rs.200/- per child per annum | C43: 0 | D43: 0 | K43: 0 | L43: 0 | N43: 0 | Q43: 0.002 | S43: 0 | T43: 0 | U43: 0 | W43: 0 | AB43: 0 | AC43: 0 | AD43: 0 | AF43: 0 | AG43: TRUE
B44: Sub Total (Recurring) | C44: =SUM(C23:C43) -> 0 | D44: 0 | E44: 0 | F44: 0 | G44: 0 | H44: 0 | K44: 0 | L44: 0 | M44: 0 | N44: 0 | R44: =SUM(R23:R43) -> 0 | S44: =SUM(S23:S43) -> 0 | T44: 0 | U44: 0 | V44: =SUM(V23:V43) -> 0 | W44: =SUM(W23:W43) -> 0 | X44: 0 | Y44: 0 | AA44: 0 | AB44: 0 | AC44: =+V44+X44+AA44 -> 0 | AD44: =+W44+Y44+AB44 -> 0 | AG44: TRUE
B45: Total (Non Recurring + Recurring) | C45: =C44+C21 -> 0 | D45: 0 | E45: 0 | F45: 0 | G45: 0 | H45: 0 | K45: 0 | L45: 0 | M45: 0 | N45: 0 | R45: =R44+R21 -> 0 | S45: =S44+S21 -> 0 | T45: 0 | U45: 0 | V45: =+V44+V21 -> 0 | W45: =+W44+W21 -> 0 | X45: 0 | Y45: 0 | Z45: 0 | AA45: 0 | AB45: 0 | AC45: =+V45+X45+AA45 -> 0 | AD45: =+W45+Y45+AB45 -> 0 | AG45: TRUE
B46: 100 children | T46: 0 | U46: 0 | AC46: 0 | AD46: 0 | AG46: TRUE
B47: Non-recurring (one time grant) | T47: 0 | U47: 0 | AC47: 0 | AD47: 0 | AG47: TRUE
A48: 2.19 | B48: Furniture / Equipment (including kitchen equipment) | C48: 0 | D48: 0 | K48: =C48-G48 -> 0 | L48: 0 | S48: =R48*Q48 -> 0 | T48: 0 | U48: 0 | AB48: =AA48*Z48 -> 0 | AC48: 0 | AD48: 0 | AF48: 0 | AG48: TRUE
A49: 2.2 | B49: TLM and equipment including library books (New) | C49: 0 | D49: 0 | K49: 0 | L49: 0 | S49: =R49*Q49 -> 0 | T49: 0 | U49: 0 | AB49: =AA49*Z49 -> 0 | AC49: 0 | AD49: 0 | AF49: 0 | AG49: TRUE
A50: 2.21 | B50: Bedding (New) | C50: 0 | D50: 0 | K50: 0 | L50: 0 | S50: =R50*Q50 -> 0 | T50: 0 | U50: 0 | AB50: =AA50*Z50 -> 0 | AC50: 0 | AD50: 0 | AF50: 0 | AG50: TRUE
A51: 2.22 | B51: Replacement of bedding (once in 3 years) | C51: 0 | D51: 0 | E51: 0 | G51: 0 | K51: 0 | L51: 0 | S51: =R51*Q51 -> 0 | T51: 0 | U51: 0 | AB51: =AA51*Z51 -> 0 | AC51: 0 | AD51: 0 | AF51: 0 | AG51: TRUE
B52: Sub Total Non-recurring | C52: 0 | D52: 0 | E52: =SUM(E48:E51) -> 0 | F52: =SUM(F48:F51) -> 0 | G52: 0 | H52: 0 | K52: 0 | L52: 0 | M52: 0 | N52: 0 | R52: =SUM(R48:R51) -> 0 | S52: =SUM(S48:S51) -> 0 | T52: 0 | U52: 0 | V52: =SUM(V48:V51) -> 0 | W52: =SUM(W48:W51) -> 0 | X52: 0 | Y52: 0 | AA52: 0 | AB52: 0 | AC52: =+V52+X52+AA52 -> 0 | AD52: =+W52+Y52+AB52 -> 0 | AG52: TRUE
B53: Recurring | C53: 0 | D53: 0 | T53: 0 | U53: 0 | AC53: 0 | AD53: 0 | AG53: TRUE
A54: 2.23 | B54: Maintenance per child per month @ Rs. 1500/- | C54: 0 | D54: 0 | K54: =C54-G54 -> 0 | L54: 0 | N54: 0 | Q54: 0.18 | S54: =R54*Q54 -> 0 | T54: 0 | U54: 0 | W54: 0 | Z54: 0.18 | AB54: =AA54*Z54 -> 0 | AC54: 0 | AD54: 0 | AF54: 0 | AG54: TRUE
A55: 2.24 | B55: Stipend per child per month @ Rs.100/- | C55: 0 | D55: 0 | K55: 0 | L55: 0 | N55: 0 | Q55: 0.012 | S55: =R55*Q55 -> 0 | T55: 0 | U55: 0 | W55: 0 | Z55: 0.012 | AB55: =AA55*Z55 -> 0 | AC55: 0 | AD55: 0 | AF55: 0 | AG55: TRUE
A56: 2.25 | B56: Supplementary TLM, Stationery and other educational material per child @1000/- per annum | C56: 0 | D56: 0 | K56: 0 | L56: 0 | N56: 0 | Q56: 0.01 | S56: =R56*Q56 -> 0 | T56: 0 | U56: 0 | W56: 0 | Z56: 0.01 | AB56: =AA56*Z56 -> 0 | AC56: 0 | AD56: 0 | AF56: 0 | AG56: TRUE
A57: =+A56+0.01 -> 2.26 | B57: Salaries | T57: 0 | U57: 0 | AC57: 0 | AD57: 0 | AF57: 0 | AG57: TRUE
A58: (a) | B58: 1 Warden @ Rs. 25,000/- per month | C58: 0 | D58: 0 | G58: 0 | K58: 0 | L58: 0 | N58: 0 | Q58: 3 | S58: =R58*Q58 -> 0 | T58: 0 | U58: 0 | W58: 0 | Z58: 3 | AB58: =AA58*Z58 -> 0 | AC58: 0 | AD58: 0 | AF58: 0 | AG58: TRUE
A59: (b) | B59: 1 head teacher @ Rs. 25,000/- per month in case the enrollment exceeds 100 | K59: 0 | L59: 0 | N59: 0 | S59: 0 | T59: 0 | U59: 0 | W59: 0 | AB59: 0 | AC59: 0 | AD59: 0 | AF59: 0 | AG59: TRUE
A60: (c) | B60: 4 - 5 Full time teachers as per RTE norms @ Rs. 20,000/- per month per teacher | C60: 0 | D60: 0 | G60: 0 | K60: 0 | L60: 0 | N60: 0 | Q60: 9.6 | S60: 0 | T60: 0 | U60: 0 | W60: 0 | Z60: 9.6 | AB60: 0 | AC60: 0 | AD60: 0 | AF60: 0 | AG60: TRUE
A61: (d) | B61: 2 Urdu Teachers (only for blocks with muslim population above 20% and select urban areas), if required @ Rs. 12,000/- per month per teacher | C61: 0 | D61: 0 | K61: 0 | L61: 0 | N61: 0 | Q61: 1.44 | S61: 0 | T61: 0 | U61: 0 | W61: 0 | AB61: 0 | AC61: 0 | AD61: 0 | AF61: 0 | AG61: TRUE
A62: (e) | B62: 3 part time teachers @ Rs. 5,000/- per month per teacher | C62: 0 | D62: 0 | G62: 0 | K62: 0 | L62: 0 | N62: 0 | Q62: 1.5 | S62: 0 | T62: 0 | U62: 0 | W62: 0 | Z62: 1.5 | AB62: 0 | AC62: 0 | AD62: 0 | AF62: 0 | AG62: TRUE
A63: (f) | B63: 1 Full time Accountant @ Rs. 10,000/- per month | C63: 0 | D63: 0 | K63: 0 | L63: 0 | N63: 0 | Q63: 1.2 | S63: 0 | T63: 0 | U63: 0 | W63: 0 | Z63: 1.2 | AB63: 0 | AC63: 0 | AD63: 0 | AF63: 0 | AG63: TRUE
A64: (g) | B64: 2 Support Staff – (Accountant/ Assistant, Peon, Chowkidar) @ Rs. 5,000/- per month per staff | C64: 0 | D64: 0 | K64: 0 | L64: 0 | N64: 0 | Q64: 1.2 | S64: 0 | T64: 0 | U64: 0 | W64: 0 | Z64: 1.2 | AB64: 0 | AC64: 0 | AD64: 0 | AF64: 0 | AG64: TRUE
A65: (h) | B65: 1 Head cook @ Rs. 6,000/- per month and upto 2 Asstt. Cooks @ Rs. 4,500/- per month per cook | C65: 0 | D65: 0 | K65: 0 | L65: 0 | N65: 0 | Q65: 1.8 | S65: 0 | T65: 0 | U65: 0 | W65: 0 | Z65: 1.8 | AB65: 0 | AC65: 0 | AD65: 0 | AF65: 0 | AG65: TRUE
A66: 2.27 | B66: Specific skill training per child @ Rs.1000/- per annum | C66: 0 | D66: 0 | K66: 0 | L66: 0 | N66: 0 | Q66: 0.01 | S66: 0 | T66: 0 | U66: 0 | W66: 0 | Z66: 0.01 | AB66: 0 | AC66: 0 | AD66: 0 | AF66: 0 | AG66: TRUE
A67: 2.28 | B67: Electricity / water charges per child @Rs.1000/- per annum | C67: 0 | D67: 0 | K67: 0 | L67: 0 | N67: 0 | Q67: 0.01 | S67: 0 | T67: 0 | U67: 0 | W67: 0 | Z67: 0.01 | AB67: 0 | AC67: 0 | AD67: 0 | AF67: 0 | AG67: TRUE
A68: 2.29 | B68: Medical care/contingencies @ Rs.1250/- per child per annum | C68: 0 | D68: 0 | K68: 0 | L68: 0 | N68: 0 | Q68: 0.0125 | S68: 0 | T68: 0 | U68: 0 | W68: 0 | Z68: 0.0125 | AB68: 0 | AC68: 0 | AD68: 0 | AF68: 0 | AG68: TRUE
A69: 2.3 | B69: Maintenance @ Rs.750/- per child per annum | C69: 0 | D69: 0 | K69: 0 | L69: 0 | N69: 0 | Q69: 0.0075 | S69: 0 | T69: 0 | U69: 0 | W69: 0 | Z69: 0.0075 | AB69: 0 | AC69: 0 | AD69: 0 | AF69: 0 | AG69: TRUE
A70: 2.31 | B70: Miscellaneous @ Rs.750/- per child per annum | C70: 0 | D70: 0 | K70: =C70-G70 -> 0 | L70: 0 | N70: 0 | Q70: 0.0075 | S70: 0 | T70: 0 | U70: 0 | W70: 0 | Z70: 0.0075 | AB70: 0 | AC70: 0 | AD70: 0 | AF70: 0 | AG70: TRUE
A71: 2.32 | B71: Preparatory camps @ Rs.200/- per child per annum | C71: 0 | D71: 0 | K71: 0 | L71: 0 | N71: 0 | Q71: 0.002 | S71: 0 | T71: 0 | U71: 0 | W71: 0 | Z71: 0.002 | AB71: 0 | AC71: 0 | AD71: 0 | AF71: 0 | AG71: TRUE
A72: 2.33 | B72: P.T.A / school functions @ Rs.200/- per child per annum | C72: 0 | D72: 0 | I72: =IFERROR(G72/C72*100,"") ->  | J72: =IFERROR(H72/D72*100,"") ->  | K72: 0 | L72: 0 | N72: 0 | Q72: 0.002 | S72: 0 | T72: =+M72+O72+R72 -> 0 | U72: =+N72+P72+S72 -> 0 | W72: 0 | Z72: 0.002 | AB72: 0 | AC72: =+V72+X72+AA72 -> 0 | AD72: =+W72+Y72+AB72 -> 0 | AF72: =+AD72 -> 0 | AG72: =+W72+Y72+AB72=AD72 -> TRUE
A73: 2.34 | B73: Provision of Rent @ Rs. 6000/- per child per annum | C73: 0 | D73: 0 | L73: 0 | N73: 0 | S73: 0 | T73: 0 | U73: 0 | W73: 0 | AB73: 0 | AC73: 0 | AD73: 0 | AF73: 0 | AG73: TRUE
A74: 2.35 | B74: Capacity Building @ Rs.500/- per child per annum | C74: 0 | D74: 0 | H74: 0 | K74: 0 | L74: 0 | N74: 0 | Q74: 0.005 | S74: 0 | T74: 0 | U74: 0 | W74: 0 | Z74: 0.005 | AB74: 0 | AC74: 0 | AD74: 0 | AF74: 0 | AG74: TRUE
A75: 2.36 | B75: Physical / Self Defence training @ Rs. 200/- per child per annum. | C75: 0 | D75: 0 | K75: 0 | L75: 0 | N75: 0 | Q75: 0.002 | S75: 0 | T75: 0 | U75: 0 | W75: 0 | Z75: 0.002 | AB75: 0 | AC75: 0 | AD75: 0 | AF75: 0 | AG75: TRUE
B76: Sub Total (Recurring) | C76: 0 | D76: 0 | E76: =E75+E51 -> 0 | F76: =SUM(F54:F75) -> 0 | G76: 0 | H76: 0 | K76: 0 | L76: 0 | M76: 0 | N76: 0 | R76: =SUM(R54:R75) -> 0 | S76: =SUM(S54:S75) -> 0 | T76: 0 | U76: 0 | V76: =SUM(V54:V75) -> 0 | W76: =SUM(W54:W75) -> 0 | X76: 0 | Y76: 0 | AA76: 0 | AB76: 0 | AC76: =+V76+X76+AA76 -> 0 | AD76: 0 | AG76: TRUE
B77: Total (Recurring + Non Recurring) | C77: 0 | D77: 0 | E77: 0 | F77: 0 | G77: 0 | H77: 0 | K77: 0 | L77: 0 | M77: 0 | N77: 0 | R77: =R76+R52 -> 0 | S77: =S76+S52 -> 0 | T77: 0 | U77: 0 | V77: =+V76+V52 -> 0 | W77: =+W76+W52 -> 0 | X77: 0 | Y77: 0 | AA77: 0 | AB77: 0 | AC77: 0 | AD77: 0 | AG77: TRUE
B78: Total (50 + 100 children) | C78: =C77+C45 -> 0 | D78: 0 | E78: 0 | F78: 0 | G78: 0 | H78: 0 | K78: 0 | L78: 0 | M78: =M77+M45 -> 0 | N78: =N77+N45 -> 0 | O78: =O77+O45 -> 0 | P78: =P77+P45 -> 0 | R78: =R77+R45 -> 0 | S78: =S77+S45 -> 0 | T78: 0 | U78: 0 | V78: =+V77+V45 -> 0 | W78: =+W77+W45 -> 0 | X78: 0 | Y78: 0 | AA78: 0 | AB78: 0 | AC78: 0 | AD78: 0 | AG78: TRUE
A79: 3 | B79: Residential Hostel for specific category of children | T79: 0 | U79: 0 | AC79: 0 | AD79: 0 | AF79: 0 | AG79: TRUE
A80: (A) | B80: 50 children | T80: 0 | U80: 0 | AC80: 0 | AD80: 0 | AF80: 0 | AG80: TRUE
B81: Non-recurring (one time grant) | T81: 0 | U81: 0 | AC81: 0 | AD81: 0 | AF81: 0 | AG81: TRUE
A82: 3.01 | B82: Furniture/ Equipment (including kitchen) | C82: 0 | D82: 0 | K82: =C82-G82 -> 0 | L82: 0 | S82: =R82*Q82 -> 0 | T82: 0 | U82: 0 | AB82: =AA82*Z82 -> 0 | AC82: 0 | AD82: 0 | AF82: 0 | AG82: TRUE
A83: =+A82+0.01 -> 3.02 | B83: TLM and equipment including library books | C83: 0 | D83: 0 | K83: 0 | L83: 0 | S83: =R83*Q83 -> 0 | T83: 0 | U83: 0 | AB83: =AA83*Z83 -> 0 | AC83: 0 | AD83: 0 | AF83: 0 | AG83: TRUE
A84: =+A83+0.01 -> 3.03 | B84: Bedding (new) | C84: 0 | D84: 0 | K84: 0 | L84: 0 | S84: =R84*Q84 -> 0 | T84: 0 | U84: 0 | AB84: =AA84*Z84 -> 0 | AC84: 0 | AD84: 0 | AF84: 0 | AG84: TRUE
A85: =+A84+0.01 -> 3.04 | B85: Replacement of bedding (once in 3 years) | C85: 0 | D85: 0 | K85: 0 | L85: 0 | S85: =R85*Q85 -> 0 | T85: 0 | U85: 0 | AB85: =AA85*Z85 -> 0 | AC85: 0 | AD85: 0 | AF85: 0 | AG85: TRUE
B86: Sub Total (Non Recurring) | C86: =SUM(C82:C85) -> 0 | D86: =SUM(D82:D85) -> 0 | E86: =SUM(E82:E85) -> 0 | F86: 0 | G86: 0 | H86: 0 | K86: 0 | L86: 0 | M86: 0 | N86: 0 | R86: =SUM(R82:R85) -> 0 | S86: =SUM(S82:S85) -> 0 | T86: 0 | U86: 0 | V86: =SUM(V82:V85) -> 0 | W86: =SUM(W82:W85) -> 0 | X86: 0 | Y86: 0 | AA86: 0 | AB86: 0 | AC86: =+V86+X86+AA86 -> 0 | AD86: =+W86+Y86+AB86 -> 0 | AF86: 0 | AG86: TRUE
B87: Recurring (50 children) | C87: 0 | D87: 0 | S87: =R87*Q87 -> 0 | T87: 0 | U87: 0 | AB87: =AA87*Z87 -> 0 | AC87: 0 | AD87: 0 | AF87: 0 | AG87: TRUE
A88: 3.05 | B88: Maintenance per child Per month @ Rs.1500/- | C88: 0 | D88: 0 | K88: =C88-G88 -> 0 | L88: 0 | N88: 0 | S88: =R88*Q88 -> 0 | T88: 0 | U88: 0 | W88: 0 | AB88: =AA88*Z88 -> 0 | AC88: 0 | AD88: 0 | AF88: 0 | AG88: TRUE
A89: =+A88+0.01 -> 3.06 | B89: Stipend per child per month @ Rs.100/- | C89: 0 | D89: 0 | K89: 0 | L89: 0 | N89: 0 | S89: =R89*Q89 -> 0 | T89: 0 | U89: 0 | W89: 0 | AB89: =AA89*Z89 -> 0 | AC89: 0 | AD89: 0 | AF89: 0 | AG89: TRUE
A90: =+A89+0.01 -> 3.07 | B90: Supplementary TLM, Stationery and other educational material @Rs.1000/- per child per annum | C90: 0 | D90: 0 | K90: 0 | L90: 0 | N90: 0 | S90: =R90*Q90 -> 0 | T90: 0 | U90: 0 | W90: 0 | AB90: =AA90*Z90 -> 0 | AC90: 0 | AD90: 0 | AF90: 0 | AG90: TRUE
A91: 3.08 | B91: Salaries | T91: 0 | U91: 0 | AC91: 0 | AD91: 0 | AF91: 0 | AG91: TRUE
A92: (a) | B92: 1 Warden @ Rs.25000/- per month | C92: 0 | D92: 0 | K92: 0 | L92: 0 | N92: 0 | S92: =R92*Q92 -> 0 | T92: 0 | U92: 0 | W92: 0 | AB92: =AA92*Z92 -> 0 | AC92: 0 | AD92: 0 | AF92: 0 | AG92: TRUE
A93: (b) | B93: 4 Fulltime teachers as per RTE Norms @ Rs. 20,000/- per month per teacher | C93: 0 | D93: 0 | K93: 0 | L93: 0 | N93: 0 | S93: 0 | T93: 0 | U93: 0 | W93: 0 | AB93: 0 | AC93: 0 | AD93: 0 | AF93: 0 | AG93: TRUE
A94: (c) | B94: 2 Urdu Teachers (only for Blocks with muslim population above 20% and select urban areas) @ Rs.12,000/- per month per teacher. | C94: 0 | D94: 0 | K94: 0 | L94: 0 | N94: 0 | S94: 0 | T94: 0 | U94: 0 | W94: 0 | AB94: 0 | AC94: 0 | AD94: 0 | AF94: 0 | AG94: TRUE
A95: (d) | B95: 3 Part time teachers @ Rs.5,000/- per month per teacher | C95: 0 | D95: 0 | K95: 0 | L95: 0 | N95: 0 | S95: 0 | T95: 0 | U95: 0 | W95: 0 | AB95: 0 | AC95: 0 | AD95: 0 | AF95: 0 | AG95: TRUE
A96: (e) | B96: 1 Full time Accountant @ Rs. 10,000/- per month | C96: 0 | D96: 0 | K96: 0 | L96: 0 | N96: 0 | S96: 0 | T96: 0 | U96: 0 | W96: 0 | AB96: 0 | AC96: 0 | AD96: 0 | AF96: 0 | AG96: TRUE
A97: (f) | B97: 2 Support staff - (Accountant/Assistant, Peon, Chowkidar) @ Rs. 5,000/- per month per staff | C97: 0 | D97: 0 | K97: 0 | L97: 0 | N97: 0 | S97: 0 | T97: 0 | U97: 0 | W97: 0 | AB97: 0 | AC97: 0 | AD97: 0 | AF97: 0 | AG97: TRUE
A98: (g) | B98: 1 Head Cook @ Rs. 6,000/- per month and upto 2 Asstt. Cooks @ Rs. 4,500/- per month per cook | C98: 0 | D98: 0 | K98: 0 | L98: 0 | N98: 0 | S98: 0 | T98: 0 | U98: 0 | W98: 0 | AB98: 0 | AC98: 0 | AD98: 0 | AF98: 0 | AG98: TRUE
A99: 3.09 | B99: Specific Skill training @ Rs.1000/- per annum per child | C99: 0 | D99: 0 | K99: 0 | L99: 0 | N99: 0 | S99: 0 | T99: 0 | U99: 0 | W99: 0 | AB99: 0 | AC99: 0 | AD99: 0 | AF99: 0 | AG99: TRUE
A100: =+A99+0.01 -> 3.1 | B100: Electricity / water charges @ Rs. 1000/- per annum per child | C100: 0 | D100: 0 | K100: 0 | L100: 0 | N100: 0 | S100: 0 | T100: 0 | U100: 0 | W100: 0 | AB100: 0 | AC100: 0 | AD100: 0 | AF100: 0 | AG100: TRUE
A101: 3.11 | B101: Medical care/contingencies @ Rs.1250/- per annum per child | C101: 0 | D101: 0 | K101: 0 | L101: 0 | N101: 0 | S101: 0 | T101: 0 | U101: 0 | W101: 0 | AB101: 0 | AC101: 0 | AD101: 0 | AF101: 0 | AG101: TRUE
A102: 3.12 | B102: Maintenance @ Rs. 750/- per child per annum | C102: 0 | D102: 0 | K102: 0 | L102: 0 | N102: 0 | S102: 0 | T102: 0 | U102: 0 | W102: 0 | AB102: 0 | AC102: 0 | AD102: 0 | AF102: 0 | AG102: TRUE
A103: 3.13 | B103: Miscellaneous @ Rs. 750/- per child per annum | C103: 0 | D103: 0 | K103: 0 | L103: 0 | N103: 0 | S103: 0 | T103: 0 | U103: 0 | W103: 0 | AB103: 0 | AC103: 0 | AD103: 0 | AF103: 0 | AG103: TRUE
A104: 3.14 | B104: Preparatory camps @ Rs. 300/- per child per annum | C104: 0 | D104: 0 | K104: 0 | L104: 0 | N104: 0 | S104: 0 | T104: 0 | U104: 0 | W104: 0 | AB104: 0 | AC104: 0 | AD104: 0 | AF104: 0 | AG104: TRUE
A105: 3.15 | B105: P.T.A / school functions @ Rs. 300/- per child per annum | C105: 0 | D105: 0 | K105: 0 | L105: 0 | N105: 0 | S105: 0 | T105: 0 | U105: 0 | W105: 0 | AB105: 0 | AC105: 0 | AD105: 0 | AF105: 0 | AG105: TRUE
A106: 3.16 | B106: Provision of Rent @ Rs. 10,000/- per child per annum | C106: 0 | D106: 0 | K106: 0 | L106: 0 | N106: 0 | S106: 0 | T106: 0 | U106: 0 | W106: 0 | AB106: 0 | AC106: 0 | AD106: 0 | AF106: 0 | AG106: TRUE
A107: 3.17 | B107: Capacity Building @ Rs. 500/- per child per annum | C107: 0 | D107: 0 | K107: 0 | L107: 0 | N107: 0 | S107: 0 | T107: 0 | U107: 0 | W107: 0 | AB107: 0 | AC107: 0 | AD107: 0 | AF107: 0 | AG107: TRUE
A108: 3.18 | B108: Physical / Self Defence Training @ Rs.200/- per child per annum | C108: 0 | D108: 0 | K108: 0 | L108: 0 | N108: 0 | S108: 0 | T108: 0 | U108: 0 | W108: 0 | AB108: 0 | AC108: 0 | AD108: 0 | AF108: 0 | AG108: TRUE
B109: Sub Total (Recurring) | C109: =C108+C85 -> 0 | D109: =SUM(D88:D108) -> 0 | E109: 0 | F109: 0 | G109: 0 | H109: 0 | K109: 0 | L109: 0 | M109: 0 | N109: 0 | R109: =SUM(R88:R108) -> 0 | S109: =SUM(S88:S108) -> 0 | T109: 0 | U109: 0 | V109: =SUM(V88:V108) -> 0 | W109: =SUM(W88:W108) -> 0 | X109: 0 | Y109: 0 | AA109: 0 | AB109: 0 | AC109: =+V109+X109+AA109 -> 0 | AD109: =+W109+Y109+AB109 -> 0 | AF109: 0 | AG109: TRUE
B110: Total (Non Recurring + Recurring) | C110: 0 | D110: 0 | E110: 0 | F110: 0 | G110: 0 | H110: 0 | K110: 0 | L110: 0 | M110: 0 | N110: 0 | R110: =R109+R86 -> 0 | S110: =S109+S86 -> 0 | T110: 0 | U110: 0 | V110: =+V109+V86 -> 0 | W110: =+W109+W86 -> 0 | X110: 0 | Y110: 0 | AA110: 0 | AB110: 0 | AC110: =+V110+X110+AA110 -> 0 | AD110: =+W110+Y110+AB110 -> 0 | AF110: 0 | AG110: TRUE
A111: (B) | B111: 100 Children | T111: 0 | U111: 0 | AC111: 0 | AD111: 0 | AF111: 0 | AG111: TRUE
B112: Non-recurring (one time grant) | T112: 0 | U112: 0 | AC112: 0 | AD112: 0 | AF112: 0 | AG112: TRUE
A113: 3.19 | B113: Furniture / Equipment (including kitchen equipment) | C113: 0 | D113: 0 | K113: =C113-G113 -> 0 | L113: 0 | M113: 0 | N113: 0 | S113: =Q113+L113 -> 0 | T113: 0 | U113: 0 | V113: 0 | W113: 0 | AB113: =Z113+U113 -> 0 | AC113: 0 | AD113: 0 | AF113: 0 | AG113: TRUE
A114: =+A113+0.01 -> 3.2 | B114: TLM and equipment including library books (New) | C114: 0 | D114: 0 | K114: 0 | L114: 0 | M114: 0 | N114: 0 | S114: =R114*Q114 -> 0 | T114: 0 | U114: 0 | V114: 0 | W114: 0 | AB114: =AA114*Z114 -> 0 | AC114: 0 | AD114: 0 | AF114: 0 | AG114: TRUE
A115: =+A114+0.01 -> 3.21 | B115: Bedding (New) | C115: 0 | D115: 0 | K115: 0 | L115: 0 | M115: 0 | N115: 0 | S115: =R115*Q115 -> 0 | T115: 0 | U115: 0 | V115: 0 | W115: 0 | AB115: =AA115*Z115 -> 0 | AC115: 0 | AD115: 0 | AF115: 0 | AG115: TRUE
A116: =+A115+0.01 -> 3.22 | B116: Replacement of bedding (once in 3 years) | C116: 0 | D116: 0 | K116: 0 | L116: 0 | M116: 0 | N116: 0 | S116: =R116*Q116 -> 0 | T116: 0 | U116: 0 | V116: 0 | W116: 0 | AB116: =AA116*Z116 -> 0 | AC116: 0 | AD116: 0 | AF116: 0 | AG116: TRUE
B117: Sub Total Non-recurring | C117: =SUM(C113:C116) -> 0 | D117: =SUM(D113:D116) -> 0 | E117: =SUM(E113:E116) -> 0 | F117: 0 | G117: 0 | H117: 0 | K117: 0 | L117: 0 | M117: 0 | N117: 0 | R117: =SUM(R113:R116) -> 0 | S117: =SUM(S113:S116) -> 0 | T117: 0 | U117: 0 | V117: =SUM(V113:V116) -> 0 | W117: =SUM(W113:W116) -> 0 | X117: 0 | Y117: 0 | AA117: 0 | AB117: 0 | AC117: =+V117+X117+AA117 -> 0 | AD117: =+W117+Y117+AB117 -> 0 | AF117: 0 | AG117: TRUE
B118: Recurring | T118: 0 | U118: 0 | AC118: 0 | AD118: 0 | AF118: 0 | AG118: TRUE
A119: 3.23 | B119: Maintenance per child per month @ Rs. 1500/- | C119: 0 | D119: 0 | K119: =C119-G119 -> 0 | L119: 0 | N119: 0 | S119: =R119*Q119 -> 0 | T119: 0 | U119: 0 | W119: 0 | AB119: =AA119*Z119 -> 0 | AC119: 0 | AD119: 0 | AF119: 0 | AG119: TRUE
A120: =+A119+0.01 -> 3.24 | B120: Stipend per child per month @ Rs.100/- | C120: 0 | D120: 0 | K120: 0 | L120: 0 | N120: 0 | S120: =R120*Q120 -> 0 | T120: 0 | U120: 0 | W120: 0 | AB120: =AA120*Z120 -> 0 | AC120: 0 | AD120: 0 | AF120: 0 | AG120: TRUE
A121: =+A120+0.01 -> 3.25 | B121: Supplementary TLM, Stationery and other educational material per child @1000/- per annum | C121: 0 | D121: 0 | K121: 0 | L121: 0 | N121: 0 | S121: =R121*Q121 -> 0 | T121: 0 | U121: 0 | W121: 0 | AB121: =AA121*Z121 -> 0 | AC121: 0 | AD121: 0 | AF121: 0 | AG121: TRUE
A122: 3.26 | B122: Salaries | T122: 0 | U122: 0 | AC122: 0 | AD122: 0 | AF122: 0 | AG122: TRUE
A123: (a) | B123: 1 Warden @ Rs. 25,000/- per month | C123: 0 | D123: 0 | K123: 0 | L123: 0 | N123: 0 | S123: =R123*Q123 -> 0 | T123: 0 | U123: 0 | W123: 0 | AB123: =AA123*Z123 -> 0 | AC123: 0 | AD123: 0 | AF123: 0 | AG123: TRUE
A124: (b) | B124: 1 head teacher @ Rs. 25,000/- per month in case the enrollment exceeds 100 | C124: 0 | D124: 0 | K124: 0 | L124: 0 | N124: 0 | S124: 0 | T124: 0 | U124: 0 | W124: 0 | AB124: 0 | AC124: 0 | AD124: 0 | AF124: 0 | AG124: TRUE
A125: (c) | B125: 4 - 5 Full time teachers as per RTE norms @ Rs. 20,000/- per month per teacher | C125: 0 | D125: 0 | K125: 0 | L125: 0 | N125: 0 | S125: 0 | T125: 0 | U125: 0 | W125: 0 | AB125: 0 | AC125: 0 | AD125: 0 | AF125: 0 | AG125: TRUE
A126: (d) | B126: 2 Urdu Teachers (only for blocks with muslim population above 20% and select urban areas), if required @ Rs. 12,000/- per month per teacher | C126: 0 | D126: 0 | K126: 0 | L126: 0 | N126: 0 | S126: 0 | T126: 0 | U126: 0 | W126: 0 | AB126: 0 | AC126: 0 | AD126: 0 | AF126: 0 | AG126: TRUE
A127: (e) | B127: 3 part time teachers @ Rs. 5,000/- per month per teacher | C127: 0 | D127: 0 | K127: 0 | L127: 0 | N127: 0 | S127: 0 | T127: 0 | U127: 0 | W127: 0 | AB127: 0 | AC127: 0 | AD127: 0 | AF127: 0 | AG127: TRUE
A128: (f) | B128: 1 Full time Accountant @ Rs. 10,000/- per month | C128: 0 | D128: 0 | K128: 0 | L128: 0 | N128: 0 | S128: 0 | T128: 0 | U128: 0 | W128: 0 | AB128: 0 | AC128: 0 | AD128: 0 | AF128: 0 | AG128: TRUE
A129: (g) | B129: 2 Support Staff – (Accountant/ Assistant, Peon, Chowkidar) @ Rs. 5,000/- per month per staff | C129: 0 | D129: 0 | K129: 0 | L129: 0 | N129: 0 | S129: 0 | T129: 0 | U129: 0 | W129: 0 | AB129: 0 | AC129: 0 | AD129: 0 | AF129: 0 | AG129: TRUE
A130: (h) | B130: 1 Head cook @ Rs. 6,000/- per month and upto 2 Asstt. Cooks @ Rs. 4,500/- per month per cook | C130: 0 | D130: 0 | K130: 0 | L130: 0 | N130: 0 | S130: 0 | T130: 0 | U130: 0 | W130: 0 | AB130: 0 | AC130: 0 | AD130: 0 | AF130: 0 | AG130: TRUE
A131: 3.27 | B131: Specific skill training per child @ Rs.1000/- per annum | C131: 0 | D131: 0 | K131: 0 | L131: 0 | N131: 0 | S131: 0 | T131: 0 | U131: 0 | W131: 0 | AB131: 0 | AC131: 0 | AD131: 0 | AF131: 0 | AG131: TRUE
A132: =+A131+0.01 -> 3.28 | B132: Electricity / water charges per child @Rs.1000/- per annum | C132: 0 | D132: 0 | K132: 0 | L132: 0 | N132: 0 | S132: 0 | T132: 0 | U132: 0 | W132: 0 | AB132: 0 | AC132: 0 | AD132: 0 | AF132: 0 | AG132: TRUE
A133: 3.29 | B133: Medical care/contingencies @ Rs.1250/- per child per annum | C133: 0 | D133: 0 | K133: 0 | L133: 0 | N133: 0 | S133: 0 | T133: 0 | U133: 0 | W133: 0 | AB133: 0 | AC133: 0 | AD133: 0 | AF133: 0 | AG133: TRUE
A134: 3.3 | B134: Maintenance @ Rs.750/- per child per annum | C134: 0 | D134: 0 | K134: 0 | L134: 0 | N134: 0 | S134: 0 | T134: 0 | U134: 0 | W134: 0 | AB134: 0 | AC134: 0 | AD134: 0 | AF134: 0 | AG134: TRUE
A135: 3.31 | B135: Miscellaneous @ Rs.750/- per child per annum | C135: 0 | D135: 0 | K135: 0 | L135: 0 | N135: 0 | S135: 0 | T135: 0 | U135: 0 | W135: 0 | AB135: 0 | AC135: 0 | AD135: 0 | AF135: 0 | AG135: TRUE
A136: 3.32 | B136: Preparatory camps @ Rs.200/- per child per annum | C136: 0 | D136: 0 | I136: =IFERROR(G136/C136*100,"") ->  | J136: =IFERROR(H136/D136*100,"") ->  | K136: 0 | L136: 0 | N136: 0 | S136: 0 | T136: =+M136+O136+R136 -> 0 | U136: =+N136+P136+S136 -> 0 | W136: 0 | AB136: 0 | AC136: =+V136+X136+AA136 -> 0 | AD136: =+W136+Y136+AB136 -> 0 | AF136: =+AD136 -> 0 | AG136: =+W136+Y136+AB136=AD136 -> TRUE
A137: 3.33 | B137: P.T.A / school functions @ Rs.200/- per child per annum | C137: 0 | D137: 0 | K137: 0 | L137: 0 | N137: 0 | S137: 0 | T137: 0 | U137: 0 | W137: 0 | AB137: 0 | AC137: 0 | AD137: 0 | AF137: 0 | AG137: TRUE
A138: 3.34 | B138: Provision of Rent @ Rs. 6000/- per child per annum | C138: 0 | D138: 0 | K138: 0 | L138: 0 | N138: 0 | S138: 0 | T138: 0 | U138: 0 | W138: 0 | AB138: 0 | AC138: 0 | AD138: 0 | AF138: 0 | AG138: TRUE
A139: 3.35 | B139: Capacity Building @ Rs.500/- per child per annum | C139: 0 | D139: 0 | K139: 0 | L139: 0 | N139: 0 | S139: 0 | T139: 0 | U139: 0 | W139: 0 | AB139: 0 | AC139: 0 | AD139: 0 | AF139: 0 | AG139: TRUE
A140: 3.36 | B140: Physical / Self Defence training @ Rs. 200/- per child per annum. | C140: 0 | D140: 0 | K140: 0 | L140: 0 | N140: 0 | S140: 0 | T140: 0 | U140: 0 | W140: 0 | AB140: 0 | AC140: 0 | AD140: 0 | AF140: 0 | AG140: TRUE
B141: Sub Total (Recurring) | C141: 0 | D141: 0 | E141: =SUM(E119:E140) -> 0 | F141: =SUM(F119:F140) -> 0 | G141: 0 | H141: 0 | K141: 0 | L141: 0 | M141: 0 | N141: 0 | R141: =SUM(R119:R140) -> 0 | S141: =SUM(S119:S140) -> 0 | T141: 0 | U141: 0 | V141: =SUM(V119:V140) -> 0 | W141: =SUM(W119:W140) -> 0 | X141: 0 | Y141: 0 | AA141: 0 | AB141: 0 | AC141: =+V141+X141+AA141 -> 0 | AD141: 0 | AF141: 0 | AG141: TRUE
B142: Total (Recurring + Non Recurring) | C142: 0 | D142: 0 | E142: =E141+E117 -> 0 | F142: 0 | G142: 0 | H142: 0 | K142: 0 | L142: 0 | M142: 0 | N142: 0 | R142: =R141+R117 -> 0 | S142: =S141+S117 -> 0 | T142: 0 | U142: 0 | V142: =+V141+V117 -> 0 | W142: =+W141+W117 -> 0 | X142: 0 | Y142: 0 | AA142: 0 | AB142: 0 | AC142: 0 | AD142: 0 | AF142: 0 | AG142: TRUE
B143: Total (A + B) | C143: 0 | D143: 0 | E143: =E142+E110 -> 0 | F143: 0 | G143: 0 | H143: 0 | K143: 0 | L143: 0 | M143: =M142+M110 -> 0 | N143: 0 | O143: 0 | P143: 0 | R143: =R142+R110 -> 0 | S143: =S142+S110 -> 0 | T143: 0 | U143: 0 | V143: =+V142+V110 -> 0 | W143: =+W142+W110 -> 0 | X143: 0 | Y143: 0 | Z143: 0 | AA143: 0 | AB143: 0 | AC143: 0 | AD143: 0 | AF143: 0 | AG143: TRUE
A144: 4 | B144: Transport/Escort Facility | T144: 0 | U144: 0 | AC144: 0 | AD144: 0 | AF144: 0 | AG144: TRUE
A145: 4.01 | B145: Children in remote habitation | C145: 0 | D145: 0 | K145: =C145-G145 -> 0 | L145: =D145-H145 -> 0 | Q145: 0.03 | R145: 0 | S145: =R145*Q145 -> 0 | T145: 0 | U145: 0 | Z145: 0.03 | AA145: 0 | AB145: =AA145*Z145 -> 0 | AC145: 0 | AD145: 0 | AF145: 0 | AG145: TRUE
A146: 4.02 | B146: Urban deprived children/children without adult protection | C146: 0 | D146: 0 | K146: =C146-G146 -> 0 | L146: =D146-H146 -> 0 | Q146: 0.03 | R146: 0 | S146: =R146*Q146 -> 0 | T146: 0 | U146: 0 | Z146: 0.03 | AA146: 0 | AB146: =AA146*Z146 -> 0 | AC146: 0 | AD146: 0 | AF146: 0 | AG146: TRUE
B147: Sub Total | C147: =SUM(C145:C146) -> 0 | D147: 0 | E147: 0 | F147: 0 | G147: 0 | H147: 0 | K147: 0 | L147: 0 | M147: =SUM(M145:M146) -> 0 | N147: =SUM(N145:N146) -> 0 | O147: 0 | P147: 0 | R147: 0 | S147: 0 | T147: =+M147+O147+R147 -> 0 | U147: =+N147+P147+S147 -> 0 | V147: =SUM(V145:V146) -> 0 | W147: =SUM(W145:W146) -> 0 | X147: 0 | Y147: 0 | AA147: 0 | AB147: 0 | AC147: =+V147+X147+AA147 -> 0 | AD147: =+W147+Y147+AB147 -> 0 | AG147: TRUE
A148: 5 | B148: Reimbursement of Fee against 25% admission under Section 12(1)(c) of RTE Act 2009 (Entry Level) subject to upper limit of 20% of AWP&B subject to guidelines issued by MHRD | C148: 12123 | D148: 850.04339 | E148: 12123 | F148: 850.04339 | G148: 12123 | H148: 850.04339 | I148: 100 | J148: 100 | K148: =C148-G148 -> 0 | L148: =D148-H148 -> 0 | Q148: 0.11848 | R148: 17269 | S148: =R148*Q148 -> 2046.03112 | T148: 17269 | U148: 2046.03112 | AA148: 17910 | AB148: 912.228 | AC148: =+V148+X148+AA148 -> 17910 | AD148: =+W148+Y148+AB148 -> 912.228 | AF148: 912.228 | AG148: TRUE
B149: Sub Total | C149: =SUM(C148) -> 12123 | D149: =SUM(D148) -> 850.04339 | E149: =SUM(E148) -> 12123 | F149: 850.04339 | G149: 12123 | H149: 850.04339 | I149: 100 | J149: 100 | K149: 0 | L149: 0 | M149: =+M148 -> 0 | N149: =+N148 -> 0 | O149: =+O148 -> 0 | P149: =+P148 -> 0 | R149: =+R148 -> 17269 | S149: =+S148 -> 2046.03112 | T149: =+M149+O149+R149 -> 17269 | U149: =+N149+P149+S149 -> 2046.03112 | V149: =+V148 -> 0 | W149: =+W148 -> 0 | X149: 0 | Y149: 0 | AA149: 17910 | AB149: 912.228 | AC149: =+V149+X149+AA149 -> 17910 | AD149: =+W149+Y149+AB149 -> 912.228 | AG149: TRUE
A150: 6 | B150: Special Training for mainstreaming of out of school children | C150: 0 | D150: 0 | G150: 0 | H150: 0 | K150: 0 | L150: 0 | T150: 0 | U150: 0 | AC150: 0 | AD150: 0 | AF150: 0 | AG150: TRUE
A151: 6.01 | B151: Residential (Fresh) | C151: 0 | D151: 0 | T151: 0 | U151: 0 | AC151: 0 | AD151: 0 | AF151: 0 | AG151: TRUE
B152: (a) 12 months | C152: 0 | D152: 0 | G152: 0 | K152: =C152-G152 -> 0 | L152: 0 | N152: 0 | Q152: 0.2 | S152: =R152*Q152 -> 0 | T152: 0 | U152: 0 | W152: 0 | Z152: 0.2 | AB152: =AA152*Z152 -> 0 | AC152: 0 | AD152: 0 | AF152: 0 | AG152: TRUE
B153: (b) 9 months | C153: 0 | D153: 0 | K153: 0 | L153: 0 | N153: 0 | Q153: 0.15 | S153: =R153*Q153 -> 0 | T153: 0 | U153: 0 | W153: 0 | Z153: 0.15 | AB153: =AA153*Z153 -> 0 | AC153: 0 | AD153: 0 | AF153: 0 | AG153: TRUE
B154: (c) 6 months | C154: 0 | D154: 0 | K154: 0 | L154: 0 | N154: 0 | Q154: 0.1 | S154: =R154*Q154 -> 0 | T154: 0 | U154: 0 | W154: 0 | Z154: 0.1 | AB154: =AA154*Z154 -> 0 | AC154: 0 | AD154: 0 | AF154: 0 | AG154: TRUE
B155: (d) 3 months | C155: 0 | D155: 0 | G155: 0 | K155: 0 | L155: 0 | N155: 0 | Q155: 0.05 | S155: =R155*Q155 -> 0 | T155: 0 | U155: 0 | W155: 0 | Z155: 0.05 | AB155: =AA155*Z155 -> 0 | AC155: 0 | AD155: 0 | AF155: 0 | AG155: TRUE
B156: Sub Total | C156: =SUM(C152:C155) -> 0 | D156: 0 | E156: 0 | F156: 0 | G156: 0 | H156: 0 | K156: 0 | L156: 0 | M156: =SUM(M152:M155) -> 0 | N156: =SUM(N152:N155) -> 0 | O156: =SUM(O152:O155) -> 0 | P156: =SUM(P152:P155) -> 0 | R156: =SUM(R152:R155) -> 0 | S156: =SUM(S152:S155) -> 0 | T156: =+M156+O156+R156 -> 0 | U156: =+N156+P156+S156 -> 0 | V156: =SUM(V152:V155) -> 0 | W156: =SUM(W152:W155) -> 0 | X156: 0 | Y156: 0 | AA156: 0 | AB156: 0 | AC156: =+V156+X156+AA156 -> 0 | AD156: =+W156+Y156+AB156 -> 0 | AG156: TRUE
A157: 6.02 | B157: Residential (Continuing from previous year) | T157: 0 | U157: 0 | AC157: 0 | AD157: 0 | AF157: 0 | AG157: TRUE
B158: (a) 12 months | C158: 0 | D158: 0 | K158: =C158-G158 -> 0 | L158: 0 | N158: 0 | Q158: 0.2 | R158: 0 | S158: =R158*Q158 -> 0 | T158: 0 | U158: 0 | W158: 0 | Z158: 0.2 | AA158: 0 | AB158: =AA158*Z158 -> 0 | AC158: 0 | AD158: 0 | AF158: 0 | AG158: TRUE
B159: (b) 9 months | C159: 0 | D159: 0 | K159: 0 | L159: 0 | N159: 0 | Q159: 0.15 | S159: =R159*Q159 -> 0 | T159: 0 | U159: 0 | W159: 0 | Z159: 0.15 | AB159: =AA159*Z159 -> 0 | AC159: 0 | AD159: 0 | AF159: 0 | AG159: TRUE
B160: (c) 6 months | C160: 0 | D160: 0 | K160: 0 | L160: 0 | N160: 0 | Q160: 0.1 | S160: =R160*Q160 -> 0 | T160: 0 | U160: 0 | W160: 0 | Z160: 0.1 | AB160: =AA160*Z160 -> 0 | AC160: 0 | AD160: 0 | AF160: 0 | AG160: TRUE
B161: (d) 3 months | C161: 0 | D161: 0 | K161: 0 | L161: 0 | N161: 0 | Q161: 0.05 | S161: =R161*Q161 -> 0 | T161: 0 | U161: 0 | W161: 0 | Z161: 0.05 | AB161: =AA161*Z161 -> 0 | AC161: 0 | AD161: 0 | AF161: 0 | AG161: TRUE
B162: Sub Total | C162: =SUM(C158:C161) -> 0 | D162: 0 | E162: 0 | F162: 0 | G162: 0 | H162: 0 | K162: 0 | L162: 0 | M162: =SUM(M158:M161) -> 0 | N162: =SUM(N158:N161) -> 0 | O162: =SUM(O158:O161) -> 0 | P162: =SUM(P158:P161) -> 0 | R162: =SUM(R158:R161) -> 0 | S162: =SUM(S158:S161) -> 0 | T162: =+M162+O162+R162 -> 0 | U162: =+N162+P162+S162 -> 0 | V162: =SUM(V158:V161) -> 0 | W162: =SUM(W158:W161) -> 0 | X162: 0 | Y162: 0 | AA162: 0 | AB162: 0 | AC162: =+V162+X162+AA162 -> 0 | AD162: =+W162+Y162+AB162 -> 0 | AG162: TRUE
A163: 6.03 | B163: Non-Residential (Fresh) | T163: 0 | U163: 0 | AC163: 0 | AD163: 0 | AF163: 0 | AG163: TRUE
B164: (a) 12 months | C164: 0 | D164: 0 | K164: =C164-G164 -> 0 | L164: 0 | N164: 0 | Q164: 0.06 | S164: =R164*Q164 -> 0 | T164: 0 | U164: 0 | W164: 0 | Z164: 0.06 | AB164: =AA164*Z164 -> 0 | AC164: 0 | AD164: 0 | AF164: 0 | AG164: TRUE
B165: (b) 9 months | C165: 0 | D165: 0 | K165: 0 | L165: 0 | N165: 0 | Q165: 0.045 | S165: =R165*Q165 -> 0 | T165: 0 | U165: 0 | W165: 0 | Z165: 0.045 | AB165: =AA165*Z165 -> 0 | AC165: 0 | AD165: 0 | AF165: 0 | AG165: TRUE
B166: (c) 6 months | C166: 0 | D166: 0 | K166: 0 | L166: 0 | N166: 0 | Q166: 0.03 | R166: 573 | S166: =R166*Q166 -> 17.19 | T166: 573 | U166: 17.19 | W166: 0 | Z166: 0.03 | AA166: 573 | AB166: =AA166*Z166 -> 17.19 | AC166: 573 | AD166: 17.19 | AF166: 17.19 | AG166: TRUE
B167: (d) 3 months | C167: 0 | D167: 0 | K167: 0 | L167: 0 | N167: 0 | Q167: 0.015 | R167: 0 | S167: =R167*Q167 -> 0 | T167: 0 | U167: 0 | W167: 0 | Z167: 0.015 | AA167: 0 | AB167: =AA167*Z167 -> 0 | AC167: 0 | AD167: 0 | AF167: 0 | AG167: TRUE
B168: Sub Total | C168: =SUM(C164:C167) -> 0 | D168: 0 | E168: 0 | F168: 0 | G168: 0 | H168: 0 | K168: 0 | L168: 0 | M168: =SUM(M164:M167) -> 0 | N168: =SUM(N164:N167) -> 0 | O168: =SUM(O164:O167) -> 0 | P168: =SUM(P164:P167) -> 0 | R168: =SUM(R164:R167) -> 573 | S168: =SUM(S164:S167) -> 17.19 | T168: =+M168+O168+R168 -> 573 | U168: =+N168+P168+S168 -> 17.19 | V168: =SUM(V164:V167) -> 0 | W168: =SUM(W164:W167) -> 0 | X168: 0 | Y168: 0 | AA168: 573 | AB168: 17.19 | AC168: =+V168+X168+AA168 -> 573 | AD168: =+W168+Y168+AB168 -> 17.19 | AG168: TRUE
A169: 6.04 | B169: Non-Residential (Continuing from previous year) | T169: 0 | U169: 0 | AC169: 0 | AD169: 0 | AF169: 0 | AG169: TRUE
B170: (a) 12 months | C170: 0 | D170: 0 | K170: =C170-G170 -> 0 | L170: 0 | N170: 0 | Q170: 0.06 | S170: =R170*Q170 -> 0 | T170: 0 | U170: 0 | W170: 0 | Z170: 0.06 | AB170: =AA170*Z170 -> 0 | AC170: 0 | AD170: 0 | AF170: 0 | AG170: TRUE
B171: (b) 9 months | C171: 0 | D171: 0 | K171: 0 | L171: 0 | N171: 0 | Q171: 0.045 | S171: =R171*Q171 -> 0 | T171: 0 | U171: 0 | W171: 0 | Z171: 0.045 | AB171: =AA171*Z171 -> 0 | AC171: 0 | AD171: 0 | AF171: 0 | AG171: TRUE
B172: (c) 6 months | C172: 0 | D172: 0 | K172: 0 | L172: 0 | N172: 0 | Q172: 0.03 | S172: =R172*Q172 -> 0 | T172: 0 | U172: 0 | W172: 0 | Z172: 0.03 | AB172: =AA172*Z172 -> 0 | AC172: 0 | AD172: 0 | AF172: 0 | AG172: TRUE
B173: (d) 3 months | C173: 0 | D173: 0 | K173: 0 | L173: 0 | N173: 0 | Q173: 0.015 | S173: =R173*Q173 -> 0 | T173: 0 | U173: 0 | W173: 0 | Z173: 0.015 | AB173: =AA173*Z173 -> 0 | AC173: 0 | AD173: 0 | AF173: 0 | AG173: TRUE
B174: Sub Total | C174: =SUM(C170:C173) -> 0 | D174: =SUM(D170:D173) -> 0 | M174: =SUM(M170:M173) -> 0 | N174: =SUM(N170:N173) -> 0 | O174: =SUM(O170:O173) -> 0 | P174: =SUM(P170:P173) -> 0 | R174: =SUM(R170:R173) -> 0 | S174: =SUM(S170:S173) -> 0 | T174: =+M174+O174+R174 -> 0 | U174: =+N174+P174+S174 -> 0 | V174: =SUM(V170:V173) -> 0 | W174: =SUM(W170:W173) -> 0 | X174: 0 | Y174: 0 | AA174: 0 | AB174: 0 | AC174: =+V174+X174+AA174 -> 0 | AD174: =+W174+Y174+AB174 -> 0 | AG174: TRUE
A175: 6.05 | B175: Madarasa/Maktab | T175: 0 | U175: 0 | AC175: 0 | AD175: 0 | AF175: 0 | AG175: TRUE
B176: (a) 12 months | C176: 0 | D176: 0 | K176: =C176-G176 -> 0 | L176: 0 | N176: 0 | Q176: 0.2 | S176: =R176*Q176 -> 0 | T176: 0 | U176: 0 | W176: 0 | Z176: 0.06 | AB176: =AA176*Z176 -> 0 | AC176: 0 | AD176: 0 | AF176: 0 | AG176: TRUE
B177: (b) 9 months | C177: 0 | D177: 0 | G177: 0 | K177: 0 | L177: 0 | N177: 0 | Q177: 0.045 | R177: 0 | S177: =R177*Q177 -> 0 | T177: 0 | U177: 0 | W177: 0 | Z177: 0.045 | AA177: 0 | AB177: =AA177*Z177 -> 0 | AC177: 0 | AD177: 0 | AF177: 0 | AG177: TRUE
B178: (c) 6 months | C178: 0 | D178: 0 | K178: 0 | L178: 0 | N178: 0 | Q178: 0.1 | S178: =R178*Q178 -> 0 | T178: 0 | U178: 0 | W178: 0 | Z178: 0.03 | AB178: =AA178*Z178 -> 0 | AC178: 0 | AD178: 0 | AF178: 0 | AG178: TRUE
B179: (d) 3 months | C179: 0 | D179: 0 | K179: 0 | L179: 0 | Q179: 0.05 | S179: =R179*Q179 -> 0 | T179: 0 | U179: 0 | Z179: 0.015 | AB179: =AA179*Z179 -> 0 | AC179: 0 | AD179: 0 | AF179: 0 | AG179: TRUE
B180: Sub Total | C180: =SUM(C176:C179) -> 0 | D180: 0 | E180: 0 | F180: 0 | G180: 0 | H180: 0 | K180: 0 | L180: 0 | M180: =SUM(M176:M179) -> 0 | N180: =SUM(N176:N179) -> 0 | O180: =SUM(O176:O179) -> 0 | P180: =SUM(P176:P179) -> 0 | R180: =SUM(R176:R179) -> 0 | S180: =SUM(S176:S179) -> 0 | T180: =+M180+O180+R180 -> 0 | U180: =+N180+P180+S180 -> 0 | V180: =SUM(V176:V179) -> 0 | W180: =SUM(W176:W179) -> 0 | X180: 0 | Y180: 0 | AA180: 0 | AB180: 0 | AC180: =+V180+X180+AA180 -> 0 | AD180: =+W180+Y180+AB180 -> 0 | AG180: TRUE
A181: 6.06 | B181: Seasonal Hostel (Residential) | T181: 0 | U181: 0 | AC181: 0 | AD181: 0 | AF181: 0 | AG181: TRUE
B182: (a) 12 months | C182: 0 | D182: 0 | K182: =C182-G182 -> 0 | L182: 0 | N182: 0 | S182: =R182*Q182 -> 0 | T182: 0 | U182: 0 | W182: 0 | AB182: =AA182*Z182 -> 0 | AC182: 0 | AD182: 0 | AF182: 0 | AG182: TRUE
B183: (b) 9 months | C183: 0 | D183: 0 | K183: 0 | L183: 0 | N183: 0 | S183: =R183*Q183 -> 0 | T183: 0 | U183: 0 | W183: 0 | AB183: =AA183*Z183 -> 0 | AC183: 0 | AD183: 0 | AF183: 0 | AG183: TRUE
B184: (c) 6 months | C184: 3000 | D184: 300 | E184: 1500 | F184: 75 | G184: 1500 | H184: 75 | I184: 50 | J184: 25 | K184: 1500 | L184: 225 | N184: 0 | Q184: 0.1 | R184: 1806 | S184: =R184*Q184 -> 180.6 | T184: 1806 | U184: 180.6 | W184: 0 | Z184: 0.1 | AA184: 1806 | AB184: =AA184*Z184 -> 180.6 | AC184: 1806 | AD184: 180.6 | AF184: 180.6 | AG184: TRUE
B185: (d) 3 months | C185: 0 | D185: 0 | K185: 0 | L185: 0 | N185: 0 | S185: =R185*Q185 -> 0 | T185: 0 | U185: 0 | W185: 0 | AB185: =AA185*Z185 -> 0 | AC185: 0 | AD185: 0 | AF185: 0 | AG185: TRUE
B186: Sub Total | C186: =SUM(C183:C185) -> 3000 | D186: =SUM(D183:D185) -> 300 | E186: =SUM(E183:E185) -> 1500 | F186: 75 | G186: 1500 | H186: 75 | I186: 50 | J186: 25 | K186: 1500 | L186: 225 | M186: =SUM(M182:M185) -> 0 | N186: =SUM(N182:N185) -> 0 | O186: =SUM(O182:O185) -> 0 | P186: =SUM(P182:P185) -> 0 | R186: =SUM(R182:R185) -> 1806 | S186: =SUM(S182:S185) -> 180.6 | T186: =+M186+O186+R186 -> 1806 | U186: =+N186+P186+S186 -> 180.6 | V186: =SUM(V182:V185) -> 0 | W186: =SUM(W182:W185) -> 0 | X186: 0 | Y186: 0 | AA186: 1806 | AB186: 180.6 | AC186: =+V186+X186+AA186 -> 1806 | AD186: =+W186+Y186+AB186 -> 180.6 | AG186: TRUE
A187: 6.07 | B187: Seasonal Hostel (Non Residential) | C187: 0 | D187: 0 | T187: 0 | U187: 0 | AC187: 0 | AD187: 0 | AF187: 0 | AG187: TRUE
B188: (a) 12 months | C188: 0 | D188: 0 | K188: =C188-G188 -> 0 | L188: 0 | N188: 0 | S188: =R188*Q188 -> 0 | T188: 0 | U188: 0 | W188: 0 | AB188: =AA188*Z188 -> 0 | AC188: 0 | AD188: 0 | AF188: 0 | AG188: TRUE
B189: (b) 9 months | C189: 0 | D189: 0 | K189: 0 | L189: 0 | N189: 0 | S189: =R189*Q189 -> 0 | T189: 0 | U189: 0 | W189: 0 | AB189: =AA189*Z189 -> 0 | AC189: 0 | AD189: 0 | AF189: 0 | AG189: TRUE
B190: (c) 6 months | C190: 0 | D190: 0 | K190: 0 | L190: 0 | N190: 0 | T190: 0 | U190: 0 | W190: 0 | AC190: 0 | AD190: 0 | AF190: 0 | AG190: TRUE
B191: (d) 3 months | C191: 0 | D191: 0 | K191: 0 | L191: 0 | N191: 0 | Q191: 0 | S191: =R191*Q191 -> 0 | T191: 0 | U191: 0 | W191: 0 | Z191: 0 | AB191: =AA191*Z191 -> 0 | AC191: 0 | AD191: 0 | AF191: 0 | AG191: TRUE
B192: Sub Total | C192: =SUM(C188:C191) -> 0 | D192: 0 | E192: 0 | F192: 0 | G192: 0 | H192: 0 | K192: 0 | L192: 0 | M192: =SUM(M188:M191) -> 0 | N192: =SUM(N188:N191) -> 0 | O192: =SUM(O188:O191) -> 0 | P192: =SUM(P188:P191) -> 0 | Q192: =SUM(Q188:Q191) -> 0 | R192: =SUM(R188:R191) -> 0 | S192: =SUM(S188:S191) -> 0 | T192: =+M192+O192+R192 -> 0 | U192: =+N192+P192+S192 -> 0 | V192: =SUM(V188:V191) -> 0 | W192: =SUM(W188:W191) -> 0 | X192: 0 | Y192: 0 | Z192: 0 | AA192: 0 | AB192: 0 | AC192: =+V192+X192+AA192 -> 0 | AD192: =+W192+Y192+AB192 -> 0 | AF192: 0 | AG192: TRUE
B193: Total | C193: =C192+C186+C180+C174+C168+C162+C156 -> 3000 | D193: 300 | E193: 1500 | F193: 75 | G193: 1500 | H193: 75 | I193: 50 | J193: 25 | K193: 1500 | L193: 225 | M193: =+M192+M186+M180+M174+M168+M162+M156 -> 0 | N193: =+N192+N186+N180+N174+N168+N162+N156 -> 0 | O193: =+O192+O186+O180+O174+O168+O162+O156 -> 0 | P193: =+P192+P186+P180+P174+P168+P162+P156 -> 0 | Q193: =+Q192+Q186+Q180+Q174+Q168+Q162+Q156 -> 0 | R193: =+R192+R186+R180+R174+R168+R162+R156 -> 2379 | S193: =+S192+S186+S180+S174+S168+S162+S156 -> 197.79 | T193: =+M193+O193+R193 -> 2379 | U193: =+N193+P193+S193 -> 197.79 | V193: =+V192+V186+V180+V174+V168+V162+V156 -> 0 | W193: =+W192+W186+W180+W174+W168+W162+W156 -> 0 | X193: 0 | Y193: 0 | Z193: 0 | AA193: 2379 | AB193: 197.79 | AC193: =+V193+X193+AA193 -> 2379 | AD193: =+W193+Y193+AB193 -> 197.79 | AG193: TRUE
A194: II | B194: RETENTION | T194: 0 | U194: 0 | AC194: 0 | AD194: 0 | AF194: 0 | AG194: TRUE
A195: 7 | B195: Free Text Books | T195: 0 | U195: 0 | AC195: 0 | AD195: 0 | AF195: 0 | AG195: TRUE
A196: 7.01 | B196: Free Text Books (P) | C196: 0 | D196: 0 | T196: 0 | U196: 0 | AC196: 0 | AD196: 0 | AF196: 0 | AG196: TRUE
B197: (a) Class I & II | C197: 5876 | D197: 5.34716 | E197: =C197 -> 5876 | F197: =D197 -> 5.34716 | G197: =C197 -> 5876 | H197: =D197 -> 5.34716 | I197: 100 | J197: 100 | K197: =C197-G197 -> 0 | L197: 0 | N197: 0 | Q197: 0.0015 | R197: 5248 | S197: =R197*Q197 -> 7.872 | T197: 5248 | U197: 7.872 | W197: 0 | Z197: 0.0015 | AA197: 5248 | AB197: =AA197*Z197 -> 7.872 | AC197: 5248 | AD197: 7.872 | AF197: 7.872 | AG197: TRUE
B198: (b) Braille Books Class I & II | C198: 9 | D198: 0.0135 | E198: =C198 -> 9 | G198: =C198 -> 9 | I198: 100 | J198: 0 | K198: 0 | L198: 0.0135 | N198: 0 | Q198: 0.0015 | R198: 11 | S198: =+Q198*R198 -> 0.0165 | T198: 11 | U198: 0.0165 | W198: 0 | Z198: 0.0015 | AA198: 11 | AB198: =+Z198*AA198 -> 0.0165 | AC198: 11 | AD198: 0.0165 | AF198: 0.0165 | AG198: TRUE
B199: (c) Large Print Books Class I & II | C199: 72 | D199: 0.108 | E199: 72 | G199: 72 | I199: 100 | J199: 0 | K199: 0 | L199: 0.108 | N199: 0 | Q199: 0.0015 | R199: 48 | S199: =+Q199*R199 -> 0.072 | T199: =+R199 -> 48 | U199: =+S199 -> 0.072 | W199: 0 | Z199: 0.0015 | AA199: 48 | AB199: =+Z199*AA199 -> 0.072 | AC199: =+AA199 -> 48 | AD199: =+AB199 -> 0.072 | AF199: 0.072 | AG199: TRUE
B200: (d) Class III to V | C200: 9967 | D200: 10.16634 | E200: 9967 | F200: =D200 -> 10.16634 | G200: 9967 | H200: =D200 -> 10.16634 | I200: =IFERROR(G200/C200*100,"") -> 100 | J200: =IFERROR(H200/D200*100,"") -> 100 | K200: 0 | L200: 0 | N200: 0 | Q200: 0.0015 | R200: 8861 | S200: 13.2915 | T200: =+M200+O200+R200 -> 8861 | U200: =+N200+P200+S200 -> 13.2915 | W200: 0 | Z200: 0.0015 | AA200: 8861 | AB200: 13.2915 | AC200: =+V200+X200+AA200 -> 8861 | AD200: =+W200+Y200+AB200 -> 13.2915 | AF200: =+AD200 -> 13.2915 | AG200: =+W200+Y200+AB200=AD200 -> TRUE
B201: (e) Braille Books Class III to V | C201: 16 | D201: 0.024 | E201: 16 | G201: 16 | I201: 100 | J201: 0 | K201: 0 | L201: 0.024 | N201: 0 | Q201: 0.0015 | R201: 18 | S201: =+Q201*R201 -> 0.027 | T201: =+R201 -> 18 | U201: =+S201 -> 0.027 | W201: 0 | Z201: 0.0015 | AA201: 18 | AB201: =+Z201*AA201 -> 0.027 | AC201: =+AA201 -> 18 | AD201: =+AB201 -> 0.027 | AF201: 0.027 | AG201: TRUE
... 315 more rows

Sheet Bidar
A1: Name of the District: Bidar | C1: 2016-17 | M1: Outlay Proposed for 2017-18 | V1: Outlay Recommended for 2017-18
A2: S.No. | B2: Activity | C2: Out Lay Approved for 2016-17 (including spill over) | E2: Expenditure as on DEC, 2016 (As per Vidyavahini Software) | G2: Anticipated Achievement till 31-3-2017 | K2: Savings | M2: Spill Over | O2: Deferred laibility of 2016-2017 | Q2: Fresh | T2: Total | V2: Spill Over | X2: Deferred laibility of 2016-2017 | Z2: Fresh | AC2: Total
C3: Phy. | D3: Fin. | E3: Phy. | F3: Fin. | G3: Phy. | H3: Fin. | I3: Phy. (%) | J3: Fin. (%) | K3: Phy. | L3: Fin. | M3: Phy. | N3: Fin. | O3: Phy. | P3: Fin. | Q3: Unit Cost | R3: Phy. | S3: Fin. | T3: Phy. | U3: Fin. | V3: Phy. | W3: Fin. | X3: Phy. | Y3: Fin. | Z3: Unit Cost | AA3: Phy. | AB3: Fin. | AC3: Phy. | AD3: Fin.
B5: SSA
A6: 1 | B6: Opening of New Schools | C6: 0 | D6: 0
A7: 1.01 | B7: New Primary School | C7: 0 | D7: 0 | I7: =IFERROR(G7/C7*100,"") ->  | J7: =IFERROR(H7/D7*100,"") ->  | K7: =C7-G7 -> 0 | L7: =D7-H7 -> 0 | S7: =Q7*R7 -> 0 | T7: =+M7+O7+R7 -> 0 | U7: =+N7+P7+S7 -> 0 | AB7: =Z7*AA7 -> 0 | AC7: =+V7+X7+AA7 -> 0 | AD7: =+W7+Y7+AB7 -> 0 | AF7: =+AD7 -> 0 | AG7: =+W7+Y7+AB7=AD7 -> TRUE
A8: 1.02 | B8: Upgradation of PS to UPS | C8: 0 | D8: 0 | I8: =IFERROR(G8/C8*100,"") ->  | J8: =IFERROR(H8/D8*100,"") ->  | K8: =C8-G8 -> 0 | L8: 0 | S8: =R8*Q8 -> 0 | T8: =+M8+O8+R8 -> 0 | U8: =+N8+P8+S8 -> 0 | AB8: =AA8*Z8 -> 0 | AC8: =+V8+X8+AA8 -> 0 | AD8: =+W8+Y8+AB8 -> 0 | AF8: =+AD8 -> 0 | AG8: =+W8+Y8+AB8=AD8 -> TRUE
A9: 1.03 | B9: Composite Schools | C9: 0 | D9: 0 | K9: 0 | L9: 0 | S9: 0 | T9: 0 | U9: 0 | AB9: 0 | AC9: 0 | AD9: 0 | AF9: 0 | AG9: TRUE
A10: 1.04 | B10: Residential schools for specific category of children | C10: 0 | D10: 0 | K10: 0 | L10: 0 | S10: 0 | T10: 0 | U10: 0 | AB10: 0 | AC10: 0 | AD10: 0 | AF10: 0 | AG10: TRUE
A11: 1.05 | B11: Residential Hostel | C11: 0 | D11: 0 | K11: 0 | L11: 0 | S11: 0 | T11: 0 | U11: 0 | AB11: 0 | AC11: 0 | AD11: 0 | AF11: 0 | AG11: TRUE
A12: 1.06 | B12: Integration of Class V with primary schools | C12: 0 | D12: 0 | K12: 0 | L12: 0 | S12: 0 | T12: 0 | U12: 0 | AB12: 0 | AC12: 0 | AD12: 0 | AF12: 0 | AG12: TRUE
A13: 1.07 | B13: Integration of Class VIII with upper primary schools | C13: 0 | D13: 0 | K13: 0 | L13: 0 | S13: 0 | T13: 0 | U13: 0 | AB13: 0 | AC13: 0 | AD13: 0 | AF13: 0 | AG13: TRUE
A14: 2 | B14: Residential Schools for specific category of children | T14: 0 | U14: 0 | AC14: 0 | AD14: 0 | AG14: TRUE
B15: 50 children | T15: 0 | U15: 0 | AC15: 0 | AD15: 0 | AG15: TRUE
B16: Non-recurring (one time grant) | T16: 0 | U16: 0 | AC16: 0 | AD16: 0 | AG16: TRUE
A17: 2.01 | B17: Furniture/ Equipment (including kitchen) | C17: 0 | D17: 0 | K17: =C17-G17 -> 0 | L17: 0 | S17: =R17*Q17 -> 0 | T17: 0 | U17: 0 | AB17: =AA17*Z17 -> 0 | AC17: 0 | AD17: 0 | AF17: 0 | AG17: TRUE
A18: 2.02 | B18: TLM and equipment including library books | C18: 0 | D18: 0 | K18: 0 | L18: 0 | S18: =R18*Q18 -> 0 | T18: 0 | U18: 0 | AB18: =AA18*Z18 -> 0 | AC18: 0 | AD18: 0 | AF18: 0 | AG18: TRUE
A19: 2.03 | B19: Bedding (new) | C19: 0 | D19: 0 | K19: 0 | L19: 0 | S19: =R19*Q19 -> 0 | T19: 0 | U19: 0 | AB19: =AA19*Z19 -> 0 | AC19: 0 | AD19: 0 | AF19: 0 | AG19: TRUE
A20: 2.04 | B20: Replacement of bedding (once in 3 years) | C20: 0 | D20: 0 | K20: 0 | L20: 0 | S20: =R20*Q20 -> 0 | T20: 0 | U20: 0 | AB20: =AA20*Z20 -> 0 | AC20: 0 | AD20: 0 | AF20: 0 | AG20: TRUE
B21: Sub Total (Non Recurring) | C21: 0 | D21: 0 | E21: =SUM(E7:E20) -> 0 | F21: =SUM(F7:F20) -> 0 | G21: 0 | H21: 0 | K21: 0 | L21: 0 | M21: 0 | N21: 0 | O21: 0 | P21: 0 | R21: =SUM(R7:R20) -> 0 | S21: =SUM(S7:S20) -> 0 | T21: 0 | U21: 0 | V21: =SUM(V7:V20) -> 0 | W21: =SUM(W7:W20) -> 0 | X21: 0 | Y21: 0 | AA21: 0 | AB21: 0 | AC21: 0 | AD21: 0 | AE21: 0 | AF21: 0 | AG21: TRUE
B22: Recurring (50 children) | T22: 0 | U22: 0 | AC22: 0 | AD22: 0 | AF22: 0 | AG22: TRUE
A23: 2.05 | B23: Maintenance per child Per month @ Rs.1500/- | C23: 0 | D23: 0 | K23: =C23-G23 -> 0 | L23: 0 | N23: 0 | Q23: 0.18 | S23: =R23*Q23 -> 0 | T23: 0 | U23: 0 | W23: 0 | AB23: =AA23*Z23 -> 0 | AC23: 0 | AD23: 0 | AF23: 0 | AG23: TRUE
A24: 2.06 | B24: Stipend per child per month @ Rs.100/- | C24: 0 | D24: 0 | K24: 0 | L24: 0 | N24: 0 | Q24: 0.012 | S24: =R24*Q24 -> 0 | T24: 0 | U24: 0 | W24: 0 | AB24: =AA24*Z24 -> 0 | AC24: 0 | AD24: 0 | AF24: 0 | AG24: TRUE
A25: 2.07 | B25: Supplementary TLM, Stationery and other educational material @Rs.1000/- per child per annum | C25: 0 | D25: 0 | K25: 0 | L25: 0 | N25: 0 | Q25: 0.01 | S25: =R25*Q25 -> 0 | T25: 0 | U25: 0 | W25: 0 | AB25: =AA25*Z25 -> 0 | AC25: 0 | AD25: 0 | AF25: 0 | AG25: TRUE
A26: 2.08 | B26: Salaries | T26: 0 | U26: 0 | AC26: 0 | AD26: 0 | AF26: 0 | AG26: TRUE
A27: (a) | B27: 1 Warden @ Rs.25000/- per month | C27: 0 | D27: 0 | K27: 0 | L27: 0 | N27: 0 | Q27: 3 | S27: =R27*Q27 -> 0 | T27: 0 | U27: 0 | W27: 0 | AB27: =AA27*Z27 -> 0 | AC27: 0 | AD27: 0 | AF27: 0 | AG27: TRUE
A28: (b ) | B28: 4 Fulltime teachers as per RTE Norms @ Rs. 20,000/- per month per teacher | C28: 0 | D28: 0 | K28: 0 | L28: 0 | N28: 0 | Q28: 9.6 | S28: 0 | T28: 0 | U28: 0 | W28: 0 | AB28: 0 | AC28: 0 | AD28: 0 | AF28: 0 | AG28: TRUE
A29: (c) | B29: 2 Urdu Teachers (only for Blocks with muslim population above 20% and select urban areas) @ Rs.12,000/- per month per teacher. | C29: 0 | D29: 0 | K29: 0 | L29: 0 | N29: 0 | Q29: 1.44 | S29: 0 | T29: 0 | U29: 0 | W29: 0 | AB29: 0 | AC29: 0 | AD29: 0 | AF29: 0 | AG29: TRUE
A30: (d) | B30: 3 Part time teachers @ Rs.5,000/- per month per teacher | C30: 0 | D30: 0 | K30: 0 | L30: 0 | N30: 0 | Q30: 1.55 | S30: 0 | T30: 0 | U30: 0 | W30: 0 | AB30: 0 | AC30: 0 | AD30: 0 | AF30: 0 | AG30: TRUE
A31: (e ) | B31: 1 Full time Accountant @ Rs. 10,000/- per month | C31: 0 | D31: 0 | K31: 0 | L31: 0 | N31: 0 | Q31: 1.2 | S31: 0 | T31: 0 | U31: 0 | W31: 0 | AB31: 0 | AC31: 0 | AD31: 0 | AF31: 0 | AG31: TRUE
A32: (f) | B32: 2 Support staff - (Accountant/Assistant, Peon, Chowkidar) @ Rs. 5,000/- per month per staff | C32: 0 | D32: 0 | K32: 0 | L32: 0 | N32: 0 | Q32: 1.2 | S32: 0 | T32: 0 | U32: 0 | W32: 0 | AB32: 0 | AC32: 0 | AD32: 0 | AF32: 0 | AG32: TRUE
A33: (g) | B33: 1 Head Cook @ Rs. 6,000/- per month and upto 2 Asstt. Cooks @ Rs. 4,500/- per month per cook | C33: 0 | D33: 0 | K33: 0 | L33: 0 | N33: 0 | Q33: 1.8 | S33: 0 | T33: 0 | U33: 0 | W33: 0 | AB33: 0 | AC33: 0 | AD33: 0 | AF33: 0 | AG33: TRUE
A34: 2.09 | B34: Specific Skill training @ Rs.1000/- per annum per child | C34: 0 | D34: 0 | K34: 0 | L34: 0 | N34: 0 | Q34: 0.01 | S34: 0 | T34: 0 | U34: 0 | W34: 0 | AB34: 0 | AC34: 0 | AD34: 0 | AF34: 0 | AG34: TRUE
A35: 2.1 | B35: Electricity / water charges @ Rs. 1000/- per annum per child | C35: 0 | D35: 0 | K35: 0 | L35: 0 | N35: 0 | Q35: 0.01 | S35: 0 | T35: 0 | U35: 0 | W35: 0 | AB35: 0 | AC35: 0 | AD35: 0 | AF35: 0 | AG35: TRUE
A36: 2.11 | B36: Medical care/contingencies @ Rs.1250/- per annum per child | C36: 0 | D36: 0 | K36: 0 | L36: 0 | N36: 0 | Q36: 0.0125 | S36: 0 | T36: 0 | U36: 0 | W36: 0 | AB36: 0 | AC36: 0 | AD36: 0 | AF36: 0 | AG36: TRUE
A37: 2.12 | B37: Maintenance @ Rs. 750/- per child per annum | C37: 0 | D37: 0 | K37: 0 | L37: 0 | N37: 0 | Q37: 0.0075 | S37: 0 | T37: 0 | U37: 0 | W37: 0 | AB37: 0 | AC37: 0 | AD37: 0 | AF37: 0 | AG37: TRUE
A38: 2.13 | B38: Miscellaneous @ Rs. 750/- per child per annum | C38: 0 | D38: 0 | K38: 0 | L38: 0 | N38: 0 | Q38: 0.0075 | S38: 0 | T38: 0 | U38: 0 | W38: 0 | AB38: 0 | AC38: 0 | AD38: 0 | AF38: 0 | AG38: TRUE
A39: 2.14 | B39: Preparatory camps @ Rs. 300/- per child per annum | C39: 0 | D39: 0 | K39: 0 | L39: 0 | N39: 0 | Q39: 0.003 | S39: 0 | T39: 0 | U39: 0 | W39: 0 | AB39: 0 | AC39: 0 | AD39: 0 | AF39: 0 | AG39: TRUE
A40: 2.15 | B40: P.T.A / school functions @ Rs. 300/- per child per annum | C40: 0 | D40: 0 | K40: 0 | L40: 0 | N40: 0 | Q40: 0.003 | S40: 0 | T40: 0 | U40: 0 | W40: 0 | AB40: 0 | AC40: 0 | AD40: 0 | AF40: 0 | AG40: TRUE
A41: 2.16 | B41: Provision of Rent @ Rs. 10,000/- per child per annum | C41: 0 | D41: 0 | K41: 0 | L41: 0 | N41: 0 | S41: 0 | T41: 0 | U41: 0 | W41: 0 | AB41: 0 | AC41: 0 | AD41: 0 | AF41: 0 | AG41: TRUE
A42: 2.17 | B42: Capacity Building @ Rs. 500/- per child per annum | C42: 0 | D42: 0 | K42: 0 | L42: 0 | N42: 0 | Q42: 0.005 | S42: 0 | T42: 0 | U42: 0 | W42: 0 | AB42: 0 | AC42: 0 | AD42: 0 | AF42: 0 | AG42: TRUE
A43: 2.18 | B43: Physical / Self Defence Training @ Rs.200/- per child per annum | C43: 0 | D43: 0 | K43: 0 | L43: 0 | N43: 0 | Q43: 0.002 | S43: 0 | T43: 0 | U43: 0 | W43: 0 | AB43: 0 | AC43: 0 | AD43: 0 | AF43: 0 | AG43: TRUE
B44: Sub Total (Recurring) | C44: =SUM(C23:C43) -> 0 | D44: 0 | E44: 0 | F44: 0 | G44: 0 | H44: 0 | K44: 0 | L44: 0 | M44: 0 | N44: 0 | R44: =SUM(R23:R43) -> 0 | S44: =SUM(S23:S43) -> 0 | T44: 0 | U44: 0 | V44: =SUM(V23:V43) -> 0 | W44: =SUM(W23:W43) -> 0 | X44: 0 | Y44: 0 | AA44: 0 | AB44: 0 | AC44: =+V44+X44+AA44 -> 0 | AD44: =+W44+Y44+AB44 -> 0 | AG44: TRUE
B45: Total (Non Recurring + Recurring) | C45: =C44+C21 -> 0 | D45: 0 | E45: 0 | F45: 0 | G45: 0 | H45: 0 | K45: 0 | L45: 0 | M45: 0 | N45: 0 | R45: =R44+R21 -> 0 | S45: =S44+S21 -> 0 | T45: 0 | U45: 0 | V45: =+V44+V21 -> 0 | W45: =+W44+W21 -> 0 | X45: 0 | Y45: 0 | Z45: 0 | AA45: 0 | AB45: 0 | AC45: =+V45+X45+AA45 -> 0 | AD45: =+W45+Y45+AB45 -> 0 | AG45: TRUE
B46: 100 children | T46: 0 | U46: 0 | AC46: 0 | AD46: 0 | AG46: TRUE
B47: Non-recurring (one time grant) | T47: 0 | U47: 0 | AC47: 0 | AD47: 0 | AG47: TRUE
A48: 2.19 | B48: Furniture / Equipment (including kitchen equipment) | C48: 0 | D48: 0 | K48: =C48-G48 -> 0 | L48: 0 | S48: =R48*Q48 -> 0 | T48: 0 | U48: 0 | AB48: =AA48*Z48 -> 0 | AC48: 0 | AD48: 0 | AF48: 0 | AG48: TRUE
A49: 2.2 | B49: TLM and equipment including library books (New) | C49: 0 | D49: 0 | K49: 0 | L49: 0 | S49: =R49*Q49 -> 0 | T49: 0 | U49: 0 | AB49: =AA49*Z49 -> 0 | AC49: 0 | AD49: 0 | AF49: 0 | AG49: TRUE
A50: 2.21 | B50: Bedding (New) | C50: 0 | D50: 0 | K50: 0 | L50: 0 | S50: =R50*Q50 -> 0 | T50: 0 | U50: 0 | AB50: =AA50*Z50 -> 0 | AC50: 0 | AD50: 0 | AF50: 0 | AG50: TRUE
A51: 2.22 | B51: Replacement of bedding (once in 3 years) | C51: 0 | D51: 0 | E51: 0 | G51: 0 | K51: 0 | L51: 0 | S51: =R51*Q51 -> 0 | T51: 0 | U51: 0 | AB51: =AA51*Z51 -> 0 | AC51: 0 | AD51: 0 | AF51: 0 | AG51: TRUE
B52: Sub Total Non-recurring | C52: 0 | D52: 0 | E52: =SUM(E48:E51) -> 0 | F52: =SUM(F48:F51) -> 0 | G52: 0 | H52: 0 | K52: 0 | L52: 0 | M52: 0 | N52: 0 | R52: =SUM(R48:R51) -> 0 | S52: =SUM(S48:S51) -> 0 | T52: 0 | U52: 0 | V52: =SUM(V48:V51) -> 0 | W52: =SUM(W48:W51) -> 0 | X52: 0 | Y52: 0 | AA52: 0 | AB52: 0 | AC52: =+V52+X52+AA52 -> 0 | AD52: =+W52+Y52+AB52 -> 0 | AG52: TRUE
B53: Recurring | C53: 0 | D53: 0 | T53: 0 | U53: 0 | AC53: 0 | AD53: 0 | AG53: TRUE
A54: 2.23 | B54: Maintenance per child per month @ Rs. 1500/- | C54: 0 | D54: 0 | K54: =C54-G54 -> 0 | L54: 0 | N54: 0 | Q54: 0.18 | S54: =R54*Q54 -> 0 | T54: 0 | U54: 0 | W54: 0 | Z54: 0.18 | AB54: =AA54*Z54 -> 0 | AC54: 0 | AD54: 0 | AF54: 0 | AG54: TRUE
A55: 2.24 | B55: Stipend per child per month @ Rs.100/- | C55: 0 | D55: 0 | K55: 0 | L55: 0 | N55: 0 | Q55: 0.012 | S55: =R55*Q55 -> 0 | T55: 0 | U55: 0 | W55: 0 | Z55: 0.012 | AB55: =AA55*Z55 -> 0 | AC55: 0 | AD55: 0 | AF55: 0 | AG55: TRUE
A56: 2.25 | B56: Supplementary TLM, Stationery and other educational material per child @1000/- per annum | C56: 0 | D56: 0 | K56: 0 | L56: 0 | N56: 0 | Q56: 0.01 | S56: =R56*Q56 -> 0 | T56: 0 | U56: 0 | W56: 0 | Z56: 0.01 | AB56: =AA56*Z56 -> 0 | AC56: 0 | AD56: 0 | AF56: 0 | AG56: TRUE
A57: =+A56+0.01 -> 2.26 | B57: Salaries | T57: 0 | U57: 0 | AC57: 0 | AD57: 0 | AF57: 0 | AG57: TRUE
A58: (a) | B58: 1 Warden @ Rs. 25,000/- per month | C58: 0 | D58: 0 | G58: 0 | K58: 0 | L58: 0 | N58: 0 | Q58: 3 | S58: =R58*Q58 -> 0 | T58: 0 | U58: 0 | W58: 0 | Z58: 3 | AB58: =AA58*Z58 -> 0 | AC58: 0 | AD58: 0 | AF58: 0 | AG58: TRUE
A59: (b) | B59: 1 head teacher @ Rs. 25,000/- per month in case the enrollment exceeds 100 | K59: 0 | L59: 0 | N59: 0 | S59: 0 | T59: 0 | U59: 0 | W59: 0 | AB59: 0 | AC59: 0 | AD59: 0 | AF59: 0 | AG59: TRUE
A60: (c) | B60: 4 - 5 Full time teachers as per RTE norms @ Rs. 20,000/- per month per teacher | C60: 0 | D60: 0 | G60: 0 | K60: 0 | L60: 0 | N60: 0 | Q60: 9.6 | S60: 0 | T60: 0 | U60: 0 | W60: 0 | Z60: 9.6 | AB60: 0 | AC60: 0 | AD60: 0 | AF60: 0 | AG60: TRUE
A61: (d) | B61: 2 Urdu Teachers (only for blocks with muslim population above 20% and select urban areas), if required @ Rs. 12,000/- per month per teacher | C61: 0 | D61: 0 | K61: 0 | L61: 0 | N61: 0 | Q61: 1.44 | S61: 0 | T61: 0 | U61: 0 | W61: 0 | AB61: 0 | AC61: 0 | AD61: 0 | AF61: 0 | AG61: TRUE
A62: (e) | B62: 3 part time teachers @ Rs. 5,000/- per month per teacher | C62: 0 | D62: 0 | G62: 0 | K62: 0 | L62: 0 | N62: 0 | Q62: 1.5 | S62: 0 | T62: 0 | U62: 0 | W62: 0 | Z62: 1.5 | AB62: 0 | AC62: 0 | AD62: 0 | AF62: 0 | AG62: TRUE
A63: (f) | B63: 1 Full time Accountant @ Rs. 10,000/- per month | C63: 0 | D63: 0 | K63: 0 | L63: 0 | N63: 0 | Q63: 1.2 | S63: 0 | T63: 0 | U63: 0 | W63: 0 | Z63: 1.2 | AB63: 0 | AC63: 0 | AD63: 0 | AF63: 0 | AG63: TRUE
A64: (g) | B64: 2 Support Staff – (Accountant/ Assistant, Peon, Chowkidar) @ Rs. 5,000/- per month per staff | C64: 0 | D64: 0 | K64: 0 | L64: 0 | N64: 0 | Q64: 1.2 | S64: 0 | T64: 0 | U64: 0 | W64: 0 | Z64: 1.2 | AB64: 0 | AC64: 0 | AD64: 0 | AF64: 0 | AG64: TRUE
A65: (h) | B65: 1 Head cook @ Rs. 6,000/- per month and upto 2 Asstt. Cooks @ Rs. 4,500/- per month per cook | C65: 0 | D65: 0 | K65: 0 | L65: 0 | N65: 0 | Q65: 1.8 | S65: 0 | T65: 0 | U65: 0 | W65: 0 | Z65: 1.8 | AB65: 0 | AC65: 0 | AD65: 0 | AF65: 0 | AG65: TRUE
A66: 2.27 | B66: Specific skill training per child @ Rs.1000/- per annum | C66: 0 | D66: 0 | K66: 0 | L66: 0 | N66: 0 | Q66: 0.01 | S66: 0 | T66: 0 | U66: 0 | W66: 0 | Z66: 0.01 | AB66: 0 | AC66: 0 | AD66: 0 | AF66: 0 | AG66: TRUE
A67: 2.28 | B67: Electricity / water charges per child @Rs.1000/- per annum | C67: 0 | D67: 0 | K67: 0 | L67: 0 | N67: 0 | Q67: 0.01 | S67: 0 | T67: 0 | U67: 0 | W67: 0 | Z67: 0.01 | AB67: 0 | AC67: 0 | AD67: 0 | AF67: 0 | AG67: TRUE
A68: 2.29 | B68: Medical care/contingencies @ Rs.1250/- per child per annum | C68: 0 | D68: 0 | K68: 0 | L68: 0 | N68: 0 | Q68: 0.0125 | S68: 0 | T68: 0 | U68: 0 | W68: 0 | Z68: 0.0125 | AB68: 0 | AC68: 0 | AD68: 0 | AF68: 0 | AG68: TRUE
A69: 2.3 | B69: Maintenance @ Rs.750/- per child per annum | C69: 0 | D69: 0 | K69: 0 | L69: 0 | N69: 0 | Q69: 0.0075 | S69: 0 | T69: 0 | U69: 0 | W69: 0 | Z69: 0.0075 | AB69: 0 | AC69: 0 | AD69: 0 | AF69: 0 | AG69: TRUE
A70: 2.31 | B70: Miscellaneous @ Rs.750/- per child per annum | C70: 0 | D70: 0 | K70: =C70-G70 -> 0 | L70: 0 | N70: 0 | Q70: 0.0075 | S70: 0 | T70: 0 | U70: 0 | W70: 0 | Z70: 0.0075 | AB70: 0 | AC70: 0 | AD70: 0 | AF70: 0 | AG70: TRUE
A71: 2.32 | B71: Preparatory camps @ Rs.200/- per child per annum | C71: 0 | D71: 0 | K71: 0 | L71: 0 | N71: 0 | Q71: 0.002 | S71: 0 | T71: 0 | U71: 0 | W71: 0 | Z71: 0.002 | AB71: 0 | AC71: 0 | AD71: 0 | AF71: 0 | AG71: TRUE
A72: 2.33 | B72: P.T.A / school functions @ Rs.200/- per child per annum | C72: 0 | D72: 0 | I72: =IFERROR(G72/C72*100,"") ->  | J72: =IFERROR(H72/D72*100,"") ->  | K72: 0 | L72: 0 | N72: 0 | Q72: 0.002 | S72: 0 | T72: =+M72+O72+R72 -> 0 | U72: =+N72+P72+S72 -> 0 | W72: 0 | Z72: 0.002 | AB72: 0 | AC72: =+V72+X72+AA72 -> 0 | AD72: =+W72+Y72+AB72 -> 0 | AF72: =+AD72 -> 0 | AG72: =+W72+Y72+AB72=AD72 -> TRUE
A73: 2.34 | B73: Provision of Rent @ Rs. 6000/- per child per annum | C73: 0 | D73: 0 | L73: 0 | N73: 0 | S73: 0 | T73: 0 | U73: 0 | W73: 0 | AB73: 0 | AC73: 0 | AD73: 0 | AF73: 0 | AG73: TRUE
A74: 2.35 | B74: Capacity Building @ Rs.500/- per child per annum | C74: 0 | D74: 0 | H74: 0 | K74: 0 | L74: 0 | N74: 0 | Q74: 0.005 | S74: 0 | T74: 0 | U74: 0 | W74: 0 | Z74: 0.005 | AB74: 0 | AC74: 0 | AD74: 0 | AF74: 0 | AG74: TRUE
A75: 2.36 | B75: Physical / Self Defence training @ Rs. 200/- per child per annum. | C75: 0 | D75: 0 | K75: 0 | L75: 0 | N75: 0 | Q75: 0.002 | S75: 0 | T75: 0 | U75: 0 | W75: 0 | Z75: 0.002 | AB75: 0 | AC75: 0 | AD75: 0 | AF75: 0 | AG75: TRUE
B76: Sub Total (Recurring) | C76: 0 | D76: 0 | E76: =E75+E51 -> 0 | F76: =SUM(F54:F75) -> 0 | G76: 0 | H76: 0 | K76: 0 | L76: 0 | M76: 0 | N76: 0 | R76: =SUM(R54:R75) -> 0 | S76: =SUM(S54:S75) -> 0 | T76: 0 | U76: 0 | V76: =SUM(V54:V75) -> 0 | W76: =SUM(W54:W75) -> 0 | X76: 0 | Y76: 0 | AA76: 0 | AB76: 0 | AC76: =+V76+X76+AA76 -> 0 | AD76: 0 | AG76: TRUE
B77: Total (Recurring + Non Recurring) | C77: 0 | D77: 0 | E77: 0 | F77: 0 | G77: 0 | H77: 0 | K77: 0 | L77: 0 | M77: 0 | N77: 0 | R77: =R76+R52 -> 0 | S77: =S76+S52 -> 0 | T77: 0 | U77: 0 | V77: =+V76+V52 -> 0 | W77: =+W76+W52 -> 0 | X77: 0 | Y77: 0 | AA77: 0 | AB77: 0 | AC77: 0 | AD77: 0 | AG77: TRUE
B78: Total (50 + 100 children) | C78: =C77+C45 -> 0 | D78: 0 | E78: 0 | F78: 0 | G78: 0 | H78: 0 | K78: 0 | L78: 0 | M78: =M77+M45 -> 0 | N78: =N77+N45 -> 0 | O78: =O77+O45 -> 0 | P78: =P77+P45 -> 0 | R78: =R77+R45 -> 0 | S78: =S77+S45 -> 0 | T78: 0 | U78: 0 | V78: =+V77+V45 -> 0 | W78: =+W77+W45 -> 0 | X78: 0 | Y78: 0 | AA78: 0 | AB78: 0 | AC78: 0 | AD78: 0 | AG78: TRUE
A79: 3 | B79: Residential Hostel for specific category of children | T79: 0 | U79: 0 | AC79: 0 | AD79: 0 | AF79: 0 | AG79: TRUE
A80: (A) | B80: 50 children | T80: 0 | U80: 0 | AC80: 0 | AD80: 0 | AF80: 0 | AG80: TRUE
B81: Non-recurring (one time grant) | T81: 0 | U81: 0 | AC81: 0 | AD81: 0 | AF81: 0 | AG81: TRUE
A82: 3.01 | B82: Furniture/ Equipment (including kitchen) | C82: 0 | D82: 0 | K82: =C82-G82 -> 0 | L82: 0 | S82: =R82*Q82 -> 0 | T82: 0 | U82: 0 | AB82: =AA82*Z82 -> 0 | AC82: 0 | AD82: 0 | AF82: 0 | AG82: TRUE
A83: =+A82+0.01 -> 3.02 | B83: TLM and equipment including library books | C83: 0 | D83: 0 | K83: 0 | L83: 0 | S83: =R83*Q83 -> 0 | T83: 0 | U83: 0 | AB83: =AA83*Z83 -> 0 | AC83: 0 | AD83: 0 | AF83: 0 | AG83: TRUE
A84: =+A83+0.01 -> 3.03 | B84: Bedding (new) | C84: 0 | D84: 0 | K84: 0 | L84: 0 | S84: =R84*Q84 -> 0 | T84: 0 | U84: 0 | AB84: =AA84*Z84 -> 0 | AC84: 0 | AD84: 0 | AF84: 0 | AG84: TRUE
A85: =+A84+0.01 -> 3.04 | B85: Replacement of bedding (once in 3 years) | C85: 0 | D85: 0 | K85: 0 | L85: 0 | S85: =R85*Q85 -> 0 | T85: 0 | U85: 0 | AB85: =AA85*Z85 -> 0 | AC85: 0 | AD85: 0 | AF85: 0 | AG85: TRUE
B86: Sub Total (Non Recurring) | C86: =SUM(C82:C85) -> 0 | D86: =SUM(D82:D85) -> 0 | E86: =SUM(E82:E85) -> 0 | F86: 0 | G86: 0 | H86: 0 | K86: 0 | L86: 0 | M86: 0 | N86: 0 | R86: =SUM(R82:R85) -> 0 | S86: =SUM(S82:S85) -> 0 | T86: 0 | U86: 0 | V86: =SUM(V82:V85) -> 0 | W86: =SUM(W82:W85) -> 0 | X86: 0 | Y86: 0 | AA86: 0 | AB86: 0 | AC86: =+V86+X86+AA86 -> 0 | AD86: =+W86+Y86+AB86 -> 0 | AF86: 0 | AG86: TRUE
B87: Recurring (50 children) | C87: 0 | D87: 0 | S87: =R87*Q87 -> 0 | T87: 0 | U87: 0 | AB87: =AA87*Z87 -> 0 | AC87: 0 | AD87: 0 | AF87: 0 | AG87: TRUE
A88: 3.05 | B88: Maintenance per child Per month @ Rs.1500/- | C88: 0 | D88: 0 | K88: =C88-G88 -> 0 | L88: 0 | N88: 0 | S88: =R88*Q88 -> 0 | T88: 0 | U88: 0 | W88: 0 | AB88: =AA88*Z88 -> 0 | AC88: 0 | AD88: 0 | AF88: 0 | AG88: TRUE
A89: =+A88+0.01 -> 3.06 | B89: Stipend per child per month @ Rs.100/- | C89: 0 | D89: 0 | K89: 0 | L89: 0 | N89: 0 | S89: =R89*Q89 -> 0 | T89: 0 | U89: 0 | W89: 0 | AB89: =AA89*Z89 -> 0 | AC89: 0 | AD89: 0 | AF89: 0 | AG89: TRUE
A90: =+A89+0.01 -> 3.07 | B90: Supplementary TLM, Stationery and other educational material @Rs.1000/- per child per annum | C90: 0 | D90: 0 | K90: 0 | L90: 0 | N90: 0 | S90: =R90*Q90 -> 0 | T90: 0 | U90: 0 | W90: 0 | AB90: =AA90*Z90 -> 0 | AC90: 0 | AD90: 0 | AF90: 0 | AG90: TRUE
A91: 3.08 | B91: Salaries | T91: 0 | U91: 0 | AC91: 0 | AD91: 0 | AF91: 0 | AG91: TRUE
A92: (a) | B92: 1 Warden @ Rs.25000/- per month | C92: 0 | D92: 0 | K92: 0 | L92: 0 | N92: 0 | S92: =R92*Q92 -> 0 | T92: 0 | U92: 0 | W92: 0 | AB92: =AA92*Z92 -> 0 | AC92: 0 | AD92: 0 | AF92: 0 | AG92: TRUE
A93: (b) | B93: 4 Fulltime teachers as per RTE Norms @ Rs. 20,000/- per month per teacher | C93: 0 | D93: 0 | K93: 0 | L93: 0 | N93: 0 | S93: 0 | T93: 0 | U93: 0 | W93: 0 | AB93: 0 | AC93: 0 | AD93: 0 | AF93: 0 | AG93: TRUE
A94: (c) | B94: 2 Urdu Teachers (only for Blocks with muslim population above 20% and select urban areas) @ Rs.12,000/- per month per teacher. | C94: 0 | D94: 0 | K94: 0 | L94: 0 | N94: 0 | S94: 0 | T94: 0 | U94: 0 | W94: 0 | AB94: 0 | AC94: 0 | AD94: 0 | AF94: 0 | AG94: TRUE
A95: (d) | B95: 3 Part time teachers @ Rs.5,000/- per month per teacher | C95: 0 | D95: 0 | K95: 0 | L95: 0 | N95: 0 | S95: 0 | T95: 0 | U95: 0 | W95: 0 | AB95: 0 | AC95: 0 | AD95: 0 | AF95: 0 | AG95: TRUE
A96: (e) | B96: 1 Full time Accountant @ Rs. 10,000/- per month | C96: 0 | D96: 0 | K96: 0 | L96: 0 | N96: 0 | S96: 0 | T96: 0 | U96: 0 | W96: 0 | AB96: 0 | AC96: 0 | AD96: 0 | AF96: 0 | AG96: TRUE
A97: (f) | B97: 2 Support staff - (Accountant/Assistant, Peon, Chowkidar) @ Rs. 5,000/- per month per staff | C97: 0 | D97: 0 | K97: 0 | L97: 0 | N97: 0 | S97: 0 | T97: 0 | U97: 0 | W97: 0 | AB97: 0 | AC97: 0 | AD97: 0 | AF97: 0 | AG97: TRUE
A98: (g) | B98: 1 Head Cook @ Rs. 6,000/- per month and upto 2 Asstt. Cooks @ Rs. 4,500/- per month per cook | C98: 0 | D98: 0 | K98: 0 | L98: 0 | N98: 0 | S98: 0 | T98: 0 | U98: 0 | W98: 0 | AB98: 0 | AC98: 0 | AD98: 0 | AF98: 0 | AG98: TRUE
A99: 3.09 | B99: Specific Skill training @ Rs.1000/- per annum per child | C99: 0 | D99: 0 | K99: 0 | L99: 0 | N99: 0 | S99: 0 | T99: 0 | U99: 0 | W99: 0 | AB99: 0 | AC99: 0 | AD99: 0 | AF99: 0 | AG99: TRUE
A100: =+A99+0.01 -> 3.1 | B100: Electricity / water charges @ Rs. 1000/- per annum per child | C100: 0 | D100: 0 | K100: 0 | L100: 0 | N100: 0 | S100: 0 | T100: 0 | U100: 0 | W100: 0 | AB100: 0 | AC100: 0 | AD100: 0 | AF100: 0 | AG100: TRUE
A101: 3.11 | B101: Medical care/contingencies @ Rs.1250/- per annum per child | C101: 0 | D101: 0 | K101: 0 | L101: 0 | N101: 0 | S101: 0 | T101: 0 | U101: 0 | W101: 0 | AB101: 0 | AC101: 0 | AD101: 0 | AF101: 0 | AG101: TRUE
A102: 3.12 | B102: Maintenance @ Rs. 750/- per child per annum | C102: 0 | D102: 0 | K102: 0 | L102: 0 | N102: 0 | S102: 0 | T102: 0 | U102: 0 | W102: 0 | AB102: 0 | AC102: 0 | AD102: 0 | AF102: 0 | AG102: TRUE
A103: 3.13 | B103: Miscellaneous @ Rs. 750/- per child per annum | C103: 0 | D103: 0 | K103: 0 | L103: 0 | N103: 0 | S103: 0 | T103: 0 | U103: 0 | W103: 0 | AB103: 0 | AC103: 0 | AD103: 0 | AF103: 0 | AG103: TRUE
A104: 3.14 | B104: Preparatory camps @ Rs. 300/- per child per annum | C104: 0 | D104: 0 | K104: 0 | L104: 0 | N104: 0 | S104: 0 | T104: 0 | U104: 0 | W104: 0 | AB104: 0 | AC104: 0 | AD104: 0 | AF104: 0 | AG104: TRUE
A105: 3.15 | B105: P.T.A / school functions @ Rs. 300/- per child per annum | C105: 0 | D105: 0 | K105: 0 | L105: 0 | N105: 0 | S105: 0 | T105: 0 | U105: 0 | W105: 0 | AB105: 0 | AC105: 0 | AD105: 0 | AF105: 0 | AG105: TRUE
A106: 3.16 | B106: Provision of Rent @ Rs. 10,000/- per child per annum | C106: 0 | D106: 0 | K106: 0 | L106: 0 | N106: 0 | S106: 0 | T106: 0 | U106: 0 | W106: 0 | AB106: 0 | AC106: 0 | AD106: 0 | AF106: 0 | AG106: TRUE
A107: 3.17 | B107: Capacity Building @ Rs. 500/- per child per annum | C107: 0 | D107: 0 | K107: 0 | L107: 0 | N107: 0 | S107: 0 | T107: 0 | U107: 0 | W107: 0 | AB107: 0 | AC107: 0 | AD107: 0 | AF107: 0 | AG107: TRUE
A108: 3.18 | B108: Physical / Self Defence Training @ Rs.200/- per child per annum | C108: 0 | D108: 0 | K108: 0 | L108: 0 | N108: 0 | S108: 0 | T108: 0 | U108: 0 | W108: 0 | AB108: 0 | AC108: 0 | AD108: 0 | AF108: 0 | AG108: TRUE
B109: Sub Total (Recurring) | C109: =C108+C85 -> 0 | D109: =SUM(D88:D108) -> 0 | E109: 0 | F109: 0 | G109: 0 | H109: 0 | K109: 0 | L109: 0 | M109: 0 | N109: 0 | R109: =SUM(R88:R108) -> 0 | S109: =SUM(S88:S108) -> 0 | T109: 0 | U109: 0 | V109: =SUM(V88:V108) -> 0 | W109: =SUM(W88:W108) -> 0 | X109: 0 | Y109: 0 | AA109: 0 | AB109: 0 | AC109: =+V109+X109+AA109 -> 0 | AD109: =+W109+Y109+AB109 -> 0 | AF109: 0 | AG109: TRUE
B110: Total (Non Recurring + Recurring) | C110: 0 | D110: 0 | E110: 0 | F110: 0 | G110: 0 | H110: 0 | K110: 0 | L110: 0 | M110: 0 | N110: 0 | R110: =R109+R86 -> 0 | S110: =S109+S86 -> 0 | T110: 0 | U110: 0 | V110: =+V109+V86 -> 0 | W110: =+W109+W86 -> 0 | X110: 0 | Y110: 0 | AA110: 0 | AB110: 0 | AC110: =+V110+X110+AA110 -> 0 | AD110: =+W110+Y110+AB110 -> 0 | AF110: 0 | AG110: TRUE
A111: (B) | B111: 100 Children | T111: 0 | U111: 0 | AC111: 0 | AD111: 0 | AF111: 0 | AG111: TRUE
B112: Non-recurring (one time grant) | T112: 0 | U112: 0 | AC112: 0 | AD112: 0 | AF112: 0 | AG112: TRUE
A113: 3.19 | B113: Furniture / Equipment (including kitchen equipment) | C113: 0 | D113: 0 | K113: =C113-G113 -> 0 | L113: 0 | M113: 0 | N113: 0 | S113: =Q113+L113 -> 0 | T113: 0 | U113: 0 | V113: 0 | W113: 0 | AB113: =Z113+U113 -> 0 | AC113: 0 | AD113: 0 | AF113: 0 | AG113: TRUE
A114: =+A113+0.01 -> 3.2 | B114: TLM and equipment including library books (New) | C114: 0 | D114: 0 | K114: 0 | L114: 0 | M114: 0 | N114: 0 | S114: =R114*Q114 -> 0 | T114: 0 | U114: 0 | V114: 0 | W114: 0 | AB114: =AA114*Z114 -> 0 | AC114: 0 | AD114: 0 | AF114: 0 | AG114: TRUE
A115: =+A114+0.01 -> 3.21 | B115: Bedding (New) | C115: 0 | D115: 0 | K115: 0 | L115: 0 | M115: 0 | N115: 0 | S115: =R115*Q115 -> 0 | T115: 0 | U115: 0 | V115: 0 | W115: 0 | AB115: =AA115*Z115 -> 0 | AC115: 0 | AD115: 0 | AF115: 0 | AG115: TRUE
A116: =+A115+0.01 -> 3.22 | B116: Replacement of bedding (once in 3 years) | C116: 0 | D116: 0 | K116: 0 | L116: 0 | M116: 0 | N116: 0 | S116: =R116*Q116 -> 0 | T116: 0 | U116: 0 | V116: 0 | W116: 0 | AB116: =AA116*Z116 -> 0 | AC116: 0 | AD116: 0 | AF116: 0 | AG116: TRUE
B117: Sub Total Non-recurring | C117: =SUM(C113:C116) -> 0 | D117: =SUM(D113:D116) -> 0 | E117: =SUM(E113:E116) -> 0 | F117: 0 | G117: 0 | H117: 0 | K117: 0 | L117: 0 | M117: 0 | N117: 0 | R117: =SUM(R113:R116) -> 0 | S117: =SUM(S113:S116) -> 0 | T117: 0 | U117: 0 | V117: =SUM(V113:V116) -> 0 | W117: =SUM(W113:W116) -> 0 | X117: 0 | Y117: 0 | AA117: 0 | AB117: 0 | AC117: =+V117+X117+AA117 -> 0 | AD117: =+W117+Y117+AB117 -> 0 | AF117: 0 | AG117: TRUE
B118: Recurring | T118: 0 | U118: 0 | AC118: 0 | AD118: 0 | AF118: 0 | AG118: TRUE
A119: 3.23 | B119: Maintenance per child per month @ Rs. 1500/- | C119: 0 | D119: 0 | K119: =C119-G119 -> 0 | L119: 0 | N119: 0 | S119: =R119*Q119 -> 0 | T119: 0 | U119: 0 | W119: 0 | AB119: =AA119*Z119 -> 0 | AC119: 0 | AD119: 0 | AF119: 0 | AG119: TRUE
A120: =+A119+0.01 -> 3.24 | B120: Stipend per child per month @ Rs.100/- | C120: 0 | D120: 0 | K120: 0 | L120: 0 | N120: 0 | S120: =R120*Q120 -> 0 | T120: 0 | U120: 0 | W120: 0 | AB120: =AA120*Z120 -> 0 | AC120: 0 | AD120: 0 | AF120: 0 | AG120: TRUE
A121: =+A120+0.01 -> 3.25 | B121: Supplementary TLM, Stationery and other educational material per child @1000/- per annum | C121: 0 | D121: 0 | K121: 0 | L121: 0 | N121: 0 | S121: =R121*Q121 -> 0 | T121: 0 | U121: 0 | W121: 0 | AB121: =AA121*Z121 -> 0 | AC121: 0 | AD121: 0 | AF121: 0 | AG121: TRUE
A122: 3.26 | B122: Salaries | T122: 0 | U122: 0 | AC122: 0 | AD122: 0 | AF122: 0 | AG122: TRUE
A123: (a) | B123: 1 Warden @ Rs. 25,000/- per month | C123: 0 | D123: 0 | K123: 0 | L123: 0 | N123: 0 | S123: =R123*Q123 -> 0 | T123: 0 | U123: 0 | W123: 0 | AB123: =AA123*Z123 -> 0 | AC123: 0 | AD123: 0 | AF123: 0 | AG123: TRUE
A124: (b) | B124: 1 head teacher @ Rs. 25,000/- per month in case the enrollment exceeds 100 | C124: 0 | D124: 0 | K124: 0 | L124: 0 | N124: 0 | S124: 0 | T124: 0 | U124: 0 | W124: 0 | AB124: 0 | AC124: 0 | AD124: 0 | AF124: 0 | AG124: TRUE
A125: (c) | B125: 4 - 5 Full time teachers as per RTE norms @ Rs. 20,000/- per month per teacher | C125: 0 | D125: 0 | K125: 0 | L125: 0 | N125: 0 | S125: 0 | T125: 0 | U125: 0 | W125: 0 | AB125: 0 | AC125: 0 | AD125: 0 | AF125: 0 | AG125: TRUE
A126: (d) | B126: 2 Urdu Teachers (only for blocks with muslim population above 20% and select urban areas), if required @ Rs. 12,000/- per month per teacher | C126: 0 | D126: 0 | K126: 0 | L126: 0 | N126: 0 | S126: 0 | T126: 0 | U126: 0 | W126: 0 | AB126: 0 | AC126: 0 | AD126: 0 | AF126: 0 | AG126: TRUE
A127: (e) | B127: 3 part time teachers @ Rs. 5,000/- per month per teacher | C127: 0 | D127: 0 | K127: 0 | L127: 0 | N127: 0 | S127: 0 | T127: 0 | U127: 0 | W127: 0 | AB127: 0 | AC127: 0 | AD127: 0 | AF127: 0 | AG127: TRUE
A128: (f) | B128: 1 Full time Accountant @ Rs. 10,000/- per month | C128: 0 | D128: 0 | K128: 0 | L128: 0 | N128: 0 | S128: 0 | T128: 0 | U128: 0 | W128: 0 | AB128: 0 | AC128: 0 | AD128: 0 | AF128: 0 | AG128: TRUE
A129: (g) | B129: 2 Support Staff – (Accountant/ Assistant, Peon, Chowkidar) @ Rs. 5,000/- per month per staff | C129: 0 | D129: 0 | K129: 0 | L129: 0 | N129: 0 | S129: 0 | T129: 0 | U129: 0 | W129: 0 | AB129: 0 | AC129: 0 | AD129: 0 | AF129: 0 | AG129: TRUE
A130: (h) | B130: 1 Head cook @ Rs. 6,000/- per month and upto 2 Asstt. Cooks @ Rs. 4,500/- per month per cook | C130: 0 | D130: 0 | K130: 0 | L130: 0 | N130: 0 | S130: 0 | T130: 0 | U130: 0 | W130: 0 | AB130: 0 | AC130: 0 | AD130: 0 | AF130: 0 | AG130: TRUE
A131: 3.27 | B131: Specific skill training per child @ Rs.1000/- per annum | C131: 0 | D131: 0 | K131: 0 | L131: 0 | N131: 0 | S131: 0 | T131: 0 | U131: 0 | W131: 0 | AB131: 0 | AC131: 0 | AD131: 0 | AF131: 0 | AG131: TRUE
A132: =+A131+0.01 -> 3.28 | B132: Electricity / water charges per child @Rs.1000/- per annum | C132: 0 | D132: 0 | K132: 0 | L132: 0 | N132: 0 | S132: 0 | T132: 0 | U132: 0 | W132: 0 | AB132: 0 | AC132: 0 | AD132: 0 | AF132: 0 | AG132: TRUE
A133: 3.29 | B133: Medical care/contingencies @ Rs.1250/- per child per annum | C133: 0 | D133: 0 | K133: 0 | L133: 0 | N133: 0 | S133: 0 | T133: 0 | U133: 0 | W133: 0 | AB133: 0 | AC133: 0 | AD133: 0 | AF133: 0 | AG133: TRUE
A134: 3.3 | B134: Maintenance @ Rs.750/- per child per annum | C134: 0 | D134: 0 | K134: 0 | L134: 0 | N134: 0 | S134: 0 | T134: 0 | U134: 0 | W134: 0 | AB134: 0 | AC134: 0 | AD134: 0 | AF134: 0 | AG134: TRUE
A135: 3.31 | B135: Miscellaneous @ Rs.750/- per child per annum | C135: 0 | D135: 0 | K135: 0 | L135: 0 | N135: 0 | S135: 0 | T135: 0 | U135: 0 | W135: 0 | AB135: 0 | AC135: 0 | AD135: 0 | AF135: 0 | AG135: TRUE
A136: 3.32 | B136: Preparatory camps @ Rs.200/- per child per annum | C136: 0 | D136: 0 | I136: =IFERROR(G136/C136*100,"") ->  | J136: =IFERROR(H136/D136*100,"") ->  | K136: 0 | L136: 0 | N136: 0 | S136: 0 | T136: =+M136+O136+R136 -> 0 | U136: =+N136+P136+S136 -> 0 | W136: 0 | AB136: 0 | AC136: =+V136+X136+AA136 -> 0 | AD136: =+W136+Y136+AB136 -> 0 | AF136: =+AD136 -> 0 | AG136: =+W136+Y136+AB136=AD136 -> TRUE
A137: 3.33 | B137: P.T.A / school functions @ Rs.200/- per child per annum | C137: 0 | D137: 0 | K137: 0 | L137: 0 | N137: 0 | S137: 0 | T137: 0 | U137: 0 | W137: 0 | AB137: 0 | AC137: 0 | AD137: 0 | AF137: 0 | AG137: TRUE
A138: 3.34 | B138: Provision of Rent @ Rs. 6000/- per child per annum | C138: 0 | D138: 0 | K138: 0 | L138: 0 | N138: 0 | S138: 0 | T138: 0 | U138: 0 | W138: 0 | AB138: 0 | AC138: 0 | AD138: 0 | AF138: 0 | AG138: TRUE
A139: 3.35 | B139: Capacity Building @ Rs.500/- per child per annum | C139: 0 | D139: 0 | K139: 0 | L139: 0 | N139: 0 | S139: 0 | T139: 0 | U139: 0 | W139: 0 | AB139: 0 | AC139: 0 | AD139: 0 | AF139: 0 | AG139: TRUE
A140: 3.36 | B140: Physical / Self Defence training @ Rs. 200/- per child per annum. | C140: 0 | D140: 0 | K140: 0 | L140: 0 | N140: 0 | S140: 0 | T140: 0 | U140: 0 | W140: 0 | AB140: 0 | AC140: 0 | AD140: 0 | AF140: 0 | AG140: TRUE
B141: Sub Total (Recurring) | C141: 0 | D141: 0 | E141: =SUM(E119:E140) -> 0 | F141: =SUM(F119:F140) -> 0 | G141: 0 | H141: 0 | K141: 0 | L141: 0 | M141: 0 | N141: 0 | R141: =SUM(R119:R140) -> 0 | S141: =SUM(S119:S140) -> 0 | T141: 0 | U141: 0 | V141: =SUM(V119:V140) -> 0 | W141: =SUM(W119:W140) -> 0 | X141: 0 | Y141: 0 | AA141: 0 | AB141: 0 | AC141: =+V141+X141+AA141 -> 0 | AD141: 0 | AF141: 0 | AG141: TRUE
B142: Total (Recurring + Non Recurring) | C142: 0 | D142: 0 | E142: =E141+E117 -> 0 | F142: 0 | G142: 0 | H142: 0 | K142: 0 | L142: 0 | M142: 0 | N142: 0 | R142: =R141+R117 -> 0 | S142: =S141+S117 -> 0 | T142: 0 | U142: 0 | V142: =+V141+V117 -> 0 | W142: =+W141+W117 -> 0 | X142: 0 | Y142: 0 | AA142: 0 | AB142: 0 | AC142: 0 | AD142: 0 | AF142: 0 | AG142: TRUE
B143: Total (A + B) | C143: 0 | D143: 0 | E143: =E142+E110 -> 0 | F143: 0 | G143: 0 | H143: 0 | K143: 0 | L143: 0 | M143: =M142+M110 -> 0 | N143: 0 | O143: 0 | P143: 0 | R143: =R142+R110 -> 0 | S143: =S142+S110 -> 0 | T143: 0 | U143: 0 | V143: =+V142+V110 -> 0 | W143: =+W142+W110 -> 0 | X143: 0 | Y143: 0 | Z143: 0 | AA143: 0 | AB143: 0 | AC143: 0 | AD143: 0 | AF143: 0 | AG143: TRUE
A144: 4 | B144: Transport/Escort Facility | T144: 0 | U144: 0 | AC144: 0 | AD144: 0 | AF144: 0 | AG144: TRUE
A145: 4.01 | B145: Children in remote habitation | C145: 0 | D145: 0 | K145: =C145-G145 -> 0 | L145: =D145-H145 -> 0 | Q145: 0.03 | R145: 102 | S145: =R145*Q145 -> 3.06 | T145: 102 | U145: 3.06 | Z145: 0.03 | AA145: 102 | AB145: =AA145*Z145 -> 3.06 | AC145: 102 | AD145: 3.06 | AF145: 3.06 | AG145: TRUE
A146: 4.02 | B146: Urban deprived children/children without adult protection | C146: 0 | D146: 0 | K146: =C146-G146 -> 0 | L146: =D146-H146 -> 0 | Q146: 0.03 | R146: 0 | S146: =R146*Q146 -> 0 | T146: 0 | U146: 0 | Z146: 0.03 | AA146: 0 | AB146: =AA146*Z146 -> 0 | AC146: 0 | AD146: 0 | AF146: 0 | AG146: TRUE
B147: Sub Total | C147: =SUM(C145:C146) -> 0 | D147: 0 | E147: 0 | F147: 0 | G147: 0 | H147: 0 | K147: 0 | L147: 0 | M147: =SUM(M145:M146) -> 0 | N147: =SUM(N145:N146) -> 0 | O147: 0 | P147: 0 | R147: 102 | S147: 3.06 | T147: =+M147+O147+R147 -> 102 | U147: =+N147+P147+S147 -> 3.06 | V147: =SUM(V145:V146) -> 0 | W147: =SUM(W145:W146) -> 0 | X147: 0 | Y147: 0 | AA147: 102 | AB147: 3.06 | AC147: =+V147+X147+AA147 -> 102 | AD147: =+W147+Y147+AB147 -> 3.06 | AG147: TRUE
A148: 5 | B148: Reimbursement of Fee against 25% admission under Section 12(1)(c) of RTE Act 2009 (Entry Level) subject to upper limit of 20% of AWP&B subject to guidelines issued by MHRD | C148: 9149 | D148: 598.47606 | E148: 9149 | F148: 598.47606 | G148: 9149 | H148: 598.47606 | I148: 100 | J148: 100 | K148: =C148-G148 -> 0 | L148: =D148-H148 -> 0 | Q148: 0.11848 | R148: 11678 | S148: =R148*Q148 -> 1383.60944 | T148: 11678 | U148: 1383.60944 | AA148: 12519 | AB148: 655.873 | AC148: =+V148+X148+AA148 -> 12519 | AD148: =+W148+Y148+AB148 -> 655.873 | AF148: 655.873 | AG148: TRUE
B149: Sub Total | C149: =SUM(C148) -> 9149 | D149: =SUM(D148) -> 598.47606 | E149: =SUM(E148) -> 9149 | F149: 598.47606 | G149: 9149 | H149: 598.47606 | I149: 100 | J149: 100 | K149: 0 | L149: 0 | M149: =+M148 -> 0 | N149: =+N148 -> 0 | O149: =+O148 -> 0 | P149: =+P148 -> 0 | R149: =+R148 -> 11678 | S149: =+S148 -> 1383.60944 | T149: =+M149+O149+R149 -> 11678 | U149: =+N149+P149+S149 -> 1383.60944 | V149: =+V148 -> 0 | W149: =+W148 -> 0 | X149: 0 | Y149: 0 | AA149: 12519 | AB149: 655.873 | AC149: =+V149+X149+AA149 -> 12519 | AD149: =+W149+Y149+AB149 -> 655.873 | AG149: TRUE
A150: 6 | B150: Special Training for mainstreaming of out of school children | C150: 0 | D150: 0 | G150: 0 | H150: 0 | K150: 0 | L150: 0 | T150: 0 | U150: 0 | AC150: 0 | AD150: 0 | AF150: 0 | AG150: TRUE
A151: 6.01 | B151: Residential (Fresh) | C151: 0 | D151: 0 | T151: 0 | U151: 0 | AC151: 0 | AD151: 0 | AF151: 0 | AG151: TRUE
B152: (a) 12 months | C152: 0 | D152: 0 | G152: 0 | K152: =C152-G152 -> 0 | L152: 0 | N152: 0 | Q152: 0.2 | S152: =R152*Q152 -> 0 | T152: 0 | U152: 0 | W152: 0 | Z152: 0.2 | AB152: =AA152*Z152 -> 0 | AC152: 0 | AD152: 0 | AF152: 0 | AG152: TRUE
B153: (b) 9 months | C153: 0 | D153: 0 | K153: 0 | L153: 0 | N153: 0 | Q153: 0.15 | S153: =R153*Q153 -> 0 | T153: 0 | U153: 0 | W153: 0 | Z153: 0.15 | AB153: =AA153*Z153 -> 0 | AC153: 0 | AD153: 0 | AF153: 0 | AG153: TRUE
B154: (c) 6 months | C154: 0 | D154: 0 | K154: 0 | L154: 0 | N154: 0 | Q154: 0.1 | S154: =R154*Q154 -> 0 | T154: 0 | U154: 0 | W154: 0 | Z154: 0.1 | AB154: =AA154*Z154 -> 0 | AC154: 0 | AD154: 0 | AF154: 0 | AG154: TRUE
B155: (d) 3 months | C155: 63 | D155: 3.15 | E155: 16 | F155: 0.99 | G155: 25 | H155: 0.99 | I155: 39.68253968 | J155: 31.42857143 | K155: 38 | L155: 2.16 | N155: 0 | Q155: 0.05 | R155: 20 | S155: =R155*Q155 -> 1 | T155: 20 | U155: 1 | W155: 0 | Z155: 0.05 | AA155: 20 | AB155: =AA155*Z155 -> 1 | AC155: 20 | AD155: 1 | AF155: 1 | AG155: TRUE
B156: Sub Total | C156: =SUM(C152:C155) -> 63 | D156: 3.15 | E156: 16 | F156: 0.99 | G156: 25 | H156: 0.99 | I156: 39.68253968 | J156: 31.42857143 | K156: 38 | L156: 2.16 | M156: =SUM(M152:M155) -> 0 | N156: =SUM(N152:N155) -> 0 | O156: =SUM(O152:O155) -> 0 | P156: =SUM(P152:P155) -> 0 | R156: =SUM(R152:R155) -> 20 | S156: =SUM(S152:S155) -> 1 | T156: =+M156+O156+R156 -> 20 | U156: =+N156+P156+S156 -> 1 | V156: =SUM(V152:V155) -> 0 | W156: =SUM(W152:W155) -> 0 | X156: 0 | Y156: 0 | AA156: 20 | AB156: 1 | AC156: =+V156+X156+AA156 -> 20 | AD156: =+W156+Y156+AB156 -> 1 | AG156: TRUE
A157: 6.02 | B157: Residential (Continuing from previous year) | T157: 0 | U157: 0 | AC157: 0 | AD157: 0 | AF157: 0 | AG157: TRUE
B158: (a) 12 months | C158: 0 | D158: 0 | K158: =C158-G158 -> 0 | L158: 0 | N158: 0 | Q158: 0.2 | R158: 0 | S158: =R158*Q158 -> 0 | T158: 0 | U158: 0 | W158: 0 | Z158: 0.2 | AA158: 0 | AB158: =AA158*Z158 -> 0 | AC158: 0 | AD158: 0 | AF158: 0 | AG158: TRUE
B159: (b) 9 months | C159: 0 | D159: 0 | K159: 0 | L159: 0 | N159: 0 | Q159: 0.15 | S159: =R159*Q159 -> 0 | T159: 0 | U159: 0 | W159: 0 | Z159: 0.15 | AB159: =AA159*Z159 -> 0 | AC159: 0 | AD159: 0 | AF159: 0 | AG159: TRUE
B160: (c) 6 months | C160: 0 | D160: 0 | K160: 0 | L160: 0 | N160: 0 | Q160: 0.1 | S160: =R160*Q160 -> 0 | T160: 0 | U160: 0 | W160: 0 | Z160: 0.1 | AB160: =AA160*Z160 -> 0 | AC160: 0 | AD160: 0 | AF160: 0 | AG160: TRUE
B161: (d) 3 months | C161: 0 | D161: 0 | K161: 0 | L161: 0 | N161: 0 | Q161: 0.05 | S161: =R161*Q161 -> 0 | T161: 0 | U161: 0 | W161: 0 | Z161: 0.05 | AB161: =AA161*Z161 -> 0 | AC161: 0 | AD161: 0 | AF161: 0 | AG161: TRUE
B162: Sub Total | C162: =SUM(C158:C161) -> 0 | D162: 0 | E162: 0 | F162: 0 | G162: 0 | H162: 0 | K162: 0 | L162: 0 | M162: =SUM(M158:M161) -> 0 | N162: =SUM(N158:N161) -> 0 | O162: =SUM(O158:O161) -> 0 | P162: =SUM(P158:P161) -> 0 | R162: =SUM(R158:R161) -> 0 | S162: =SUM(S158:S161) -> 0 | T162: =+M162+O162+R162 -> 0 | U162: =+N162+P162+S162 -> 0 | V162: =SUM(V158:V161) -> 0 | W162: =SUM(W158:W161) -> 0 | X162: 0 | Y162: 0 | AA162: 0 | AB162: 0 | AC162: =+V162+X162+AA162 -> 0 | AD162: =+W162+Y162+AB162 -> 0 | AG162: TRUE
A163: 6.03 | B163: Non-Residential (Fresh) | T163: 0 | U163: 0 | AC163: 0 | AD163: 0 | AF163: 0 | AG163: TRUE
B164: (a) 12 months | C164: 0 | D164: 0 | K164: =C164-G164 -> 0 | L164: 0 | N164: 0 | Q164: 0.06 | S164: =R164*Q164 -> 0 | T164: 0 | U164: 0 | W164: 0 | Z164: 0.06 | AB164: =AA164*Z164 -> 0 | AC164: 0 | AD164: 0 | AF164: 0 | AG164: TRUE
B165: (b) 9 months | C165: 0 | D165: 0 | K165: 0 | L165: 0 | N165: 0 | Q165: 0.045 | S165: =R165*Q165 -> 0 | T165: 0 | U165: 0 | W165: 0 | Z165: 0.045 | AB165: =AA165*Z165 -> 0 | AC165: 0 | AD165: 0 | AF165: 0 | AG165: TRUE
B166: (c) 6 months | C166: 0 | D166: 0 | K166: 0 | L166: 0 | N166: 0 | Q166: 0.03 | R166: 0 | S166: =R166*Q166 -> 0 | T166: 0 | U166: 0 | W166: 0 | Z166: 0.03 | AA166: 0 | AB166: =AA166*Z166 -> 0 | AC166: 0 | AD166: 0 | AF166: 0 | AG166: TRUE
B167: (d) 3 months | C167: 99 | D167: 1.485 | E167: 43 | F167: 0.5 | G167: 43 | H167: 0.5 | I167: 43.43434343 | J167: 33.67003367 | K167: 56 | L167: 0.985 | N167: 0 | Q167: 0.015 | R167: 37 | S167: =R167*Q167 -> 0.555 | T167: 37 | U167: 0.555 | W167: 0 | Z167: 0.015 | AA167: 37 | AB167: =AA167*Z167 -> 0.555 | AC167: 37 | AD167: 0.555 | AF167: 0.555 | AG167: TRUE
B168: Sub Total | C168: =SUM(C164:C167) -> 99 | D168: 1.485 | E168: 43 | F168: 0.5 | G168: 43 | H168: 0.5 | I168: 43.43434343 | J168: 33.67003367 | K168: 56 | L168: 0.985 | M168: =SUM(M164:M167) -> 0 | N168: =SUM(N164:N167) -> 0 | O168: =SUM(O164:O167) -> 0 | P168: =SUM(P164:P167) -> 0 | R168: =SUM(R164:R167) -> 37 | S168: =SUM(S164:S167) -> 0.555 | T168: =+M168+O168+R168 -> 37 | U168: =+N168+P168+S168 -> 0.555 | V168: =SUM(V164:V167) -> 0 | W168: =SUM(W164:W167) -> 0 | X168: 0 | Y168: 0 | AA168: 37 | AB168: 0.555 | AC168: =+V168+X168+AA168 -> 37 | AD168: =+W168+Y168+AB168 -> 0.555 | AG168: TRUE
A169: 6.04 | B169: Non-Residential (Continuing from previous year) | T169: 0 | U169: 0 | AC169: 0 | AD169: 0 | AF169: 0 | AG169: TRUE
B170: (a) 12 months | C170: 0 | D170: 0 | K170: =C170-G170 -> 0 | L170: 0 | N170: 0 | Q170: 0.06 | S170: =R170*Q170 -> 0 | T170: 0 | U170: 0 | W170: 0 | Z170: 0.06 | AB170: =AA170*Z170 -> 0 | AC170: 0 | AD170: 0 | AF170: 0 | AG170: TRUE
B171: (b) 9 months | C171: 0 | D171: 0 | K171: 0 | L171: 0 | N171: 0 | Q171: 0.045 | S171: =R171*Q171 -> 0 | T171: 0 | U171: 0 | W171: 0 | Z171: 0.045 | AB171: =AA171*Z171 -> 0 | AC171: 0 | AD171: 0 | AF171: 0 | AG171: TRUE
B172: (c) 6 months | C172: 0 | D172: 0 | K172: 0 | L172: 0 | N172: 0 | Q172: 0.03 | S172: =R172*Q172 -> 0 | T172: 0 | U172: 0 | W172: 0 | Z172: 0.03 | AB172: =AA172*Z172 -> 0 | AC172: 0 | AD172: 0 | AF172: 0 | AG172: TRUE
B173: (d) 3 months | C173: 0 | D173: 0 | K173: 0 | L173: 0 | N173: 0 | Q173: 0.015 | S173: =R173*Q173 -> 0 | T173: 0 | U173: 0 | W173: 0 | Z173: 0.015 | AB173: =AA173*Z173 -> 0 | AC173: 0 | AD173: 0 | AF173: 0 | AG173: TRUE
B174: Sub Total | C174: =SUM(C170:C173) -> 0 | D174: 0 | E174: 0 | F174: 0 | G174: 0 | H174: 0 | K174: 0 | L174: 0 | M174: =SUM(M170:M173) -> 0 | N174: =SUM(N170:N173) -> 0 | O174: =SUM(O170:O173) -> 0 | P174: =SUM(P170:P173) -> 0 | R174: =SUM(R170:R173) -> 0 | S174: =SUM(S170:S173) -> 0 | T174: =+M174+O174+R174 -> 0 | U174: =+N174+P174+S174 -> 0 | V174: =SUM(V170:V173) -> 0 | W174: =SUM(W170:W173) -> 0 | X174: 0 | Y174: 0 | AA174: 0 | AB174: 0 | AC174: =+V174+X174+AA174 -> 0 | AD174: =+W174+Y174+AB174 -> 0 | AG174: TRUE
A175: 6.05 | B175: Madarasa/Maktab | T175: 0 | U175: 0 | AC175: 0 | AD175: 0 | AF175: 0 | AG175: TRUE
B176: (a) 12 months | C176: 0 | D176: 0 | K176: =C176-G176 -> 0 | L176: 0 | N176: 0 | Q176: 0.2 | S176: =R176*Q176 -> 0 | T176: 0 | U176: 0 | W176: 0 | Z176: 0.06 | AB176: =AA176*Z176 -> 0 | AC176: 0 | AD176: 0 | AF176: 0 | AG176: TRUE
B177: (b) 9 months | C177: 1205 | D177: 54.225 | G177: 0 | I177: 0 | J177: 0 | K177: 1205 | L177: 54.225 | N177: 0 | Q177: 0.045 | R177: 1205 | S177: =R177*Q177 -> 54.225 | T177: 1205 | U177: 54.225 | W177: 0 | Z177: 0.045 | AA177: 1205 | AB177: =AA177*Z177 -> 54.225 | AC177: 1205 | AD177: 54.225 | AF177: 54.225 | AG177: TRUE
B178: (c) 6 months | C178: 0 | D178: 0 | K178: 0 | L178: 0 | N178: 0 | Q178: 0.1 | S178: =R178*Q178 -> 0 | T178: 0 | U178: 0 | W178: 0 | Z178: 0.03 | AB178: =AA178*Z178 -> 0 | AC178: 0 | AD178: 0 | AF178: 0 | AG178: TRUE
B179: (d) 3 months | C179: 0 | D179: 0 | K179: 0 | L179: 0 | Q179: 0.05 | S179: =R179*Q179 -> 0 | T179: 0 | U179: 0 | Z179: 0.015 | AB179: =AA179*Z179 -> 0 | AC179: 0 | AD179: 0 | AF179: 0 | AG179: TRUE
B180: Sub Total | C180: =SUM(C176:C179) -> 1205 | D180: 54.225 | E180: 0 | F180: 0 | G180: 0 | H180: 0 | I180: 0 | J180: 0 | K180: 1205 | L180: 54.225 | M180: =SUM(M176:M179) -> 0 | N180: =SUM(N176:N179) -> 0 | O180: =SUM(O176:O179) -> 0 | P180: =SUM(P176:P179) -> 0 | R180: =SUM(R176:R179) -> 1205 | S180: =SUM(S176:S179) -> 54.225 | T180: =+M180+O180+R180 -> 1205 | U180: =+N180+P180+S180 -> 54.225 | V180: =SUM(V176:V179) -> 0 | W180: =SUM(W176:W179) -> 0 | X180: 0 | Y180: 0 | AA180: 1205 | AB180: 54.225 | AC180: =+V180+X180+AA180 -> 1205 | AD180: =+W180+Y180+AB180 -> 54.225 | AG180: TRUE
A181: 6.06 | B181: Seasonal Hostel (Residential) | T181: 0 | U181: 0 | AC181: 0 | AD181: 0 | AF181: 0 | AG181: TRUE
B182: (a) 12 months | C182: 0 | D182: 0 | K182: =C182-G182 -> 0 | L182: 0 | N182: 0 | S182: =R182*Q182 -> 0 | T182: 0 | U182: 0 | W182: 0 | AB182: =AA182*Z182 -> 0 | AC182: 0 | AD182: 0 | AF182: 0 | AG182: TRUE
B183: (b) 9 months | C183: 0 | D183: 0 | K183: 0 | L183: 0 | N183: 0 | S183: =R183*Q183 -> 0 | T183: 0 | U183: 0 | W183: 0 | AB183: =AA183*Z183 -> 0 | AC183: 0 | AD183: 0 | AF183: 0 | AG183: TRUE
B184: (c) 6 months | C184: 0 | D184: 0 | K184: 0 | L184: 0 | N184: 0 | Q184: 0.1 | S184: =R184*Q184 -> 0 | T184: 0 | U184: 0 | W184: 0 | Z184: 0.1 | AB184: =AA184*Z184 -> 0 | AC184: 0 | AD184: 0 | AF184: 0 | AG184: TRUE
B185: (d) 3 months | C185: 0 | D185: 0 | K185: 0 | L185: 0 | N185: 0 | S185: =R185*Q185 -> 0 | T185: 0 | U185: 0 | W185: 0 | AB185: =AA185*Z185 -> 0 | AC185: 0 | AD185: 0 | AF185: 0 | AG185: TRUE
B186: Sub Total | C186: =SUM(C183:C185) -> 0 | D186: =SUM(D183:D185) -> 0 | E186: =SUM(E183:E185) -> 0 | F186: 0 | G186: 0 | H186: 0 | K186: 0 | L186: 0 | M186: =SUM(M182:M185) -> 0 | N186: =SUM(N182:N185) -> 0 | O186: =SUM(O182:O185) -> 0 | P186: =SUM(P182:P185) -> 0 | R186: =SUM(R182:R185) -> 0 | S186: =SUM(S182:S185) -> 0 | T186: =+M186+O186+R186 -> 0 | U186: =+N186+P186+S186 -> 0 | V186: =SUM(V182:V185) -> 0 | W186: =SUM(W182:W185) -> 0 | X186: 0 | Y186: 0 | AA186: 0 | AB186: 0 | AC186: =+V186+X186+AA186 -> 0 | AD186: =+W186+Y186+AB186 -> 0 | AG186: TRUE
A187: 6.07 | B187: Seasonal Hostel (Non Residential) | C187: 0 | D187: 0 | T187: 0 | U187: 0 | AC187: 0 | AD187: 0 | AF187: 0 | AG187: TRUE
B188: (a) 12 months | C188: 0 | D188: 0 | K188: =C188-G188 -> 0 | L188: 0 | N188: 0 | S188: =R188*Q188 -> 0 | T188: 0 | U188: 0 | W188: 0 | AB188: =AA188*Z188 -> 0 | AC188: 0 | AD188: 0 | AF188: 0 | AG188: TRUE
B189: (b) 9 months | C189: 0 | D189: 0 | K189: 0 | L189: 0 | N189: 0 | S189: =R189*Q189 -> 0 | T189: 0 | U189: 0 | W189: 0 | AB189: =AA189*Z189 -> 0 | AC189: 0 | AD189: 0 | AF189: 0 | AG189: TRUE
B190: (c) 6 months | C190: 0 | D190: 0 | K190: 0 | L190: 0 | N190: 0 | T190: 0 | U190: 0 | W190: 0 | AC190: 0 | AD190: 0 | AF190: 0 | AG190: TRUE
B191: (d) 3 months | C191: 0 | D191: 0 | K191: 0 | L191: 0 | N191: 0 | T191: 0 | U191: 0 | W191: 0 | AC191: 0 | AD191: 0 | AF191: 0 | AG191: TRUE
B192: Sub Total | C192: =SUM(C188:C191) -> 0 | D192: 0 | E192: 0 | F192: 0 | G192: 0 | H192: 0 | K192: 0 | L192: 0 | M192: =SUM(M188:M191) -> 0 | N192: =SUM(N188:N191) -> 0 | O192: =SUM(O188:O191) -> 0 | P192: =SUM(P188:P191) -> 0 | Q192: =SUM(Q188:Q191) -> 0 | R192: =SUM(R188:R191) -> 0 | S192: =SUM(S188:S191) -> 0 | T192: =+M192+O192+R192 -> 0 | U192: =+N192+P192+S192 -> 0 | V192: =SUM(V188:V191) -> 0 | W192: =SUM(W188:W191) -> 0 | X192: 0 | Y192: 0 | Z192: 0 | AA192: 0 | AB192: 0 | AC192: =+V192+X192+AA192 -> 0 | AD192: =+W192+Y192+AB192 -> 0 | AF192: 0 | AG192: TRUE
B193: Total | C193: =C192+C186+C180+C174+C168+C162+C156 -> 1367 | D193: 58.86 | E193: 59 | F193: 1.49 | G193: 68 | H193: 1.49 | I193: 4.974396489 | J193: 2.531430513 | K193: 1299 | L193: 57.37 | M193: =+M192+M186+M180+M174+M168+M162+M156 -> 0 | N193: =+N192+N186+N180+N174+N168+N162+N156 -> 0 | O193: =+O192+O186+O180+O174+O168+O162+O156 -> 0 | P193: =+P192+P186+P180+P174+P168+P162+P156 -> 0 | Q193: =+Q192+Q186+Q180+Q174+Q168+Q162+Q156 -> 0 | R193: =+R192+R186+R180+R174+R168+R162+R156 -> 1262 | S193: =+S192+S186+S180+S174+S168+S162+S156 -> 55.78 | T193: =+M193+O193+R193 -> 1262 | U193: =+N193+P193+S193 -> 55.78 | V193: =+V192+V186+V180+V174+V168+V162+V156 -> 0 | W193: =+W192+W186+W180+W174+W168+W162+W156 -> 0 | X193: 0 | Y193: 0 | Z193: 0 | AA193: 1262 | AB193: 55.78 | AC193: =+V193+X193+AA193 -> 1262 | AD193: =+W193+Y193+AB193 -> 55.78 | AG193: TRUE
A194: II | B194: RETENTION | T194: 0 | U194: 0 | AC194: 0 | AD194: 0 | AF194: 0 | AG194: TRUE
A195: 7 | B195: Free Text Books | T195: 0 | U195: 0 | AC195: 0 | AD195: 0 | AF195: 0 | AG195: TRUE
A196: 7.01 | B196: Free Text Books (P) | C196: 0 | D196: 0 | T196: 0 | U196: 0 | AC196: 0 | AD196: 0 | AF196: 0 | AG196: TRUE
B197: (a) Class I & II | C197: 13223 | D197: 12.03293 | E197: =C197 -> 13223 | F197: =D197 -> 12.03293 | G197: =C197 -> 13223 | H197: =D197 -> 12.03293 | I197: 100 | J197: 100 | K197: =C197-G197 -> 0 | L197: 0 | N197: 0 | Q197: 0.0015 | R197: 11475 | S197: =R197*Q197 -> 17.2125 | T197: 11475 | U197: 17.2125 | W197: 0 | Z197: 0.0015 | AA197: 11475 | AB197: =AA197*Z197 -> 17.2125 | AC197: 11475 | AD197: 17.2125 | AF197: 17.2125 | AG197: TRUE
B198: (b) Braille Books Class I & II | C198: 19 | D198: 0.0285 | E198: =C198 -> 19 | G198: =C198 -> 19 | I198: 100 | J198: 0 | K198: 0 | L198: 0.0285 | N198: 0 | Q198: 0.0015 | R198: 4 | S198: =+Q198*R198 -> 0.006 | T198: 4 | U198: 0.006 | W198: 0 | Z198: 0.0015 | AA198: 4 | AB198: =+Z198*AA198 -> 0.006 | AC198: 4 | AD198: 0.006 | AF198: 0.006 | AG198: TRUE
B199: (c) Large Print Books Class I & II | C199: 150 | D199: 0.225 | E199: 150 | G199: 150 | I199: 100 | J199: 0 | K199: 0 | L199: 0.225 | N199: 0 | Q199: 0.0015 | R199: 15 | S199: =+Q199*R199 -> 0.0225 | T199: =+R199 -> 15 | U199: =+S199 -> 0.0225 | W199: 0 | Z199: 0.0015 | AA199: 15 | AB199: =+Z199*AA199 -> 0.0225 | AC199: =+AA199 -> 15 | AD199: =+AB199 -> 0.0225 | AF199: 0.0225 | AG199: TRUE
B200: (d) Class III to V | C200: 21317 | D200: 21.74334 | E200: 21317 | F200: =D200 -> 21.74334 | G200: 21317 | H200: =D200 -> 21.74334 | I200: =IFERROR(G200/C200*100,"") -> 100 | J200: =IFERROR(H200/D200*100,"") -> 100 | K200: 0 | L200: 0 | N200: 0 | Q200: 0.0015 | R200: 19477 | S200: 29.2155 | T200: =+M200+O200+R200 -> 19477 | U200: =+N200+P200+S200 -> 29.2155 | W200: 0 | Z200: 0.0015 | AA200: 19477 | AB200: 29.2155 | AC200: =+V200+X200+AA200 -> 19477 | AD200: =+W200+Y200+AB200 -> 29.2155 | AF200: =+AD200 -> 29.2155 | AG200: =+W200+Y200+AB200=AD200 -> TRUE
B201: (e) Braille Books Class III to V | C201: 30 | D201: 0.045 | E201: 30 | G201: 30 | I201: 100 | J201: 0 | K201: 0 | L201: 0.045 | N201: 0 | Q201: 0.0015 | R201: 35 | S201: =+Q201*R201 -> 0.0525 | T201: =+R201 -> 35 | U201: =+S201 -> 0.0525 | W201: 0 | Z201: 0.0015 | AA201: 35 | AB201: =+Z201*AA201 -> 0.0525 | AC201: =+AA201 -> 35 | AD201: =+AB201 -> 0.0525 | AF201: 0.0525 | AG201: TRUE
... 315 more rows

Sheet ChamarajaNagar
A1: Name of the District:Chamaraja Nagar | C1: 2016-17 | M1: Outlay Proposed for 2017-18 | V1: Outlay Recommended for 2017-18
A2: S.No. | B2: Activity | C2: Out Lay Approved for 2016-17 (including spill over) | E2: Expenditure as on DEC, 2016 (As per Vidyavahini Software) | G2: Anticipated Achievement till 31-3-2017 | K2: Savings | M2: Spill Over | O2: Deferred laibility of 2016-2017 | Q2: Fresh | T2: Total | V2: Spill Over | X2: Deferred laibility of 2016-2017 | Z2: Fresh | AC2: Total
C3: Phy. | D3: Fin. | E3: Phy. | F3: Fin. | G3: Phy. | H3: Fin. | I3: Phy. (%) | J3: Fin. (%) | K3: Phy. | L3: Fin. | M3: Phy. | N3: Fin. | O3: Phy. | P3: Fin. | Q3: Unit Cost | R3: Phy. | S3: Fin. | T3: Phy. | U3: Fin. | V3: Phy. | W3: Fin. | X3: Phy. | Y3: Fin. | Z3: Unit Cost | AA3: Phy. | AB3: Fin. | AC3: Phy. | AD3: Fin.
B5: SSA
A6: 1 | B6: Opening of New Schools | C6: 0 | D6: 0
